Workbook

Sheet DATOS
B2: CARACTERÍSTICAS DE LA UBICACIÓN | K2: CARACTERÍSTICAS DEL ELEMENTO
C4: Comunidad Autónoma | L4: Grupo de material | O4: Material | Y4: Espesor (m) | Z4: Espesor de cálculo (m) | AA4: Conductividad térmica (W/mK) | AB4: Resistencia térmica (m²K/W) | AC4: Factor μ | AD4: Sd (m)
Z6: =IF((IFERROR((IF((VLOOKUP($O6,T_BaseDatos[[Material]:[Factor de resistencia a la difusión del vapor de agua]],2,FALSE))=0,$Y6,(VLOOKUP($O6,T_BaseDatos[[Material]:[Factor de resistencia a la difusión del vapor de agua]],2,FALSE)))),""))=0,"",(IFERROR((IF((VLOOKUP($O6,T_BaseDatos[[Material]:[Factor de resistencia a la difusión del vapor de agua]],2,FALSE))=0,$Y6,(VLOOKUP($O6,T_BaseDatos[[Material]:[Factor de resistencia a la difusión del vapor de agua]],2,FALSE)))),""))) ->  | AA6: =IF((IFERROR((VLOOKUP($O6,T_BaseDatos[[Material]:[Factor de resistencia a la difusión del vapor de agua]],3,FALSE)),""))=0,"",(IFERROR((VLOOKUP($O6,T_BaseDatos[[Material]:[Factor de resistencia a la difusión del vapor de agua]],3,FALSE)),""))) ->  | AB6: =IF((IFERROR((IF((VLOOKUP($O6,T_BaseDatos[[Material]:[Factor de resistencia a la difusión del vapor de agua]],4,FALSE))=0,($Z6/$AA6),(VLOOKUP($O6,T_BaseDatos[[Material]:[Factor de resistencia a la difusión del vapor de agua]],4,FALSE)))),""))=0,"",(IFERROR((IF((VLOOKUP($O6,T_BaseDatos[[Material]:[Factor de resistencia a la difusión del vapor de agua]],4,FALSE))=0,($Z6/$AA6),(VLOOKUP($O6,T_BaseDatos[[Material]:[Factor de resistencia a la difusión del vapor de agua]],4,FALSE)))),""))) ->  | AC6: =IF((IFERROR((VLOOKUP($O6,T_BaseDatos[[Material]:[Factor de resistencia a la difusión del vapor de agua]],7,FALSE)),""))=0,"",(IFERROR((VLOOKUP($O6,T_BaseDatos[[Material]:[Factor de resistencia a la difusión del vapor de agua]],7,FALSE)),""))) ->  | AD6: =IF((IFERROR((ROUND(($Z6*$AC6),3)),""))=0,"",(IFERROR((ROUND(($Z6*$AC6),3)),""))) -> 
C7: Provincia | Z7: =IF((IFERROR((IF((VLOOKUP($O7,T_BaseDatos[[Material]:[Factor de resistencia a la difusión del vapor de agua]],2,FALSE))=0,$Y7,(VLOOKUP($O7,T_BaseDatos[[Material]:[Factor de resistencia a la difusión del vapor de agua]],2,FALSE)))),""))=0,"",(IFERROR((IF((VLOOKUP($O7,T_BaseDatos[[Material]:[Factor de resistencia a la difusión del vapor de agua]],2,FALSE))=0,$Y7,(VLOOKUP($O7,T_BaseDatos[[Material]:[Factor de resistencia a la difusión del vapor de agua]],2,FALSE)))),""))) ->  | AA7: =IF((IFERROR((VLOOKUP($O7,T_BaseDatos[[Material]:[Factor de resistencia a la difusión del vapor de agua]],3,FALSE)),""))=0,"",(IFERROR((VLOOKUP($O7,T_BaseDatos[[Material]:[Factor de resistencia a la difusión del vapor de agua]],3,FALSE)),""))) ->  | AB7: =IF((IFERROR((IF((VLOOKUP($O7,T_BaseDatos[[Material]:[Factor de resistencia a la difusión del vapor de agua]],4,FALSE))=0,($Z7/$AA7),(VLOOKUP($O7,T_BaseDatos[[Material]:[Factor de resistencia a la difusión del vapor de agua]],4,FALSE)))),""))=0,"",(IFERROR((IF((VLOOKUP($O7,T_BaseDatos[[Material]:[Factor de resistencia a la difusión del vapor de agua]],4,FALSE))=0,($Z7/$AA7),(VLOOKUP($O7,T_BaseDatos[[Material]:[Factor de resistencia a la difusión del vapor de agua]],4,FALSE)))),""))) ->  | AC7: =IF((IFERROR((VLOOKUP($O7,T_BaseDatos[[Material]:[Factor de resistencia a la difusión del vapor de agua]],7,FALSE)),""))=0,"",(IFERROR((VLOOKUP($O7,T_BaseDatos[[Material]:[Factor de resistencia a la difusión del vapor de agua]],7,FALSE)),""))) ->  | AD7: =IF((IFERROR((ROUND(($Z7*$AC7),3)),""))=0,"",(IFERROR((ROUND(($Z7*$AC7),3)),""))) -> 
Z8: =IF((IFERROR((IF((VLOOKUP($O8,T_BaseDatos[[Material]:[Factor de resistencia a la difusión del vapor de agua]],2,FALSE))=0,$Y8,(VLOOKUP($O8,T_BaseDatos[[Material]:[Factor de resistencia a la difusión del vapor de agua]],2,FALSE)))),""))=0,"",(IFERROR((IF((VLOOKUP($O8,T_BaseDatos[[Material]:[Factor de resistencia a la difusión del vapor de agua]],2,FALSE))=0,$Y8,(VLOOKUP($O8,T_BaseDatos[[Material]:[Factor de resistencia a la difusión del vapor de agua]],2,FALSE)))),""))) ->  | AA8: =IF((IFERROR((VLOOKUP($O8,T_BaseDatos[[Material]:[Factor de resistencia a la difusión del vapor de agua]],3,FALSE)),""))=0,"",(IFERROR((VLOOKUP($O8,T_BaseDatos[[Material]:[Factor de resistencia a la difusión del vapor de agua]],3,FALSE)),""))) ->  | AB8: =IF((IFERROR((IF((VLOOKUP($O8,T_BaseDatos[[Material]:[Factor de resistencia a la difusión del vapor de agua]],4,FALSE))=0,($Z8/$AA8),(VLOOKUP($O8,T_BaseDatos[[Material]:[Factor de resistencia a la difusión del vapor de agua]],4,FALSE)))),""))=0,"",(IFERROR((IF((VLOOKUP($O8,T_BaseDatos[[Material]:[Factor de resistencia a la difusión del vapor de agua]],4,FALSE))=0,($Z8/$AA8),(VLOOKUP($O8,T_BaseDatos[[Material]:[Factor de resistencia a la difusión del vapor de agua]],4,FALSE)))),""))) ->  | AC8: =IF((IFERROR((VLOOKUP($O8,T_BaseDatos[[Material]:[Factor de resistencia a la difusión del vapor de agua]],7,FALSE)),""))=0,"",(IFERROR((VLOOKUP($O8,T_BaseDatos[[Material]:[Factor de resistencia a la difusión del vapor de agua]],7,FALSE)),""))) -> 
Z9: =IF((IFERROR((IF((VLOOKUP($O9,T_BaseDatos[[Material]:[Factor de resistencia a la difusión del vapor de agua]],2,FALSE))=0,$Y9,(VLOOKUP($O9,T_BaseDatos[[Material]:[Factor de resistencia a la difusión del vapor de agua]],2,FALSE)))),""))=0,"",(IFERROR((IF((VLOOKUP($O9,T_BaseDatos[[Material]:[Factor de resistencia a la difusión del vapor de agua]],2,FALSE))=0,$Y9,(VLOOKUP($O9,T_BaseDatos[[Material]:[Factor de resistencia a la difusión del vapor de agua]],2,FALSE)))),""))) ->  | AA9: =IF((IFERROR((VLOOKUP($O9,T_BaseDatos[[Material]:[Factor de resistencia a la difusión del vapor de agua]],3,FALSE)),""))=0,"",(IFERROR((VLOOKUP($O9,T_BaseDatos[[Material]:[Factor de resistencia a la difusión del vapor de agua]],3,FALSE)),""))) ->  | AB9: =IF((IFERROR((IF((VLOOKUP($O9,T_BaseDatos[[Material]:[Factor de resistencia a la difusión del vapor de agua]],4,FALSE))=0,($Z9/$AA9),(VLOOKUP($O9,T_BaseDatos[[Material]:[Factor de resistencia a la difusión del vapor de agua]],4,FALSE)))),""))=0,"",(IFERROR((IF((VLOOKUP($O9,T_BaseDatos[[Material]:[Factor de resistencia a la difusión del vapor de agua]],4,FALSE))=0,($Z9/$AA9),(VLOOKUP($O9,T_BaseDatos[[Material]:[Factor de resistencia a la difusión del vapor de agua]],4,FALSE)))),""))) ->  | AC9: =IF((IFERROR((VLOOKUP($O9,T_BaseDatos[[Material]:[Factor de resistencia a la difusión del vapor de agua]],7,FALSE)),""))=0,"",(IFERROR((VLOOKUP($O9,T_BaseDatos[[Material]:[Factor de resistencia a la difusión del vapor de agua]],7,FALSE)),""))) -> 
C10: Población | Z10: =IF((IFERROR((IF((VLOOKUP($O10,T_BaseDatos[[Material]:[Factor de resistencia a la difusión del vapor de agua]],2,FALSE))=0,$Y10,(VLOOKUP($O10,T_BaseDatos[[Material]:[Factor de resistencia a la difusión del vapor de agua]],2,FALSE)))),""))=0,"",(IFERROR((IF((VLOOKUP($O10,T_BaseDatos[[Material]:[Factor de resistencia a la difusión del vapor de agua]],2,FALSE))=0,$Y10,(VLOOKUP($O10,T_BaseDatos[[Material]:[Factor de resistencia a la difusión del vapor de agua]],2,FALSE)))),""))) ->  | AA10: =IF((IFERROR((VLOOKUP($O10,T_BaseDatos[[Material]:[Factor de resistencia a la difusión del vapor de agua]],3,FALSE)),""))=0,"",(IFERROR((VLOOKUP($O10,T_BaseDatos[[Material]:[Factor de resistencia a la difusión del vapor de agua]],3,FALSE)),""))) ->  | AB10: =IF((IFERROR((IF((VLOOKUP($O10,T_BaseDatos[[Material]:[Factor de resistencia a la difusión del vapor de agua]],4,FALSE))=0,($Z10/$AA10),(VLOOKUP($O10,T_BaseDatos[[Material]:[Factor de resistencia a la difusión del vapor de agua]],4,FALSE)))),""))=0,"",(IFERROR((IF((VLOOKUP($O10,T_BaseDatos[[Material]:[Factor de resistencia a la difusión del vapor de agua]],4,FALSE))=0,($Z10/$AA10),(VLOOKUP($O10,T_BaseDatos[[Material]:[Factor de resistencia a la difusión del vapor de agua]],4,FALSE)))),""))) ->  | AC10: =IF((IFERROR((VLOOKUP($O10,T_BaseDatos[[Material]:[Factor de resistencia a la difusión del vapor de agua]],7,FALSE)),""))=0,"",(IFERROR((VLOOKUP($O10,T_BaseDatos[[Material]:[Factor de resistencia a la difusión del vapor de agua]],7,FALSE)),""))) -> 
Z11: =IF((IFERROR((IF((VLOOKUP($O11,T_BaseDatos[[Material]:[Factor de resistencia a la difusión del vapor de agua]],2,FALSE))=0,$Y11,(VLOOKUP($O11,T_BaseDatos[[Material]:[Factor de resistencia a la difusión del vapor de agua]],2,FALSE)))),""))=0,"",(IFERROR((IF((VLOOKUP($O11,T_BaseDatos[[Material]:[Factor de resistencia a la difusión del vapor de agua]],2,FALSE))=0,$Y11,(VLOOKUP($O11,T_BaseDatos[[Material]:[Factor de resistencia a la difusión del vapor de agua]],2,FALSE)))),""))) ->  | AA11: =IF((IFERROR((VLOOKUP($O11,T_BaseDatos[[Material]:[Factor de resistencia a la difusión del vapor de agua]],3,FALSE)),""))=0,"",(IFERROR((VLOOKUP($O11,T_BaseDatos[[Material]:[Factor de resistencia a la difusión del vapor de agua]],3,FALSE)),""))) ->  | AB11: =IF((IFERROR((IF((VLOOKUP($O11,T_BaseDatos[[Material]:[Factor de resistencia a la difusión del vapor de agua]],4,FALSE))=0,($Z11/$AA11),(VLOOKUP($O11,T_BaseDatos[[Material]:[Factor de resistencia a la difusión del vapor de agua]],4,FALSE)))),""))=0,"",(IFERROR((IF((VLOOKUP($O11,T_BaseDatos[[Material]:[Factor de resistencia a la difusión del vapor de agua]],4,FALSE))=0,($Z11/$AA11),(VLOOKUP($O11,T_BaseDatos[[Material]:[Factor de resistencia a la difusión del vapor de agua]],4,FALSE)))),""))) ->  | AC11: =IF((IFERROR((VLOOKUP($O11,T_BaseDatos[[Material]:[Factor de resistencia a la difusión del vapor de agua]],7,FALSE)),""))=0,"",(IFERROR((VLOOKUP($O11,T_BaseDatos[[Material]:[Factor de resistencia a la difusión del vapor de agua]],7,FALSE)),""))) -> 
Z12: =IF((IFERROR((IF((VLOOKUP($O12,T_BaseDatos[[Material]:[Factor de resistencia a la difusión del vapor de agua]],2,FALSE))=0,$Y12,(VLOOKUP($O12,T_BaseDatos[[Material]:[Factor de resistencia a la difusión del vapor de agua]],2,FALSE)))),""))=0,"",(IFERROR((IF((VLOOKUP($O12,T_BaseDatos[[Material]:[Factor de resistencia a la difusión del vapor de agua]],2,FALSE))=0,$Y12,(VLOOKUP($O12,T_BaseDatos[[Material]:[Factor de resistencia a la difusión del vapor de agua]],2,FALSE)))),""))) ->  | AA12: =IF((IFERROR((VLOOKUP($O12,T_BaseDatos[[Material]:[Factor de resistencia a la difusión del vapor de agua]],3,FALSE)),""))=0,"",(IFERROR((VLOOKUP($O12,T_BaseDatos[[Material]:[Factor de resistencia a la difusión del vapor de agua]],3,FALSE)),""))) ->  | AB12: =IF((IFERROR((IF((VLOOKUP($O12,T_BaseDatos[[Material]:[Factor de resistencia a la difusión del vapor de agua]],4,FALSE))=0,($Z12/$AA12),(VLOOKUP($O12,T_BaseDatos[[Material]:[Factor de resistencia a la difusión del vapor de agua]],4,FALSE)))),""))=0,"",(IFERROR((IF((VLOOKUP($O12,T_BaseDatos[[Material]:[Factor de resistencia a la difusión del vapor de agua]],4,FALSE))=0,($Z12/$AA12),(VLOOKUP($O12,T_BaseDatos[[Material]:[Factor de resistencia a la difusión del vapor de agua]],4,FALSE)))),""))) ->  | AC12: =IF((IFERROR((VLOOKUP($O12,T_BaseDatos[[Material]:[Factor de resistencia a la difusión del vapor de agua]],7,FALSE)),""))=0,"",(IFERROR((VLOOKUP($O12,T_BaseDatos[[Material]:[Factor de resistencia a la difusión del vapor de agua]],7,FALSE)),""))) -> 
C13: Clase de higrometría del espacio interior | Z13: =IF((IFERROR((IF((VLOOKUP($O13,T_BaseDatos[[Material]:[Factor de resistencia a la difusión del vapor de agua]],2,FALSE))=0,$Y13,(VLOOKUP($O13,T_BaseDatos[[Material]:[Factor de resistencia a la difusión del vapor de agua]],2,FALSE)))),""))=0,"",(IFERROR((IF((VLOOKUP($O13,T_BaseDatos[[Material]:[Factor de resistencia a la difusión del vapor de agua]],2,FALSE))=0,$Y13,(VLOOKUP($O13,T_BaseDatos[[Material]:[Factor de resistencia a la difusión del vapor de agua]],2,FALSE)))),""))) ->  | AA13: =IF((IFERROR((VLOOKUP($O13,T_BaseDatos[[Material]:[Factor de resistencia a la difusión del vapor de agua]],3,FALSE)),""))=0,"",(IFERROR((VLOOKUP($O13,T_BaseDatos[[Material]:[Factor de resistencia a la difusión del vapor de agua]],3,FALSE)),""))) ->  | AB13: =IF((IFERROR((IF((VLOOKUP($O13,T_BaseDatos[[Material]:[Factor de resistencia a la difusión del vapor de agua]],4,FALSE))=0,($Z13/$AA13),(VLOOKUP($O13,T_BaseDatos[[Material]:[Factor de resistencia a la difusión del vapor de agua]],4,FALSE)))),""))=0,"",(IFERROR((IF((VLOOKUP($O13,T_BaseDatos[[Material]:[Factor de resistencia a la difusión del vapor de agua]],4,FALSE))=0,($Z13/$AA13),(VLOOKUP($O13,T_BaseDatos[[Material]:[Factor de resistencia a la difusión del vapor de agua]],4,FALSE)))),""))) ->  | AC13: =IF((IFERROR((VLOOKUP($O13,T_BaseDatos[[Material]:[Factor de resistencia a la difusión del vapor de agua]],7,FALSE)),""))=0,"",(IFERROR((VLOOKUP($O13,T_BaseDatos[[Material]:[Factor de resistencia a la difusión del vapor de agua]],7,FALSE)),""))) -> 
Z14: =IF((IFERROR((IF((VLOOKUP($O14,T_BaseDatos[[Material]:[Factor de resistencia a la difusión del vapor de agua]],2,FALSE))=0,$Y14,(VLOOKUP($O14,T_BaseDatos[[Material]:[Factor de resistencia a la difusión del vapor de agua]],2,FALSE)))),""))=0,"",(IFERROR((IF((VLOOKUP($O14,T_BaseDatos[[Material]:[Factor de resistencia a la difusión del vapor de agua]],2,FALSE))=0,$Y14,(VLOOKUP($O14,T_BaseDatos[[Material]:[Factor de resistencia a la difusión del vapor de agua]],2,FALSE)))),""))) ->  | AA14: =IF((IFERROR((VLOOKUP($O14,T_BaseDatos[[Material]:[Factor de resistencia a la difusión del vapor de agua]],3,FALSE)),""))=0,"",(IFERROR((VLOOKUP($O14,T_BaseDatos[[Material]:[Factor de resistencia a la difusión del vapor de agua]],3,FALSE)),""))) ->  | AB14: =IF((IFERROR((IF((VLOOKUP($O14,T_BaseDatos[[Material]:[Factor de resistencia a la difusión del vapor de agua]],4,FALSE))=0,($Z14/$AA14),(VLOOKUP($O14,T_BaseDatos[[Material]:[Factor de resistencia a la difusión del vapor de agua]],4,FALSE)))),""))=0,"",(IFERROR((IF((VLOOKUP($O14,T_BaseDatos[[Material]:[Factor de resistencia a la difusión del vapor de agua]],4,FALSE))=0,($Z14/$AA14),(VLOOKUP($O14,T_BaseDatos[[Material]:[Factor de resistencia a la difusión del vapor de agua]],4,FALSE)))),""))) ->  | AC14: =IF((IFERROR((VLOOKUP($O14,T_BaseDatos[[Material]:[Factor de resistencia a la difusión del vapor de agua]],7,FALSE)),""))=0,"",(IFERROR((VLOOKUP($O14,T_BaseDatos[[Material]:[Factor de resistencia a la difusión del vapor de agua]],7,FALSE)),""))) -> 
Z15: =IF((IFERROR((IF((VLOOKUP($O15,T_BaseDatos[[Material]:[Factor de resistencia a la difusión del vapor de agua]],2,FALSE))=0,$Y15,(VLOOKUP($O15,T_BaseDatos[[Material]:[Factor de resistencia a la difusión del vapor de agua]],2,FALSE)))),""))=0,"",(IFERROR((IF((VLOOKUP($O15,T_BaseDatos[[Material]:[Factor de resistencia a la difusión del vapor de agua]],2,FALSE))=0,$Y15,(VLOOKUP($O15,T_BaseDatos[[Material]:[Factor de resistencia a la difusión del vapor de agua]],2,FALSE)))),""))) ->  | AA15: =IF((IFERROR((VLOOKUP($O15,T_BaseDatos[[Material]:[Factor de resistencia a la difusión del vapor de agua]],3,FALSE)),""))=0,"",(IFERROR((VLOOKUP($O15,T_BaseDatos[[Material]:[Factor de resistencia a la difusión del vapor de agua]],3,FALSE)),""))) ->  | AB15: =IF((IFERROR((IF((VLOOKUP($O15,T_BaseDatos[[Material]:[Factor de resistencia a la difusión del vapor de agua]],4,FALSE))=0,($Z15/$AA15),(VLOOKUP($O15,T_BaseDatos[[Material]:[Factor de resistencia a la difusión del vapor de agua]],4,FALSE)))),""))=0,"",(IFERROR((IF((VLOOKUP($O15,T_BaseDatos[[Material]:[Factor de resistencia a la difusión del vapor de agua]],4,FALSE))=0,($Z15/$AA15),(VLOOKUP($O15,T_BaseDatos[[Material]:[Factor de resistencia a la difusión del vapor de agua]],4,FALSE)))),""))) ->  | AC15: =IF((IFERROR((VLOOKUP($O15,T_BaseDatos[[Material]:[Factor de resistencia a la difusión del vapor de agua]],7,FALSE)),""))=0,"",(IFERROR((VLOOKUP($O15,T_BaseDatos[[Material]:[Factor de resistencia a la difusión del vapor de agua]],7,FALSE)),""))) -> 
C16: Datos de partida: | Z16: =IF((IFERROR((IF((VLOOKUP($O16,T_BaseDatos[[Material]:[Factor de resistencia a la difusión del vapor de agua]],2,FALSE))=0,$Y16,(VLOOKUP($O16,T_BaseDatos[[Material]:[Factor de resistencia a la difusión del vapor de agua]],2,FALSE)))),""))=0,"",(IFERROR((IF((VLOOKUP($O16,T_BaseDatos[[Material]:[Factor de resistencia a la difusión del vapor de agua]],2,FALSE))=0,$Y16,(VLOOKUP($O16,T_BaseDatos[[Material]:[Factor de resistencia a la difusión del vapor de agua]],2,FALSE)))),""))) ->  | AA16: =IF((IFERROR((VLOOKUP($O16,T_BaseDatos[[Material]:[Factor de resistencia a la difusión del vapor de agua]],3,FALSE)),""))=0,"",(IFERROR((VLOOKUP($O16,T_BaseDatos[[Material]:[Factor de resistencia a la difusión del vapor de agua]],3,FALSE)),""))) ->  | AB16: =IF((IFERROR((IF((VLOOKUP($O16,T_BaseDatos[[Material]:[Factor de resistencia a la difusión del vapor de agua]],4,FALSE))=0,($Z16/$AA16),(VLOOKUP($O16,T_BaseDatos[[Material]:[Factor de resistencia a la difusión del vapor de agua]],4,FALSE)))),""))=0,"",(IFERROR((IF((VLOOKUP($O16,T_BaseDatos[[Material]:[Factor de resistencia a la difusión del vapor de agua]],4,FALSE))=0,($Z16/$AA16),(VLOOKUP($O16,T_BaseDatos[[Material]:[Factor de resistencia a la difusión del vapor de agua]],4,FALSE)))),""))) ->  | AC16: =IF((IFERROR((VLOOKUP($O16,T_BaseDatos[[Material]:[Factor de resistencia a la difusión del vapor de agua]],7,FALSE)),""))=0,"",(IFERROR((VLOOKUP($O16,T_BaseDatos[[Material]:[Factor de resistencia a la difusión del vapor de agua]],7,FALSE)),""))) -> 
C17: Zona climática | E17: Altitud (m) | Z17: =IF((IFERROR((IF((VLOOKUP($O17,T_BaseDatos[[Material]:[Factor de resistencia a la difusión del vapor de agua]],2,FALSE))=0,$Y17,(VLOOKUP($O17,T_BaseDatos[[Material]:[Factor de resistencia a la difusión del vapor de agua]],2,FALSE)))),""))=0,"",(IFERROR((IF((VLOOKUP($O17,T_BaseDatos[[Material]:[Factor de resistencia a la difusión del vapor de agua]],2,FALSE))=0,$Y17,(VLOOKUP($O17,T_BaseDatos[[Material]:[Factor de resistencia a la difusión del vapor de agua]],2,FALSE)))),""))) ->  | AA17: =IF((IFERROR((VLOOKUP($O17,T_BaseDatos[[Material]:[Factor de resistencia a la difusión del vapor de agua]],3,FALSE)),""))=0,"",(IFERROR((VLOOKUP($O17,T_BaseDatos[[Material]:[Factor de resistencia a la difusión del vapor de agua]],3,FALSE)),""))) ->  | AB17: =IF((IFERROR((IF((VLOOKUP($O17,T_BaseDatos[[Material]:[Factor de resistencia a la difusión del vapor de agua]],4,FALSE))=0,($Z17/$AA17),(VLOOKUP($O17,T_BaseDatos[[Material]:[Factor de resistencia a la difusión del vapor de agua]],4,FALSE)))),""))=0,"",(IFERROR((IF((VLOOKUP($O17,T_BaseDatos[[Material]:[Factor de resistencia a la difusión del vapor de agua]],4,FALSE))=0,($Z17/$AA17),(VLOOKUP($O17,T_BaseDatos[[Material]:[Factor de resistencia a la difusión del vapor de agua]],4,FALSE)))),""))) ->  | AC17: =IF((IFERROR((VLOOKUP($O17,T_BaseDatos[[Material]:[Factor de resistencia a la difusión del vapor de agua]],7,FALSE)),""))=0,"",(IFERROR((VLOOKUP($O17,T_BaseDatos[[Material]:[Factor de resistencia a la difusión del vapor de agua]],7,FALSE)),""))) -> 
Z18: =IF((IFERROR((IF((VLOOKUP($O18,T_BaseDatos[[Material]:[Factor de resistencia a la difusión del vapor de agua]],2,FALSE))=0,$Y18,(VLOOKUP($O18,T_BaseDatos[[Material]:[Factor de resistencia a la difusión del vapor de agua]],2,FALSE)))),""))=0,"",(IFERROR((IF((VLOOKUP($O18,T_BaseDatos[[Material]:[Factor de resistencia a la difusión del vapor de agua]],2,FALSE))=0,$Y18,(VLOOKUP($O18,T_BaseDatos[[Material]:[Factor de resistencia a la difusión del vapor de agua]],2,FALSE)))),""))) ->  | AA18: =IF((IFERROR((VLOOKUP($O18,T_BaseDatos[[Material]:[Factor de resistencia a la difusión del vapor de agua]],3,FALSE)),""))=0,"",(IFERROR((VLOOKUP($O18,T_BaseDatos[[Material]:[Factor de resistencia a la difusión del vapor de agua]],3,FALSE)),""))) ->  | AB18: =IF((IFERROR((IF((VLOOKUP($O18,T_BaseDatos[[Material]:[Factor de resistencia a la difusión del vapor de agua]],4,FALSE))=0,($Z18/$AA18),(VLOOKUP($O18,T_BaseDatos[[Material]:[Factor de resistencia a la difusión del vapor de agua]],4,FALSE)))),""))=0,"",(IFERROR((IF((VLOOKUP($O18,T_BaseDatos[[Material]:[Factor de resistencia a la difusión del vapor de agua]],4,FALSE))=0,($Z18/$AA18),(VLOOKUP($O18,T_BaseDatos[[Material]:[Factor de resistencia a la difusión del vapor de agua]],4,FALSE)))),""))) ->  | AC18: =IF((IFERROR((VLOOKUP($O18,T_BaseDatos[[Material]:[Factor de resistencia a la difusión del vapor de agua]],7,FALSE)),""))=0,"",(IFERROR((VLOOKUP($O18,T_BaseDatos[[Material]:[Factor de resistencia a la difusión del vapor de agua]],7,FALSE)),""))) -> 
C19: =IFERROR((VLOOKUP($C$11,Tabla1[[Población]:[HRext Enero (tanto por 1)]],2,FALSE)),"") ->  | E19: =IFERROR((VLOOKUP($C$11,Tabla1[[Población]:[HRext Enero (tanto por 1)]],7,FALSE)),"") ->  | Z19: =IF((IFERROR((IF((VLOOKUP($O19,T_BaseDatos[[Material]:[Factor de resistencia a la difusión del vapor de agua]],2,FALSE))=0,$Y19,(VLOOKUP($O19,T_BaseDatos[[Material]:[Factor de resistencia a la difusión del vapor de agua]],2,FALSE)))),""))=0,"",(IFERROR((IF((VLOOKUP($O19,T_BaseDatos[[Material]:[Factor de resistencia a la difusión del vapor de agua]],2,FALSE))=0,$Y19,(VLOOKUP($O19,T_BaseDatos[[Material]:[Factor de resistencia a la difusión del vapor de agua]],2,FALSE)))),""))) ->  | AA19: =IF((IFERROR((VLOOKUP($O19,T_BaseDatos[[Material]:[Factor de resistencia a la difusión del vapor de agua]],3,FALSE)),""))=0,"",(IFERROR((VLOOKUP($O19,T_BaseDatos[[Material]:[Factor de resistencia a la difusión del vapor de agua]],3,FALSE)),""))) ->  | AB19: =IF((IFERROR((IF((VLOOKUP($O19,T_BaseDatos[[Material]:[Factor de resistencia a la difusión del vapor de agua]],4,FALSE))=0,($Z19/$AA19),(VLOOKUP($O19,T_BaseDatos[[Material]:[Factor de resistencia a la difusión del vapor de agua]],4,FALSE)))),""))=0,"",(IFERROR((IF((VLOOKUP($O19,T_BaseDatos[[Material]:[Factor de resistencia a la difusión del vapor de agua]],4,FALSE))=0,($Z19/$AA19),(VLOOKUP($O19,T_BaseDatos[[Material]:[Factor de resistencia a la difusión del vapor de agua]],4,FALSE)))),""))) ->  | AC19: =IF((IFERROR((VLOOKUP($O19,T_BaseDatos[[Material]:[Factor de resistencia a la difusión del vapor de agua]],7,FALSE)),""))=0,"",(IFERROR((VLOOKUP($O19,T_BaseDatos[[Material]:[Factor de resistencia a la difusión del vapor de agua]],7,FALSE)),""))) -> 
Z20: =IF((IFERROR((IF((VLOOKUP($O20,T_BaseDatos[[Material]:[Factor de resistencia a la difusión del vapor de agua]],2,FALSE))=0,$Y20,(VLOOKUP($O20,T_BaseDatos[[Material]:[Factor de resistencia a la difusión del vapor de agua]],2,FALSE)))),""))=0,"",(IFERROR((IF((VLOOKUP($O20,T_BaseDatos[[Material]:[Factor de resistencia a la difusión del vapor de agua]],2,FALSE))=0,$Y20,(VLOOKUP($O20,T_BaseDatos[[Material]:[Factor de resistencia a la difusión del vapor de agua]],2,FALSE)))),""))) ->  | AA20: =IF((IFERROR((VLOOKUP($O20,T_BaseDatos[[Material]:[Factor de resistencia a la difusión del vapor de agua]],3,FALSE)),""))=0,"",(IFERROR((VLOOKUP($O20,T_BaseDatos[[Material]:[Factor de resistencia a la difusión del vapor de agua]],3,FALSE)),""))) ->  | AB20: =IF((IFERROR((IF((VLOOKUP($O20,T_BaseDatos[[Material]:[Factor de resistencia a la difusión del vapor de agua]],4,FALSE))=0,($Z20/$AA20),(VLOOKUP($O20,T_BaseDatos[[Material]:[Factor de resistencia a la difusión del vapor de agua]],4,FALSE)))),""))=0,"",(IFERROR((IF((VLOOKUP($O20,T_BaseDatos[[Material]:[Factor de resistencia a la difusión del vapor de agua]],4,FALSE))=0,($Z20/$AA20),(VLOOKUP($O20,T_BaseDatos[[Material]:[Factor de resistencia a la difusión del vapor de agua]],4,FALSE)))),""))) ->  | AC20: =IF((IFERROR((VLOOKUP($O20,T_BaseDatos[[Material]:[Factor de resistencia a la difusión del vapor de agua]],7,FALSE)),""))=0,"",(IFERROR((VLOOKUP($O20,T_BaseDatos[[Material]:[Factor de resistencia a la difusión del vapor de agua]],7,FALSE)),""))) -> 
C21: Temperatura exterior media en Enero (ºC) | E21: Temperatura interior considerada (ºC) | Z21: =IF((IFERROR((IF((VLOOKUP($O21,T_BaseDatos[[Material]:[Factor de resistencia a la difusión del vapor de agua]],2,FALSE))=0,$Y21,(VLOOKUP($O21,T_BaseDatos[[Material]:[Factor de resistencia a la difusión del vapor de agua]],2,FALSE)))),""))=0,"",(IFERROR((IF((VLOOKUP($O21,T_BaseDatos[[Material]:[Factor de resistencia a la difusión del vapor de agua]],2,FALSE))=0,$Y21,(VLOOKUP($O21,T_BaseDatos[[Material]:[Factor de resistencia a la difusión del vapor de agua]],2,FALSE)))),""))) ->  | AA21: =IF((IFERROR((VLOOKUP($O21,T_BaseDatos[[Material]:[Factor de resistencia a la difusión del vapor de agua]],3,FALSE)),""))=0,"",(IFERROR((VLOOKUP($O21,T_BaseDatos[[Material]:[Factor de resistencia a la difusión del vapor de agua]],3,FALSE)),""))) ->  | AB21: =IF((IFERROR((IF((VLOOKUP($O21,T_BaseDatos[[Material]:[Factor de resistencia a la difusión del vapor de agua]],4,FALSE))=0,($Z21/$AA21),(VLOOKUP($O21,T_BaseDatos[[Material]:[Factor de resistencia a la difusión del vapor de agua]],4,FALSE)))),""))=0,"",(IFERROR((IF((VLOOKUP($O21,T_BaseDatos[[Material]:[Factor de resistencia a la difusión del vapor de agua]],4,FALSE))=0,($Z21/$AA21),(VLOOKUP($O21,T_BaseDatos[[Material]:[Factor de resistencia a la difusión del vapor de agua]],4,FALSE)))),""))) ->  | AC21: =IF((IFERROR((VLOOKUP($O21,T_BaseDatos[[Material]:[Factor de resistencia a la difusión del vapor de agua]],7,FALSE)),""))=0,"",(IFERROR((VLOOKUP($O21,T_BaseDatos[[Material]:[Factor de resistencia a la difusión del vapor de agua]],7,FALSE)),""))) -> 
Z22: =IF((IFERROR((IF((VLOOKUP($O22,T_BaseDatos[[Material]:[Factor de resistencia a la difusión del vapor de agua]],2,FALSE))=0,$Y22,(VLOOKUP($O22,T_BaseDatos[[Material]:[Factor de resistencia a la difusión del vapor de agua]],2,FALSE)))),""))=0,"",(IFERROR((IF((VLOOKUP($O22,T_BaseDatos[[Material]:[Factor de resistencia a la difusión del vapor de agua]],2,FALSE))=0,$Y22,(VLOOKUP($O22,T_BaseDatos[[Material]:[Factor de resistencia a la difusión del vapor de agua]],2,FALSE)))),""))) ->  | AA22: =IF((IFERROR((VLOOKUP($O22,T_BaseDatos[[Material]:[Factor de resistencia a la difusión del vapor de agua]],3,FALSE)),""))=0,"",(IFERROR((VLOOKUP($O22,T_BaseDatos[[Material]:[Factor de resistencia a la difusión del vapor de agua]],3,FALSE)),""))) ->  | AB22: =IF((IFERROR((IF((VLOOKUP($O22,T_BaseDatos[[Material]:[Factor de resistencia a la difusión del vapor de agua]],4,FALSE))=0,($Z22/$AA22),(VLOOKUP($O22,T_BaseDatos[[Material]:[Factor de resistencia a la difusión del vapor de agua]],4,FALSE)))),""))=0,"",(IFERROR((IF((VLOOKUP($O22,T_BaseDatos[[Material]:[Factor de resistencia a la difusión del vapor de agua]],4,FALSE))=0,($Z22/$AA22),(VLOOKUP($O22,T_BaseDatos[[Material]:[Factor de resistencia a la difusión del vapor de agua]],4,FALSE)))),""))) ->  | AC22: =IF((IFERROR((VLOOKUP($O22,T_BaseDatos[[Material]:[Factor de resistencia a la difusión del vapor de agua]],7,FALSE)),""))=0,"",(IFERROR((VLOOKUP($O22,T_BaseDatos[[Material]:[Factor de resistencia a la difusión del vapor de agua]],7,FALSE)),""))) -> 
C23: =IFERROR((VLOOKUP($C$11,Tabla1[[Población]:[HRext Enero (tanto por 1)]],9,FALSE)),"") ->  | E23: =IF(C19="","",20) ->  | Z23: =IF((IFERROR((IF((VLOOKUP($O23,T_BaseDatos[[Material]:[Factor de resistencia a la difusión del vapor de agua]],2,FALSE))=0,$Y23,(VLOOKUP($O23,T_BaseDatos[[Material]:[Factor de resistencia a la difusión del vapor de agua]],2,FALSE)))),""))=0,"",(IFERROR((IF((VLOOKUP($O23,T_BaseDatos[[Material]:[Factor de resistencia a la difusión del vapor de agua]],2,FALSE))=0,$Y23,(VLOOKUP($O23,T_BaseDatos[[Material]:[Factor de resistencia a la difusión del vapor de agua]],2,FALSE)))),""))) ->  | AA23: =IF((IFERROR((VLOOKUP($O23,T_BaseDatos[[Material]:[Factor de resistencia a la difusión del vapor de agua]],3,FALSE)),""))=0,"",(IFERROR((VLOOKUP($O23,T_BaseDatos[[Material]:[Factor de resistencia a la difusión del vapor de agua]],3,FALSE)),""))) ->  | AB23: =IF((IFERROR((IF((VLOOKUP($O23,T_BaseDatos[[Material]:[Factor de resistencia a la difusión del vapor de agua]],4,FALSE))=0,($Z23/$AA23),(VLOOKUP($O23,T_BaseDatos[[Material]:[Factor de resistencia a la difusión del vapor de agua]],4,FALSE)))),""))=0,"",(IFERROR((IF((VLOOKUP($O23,T_BaseDatos[[Material]:[Factor de resistencia a la difusión del vapor de agua]],4,FALSE))=0,($Z23/$AA23),(VLOOKUP($O23,T_BaseDatos[[Material]:[Factor de resistencia a la difusión del vapor de agua]],4,FALSE)))),""))) ->  | AC23: =IF((IFERROR((VLOOKUP($O23,T_BaseDatos[[Material]:[Factor de resistencia a la difusión del vapor de agua]],7,FALSE)),""))=0,"",(IFERROR((VLOOKUP($O23,T_BaseDatos[[Material]:[Factor de resistencia a la difusión del vapor de agua]],7,FALSE)),""))) -> 
Z24: =IF((IFERROR((IF((VLOOKUP($O24,T_BaseDatos[[Material]:[Factor de resistencia a la difusión del vapor de agua]],2,FALSE))=0,$Y24,(VLOOKUP($O24,T_BaseDatos[[Material]:[Factor de resistencia a la difusión del vapor de agua]],2,FALSE)))),""))=0,"",(IFERROR((IF((VLOOKUP($O24,T_BaseDatos[[Material]:[Factor de resistencia a la difusión del vapor de agua]],2,FALSE))=0,$Y24,(VLOOKUP($O24,T_BaseDatos[[Material]:[Factor de resistencia a la difusión del vapor de agua]],2,FALSE)))),""))) ->  | AA24: =IF((IFERROR((VLOOKUP($O24,T_BaseDatos[[Material]:[Factor de resistencia a la difusión del vapor de agua]],3,FALSE)),""))=0,"",(IFERROR((VLOOKUP($O24,T_BaseDatos[[Material]:[Factor de resistencia a la difusión del vapor de agua]],3,FALSE)),""))) ->  | AB24: =IF((IFERROR((IF((VLOOKUP($O24,T_BaseDatos[[Material]:[Factor de resistencia a la difusión del vapor de agua]],4,FALSE))=0,($Z24/$AA24),(VLOOKUP($O24,T_BaseDatos[[Material]:[Factor de resistencia a la difusión del vapor de agua]],4,FALSE)))),""))=0,"",(IFERROR((IF((VLOOKUP($O24,T_BaseDatos[[Material]:[Factor de resistencia a la difusión del vapor de agua]],4,FALSE))=0,($Z24/$AA24),(VLOOKUP($O24,T_BaseDatos[[Material]:[Factor de resistencia a la difusión del vapor de agua]],4,FALSE)))),""))) ->  | AC24: =IF((IFERROR((VLOOKUP($O24,T_BaseDatos[[Material]:[Factor de resistencia a la difusión del vapor de agua]],7,FALSE)),""))=0,"",(IFERROR((VLOOKUP($O24,T_BaseDatos[[Material]:[Factor de resistencia a la difusión del vapor de agua]],7,FALSE)),""))) -> 
C25: Humedad relativa exterior en Enero (tanto por 1) | E25: Humedad relativa interior (tanto por 1) | Z25: =IF((IFERROR((IF((VLOOKUP($O25,T_BaseDatos[[Material]:[Factor de resistencia a la difusión del vapor de agua]],2,FALSE))=0,$Y25,(VLOOKUP($O25,T_BaseDatos[[Material]:[Factor de resistencia a la difusión del vapor de agua]],2,FALSE)))),""))=0,"",(IFERROR((IF((VLOOKUP($O25,T_BaseDatos[[Material]:[Factor de resistencia a la difusión del vapor de agua]],2,FALSE))=0,$Y25,(VLOOKUP($O25,T_BaseDatos[[Material]:[Factor de resistencia a la difusión del vapor de agua]],2,FALSE)))),""))) ->  | AA25: =IF((IFERROR((VLOOKUP($O25,T_BaseDatos[[Material]:[Factor de resistencia a la difusión del vapor de agua]],3,FALSE)),""))=0,"",(IFERROR((VLOOKUP($O25,T_BaseDatos[[Material]:[Factor de resistencia a la difusión del vapor de agua]],3,FALSE)),""))) ->  | AB25: =IF((IFERROR((IF((VLOOKUP($O25,T_BaseDatos[[Material]:[Factor de resistencia a la difusión del vapor de agua]],4,FALSE))=0,($Z25/$AA25),(VLOOKUP($O25,T_BaseDatos[[Material]:[Factor de resistencia a la difusión del vapor de agua]],4,FALSE)))),""))=0,"",(IFERROR((IF((VLOOKUP($O25,T_BaseDatos[[Material]:[Factor de resistencia a la difusión del vapor de agua]],4,FALSE))=0,($Z25/$AA25),(VLOOKUP($O25,T_BaseDatos[[Material]:[Factor de resistencia a la difusión del vapor de agua]],4,FALSE)))),""))) ->  | AC25: =IF((IFERROR((VLOOKUP($O25,T_BaseDatos[[Material]:[Factor de resistencia a la difusión del vapor de agua]],7,FALSE)),""))=0,"",(IFERROR((VLOOKUP($O25,T_BaseDatos[[Material]:[Factor de resistencia a la difusión del vapor de agua]],7,FALSE)),""))) -> 
Z26: =IF((IFERROR((IF((VLOOKUP($O26,T_BaseDatos[[Material]:[Factor de resistencia a la difusión del vapor de agua]],2,FALSE))=0,$Y26,(VLOOKUP($O26,T_BaseDatos[[Material]:[Factor de resistencia a la difusión del vapor de agua]],2,FALSE)))),""))=0,"",(IFERROR((IF((VLOOKUP($O26,T_BaseDatos[[Material]:[Factor de resistencia a la difusión del vapor de agua]],2,FALSE))=0,$Y26,(VLOOKUP($O26,T_BaseDatos[[Material]:[Factor de resistencia a la difusión del vapor de agua]],2,FALSE)))),""))) ->  | AA26: =IF((IFERROR((VLOOKUP($O26,T_BaseDatos[[Material]:[Factor de resistencia a la difusión del vapor de agua]],3,FALSE)),""))=0,"",(IFERROR((VLOOKUP($O26,T_BaseDatos[[Material]:[Factor de resistencia a la difusión del vapor de agua]],3,FALSE)),""))) ->  | AB26: =IF((IFERROR((IF((VLOOKUP($O26,T_BaseDatos[[Material]:[Factor de resistencia a la difusión del vapor de agua]],4,FALSE))=0,($Z26/$AA26),(VLOOKUP($O26,T_BaseDatos[[Material]:[Factor de resistencia a la difusión del vapor de agua]],4,FALSE)))),""))=0,"",(IFERROR((IF((VLOOKUP($O26,T_BaseDatos[[Material]:[Factor de resistencia a la difusión del vapor de agua]],4,FALSE))=0,($Z26/$AA26),(VLOOKUP($O26,T_BaseDatos[[Material]:[Factor de resistencia a la difusión del vapor de agua]],4,FALSE)))),""))) ->  | AC26: =IF((IFERROR((VLOOKUP($O26,T_BaseDatos[[Material]:[Factor de resistencia a la difusión del vapor de agua]],7,FALSE)),""))=0,"",(IFERROR((VLOOKUP($O26,T_BaseDatos[[Material]:[Factor de resistencia a la difusión del vapor de agua]],7,FALSE)),""))) -> 
C27: =IFERROR((VLOOKUP($C$11,Tabla1[[Población]:[HRext Enero (tanto por 1)]],10,FALSE)),"") ->  | E27: =IFERROR(((VLOOKUP($C$14,Tabla2[],2,FALSE)))/100,"") ->  | Z27: =IF((IFERROR((IF((VLOOKUP($O27,T_BaseDatos[[Material]:[Factor de resistencia a la difusión del vapor de agua]],2,FALSE))=0,$Y27,(VLOOKUP($O27,T_BaseDatos[[Material]:[Factor de resistencia a la difusión del vapor de agua]],2,FALSE)))),""))=0,"",(IFERROR((IF((VLOOKUP($O27,T_BaseDatos[[Material]:[Factor de resistencia a la difusión del vapor de agua]],2,FALSE))=0,$Y27,(VLOOKUP($O27,T_BaseDatos[[Material]:[Factor de resistencia a la difusión del vapor de agua]],2,FALSE)))),""))) ->  | AA27: =IF((IFERROR((VLOOKUP($O27,T_BaseDatos[[Material]:[Factor de resistencia a la difusión del vapor de agua]],3,FALSE)),""))=0,"",(IFERROR((VLOOKUP($O27,T_BaseDatos[[Material]:[Factor de resistencia a la difusión del vapor de agua]],3,FALSE)),""))) ->  | AB27: =IF((IFERROR((IF((VLOOKUP($O27,T_BaseDatos[[Material]:[Factor de resistencia a la difusión del vapor de agua]],4,FALSE))=0,($Z27/$AA27),(VLOOKUP($O27,T_BaseDatos[[Material]:[Factor de resistencia a la difusión del vapor de agua]],4,FALSE)))),""))=0,"",(IFERROR((IF((VLOOKUP($O27,T_BaseDatos[[Material]:[Factor de resistencia a la difusión del vapor de agua]],4,FALSE))=0,($Z27/$AA27),(VLOOKUP($O27,T_BaseDatos[[Material]:[Factor de resistencia a la difusión del vapor de agua]],4,FALSE)))),""))) ->  | AC27: =IF((IFERROR((VLOOKUP($O27,T_BaseDatos[[Material]:[Factor de resistencia a la difusión del vapor de agua]],7,FALSE)),""))=0,"",(IFERROR((VLOOKUP($O27,T_BaseDatos[[Material]:[Factor de resistencia a la difusión del vapor de agua]],7,FALSE)),""))) -> 
B30: RESUMEN CERRAMIENTO | F30: COMPROBACIÓN DE CONDENSACIÓN SUPERFICIAL | R30: COMPROBACIÓN DE CONDENSACIONES INTERSTICIALES
S32: Elemento | AA32: Presión de saturación (Pa) | AB32: Presión del vapor (Pa) | AC32: Condensación
C33: Tipo de cerramiento | G33: Factor de temperatura de la superficie interior mínimo fRsi,min | N33: =IF(OR(E27="",C19=""),"",INDEX(AUXILIAR!B3:H5,AUXILIAR!K2,AUXILIAR!K3)) -> 
S34: =IF(C35="SUELO",(_xlfn._xlws.FILTER(AUXILIAR!I14:I37,AUXILIAR!I14:I37<>0)),(_xlfn._xlws.FILTER(AUXILIAR!A14:A37,AUXILIAR!A14:A37<>0))) ->  | AA34: =IF($C$35="SUELO",(IFERROR((IF(S34<>0,(VLOOKUP(S34,AUXILIAR!$I$14:$O$37,4,FALSE)),"")),"")),(IFERROR((IF(S34<>0,(VLOOKUP(S34,AUXILIAR!$A$14:$G$37,4,FALSE)),"")),""))) ->  | AB34: =IF($C$35="SUELO",(IFERROR((IF(S34<>0,(VLOOKUP(S34,AUXILIAR!$I$14:$O$37,6,FALSE)),"")),"")),(IFERROR((IF(S34<>0,(VLOOKUP(S34,AUXILIAR!$A$14:$G$37,6,FALSE)),"")),""))) ->  | AC34: =IF($C$35="SUELO",(IFERROR((IF(S34<>0,(VLOOKUP(S34,AUXILIAR!$I$14:$O$37,7,FALSE)),"")),"")),(IFERROR((IF(S34<>0,(VLOOKUP(S34,AUXILIAR!$A$14:$G$37,7,FALSE)),"")),""))) -> 
AA35: =IF($C$35="SUELO",(IFERROR((IF(S35<>0,(VLOOKUP(S35,AUXILIAR!$I$14:$O$37,4,FALSE)),"")),"")),(IFERROR((IF(S35<>0,(VLOOKUP(S35,AUXILIAR!$A$14:$G$37,4,FALSE)),"")),""))) ->  | AB35: =IF($C$35="SUELO",(IFERROR((IF(S35<>0,(VLOOKUP(S35,AUXILIAR!$I$14:$O$37,6,FALSE)),"")),"")),(IFERROR((IF(S35<>0,(VLOOKUP(S35,AUXILIAR!$A$14:$G$37,6,FALSE)),"")),""))) ->  | AC35: =IF($C$35="SUELO",(IFERROR((IF(S35<>0,(VLOOKUP(S35,AUXILIAR!$I$14:$O$37,7,FALSE)),"")),"")),(IFERROR((IF(S35<>0,(VLOOKUP(S35,AUXILIAR!$A$14:$G$37,7,FALSE)),"")),""))) -> 
AA36: =IF($C$35="SUELO",(IFERROR((IF(S36<>0,(VLOOKUP(S36,AUXILIAR!$I$14:$O$37,4,FALSE)),"")),"")),(IFERROR((IF(S36<>0,(VLOOKUP(S36,AUXILIAR!$A$14:$G$37,4,FALSE)),"")),""))) ->  | AB36: =IF($C$35="SUELO",(IFERROR((IF(S36<>0,(VLOOKUP(S36,AUXILIAR!$I$14:$O$37,6,FALSE)),"")),"")),(IFERROR((IF(S36<>0,(VLOOKUP(S36,AUXILIAR!$A$14:$G$37,6,FALSE)),"")),""))) ->  | AC36: =IF($C$35="SUELO",(IFERROR((IF(S36<>0,(VLOOKUP(S36,AUXILIAR!$I$14:$O$37,7,FALSE)),"")),"")),(IFERROR((IF(S36<>0,(VLOOKUP(S36,AUXILIAR!$A$14:$G$37,7,FALSE)),"")),""))) -> 
C37: Resistencia térmica materiales (m²K/W) | G37: Factor de temperatura de la superficie interior fRsi | N37: =IF(C56="","",(1-(C56*0.25))) ->  | AA37: =IF($C$35="SUELO",(IFERROR((IF(S37<>0,(VLOOKUP(S37,AUXILIAR!$I$14:$O$37,4,FALSE)),"")),"")),(IFERROR((IF(S37<>0,(VLOOKUP(S37,AUXILIAR!$A$14:$G$37,4,FALSE)),"")),""))) ->  | AB37: =IF($C$35="SUELO",(IFERROR((IF(S37<>0,(VLOOKUP(S37,AUXILIAR!$I$14:$O$37,6,FALSE)),"")),"")),(IFERROR((IF(S37<>0,(VLOOKUP(S37,AUXILIAR!$A$14:$G$37,6,FALSE)),"")),""))) ->  | AC37: =IF($C$35="SUELO",(IFERROR((IF(S37<>0,(VLOOKUP(S37,AUXILIAR!$I$14:$O$37,7,FALSE)),"")),"")),(IFERROR((IF(S37<>0,(VLOOKUP(S37,AUXILIAR!$A$14:$G$37,7,FALSE)),"")),""))) -> 
AA38: =IF($C$35="SUELO",(IFERROR((IF(S38<>0,(VLOOKUP(S38,AUXILIAR!$I$14:$O$37,4,FALSE)),"")),"")),(IFERROR((IF(S38<>0,(VLOOKUP(S38,AUXILIAR!$A$14:$G$37,4,FALSE)),"")),""))) ->  | AB38: =IF($C$35="SUELO",(IFERROR((IF(S38<>0,(VLOOKUP(S38,AUXILIAR!$I$14:$O$37,6,FALSE)),"")),"")),(IFERROR((IF(S38<>0,(VLOOKUP(S38,AUXILIAR!$A$14:$G$37,6,FALSE)),"")),""))) ->  | AC38: =IF($C$35="SUELO",(IFERROR((IF(S38<>0,(VLOOKUP(S38,AUXILIAR!$I$14:$O$37,7,FALSE)),"")),"")),(IFERROR((IF(S38<>0,(VLOOKUP(S38,AUXILIAR!$A$14:$G$37,7,FALSE)),"")),""))) -> 
C39: =IF((SUM($AB$6:$AB$27))=0,"",(SUM($AB$6:$AB$27))) ->  | AA39: =IF($C$35="SUELO",(IFERROR((IF(S39<>0,(VLOOKUP(S39,AUXILIAR!$I$14:$O$37,4,FALSE)),"")),"")),(IFERROR((IF(S39<>0,(VLOOKUP(S39,AUXILIAR!$A$14:$G$37,4,FALSE)),"")),""))) ->  | AB39: =IF($C$35="SUELO",(IFERROR((IF(S39<>0,(VLOOKUP(S39,AUXILIAR!$I$14:$O$37,6,FALSE)),"")),"")),(IFERROR((IF(S39<>0,(VLOOKUP(S39,AUXILIAR!$A$14:$G$37,6,FALSE)),"")),""))) ->  | AC39: =IF($C$35="SUELO",(IFERROR((IF(S39<>0,(VLOOKUP(S39,AUXILIAR!$I$14:$O$37,7,FALSE)),"")),"")),(IFERROR((IF(S39<>0,(VLOOKUP(S39,AUXILIAR!$A$14:$G$37,7,FALSE)),"")),""))) -> 
AA40: =IF($C$35="SUELO",(IFERROR((IF(S40<>0,(VLOOKUP(S40,AUXILIAR!$I$14:$O$37,4,FALSE)),"")),"")),(IFERROR((IF(S40<>0,(VLOOKUP(S40,AUXILIAR!$A$14:$G$37,4,FALSE)),"")),""))) ->  | AB40: =IF($C$35="SUELO",(IFERROR((IF(S40<>0,(VLOOKUP(S40,AUXILIAR!$I$14:$O$37,6,FALSE)),"")),"")),(IFERROR((IF(S40<>0,(VLOOKUP(S40,AUXILIAR!$A$14:$G$37,6,FALSE)),"")),""))) ->  | AC40: =IF($C$35="SUELO",(IFERROR((IF(S40<>0,(VLOOKUP(S40,AUXILIAR!$I$14:$O$37,7,FALSE)),"")),"")),(IFERROR((IF(S40<>0,(VLOOKUP(S40,AUXILIAR!$A$14:$G$37,7,FALSE)),"")),""))) -> 
C41: Rse (m²K/W) | AA41: =IF($C$35="SUELO",(IFERROR((IF(S41<>0,(VLOOKUP(S41,AUXILIAR!$I$14:$O$37,4,FALSE)),"")),"")),(IFERROR((IF(S41<>0,(VLOOKUP(S41,AUXILIAR!$A$14:$G$37,4,FALSE)),"")),""))) ->  | AB41: =IF($C$35="SUELO",(IFERROR((IF(S41<>0,(VLOOKUP(S41,AUXILIAR!$I$14:$O$37,6,FALSE)),"")),"")),(IFERROR((IF(S41<>0,(VLOOKUP(S41,AUXILIAR!$A$14:$G$37,6,FALSE)),"")),""))) ->  | AC41: =IF($C$35="SUELO",(IFERROR((IF(S41<>0,(VLOOKUP(S41,AUXILIAR!$I$14:$O$37,7,FALSE)),"")),"")),(IFERROR((IF(S41<>0,(VLOOKUP(S41,AUXILIAR!$A$14:$G$37,7,FALSE)),"")),""))) -> 
G42: =CONCATENATE("fRsi",(IF(N33<N37," > "," < ")),"fRsi,min") -> fRsi < fRsi,min | N42: =IF(OR(N33="",N37=""),"",(IF(N33<N37,"NO CONDENSA","CONDENSA"))) ->  | AA42: =IF($C$35="SUELO",(IFERROR((IF(S42<>0,(VLOOKUP(S42,AUXILIAR!$I$14:$O$37,4,FALSE)),"")),"")),(IFERROR((IF(S42<>0,(VLOOKUP(S42,AUXILIAR!$A$14:$G$37,4,FALSE)),"")),""))) ->  | AB42: =IF($C$35="SUELO",(IFERROR((IF(S42<>0,(VLOOKUP(S42,AUXILIAR!$I$14:$O$37,6,FALSE)),"")),"")),(IFERROR((IF(S42<>0,(VLOOKUP(S42,AUXILIAR!$A$14:$G$37,6,FALSE)),"")),""))) ->  | AC42: =IF($C$35="SUELO",(IFERROR((IF(S42<>0,(VLOOKUP(S42,AUXILIAR!$I$14:$O$37,7,FALSE)),"")),"")),(IFERROR((IF(S42<>0,(VLOOKUP(S42,AUXILIAR!$A$14:$G$37,7,FALSE)),"")),""))) -> 
C43: =IFERROR((VLOOKUP($C$35,Tabla4[],2,FALSE)),"") ->  | AA43: =IF($C$35="SUELO",(IFERROR((IF(S43<>0,(VLOOKUP(S43,AUXILIAR!$I$14:$O$37,4,FALSE)),"")),"")),(IFERROR((IF(S43<>0,(VLOOKUP(S43,AUXILIAR!$A$14:$G$37,4,FALSE)),"")),""))) ->  | AB43: =IF($C$35="SUELO",(IFERROR((IF(S43<>0,(VLOOKUP(S43,AUXILIAR!$I$14:$O$37,6,FALSE)),"")),"")),(IFERROR((IF(S43<>0,(VLOOKUP(S43,AUXILIAR!$A$14:$G$37,6,FALSE)),"")),""))) ->  | AC43: =IF($C$35="SUELO",(IFERROR((IF(S43<>0,(VLOOKUP(S43,AUXILIAR!$I$14:$O$37,7,FALSE)),"")),"")),(IFERROR((IF(S43<>0,(VLOOKUP(S43,AUXILIAR!$A$14:$G$37,7,FALSE)),"")),""))) -> 
AA44: =IF($C$35="SUELO",(IFERROR((IF(S44<>0,(VLOOKUP(S44,AUXILIAR!$I$14:$O$37,4,FALSE)),"")),"")),(IFERROR((IF(S44<>0,(VLOOKUP(S44,AUXILIAR!$A$14:$G$37,4,FALSE)),"")),""))) ->  | AB44: =IF($C$35="SUELO",(IFERROR((IF(S44<>0,(VLOOKUP(S44,AUXILIAR!$I$14:$O$37,6,FALSE)),"")),"")),(IFERROR((IF(S44<>0,(VLOOKUP(S44,AUXILIAR!$A$14:$G$37,6,FALSE)),"")),""))) ->  | AC44: =IF($C$35="SUELO",(IFERROR((IF(S44<>0,(VLOOKUP(S44,AUXILIAR!$I$14:$O$37,7,FALSE)),"")),"")),(IFERROR((IF(S44<>0,(VLOOKUP(S44,AUXILIAR!$A$14:$G$37,7,FALSE)),"")),""))) -> 
C45: Rsi (m²K/W) | AA45: =IF($C$35="SUELO",(IFERROR((IF(S45<>0,(VLOOKUP(S45,AUXILIAR!$I$14:$O$37,4,FALSE)),"")),"")),(IFERROR((IF(S45<>0,(VLOOKUP(S45,AUXILIAR!$A$14:$G$37,4,FALSE)),"")),""))) ->  | AB45: =IF($C$35="SUELO",(IFERROR((IF(S45<>0,(VLOOKUP(S45,AUXILIAR!$I$14:$O$37,6,FALSE)),"")),"")),(IFERROR((IF(S45<>0,(VLOOKUP(S45,AUXILIAR!$A$14:$G$37,6,FALSE)),"")),""))) ->  | AC45: =IF($C$35="SUELO",(IFERROR((IF(S45<>0,(VLOOKUP(S45,AUXILIAR!$I$14:$O$37,7,FALSE)),"")),"")),(IFERROR((IF(S45<>0,(VLOOKUP(S45,AUXILIAR!$A$14:$G$37,7,FALSE)),"")),""))) -> 
AA46: =IF($C$35="SUELO",(IFERROR((IF(S46<>0,(VLOOKUP(S46,AUXILIAR!$I$14:$O$37,4,FALSE)),"")),"")),(IFERROR((IF(S46<>0,(VLOOKUP(S46,AUXILIAR!$A$14:$G$37,4,FALSE)),"")),""))) ->  | AB46: =IF($C$35="SUELO",(IFERROR((IF(S46<>0,(VLOOKUP(S46,AUXILIAR!$I$14:$O$37,6,FALSE)),"")),"")),(IFERROR((IF(S46<>0,(VLOOKUP(S46,AUXILIAR!$A$14:$G$37,6,FALSE)),"")),""))) ->  | AC46: =IF($C$35="SUELO",(IFERROR((IF(S46<>0,(VLOOKUP(S46,AUXILIAR!$I$14:$O$37,7,FALSE)),"")),"")),(IFERROR((IF(S46<>0,(VLOOKUP(S46,AUXILIAR!$A$14:$G$37,7,FALSE)),"")),""))) -> 
C47: =IFERROR((VLOOKUP($C$35,Tabla4[],3,FALSE)),"") ->  | G47: =IF(C39="","","Cálculo realizado según DA DB-HE/2 del CTE con datos estimados en función de la ubicación del elemento constructivo, su composición y las características del espacio interior.") ->  | AA47: =IF($C$35="SUELO",(IFERROR((IF(S47<>0,(VLOOKUP(S47,AUXILIAR!$I$14:$O$37,4,FALSE)),"")),"")),(IFERROR((IF(S47<>0,(VLOOKUP(S47,AUXILIAR!$A$14:$G$37,4,FALSE)),"")),""))) ->  | AB47: =IF($C$35="SUELO",(IFERROR((IF(S47<>0,(VLOOKUP(S47,AUXILIAR!$I$14:$O$37,6,FALSE)),"")),"")),(IFERROR((IF(S47<>0,(VLOOKUP(S47,AUXILIAR!$A$14:$G$37,6,FALSE)),"")),""))) ->  | AC47: =IF($C$35="SUELO",(IFERROR((IF(S47<>0,(VLOOKUP(S47,AUXILIAR!$I$14:$O$37,7,FALSE)),"")),"")),(IFERROR((IF(S47<>0,(VLOOKUP(S47,AUXILIAR!$A$14:$G$37,7,FALSE)),"")),""))) -> 
AA48: =IF($C$35="SUELO",(IFERROR((IF(S48<>0,(VLOOKUP(S48,AUXILIAR!$I$14:$O$37,4,FALSE)),"")),"")),(IFERROR((IF(S48<>0,(VLOOKUP(S48,AUXILIAR!$A$14:$G$37,4,FALSE)),"")),""))) ->  | AB48: =IF($C$35="SUELO",(IFERROR((IF(S48<>0,(VLOOKUP(S48,AUXILIAR!$I$14:$O$37,6,FALSE)),"")),"")),(IFERROR((IF(S48<>0,(VLOOKUP(S48,AUXILIAR!$A$14:$G$37,6,FALSE)),"")),""))) ->  | AC48: =IF($C$35="SUELO",(IFERROR((IF(S48<>0,(VLOOKUP(S48,AUXILIAR!$I$14:$O$37,7,FALSE)),"")),"")),(IFERROR((IF(S48<>0,(VLOOKUP(S48,AUXILIAR!$A$14:$G$37,7,FALSE)),"")),""))) -> 
C49: Resistencia térmica total (m²K/W) | AA49: =IF($C$35="SUELO",(IFERROR((IF(S49<>0,(VLOOKUP(S49,AUXILIAR!$I$14:$O$37,4,FALSE)),"")),"")),(IFERROR((IF(S49<>0,(VLOOKUP(S49,AUXILIAR!$A$14:$G$37,4,FALSE)),"")),""))) ->  | AB49: =IF($C$35="SUELO",(IFERROR((IF(S49<>0,(VLOOKUP(S49,AUXILIAR!$I$14:$O$37,6,FALSE)),"")),"")),(IFERROR((IF(S49<>0,(VLOOKUP(S49,AUXILIAR!$A$14:$G$37,6,FALSE)),"")),""))) ->  | AC49: =IF($C$35="SUELO",(IFERROR((IF(S49<>0,(VLOOKUP(S49,AUXILIAR!$I$14:$O$37,7,FALSE)),"")),"")),(IFERROR((IF(S49<>0,(VLOOKUP(S49,AUXILIAR!$A$14:$G$37,7,FALSE)),"")),""))) -> 
AA50: =IF($C$35="SUELO",(IFERROR((IF(S50<>0,(VLOOKUP(S50,AUXILIAR!$I$14:$O$37,4,FALSE)),"")),"")),(IFERROR((IF(S50<>0,(VLOOKUP(S50,AUXILIAR!$A$14:$G$37,4,FALSE)),"")),""))) ->  | AB50: =IF($C$35="SUELO",(IFERROR((IF(S50<>0,(VLOOKUP(S50,AUXILIAR!$I$14:$O$37,6,FALSE)),"")),"")),(IFERROR((IF(S50<>0,(VLOOKUP(S50,AUXILIAR!$A$14:$G$37,6,FALSE)),"")),""))) ->  | AC50: =IF($C$35="SUELO",(IFERROR((IF(S50<>0,(VLOOKUP(S50,AUXILIAR!$I$14:$O$37,7,FALSE)),"")),"")),(IFERROR((IF(S50<>0,(VLOOKUP(S50,AUXILIAR!$A$14:$G$37,7,FALSE)),"")),""))) -> 
C51: =IFERROR((IF(($C$39+$C$43+$C$47)=0,"",($C$39+$C$43+$C$47))),"") ->  | AA51: =IF($C$35="SUELO",(IFERROR((IF(S51<>0,(VLOOKUP(S51,AUXILIAR!$I$14:$O$37,4,FALSE)),"")),"")),(IFERROR((IF(S51<>0,(VLOOKUP(S51,AUXILIAR!$A$14:$G$37,4,FALSE)),"")),""))) ->  | AB51: =IF($C$35="SUELO",(IFERROR((IF(S51<>0,(VLOOKUP(S51,AUXILIAR!$I$14:$O$37,6,FALSE)),"")),"")),(IFERROR((IF(S51<>0,(VLOOKUP(S51,AUXILIAR!$A$14:$G$37,6,FALSE)),"")),""))) ->  | AC51: =IF($C$35="SUELO",(IFERROR((IF(S51<>0,(VLOOKUP(S51,AUXILIAR!$I$14:$O$37,7,FALSE)),"")),"")),(IFERROR((IF(S51<>0,(VLOOKUP(S51,AUXILIAR!$A$14:$G$37,7,FALSE)),"")),""))) -> 
AA52: =IF($C$35="SUELO",(IFERROR((IF(S52<>0,(VLOOKUP(S52,AUXILIAR!$I$14:$O$37,4,FALSE)),"")),"")),(IFERROR((IF(S52<>0,(VLOOKUP(S52,AUXILIAR!$A$14:$G$37,4,FALSE)),"")),""))) ->  | AB52: =IF($C$35="SUELO",(IFERROR((IF(S52<>0,(VLOOKUP(S52,AUXILIAR!$I$14:$O$37,6,FALSE)),"")),"")),(IFERROR((IF(S52<>0,(VLOOKUP(S52,AUXILIAR!$A$14:$G$37,6,FALSE)),"")),""))) ->  | AC52: =IF($C$35="SUELO",(IFERROR((IF(S52<>0,(VLOOKUP(S52,AUXILIAR!$I$14:$O$37,7,FALSE)),"")),"")),(IFERROR((IF(S52<>0,(VLOOKUP(S52,AUXILIAR!$A$14:$G$37,7,FALSE)),"")),""))) -> 
AA53: =IF($C$35="SUELO",(IFERROR((IF(S53<>0,(VLOOKUP(S53,AUXILIAR!$I$14:$O$37,4,FALSE)),"")),"")),(IFERROR((IF(S53<>0,(VLOOKUP(S53,AUXILIAR!$A$14:$G$37,4,FALSE)),"")),""))) ->  | AB53: =IF($C$35="SUELO",(IFERROR((IF(S53<>0,(VLOOKUP(S53,AUXILIAR!$I$14:$O$37,6,FALSE)),"")),"")),(IFERROR((IF(S53<>0,(VLOOKUP(S53,AUXILIAR!$A$14:$G$37,6,FALSE)),"")),""))) ->  | AC53: =IF($C$35="SUELO",(IFERROR((IF(S53<>0,(VLOOKUP(S53,AUXILIAR!$I$14:$O$37,7,FALSE)),"")),"")),(IFERROR((IF(S53<>0,(VLOOKUP(S53,AUXILIAR!$A$14:$G$37,7,FALSE)),"")),""))) -> 
C54: Transmitancia térmica "U" (m²K/W) | AA54: =IF($C$35="SUELO",(IFERROR((IF(S54<>0,(VLOOKUP(S54,AUXILIAR!$I$14:$O$37,4,FALSE)),"")),"")),(IFERROR((IF(S54<>0,(VLOOKUP(S54,AUXILIAR!$A$14:$G$37,4,FALSE)),"")),""))) ->  | AB54: =IF($C$35="SUELO",(IFERROR((IF(S54<>0,(VLOOKUP(S54,AUXILIAR!$I$14:$O$37,6,FALSE)),"")),"")),(IFERROR((IF(S54<>0,(VLOOKUP(S54,AUXILIAR!$A$14:$G$37,6,FALSE)),"")),""))) ->  | AC54: =IF($C$35="SUELO",(IFERROR((IF(S54<>0,(VLOOKUP(S54,AUXILIAR!$I$14:$O$37,7,FALSE)),"")),"")),(IFERROR((IF(S54<>0,(VLOOKUP(S54,AUXILIAR!$A$14:$G$37,7,FALSE)),"")),""))) -> 
AA55: =IF($C$35="SUELO",(IFERROR((IF(S55<>0,(VLOOKUP(S55,AUXILIAR!$I$14:$O$37,4,FALSE)),"")),"")),(IFERROR((IF(S55<>0,(VLOOKUP(S55,AUXILIAR!$A$14:$G$37,4,FALSE)),"")),""))) ->  | AB55: =IF($C$35="SUELO",(IFERROR((IF(S55<>0,(VLOOKUP(S55,AUXILIAR!$I$14:$O$37,6,FALSE)),"")),"")),(IFERROR((IF(S55<>0,(VLOOKUP(S55,AUXILIAR!$A$14:$G$37,6,FALSE)),"")),""))) ->  | AC55: =IF($C$35="SUELO",(IFERROR((IF(S55<>0,(VLOOKUP(S55,AUXILIAR!$I$14:$O$37,7,FALSE)),"")),"")),(IFERROR((IF(S55<>0,(VLOOKUP(S55,AUXILIAR!$A$14:$G$37,7,FALSE)),"")),""))) -> 
C56: =IFERROR((ROUND((IF((1/$C$51)=0,"",(1/$C$51))),2)),"") ->  | AA56: =IF($C$35="SUELO",(IFERROR((IF(S56<>0,(VLOOKUP(S56,AUXILIAR!$I$14:$O$37,4,FALSE)),"")),"")),(IFERROR((IF(S56<>0,(VLOOKUP(S56,AUXILIAR!$A$14:$G$37,4,FALSE)),"")),""))) ->  | AB56: =IF($C$35="SUELO",(IFERROR((IF(S56<>0,(VLOOKUP(S56,AUXILIAR!$I$14:$O$37,6,FALSE)),"")),"")),(IFERROR((IF(S56<>0,(VLOOKUP(S56,AUXILIAR!$A$14:$G$37,6,FALSE)),"")),""))) ->  | AC56: =IF($C$35="SUELO",(IFERROR((IF(S56<>0,(VLOOKUP(S56,AUXILIAR!$I$14:$O$37,7,FALSE)),"")),"")),(IFERROR((IF(S56<>0,(VLOOKUP(S56,AUXILIAR!$A$14:$G$37,7,FALSE)),"")),""))) -> 
F57: Actualización: Marzo 2023 | AA57: =IF($C$35="SUELO",(IFERROR((IF(S57<>0,(VLOOKUP(S57,AUXILIAR!$I$14:$O$37,4,FALSE)),"")),"")),(IFERROR((IF(S57<>0,(VLOOKUP(S57,AUXILIAR!$A$14:$G$37,4,FALSE)),"")),""))) ->  | AB57: =IF($C$35="SUELO",(IFERROR((IF(S57<>0,(VLOOKUP(S57,AUXILIAR!$I$14:$O$37,6,FALSE)),"")),"")),(IFERROR((IF(S57<>0,(VLOOKUP(S57,AUXILIAR!$A$14:$G$37,6,FALSE)),"")),""))) ->  | AC57: =IF($C$35="SUELO",(IFERROR((IF(S57<>0,(VLOOKUP(S57,AUXILIAR!$I$14:$O$37,7,FALSE)),"")),"")),(IFERROR((IF(S57<>0,(VLOOKUP(S57,AUXILIAR!$A$14:$G$37,7,FALSE)),"")),""))) -> 
F58: José Carlos Merino Izquierdo

Sheet LOCALIDADES (hidden)
A1: Comunidad Autónoma | B1: Provincia | C1: Población | D1: Zona | E1: Zona Climática | F1: Latitud N | G1: Longitud W | H1: Coordenadas | I1: Altitud (m) | J1: Península | K1: Text media Enero (ºC) | L1: HRext Enero (tanto por 1) | M1: Psat (Pa) | N1: Pe (Pa)
A2: Andalucía | B2: Almería | C2: Abla | D2: =IF((OR(Tabla1[[#This Row],[Zona Climática]]="α1",Tabla1[[#This Row],[Zona Climática]]="α2",Tabla1[[#This Row],[Zona Climática]]="α3",Tabla1[[#This Row],[Zona Climática]]="α4")),"α",(IF((OR(Tabla1[[#This Row],[Zona Climática]]="A1",Tabla1[[#This Row],[Zona Climática]]="A2",Tabla1[[#This Row],[Zona Climática]]="A3",Tabla1[[#This Row],[Zona Climática]]="A4")),"A",(IF((OR(Tabla1[[#This Row],[Zona Climática]]="B1",Tabla1[[#This Row],[Zona Climática]]="B2",Tabla1[[#This Row],[Zona Climática]]="B3",Tabla1[[#This Row],[Zona Climática]]="B4")),"B",(IF((OR(Tabla1[[#This Row],[Zona Climática]]="C1",Tabla1[[#This Row],[Zona Climática]]="C2",Tabla1[[#This Row],[Zona Climática]]="C3",Tabla1[[#This Row],[Zona Climática]]="C4")),"C",(IF((OR(Tabla1[[#This Row],[Zona Climática]]="D1",Tabla1[[#This Row],[Zona Climática]]="D2",Tabla1[[#This Row],[Zona Climática]]="D3",Tabla1[[#This Row],[Zona Climática]]="D4")),"D","E"))))))))) -> D | E2: D3 | F2: 37.1431214 | G2: -2.7768346 | H2: =CONCATENATE(Tabla1[[#This Row],[Latitud N]],", ",Tabla1[[#This Row],[Longitud W]]) -> 37,1431214, -2,7768346 | I2: 863 | J2: SI | K2: =ROUND((IF(Tabla1[[#This Row],[Altitud (m)]]<(VLOOKUP(Tabla1[[#This Row],[Provincia]],AUX_LOCALIDADES!$A$2:$D$54,3,FALSE)),(VLOOKUP(Tabla1[[#This Row],[Provincia]],AUX_LOCALIDADES!$A$2:$D$54,4,FALSE)),((VLOOKUP(Tabla1[[#This Row],[Provincia]],AUX_LOCALIDADES!$A$2:$D$54,4,FALSE))-((Tabla1[[#This Row],[Altitud (m)]]-(VLOOKUP(Tabla1[[#This Row],[Provincia]],AUX_LOCALIDADES!$A$2:$D$54,3,FALSE)))/100)))),1) -> 3.9 | L2: =IF((ROUND((IF(Tabla1[[#This Row],[Altitud (m)]]>=(VLOOKUP(Tabla1[[#This Row],[Provincia]],AUX_LOCALIDADES!$A$2:$D$54,3,FALSE)),(((VLOOKUP(Tabla1[[#This Row],[Provincia]],AUX_LOCALIDADES!$A$3:$Q$54,17,FALSE))/(IF(Tabla1[[#This Row],[Text media Enero (ºC)]]<0,(610.5*(EXP((21.875*Tabla1[[#This Row],[Text media Enero (ºC)]])/(265.5+Tabla1[[#This Row],[Text media Enero (ºC)]])))),(610.5*(EXP((17.269*Tabla1[[#This Row],[Text media Enero (ºC)]])/(237.3+Tabla1[[#This Row],[Text media Enero (ºC)]])))))))),((VLOOKUP(Tabla1[[#This Row],[Provincia]],AUX_LOCALIDADES!$S$3:$AG$54,4,FALSE))/100))),2))>1,1,(ROUND((IF(Tabla1[[#This Row],[Altitud (m)]]>=(VLOOKUP(Tabla1[[#This Row],[Provincia]],AUX_LOCALIDADES!$A$2:$D$54,3,FALSE)),(((VLOOKUP(Tabla1[[#This Row],[Provincia]],AUX_LOCALIDADES!$A$3:$Q$54,17,FALSE))/(IF(Tabla1[[#This Row],[Text media Enero (ºC)]]<0,(610.5*(EXP((21.875*Tabla1[[#This Row],[Text media Enero (ºC)]])/(265.5+Tabla1[[#This Row],[Text media Enero (ºC)]])))),(610.5*(EXP((17.269*Tabla1[[#This Row],[Text media Enero (ºC)]])/(237.3+Tabla1[[#This Row],[Text media Enero (ºC)]])))))))),((VLOOKUP(Tabla1[[#This Row],[Provincia]],AUX_LOCALIDADES!$S$3:$AG$54,4,FALSE))/100))),2))) -> 1 | M2: =IF(Tabla1[[#This Row],[Text media Enero (ºC)]]<0,(ROUND((610.5*(EXP((21.875*Tabla1[[#This Row],[Text media Enero (ºC)]])/(265.5+Tabla1[[#This Row],[Text media Enero (ºC)]])))),2)),(ROUND((610.5*(EXP((17.269*Tabla1[[#This Row],[Text media Enero (ºC)]])/(237.3+Tabla1[[#This Row],[Text media Enero (ºC)]])))),2))) -> 807.15 | N2: =ROUND((Tabla1[[#This Row],[Psat (Pa)]]*Tabla1[[#This Row],[HRext Enero (tanto por 1)]]),2) -> 807.15
A3: Andalucía | B3: Almería | C3: Abrucena | D3: =IF((OR(Tabla1[[#This Row],[Zona Climática]]="α1",Tabla1[[#This Row],[Zona Climática]]="α2",Tabla1[[#This Row],[Zona Climática]]="α3",Tabla1[[#This Row],[Zona Climática]]="α4")),"α",(IF((OR(Tabla1[[#This Row],[Zona Climática]]="A1",Tabla1[[#This Row],[Zona Climática]]="A2",Tabla1[[#This Row],[Zona Climática]]="A3",Tabla1[[#This Row],[Zona Climática]]="A4")),"A",(IF((OR(Tabla1[[#This Row],[Zona Climática]]="B1",Tabla1[[#This Row],[Zona Climática]]="B2",Tabla1[[#This Row],[Zona Climática]]="B3",Tabla1[[#This Row],[Zona Climática]]="B4")),"B",(IF((OR(Tabla1[[#This Row],[Zona Climática]]="C1",Tabla1[[#This Row],[Zona Climática]]="C2",Tabla1[[#This Row],[Zona Climática]]="C3",Tabla1[[#This Row],[Zona Climática]]="C4")),"C",(IF((OR(Tabla1[[#This Row],[Zona Climática]]="D1",Tabla1[[#This Row],[Zona Climática]]="D2",Tabla1[[#This Row],[Zona Climática]]="D3",Tabla1[[#This Row],[Zona Climática]]="D4")),"D","E"))))))))) -> D | E3: D3 | F3: 37.1346822 | G3: -2.7956608 | H3: =CONCATENATE(Tabla1[[#This Row],[Latitud N]],", ",Tabla1[[#This Row],[Longitud W]]) -> 37,1346822, -2,7956608 | I3: 957 | J3: SI | K3: =ROUND((IF(Tabla1[[#This Row],[Altitud (m)]]<(VLOOKUP(Tabla1[[#This Row],[Provincia]],AUX_LOCALIDADES!$A$2:$D$54,3,FALSE)),(VLOOKUP(Tabla1[[#This Row],[Provincia]],AUX_LOCALIDADES!$A$2:$D$54,4,FALSE)),((VLOOKUP(Tabla1[[#This Row],[Provincia]],AUX_LOCALIDADES!$A$2:$D$54,4,FALSE))-((Tabla1[[#This Row],[Altitud (m)]]-(VLOOKUP(Tabla1[[#This Row],[Provincia]],AUX_LOCALIDADES!$A$2:$D$54,3,FALSE)))/100)))),1) -> 2.9 | L3: =IF((ROUND((IF(Tabla1[[#This Row],[Altitud (m)]]>=(VLOOKUP(Tabla1[[#This Row],[Provincia]],AUX_LOCALIDADES!$A$2:$D$54,3,FALSE)),(((VLOOKUP(Tabla1[[#This Row],[Provincia]],AUX_LOCALIDADES!$A$3:$Q$54,17,FALSE))/(IF(Tabla1[[#This Row],[Text media Enero (ºC)]]<0,(610.5*(EXP((21.875*Tabla1[[#This Row],[Text media Enero (ºC)]])/(265.5+Tabla1[[#This Row],[Text media Enero (ºC)]])))),(610.5*(EXP((17.269*Tabla1[[#This Row],[Text media Enero (ºC)]])/(237.3+Tabla1[[#This Row],[Text media Enero (ºC)]])))))))),((VLOOKUP(Tabla1[[#This Row],[Provincia]],AUX_LOCALIDADES!$S$3:$AG$54,4,FALSE))/100))),2))>1,1,(ROUND((IF(Tabla1[[#This Row],[Altitud (m)]]>=(VLOOKUP(Tabla1[[#This Row],[Provincia]],AUX_LOCALIDADES!$A$2:$D$54,3,FALSE)),(((VLOOKUP(Tabla1[[#This Row],[Provincia]],AUX_LOCALIDADES!$A$3:$Q$54,17,FALSE))/(IF(Tabla1[[#This Row],[Text media Enero (ºC)]]<0,(610.5*(EXP((21.875*Tabla1[[#This Row],[Text media Enero (ºC)]])/(265.5+Tabla1[[#This Row],[Text media Enero (ºC)]])))),(610.5*(EXP((17.269*Tabla1[[#This Row],[Text media Enero (ºC)]])/(237.3+Tabla1[[#This Row],[Text media Enero (ºC)]])))))))),((VLOOKUP(Tabla1[[#This Row],[Provincia]],AUX_LOCALIDADES!$S$3:$AG$54,4,FALSE))/100))),2))) -> 1 | M3: =IF(Tabla1[[#This Row],[Text media Enero (ºC)]]<0,(ROUND((610.5*(EXP((21.875*Tabla1[[#This Row],[Text media Enero (ºC)]])/(265.5+Tabla1[[#This Row],[Text media Enero (ºC)]])))),2)),(ROUND((610.5*(EXP((17.269*Tabla1[[#This Row],[Text media Enero (ºC)]])/(237.3+Tabla1[[#This Row],[Text media Enero (ºC)]])))),2))) -> 752.03 | N3: =ROUND((Tabla1[[#This Row],[Psat (Pa)]]*Tabla1[[#This Row],[HRext Enero (tanto por 1)]]),2) -> 752.03
A4: Andalucía | B4: Almería | C4: Adra | D4: =IF((OR(Tabla1[[#This Row],[Zona Climática]]="α1",Tabla1[[#This Row],[Zona Climática]]="α2",Tabla1[[#This Row],[Zona Climática]]="α3",Tabla1[[#This Row],[Zona Climática]]="α4")),"α",(IF((OR(Tabla1[[#This Row],[Zona Climática]]="A1",Tabla1[[#This Row],[Zona Climática]]="A2",Tabla1[[#This Row],[Zona Climática]]="A3",Tabla1[[#This Row],[Zona Climática]]="A4")),"A",(IF((OR(Tabla1[[#This Row],[Zona Climática]]="B1",Tabla1[[#This Row],[Zona Climática]]="B2",Tabla1[[#This Row],[Zona Climática]]="B3",Tabla1[[#This Row],[Zona Climática]]="B4")),"B",(IF((OR(Tabla1[[#This Row],[Zona Climática]]="C1",Tabla1[[#This Row],[Zona Climática]]="C2",Tabla1[[#This Row],[Zona Climática]]="C3",Tabla1[[#This Row],[Zona Climática]]="C4")),"C",(IF((OR(Tabla1[[#This Row],[Zona Climática]]="D1",Tabla1[[#This Row],[Zona Climática]]="D2",Tabla1[[#This Row],[Zona Climática]]="D3",Tabla1[[#This Row],[Zona Climática]]="D4")),"D","E"))))))))) -> A | E4: A4 | F4: 36.7503982 | G4: -3.0162429 | H4: =CONCATENATE(Tabla1[[#This Row],[Latitud N]],", ",Tabla1[[#This Row],[Longitud W]]) -> 36,7503982, -3,0162429 | I4: 15 | J4: SI | K4: =ROUND((IF(Tabla1[[#This Row],[Altitud (m)]]<(VLOOKUP(Tabla1[[#This Row],[Provincia]],AUX_LOCALIDADES!$A$2:$D$54,3,FALSE)),(VLOOKUP(Tabla1[[#This Row],[Provincia]],AUX_LOCALIDADES!$A$2:$D$54,4,FALSE)),((VLOOKUP(Tabla1[[#This Row],[Provincia]],AUX_LOCALIDADES!$A$2:$D$54,4,FALSE))-((Tabla1[[#This Row],[Altitud (m)]]-(VLOOKUP(Tabla1[[#This Row],[Provincia]],AUX_LOCALIDADES!$A$2:$D$54,3,FALSE)))/100)))),1) -> 12.4 | L4: =IF((ROUND((IF(Tabla1[[#This Row],[Altitud (m)]]>=(VLOOKUP(Tabla1[[#This Row],[Provincia]],AUX_LOCALIDADES!$A$2:$D$54,3,FALSE)),(((VLOOKUP(Tabla1[[#This Row],[Provincia]],AUX_LOCALIDADES!$A$3:$Q$54,17,FALSE))/(IF(Tabla1[[#This Row],[Text media Enero (ºC)]]<0,(610.5*(EXP((21.875*Tabla1[[#This Row],[Text media Enero (ºC)]])/(265.5+Tabla1[[#This Row],[Text media Enero (ºC)]])))),(610.5*(EXP((17.269*Tabla1[[#This Row],[Text media Enero (ºC)]])/(237.3+Tabla1[[#This Row],[Text media Enero (ºC)]])))))))),((VLOOKUP(Tabla1[[#This Row],[Provincia]],AUX_LOCALIDADES!$S$3:$AG$54,4,FALSE))/100))),2))>1,1,(ROUND((IF(Tabla1[[#This Row],[Altitud (m)]]>=(VLOOKUP(Tabla1[[#This Row],[Provincia]],AUX_LOCALIDADES!$A$2:$D$54,3,FALSE)),(((VLOOKUP(Tabla1[[#This Row],[Provincia]],AUX_LOCALIDADES!$A$3:$Q$54,17,FALSE))/(IF(Tabla1[[#This Row],[Text media Enero (ºC)]]<0,(610.5*(EXP((21.875*Tabla1[[#This Row],[Text media Enero (ºC)]])/(265.5+Tabla1[[#This Row],[Text media Enero (ºC)]])))),(610.5*(EXP((17.269*Tabla1[[#This Row],[Text media Enero (ºC)]])/(237.3+Tabla1[[#This Row],[Text media Enero (ºC)]])))))))),((VLOOKUP(Tabla1[[#This Row],[Provincia]],AUX_LOCALIDADES!$S$3:$AG$54,4,FALSE))/100))),2))) -> 0.7 | M4: =IF(Tabla1[[#This Row],[Text media Enero (ºC)]]<0,(ROUND((610.5*(EXP((21.875*Tabla1[[#This Row],[Text media Enero (ºC)]])/(265.5+Tabla1[[#This Row],[Text media Enero (ºC)]])))),2)),(ROUND((610.5*(EXP((17.269*Tabla1[[#This Row],[Text media Enero (ºC)]])/(237.3+Tabla1[[#This Row],[Text media Enero (ºC)]])))),2))) -> 1439.21 | N4: =ROUND((Tabla1[[#This Row],[Psat (Pa)]]*Tabla1[[#This Row],[HRext Enero (tanto por 1)]]),2) -> 1007.45
A5: Andalucía | B5: Almería | C5: Albánchez | D5: =IF((OR(Tabla1[[#This Row],[Zona Climática]]="α1",Tabla1[[#This Row],[Zona Climática]]="α2",Tabla1[[#This Row],[Zona Climática]]="α3",Tabla1[[#This Row],[Zona Climática]]="α4")),"α",(IF((OR(Tabla1[[#This Row],[Zona Climática]]="A1",Tabla1[[#This Row],[Zona Climática]]="A2",Tabla1[[#This Row],[Zona Climática]]="A3",Tabla1[[#This Row],[Zona Climática]]="A4")),"A",(IF((OR(Tabla1[[#This Row],[Zona Climática]]="B1",Tabla1[[#This Row],[Zona Climática]]="B2",Tabla1[[#This Row],[Zona Climática]]="B3",Tabla1[[#This Row],[Zona Climática]]="B4")),"B",(IF((OR(Tabla1[[#This Row],[Zona Climática]]="C1",Tabla1[[#This Row],[Zona Climática]]="C2",Tabla1[[#This Row],[Zona Climática]]="C3",Tabla1[[#This Row],[Zona Climática]]="C4")),"C",(IF((OR(Tabla1[[#This Row],[Zona Climática]]="D1",Tabla1[[#This Row],[Zona Climática]]="D2",Tabla1[[#This Row],[Zona Climática]]="D3",Tabla1[[#This Row],[Zona Climática]]="D4")),"D","E"))))))))) -> C | E5: C3 | F5: 37.2884114 | G5: -2.1804263 | H5: =CONCATENATE(Tabla1[[#This Row],[Latitud N]],", ",Tabla1[[#This Row],[Longitud W]]) -> 37,2884114, -2,1804263 | I5: 486 | J5: SI | K5: =ROUND((IF(Tabla1[[#This Row],[Altitud (m)]]<(VLOOKUP(Tabla1[[#This Row],[Provincia]],AUX_LOCALIDADES!$A$2:$D$54,3,FALSE)),(VLOOKUP(Tabla1[[#This Row],[Provincia]],AUX_LOCALIDADES!$A$2:$D$54,4,FALSE)),((VLOOKUP(Tabla1[[#This Row],[Provincia]],AUX_LOCALIDADES!$A$2:$D$54,4,FALSE))-((Tabla1[[#This Row],[Altitud (m)]]-(VLOOKUP(Tabla1[[#This Row],[Provincia]],AUX_LOCALIDADES!$A$2:$D$54,3,FALSE)))/100)))),1) -> 7.6 | L5: =IF((ROUND((IF(Tabla1[[#This Row],[Altitud (m)]]>=(VLOOKUP(Tabla1[[#This Row],[Provincia]],AUX_LOCALIDADES!$A$2:$D$54,3,FALSE)),(((VLOOKUP(Tabla1[[#This Row],[Provincia]],AUX_LOCALIDADES!$A$3:$Q$54,17,FALSE))/(IF(Tabla1[[#This Row],[Text media Enero (ºC)]]<0,(610.5*(EXP((21.875*Tabla1[[#This Row],[Text media Enero (ºC)]])/(265.5+Tabla1[[#This Row],[Text media Enero (ºC)]])))),(610.5*(EXP((17.269*Tabla1[[#This Row],[Text media Enero (ºC)]])/(237.3+Tabla1[[#This Row],[Text media Enero (ºC)]])))))))),((VLOOKUP(Tabla1[[#This Row],[Provincia]],AUX_LOCALIDADES!$S$3:$AG$54,4,FALSE))/100))),2))>1,1,(ROUND((IF(Tabla1[[#This Row],[Altitud (m)]]>=(VLOOKUP(Tabla1[[#This Row],[Provincia]],AUX_LOCALIDADES!$A$2:$D$54,3,FALSE)),(((VLOOKUP(Tabla1[[#This Row],[Provincia]],AUX_LOCALIDADES!$A$3:$Q$54,17,FALSE))/(IF(Tabla1[[#This Row],[Text media Enero (ºC)]]<0,(610.5*(EXP((21.875*Tabla1[[#This Row],[Text media Enero (ºC)]])/(265.5+Tabla1[[#This Row],[Text media Enero (ºC)]])))),(610.5*(EXP((17.269*Tabla1[[#This Row],[Text media Enero (ºC)]])/(237.3+Tabla1[[#This Row],[Text media Enero (ºC)]])))))))),((VLOOKUP(Tabla1[[#This Row],[Provincia]],AUX_LOCALIDADES!$S$3:$AG$54,4,FALSE))/100))),2))) -> 0.97 | M5: =IF(Tabla1[[#This Row],[Text media Enero (ºC)]]<0,(ROUND((610.5*(EXP((21.875*Tabla1[[#This Row],[Text media Enero (ºC)]])/(265.5+Tabla1[[#This Row],[Text media Enero (ºC)]])))),2)),(ROUND((610.5*(EXP((17.269*Tabla1[[#This Row],[Text media Enero (ºC)]])/(237.3+Tabla1[[#This Row],[Text media Enero (ºC)]])))),2))) -> 1043.35 | N5: =ROUND((Tabla1[[#This Row],[Psat (Pa)]]*Tabla1[[#This Row],[HRext Enero (tanto por 1)]]),2) -> 1012.05
A6: Andalucía | B6: Almería | C6: Alboloduy | D6: =IF((OR(Tabla1[[#This Row],[Zona Climática]]="α1",Tabla1[[#This Row],[Zona Climática]]="α2",Tabla1[[#This Row],[Zona Climática]]="α3",Tabla1[[#This Row],[Zona Climática]]="α4")),"α",(IF((OR(Tabla1[[#This Row],[Zona Climática]]="A1",Tabla1[[#This Row],[Zona Climática]]="A2",Tabla1[[#This Row],[Zona Climática]]="A3",Tabla1[[#This Row],[Zona Climática]]="A4")),"A",(IF((OR(Tabla1[[#This Row],[Zona Climática]]="B1",Tabla1[[#This Row],[Zona Climática]]="B2",Tabla1[[#This Row],[Zona Climática]]="B3",Tabla1[[#This Row],[Zona Climática]]="B4")),"B",(IF((OR(Tabla1[[#This Row],[Zona Climática]]="C1",Tabla1[[#This Row],[Zona Climática]]="C2",Tabla1[[#This Row],[Zona Climática]]="C3",Tabla1[[#This Row],[Zona Climática]]="C4")),"C",(IF((OR(Tabla1[[#This Row],[Zona Climática]]="D1",Tabla1[[#This Row],[Zona Climática]]="D2",Tabla1[[#This Row],[Zona Climática]]="D3",Tabla1[[#This Row],[Zona Climática]]="D4")),"D","E"))))))))) -> B | E6: B3 | F6: 37.0343754 | G6: -2.6204188 | H6: =CONCATENATE(Tabla1[[#This Row],[Latitud N]],", ",Tabla1[[#This Row],[Longitud W]]) -> 37,0343754, -2,6204188 | I6: 372 | J6: SI | K6: =ROUND((IF(Tabla1[[#This Row],[Altitud (m)]]<(VLOOKUP(Tabla1[[#This Row],[Provincia]],AUX_LOCALIDADES!$A$2:$D$54,3,FALSE)),(VLOOKUP(Tabla1[[#This Row],[Provincia]],AUX_LOCALIDADES!$A$2:$D$54,4,FALSE)),((VLOOKUP(Tabla1[[#This Row],[Provincia]],AUX_LOCALIDADES!$A$2:$D$54,4,FALSE))-((Tabla1[[#This Row],[Altitud (m)]]-(VLOOKUP(Tabla1[[#This Row],[Provincia]],AUX_LOCALIDADES!$A$2:$D$54,3,FALSE)))/100)))),1) -> 8.8 | L6: =IF((ROUND((IF(Tabla1[[#This Row],[Altitud (m)]]>=(VLOOKUP(Tabla1[[#This Row],[Provincia]],AUX_LOCALIDADES!$A$2:$D$54,3,FALSE)),(((VLOOKUP(Tabla1[[#This Row],[Provincia]],AUX_LOCALIDADES!$A$3:$Q$54,17,FALSE))/(IF(Tabla1[[#This Row],[Text media Enero (ºC)]]<0,(610.5*(EXP((21.875*Tabla1[[#This Row],[Text media Enero (ºC)]])/(265.5+Tabla1[[#This Row],[Text media Enero (ºC)]])))),(610.5*(EXP((17.269*Tabla1[[#This Row],[Text media Enero (ºC)]])/(237.3+Tabla1[[#This Row],[Text media Enero (ºC)]])))))))),((VLOOKUP(Tabla1[[#This Row],[Provincia]],AUX_LOCALIDADES!$S$3:$AG$54,4,FALSE))/100))),2))>1,1,(ROUND((IF(Tabla1[[#This Row],[Altitud (m)]]>=(VLOOKUP(Tabla1[[#This Row],[Provincia]],AUX_LOCALIDADES!$A$2:$D$54,3,FALSE)),(((VLOOKUP(Tabla1[[#This Row],[Provincia]],AUX_LOCALIDADES!$A$3:$Q$54,17,FALSE))/(IF(Tabla1[[#This Row],[Text media Enero (ºC)]]<0,(610.5*(EXP((21.875*Tabla1[[#This Row],[Text media Enero (ºC)]])/(265.5+Tabla1[[#This Row],[Text media Enero (ºC)]])))),(610.5*(EXP((17.269*Tabla1[[#This Row],[Text media Enero (ºC)]])/(237.3+Tabla1[[#This Row],[Text media Enero (ºC)]])))))))),((VLOOKUP(Tabla1[[#This Row],[Provincia]],AUX_LOCALIDADES!$S$3:$AG$54,4,FALSE))/100))),2))) -> 0.89 | M6: =IF(Tabla1[[#This Row],[Text media Enero (ºC)]]<0,(ROUND((610.5*(EXP((21.875*Tabla1[[#This Row],[Text media Enero (ºC)]])/(265.5+Tabla1[[#This Row],[Text media Enero (ºC)]])))),2)),(ROUND((610.5*(EXP((17.269*Tabla1[[#This Row],[Text media Enero (ºC)]])/(237.3+Tabla1[[#This Row],[Text media Enero (ºC)]])))),2))) -> 1132.04 | N6: =ROUND((Tabla1[[#This Row],[Psat (Pa)]]*Tabla1[[#This Row],[HRext Enero (tanto por 1)]]),2) -> 1007.52
A7: Andalucía | B7: Almería | C7: Albox | D7: =IF((OR(Tabla1[[#This Row],[Zona Climática]]="α1",Tabla1[[#This Row],[Zona Climática]]="α2",Tabla1[[#This Row],[Zona Climática]]="α3",Tabla1[[#This Row],[Zona Climática]]="α4")),"α",(IF((OR(Tabla1[[#This Row],[Zona Climática]]="A1",Tabla1[[#This Row],[Zona Climática]]="A2",Tabla1[[#This Row],[Zona Climática]]="A3",Tabla1[[#This Row],[Zona Climática]]="A4")),"A",(IF((OR(Tabla1[[#This Row],[Zona Climática]]="B1",Tabla1[[#This Row],[Zona Climática]]="B2",Tabla1[[#This Row],[Zona Climática]]="B3",Tabla1[[#This Row],[Zona Climática]]="B4")),"B",(IF((OR(Tabla1[[#This Row],[Zona Climática]]="C1",Tabla1[[#This Row],[Zona Climática]]="C2",Tabla1[[#This Row],[Zona Climática]]="C3",Tabla1[[#This Row],[Zona Climática]]="C4")),"C",(IF((OR(Tabla1[[#This Row],[Zona Climática]]="D1",Tabla1[[#This Row],[Zona Climática]]="D2",Tabla1[[#This Row],[Zona Climática]]="D3",Tabla1[[#This Row],[Zona Climática]]="D4")),"D","E"))))))))) -> C | E7: C3 | F7: 37.3900276 | G7: -2.1471274 | H7: =CONCATENATE(Tabla1[[#This Row],[Latitud N]],", ",Tabla1[[#This Row],[Longitud W]]) -> 37,3900276, -2,1471274 | I7: 424 | J7: SI | K7: =ROUND((IF(Tabla1[[#This Row],[Altitud (m)]]<(VLOOKUP(Tabla1[[#This Row],[Provincia]],AUX_LOCALIDADES!$A$2:$D$54,3,FALSE)),(VLOOKUP(Tabla1[[#This Row],[Provincia]],AUX_LOCALIDADES!$A$2:$D$54,4,FALSE)),((VLOOKUP(Tabla1[[#This Row],[Provincia]],AUX_LOCALIDADES!$A$2:$D$54,4,FALSE))-((Tabla1[[#This Row],[Altitud (m)]]-(VLOOKUP(Tabla1[[#This Row],[Provincia]],AUX_LOCALIDADES!$A$2:$D$54,3,FALSE)))/100)))),1) -> 8.3 | L7: =IF((ROUND((IF(Tabla1[[#This Row],[Altitud (m)]]>=(VLOOKUP(Tabla1[[#This Row],[Provincia]],AUX_LOCALIDADES!$A$2:$D$54,3,FALSE)),(((VLOOKUP(Tabla1[[#This Row],[Provincia]],AUX_LOCALIDADES!$A$3:$Q$54,17,FALSE))/(IF(Tabla1[[#This Row],[Text media Enero (ºC)]]<0,(610.5*(EXP((21.875*Tabla1[[#This Row],[Text media Enero (ºC)]])/(265.5+Tabla1[[#This Row],[Text media Enero (ºC)]])))),(610.5*(EXP((17.269*Tabla1[[#This Row],[Text media Enero (ºC)]])/(237.3+Tabla1[[#This Row],[Text media Enero (ºC)]])))))))),((VLOOKUP(Tabla1[[#This Row],[Provincia]],AUX_LOCALIDADES!$S$3:$AG$54,4,FALSE))/100))),2))>1,1,(ROUND((IF(Tabla1[[#This Row],[Altitud (m)]]>=(VLOOKUP(Tabla1[[#This Row],[Provincia]],AUX_LOCALIDADES!$A$2:$D$54,3,FALSE)),(((VLOOKUP(Tabla1[[#This Row],[Provincia]],AUX_LOCALIDADES!$A$3:$Q$54,17,FALSE))/(IF(Tabla1[[#This Row],[Text media Enero (ºC)]]<0,(610.5*(EXP((21.875*Tabla1[[#This Row],[Text media Enero (ºC)]])/(265.5+Tabla1[[#This Row],[Text media Enero (ºC)]])))),(610.5*(EXP((17.269*Tabla1[[#This Row],[Text media Enero (ºC)]])/(237.3+Tabla1[[#This Row],[Text media Enero (ºC)]])))))))),((VLOOKUP(Tabla1[[#This Row],[Provincia]],AUX_LOCALIDADES!$S$3:$AG$54,4,FALSE))/100))),2))) -> 0.92 | M7: =IF(Tabla1[[#This Row],[Text media Enero (ºC)]]<0,(ROUND((610.5*(EXP((21.875*Tabla1[[#This Row],[Text media Enero (ºC)]])/(265.5+Tabla1[[#This Row],[Text media Enero (ºC)]])))),2)),(ROUND((610.5*(EXP((17.269*Tabla1[[#This Row],[Text media Enero (ºC)]])/(237.3+Tabla1[[#This Row],[Text media Enero (ºC)]])))),2))) -> 1094.31 | N7: =ROUND((Tabla1[[#This Row],[Psat (Pa)]]*Tabla1[[#This Row],[HRext Enero (tanto por 1)]]),2) -> 1006.77
A8: Andalucía | B8: Almería | C8: Alcolea | D8: =IF((OR(Tabla1[[#This Row],[Zona Climática]]="α1",Tabla1[[#This Row],[Zona Climática]]="α2",Tabla1[[#This Row],[Zona Climática]]="α3",Tabla1[[#This Row],[Zona Climática]]="α4")),"α",(IF((OR(Tabla1[[#This Row],[Zona Climática]]="A1",Tabla1[[#This Row],[Zona Climática]]="A2",Tabla1[[#This Row],[Zona Climática]]="A3",Tabla1[[#This Row],[Zona Climática]]="A4")),"A",(IF((OR(Tabla1[[#This Row],[Zona Climática]]="B1",Tabla1[[#This Row],[Zona Climática]]="B2",Tabla1[[#This Row],[Zona Climática]]="B3",Tabla1[[#This Row],[Zona Climática]]="B4")),"B",(IF((OR(Tabla1[[#This Row],[Zona Climática]]="C1",Tabla1[[#This Row],[Zona Climática]]="C2",Tabla1[[#This Row],[Zona Climática]]="C3",Tabla1[[#This Row],[Zona Climática]]="C4")),"C",(IF((OR(Tabla1[[#This Row],[Zona Climática]]="D1",Tabla1[[#This Row],[Zona Climática]]="D2",Tabla1[[#This Row],[Zona Climática]]="D3",Tabla1[[#This Row],[Zona Climática]]="D4")),"D","E"))))))))) -> C | E8: C3 | F8: 36.9753017 | G8: -2.9595546 | H8: =CONCATENATE(Tabla1[[#This Row],[Latitud N]],", ",Tabla1[[#This Row],[Longitud W]]) -> 36,9753017, -2,9595546 | I8: 739 | J8: SI | K8: =ROUND((IF(Tabla1[[#This Row],[Altitud (m)]]<(VLOOKUP(Tabla1[[#This Row],[Provincia]],AUX_LOCALIDADES!$A$2:$D$54,3,FALSE)),(VLOOKUP(Tabla1[[#This Row],[Provincia]],AUX_LOCALIDADES!$A$2:$D$54,4,FALSE)),((VLOOKUP(Tabla1[[#This Row],[Provincia]],AUX_LOCALIDADES!$A$2:$D$54,4,FALSE))-((Tabla1[[#This Row],[Altitud (m)]]-(VLOOKUP(Tabla1[[#This Row],[Provincia]],AUX_LOCALIDADES!$A$2:$D$54,3,FALSE)))/100)))),1) -> 5.1 | L8: =IF((ROUND((IF(Tabla1[[#This Row],[Altitud (m)]]>=(VLOOKUP(Tabla1[[#This Row],[Provincia]],AUX_LOCALIDADES!$A$2:$D$54,3,FALSE)),(((VLOOKUP(Tabla1[[#This Row],[Provincia]],AUX_LOCALIDADES!$A$3:$Q$54,17,FALSE))/(IF(Tabla1[[#This Row],[Text media Enero (ºC)]]<0,(610.5*(EXP((21.875*Tabla1[[#This Row],[Text media Enero (ºC)]])/(265.5+Tabla1[[#This Row],[Text media Enero (ºC)]])))),(610.5*(EXP((17.269*Tabla1[[#This Row],[Text media Enero (ºC)]])/(237.3+Tabla1[[#This Row],[Text media Enero (ºC)]])))))))),((VLOOKUP(Tabla1[[#This Row],[Provincia]],AUX_LOCALIDADES!$S$3:$AG$54,4,FALSE))/100))),2))>1,1,(ROUND((IF(Tabla1[[#This Row],[Altitud (m)]]>=(VLOOKUP(Tabla1[[#This Row],[Provincia]],AUX_LOCALIDADES!$A$2:$D$54,3,FALSE)),(((VLOOKUP(Tabla1[[#This Row],[Provincia]],AUX_LOCALIDADES!$A$3:$Q$54,17,FALSE))/(IF(Tabla1[[#This Row],[Text media Enero (ºC)]]<0,(610.5*(EXP((21.875*Tabla1[[#This Row],[Text media Enero (ºC)]])/(265.5+Tabla1[[#This Row],[Text media Enero (ºC)]])))),(610.5*(EXP((17.269*Tabla1[[#This Row],[Text media Enero (ºC)]])/(237.3+Tabla1[[#This Row],[Text media Enero (ºC)]])))))))),((VLOOKUP(Tabla1[[#This Row],[Provincia]],AUX_LOCALIDADES!$S$3:$AG$54,4,FALSE))/100))),2))) -> 1 | M8: =IF(Tabla1[[#This Row],[Text media Enero (ºC)]]<0,(ROUND((610.5*(EXP((21.875*Tabla1[[#This Row],[Text media Enero (ºC)]])/(265.5+Tabla1[[#This Row],[Text media Enero (ºC)]])))),2)),(ROUND((610.5*(EXP((17.269*Tabla1[[#This Row],[Text media Enero (ºC)]])/(237.3+Tabla1[[#This Row],[Text media Enero (ºC)]])))),2))) -> 877.97 | N8: =ROUND((Tabla1[[#This Row],[Psat (Pa)]]*Tabla1[[#This Row],[HRext Enero (tanto por 1)]]),2) -> 877.97
A9: Andalucía | B9: Almería | C9: Alcóntar | D9: =IF((OR(Tabla1[[#This Row],[Zona Climática]]="α1",Tabla1[[#This Row],[Zona Climática]]="α2",Tabla1[[#This Row],[Zona Climática]]="α3",Tabla1[[#This Row],[Zona Climática]]="α4")),"α",(IF((OR(Tabla1[[#This Row],[Zona Climática]]="A1",Tabla1[[#This Row],[Zona Climática]]="A2",Tabla1[[#This Row],[Zona Climática]]="A3",Tabla1[[#This Row],[Zona Climática]]="A4")),"A",(IF((OR(Tabla1[[#This Row],[Zona Climática]]="B1",Tabla1[[#This Row],[Zona Climática]]="B2",Tabla1[[#This Row],[Zona Climática]]="B3",Tabla1[[#This Row],[Zona Climática]]="B4")),"B",(IF((OR(Tabla1[[#This Row],[Zona Climática]]="C1",Tabla1[[#This Row],[Zona Climática]]="C2",Tabla1[[#This Row],[Zona Climática]]="C3",Tabla1[[#This Row],[Zona Climática]]="C4")),"C",(IF((OR(Tabla1[[#This Row],[Zona Climática]]="D1",Tabla1[[#This Row],[Zona Climática]]="D2",Tabla1[[#This Row],[Zona Climática]]="D3",Tabla1[[#This Row],[Zona Climática]]="D4")),"D","E"))))))))) -> D | E9: D3 | F9: 37.3371615 | G9: -2.5964365 | H9: =CONCATENATE(Tabla1[[#This Row],[Latitud N]],", ",Tabla1[[#This Row],[Longitud W]]) -> 37,3371615, -2,5964365 | I9: 954 | J9: SI | K9: =ROUND((IF(Tabla1[[#This Row],[Altitud (m)]]<(VLOOKUP(Tabla1[[#This Row],[Provincia]],AUX_LOCALIDADES!$A$2:$D$54,3,FALSE)),(VLOOKUP(Tabla1[[#This Row],[Provincia]],AUX_LOCALIDADES!$A$2:$D$54,4,FALSE)),((VLOOKUP(Tabla1[[#This Row],[Provincia]],AUX_LOCALIDADES!$A$2:$D$54,4,FALSE))-((Tabla1[[#This Row],[Altitud (m)]]-(VLOOKUP(Tabla1[[#This Row],[Provincia]],AUX_LOCALIDADES!$A$2:$D$54,3,FALSE)))/100)))),1) -> 3 | L9: =IF((ROUND((IF(Tabla1[[#This Row],[Altitud (m)]]>=(VLOOKUP(Tabla1[[#This Row],[Provincia]],AUX_LOCALIDADES!$A$2:$D$54,3,FALSE)),(((VLOOKUP(Tabla1[[#This Row],[Provincia]],AUX_LOCALIDADES!$A$3:$Q$54,17,FALSE))/(IF(Tabla1[[#This Row],[Text media Enero (ºC)]]<0,(610.5*(EXP((21.875*Tabla1[[#This Row],[Text media Enero (ºC)]])/(265.5+Tabla1[[#This Row],[Text media Enero (ºC)]])))),(610.5*(EXP((17.269*Tabla1[[#This Row],[Text media Enero (ºC)]])/(237.3+Tabla1[[#This Row],[Text media Enero (ºC)]])))))))),((VLOOKUP(Tabla1[[#This Row],[Provincia]],AUX_LOCALIDADES!$S$3:$AG$54,4,FALSE))/100))),2))>1,1,(ROUND((IF(Tabla1[[#This Row],[Altitud (m)]]>=(VLOOKUP(Tabla1[[#This Row],[Provincia]],AUX_LOCALIDADES!$A$2:$D$54,3,FALSE)),(((VLOOKUP(Tabla1[[#This Row],[Provincia]],AUX_LOCALIDADES!$A$3:$Q$54,17,FALSE))/(IF(Tabla1[[#This Row],[Text media Enero (ºC)]]<0,(610.5*(EXP((21.875*Tabla1[[#This Row],[Text media Enero (ºC)]])/(265.5+Tabla1[[#This Row],[Text media Enero (ºC)]])))),(610.5*(EXP((17.269*Tabla1[[#This Row],[Text media Enero (ºC)]])/(237.3+Tabla1[[#This Row],[Text media Enero (ºC)]])))))))),((VLOOKUP(Tabla1[[#This Row],[Provincia]],AUX_LOCALIDADES!$S$3:$AG$54,4,FALSE))/100))),2))) -> 1 | M9: =IF(Tabla1[[#This Row],[Text media Enero (ºC)]]<0,(ROUND((610.5*(EXP((21.875*Tabla1[[#This Row],[Text media Enero (ºC)]])/(265.5+Tabla1[[#This Row],[Text media Enero (ºC)]])))),2)),(ROUND((610.5*(EXP((17.269*Tabla1[[#This Row],[Text media Enero (ºC)]])/(237.3+Tabla1[[#This Row],[Text media Enero (ºC)]])))),2))) -> 757.38 | N9: =ROUND((Tabla1[[#This Row],[Psat (Pa)]]*Tabla1[[#This Row],[HRext Enero (tanto por 1)]]),2) -> 757.38
A10: Andalucía | B10: Almería | C10: Alcudia de Monteagud | D10: =IF((OR(Tabla1[[#This Row],[Zona Climática]]="α1",Tabla1[[#This Row],[Zona Climática]]="α2",Tabla1[[#This Row],[Zona Climática]]="α3",Tabla1[[#This Row],[Zona Climática]]="α4")),"α",(IF((OR(Tabla1[[#This Row],[Zona Climática]]="A1",Tabla1[[#This Row],[Zona Climática]]="A2",Tabla1[[#This Row],[Zona Climática]]="A3",Tabla1[[#This Row],[Zona Climática]]="A4")),"A",(IF((OR(Tabla1[[#This Row],[Zona Climática]]="B1",Tabla1[[#This Row],[Zona Climática]]="B2",Tabla1[[#This Row],[Zona Climática]]="B3",Tabla1[[#This Row],[Zona Climática]]="B4")),"B",(IF((OR(Tabla1[[#This Row],[Zona Climática]]="C1",Tabla1[[#This Row],[Zona Climática]]="C2",Tabla1[[#This Row],[Zona Climática]]="C3",Tabla1[[#This Row],[Zona Climática]]="C4")),"C",(IF((OR(Tabla1[[#This Row],[Zona Climática]]="D1",Tabla1[[#This Row],[Zona Climática]]="D2",Tabla1[[#This Row],[Zona Climática]]="D3",Tabla1[[#This Row],[Zona Climática]]="D4")),"D","E"))))))))) -> D | E10: D3 | F10: 37.2371385 | G10: -2.2649678 | H10: =CONCATENATE(Tabla1[[#This Row],[Latitud N]],", ",Tabla1[[#This Row],[Longitud W]]) -> 37,2371385, -2,2649678 | I10: 1029 | J10: SI | K10: =ROUND((IF(Tabla1[[#This Row],[Altitud (m)]]<(VLOOKUP(Tabla1[[#This Row],[Provincia]],AUX_LOCALIDADES!$A$2:$D$54,3,FALSE)),(VLOOKUP(Tabla1[[#This Row],[Provincia]],AUX_LOCALIDADES!$A$2:$D$54,4,FALSE)),((VLOOKUP(Tabla1[[#This Row],[Provincia]],AUX_LOCALIDADES!$A$2:$D$54,4,FALSE))-((Tabla1[[#This Row],[Altitud (m)]]-(VLOOKUP(Tabla1[[#This Row],[Provincia]],AUX_LOCALIDADES!$A$2:$D$54,3,FALSE)))/100)))),1) -> 2.2 | L10: =IF((ROUND((IF(Tabla1[[#This Row],[Altitud (m)]]>=(VLOOKUP(Tabla1[[#This Row],[Provincia]],AUX_LOCALIDADES!$A$2:$D$54,3,FALSE)),(((VLOOKUP(Tabla1[[#This Row],[Provincia]],AUX_LOCALIDADES!$A$3:$Q$54,17,FALSE))/(IF(Tabla1[[#This Row],[Text media Enero (ºC)]]<0,(610.5*(EXP((21.875*Tabla1[[#This Row],[Text media Enero (ºC)]])/(265.5+Tabla1[[#This Row],[Text media Enero (ºC)]])))),(610.5*(EXP((17.269*Tabla1[[#This Row],[Text media Enero (ºC)]])/(237.3+Tabla1[[#This Row],[Text media Enero (ºC)]])))))))),((VLOOKUP(Tabla1[[#This Row],[Provincia]],AUX_LOCALIDADES!$S$3:$AG$54,4,FALSE))/100))),2))>1,1,(ROUND((IF(Tabla1[[#This Row],[Altitud (m)]]>=(VLOOKUP(Tabla1[[#This Row],[Provincia]],AUX_LOCALIDADES!$A$2:$D$54,3,FALSE)),(((VLOOKUP(Tabla1[[#This Row],[Provincia]],AUX_LOCALIDADES!$A$3:$Q$54,17,FALSE))/(IF(Tabla1[[#This Row],[Text media Enero (ºC)]]<0,(610.5*(EXP((21.875*Tabla1[[#This Row],[Text media Enero (ºC)]])/(265.5+Tabla1[[#This Row],[Text media Enero (ºC)]])))),(610.5*(EXP((17.269*Tabla1[[#This Row],[Text media Enero (ºC)]])/(237.3+Tabla1[[#This Row],[Text media Enero (ºC)]])))))))),((VLOOKUP(Tabla1[[#This Row],[Provincia]],AUX_LOCALIDADES!$S$3:$AG$54,4,FALSE))/100))),2))) -> 1 | M10: =IF(Tabla1[[#This Row],[Text media Enero (ºC)]]<0,(ROUND((610.5*(EXP((21.875*Tabla1[[#This Row],[Text media Enero (ºC)]])/(265.5+Tabla1[[#This Row],[Text media Enero (ºC)]])))),2)),(ROUND((610.5*(EXP((17.269*Tabla1[[#This Row],[Text media Enero (ºC)]])/(237.3+Tabla1[[#This Row],[Text media Enero (ºC)]])))),2))) -> 715.45 | N10: =ROUND((Tabla1[[#This Row],[Psat (Pa)]]*Tabla1[[#This Row],[HRext Enero (tanto por 1)]]),2) -> 715.45
A11: Andalucía | B11: Almería | C11: Alhabia | D11: =IF((OR(Tabla1[[#This Row],[Zona Climática]]="α1",Tabla1[[#This Row],[Zona Climática]]="α2",Tabla1[[#This Row],[Zona Climática]]="α3",Tabla1[[#This Row],[Zona Climática]]="α4")),"α",(IF((OR(Tabla1[[#This Row],[Zona Climática]]="A1",Tabla1[[#This Row],[Zona Climática]]="A2",Tabla1[[#This Row],[Zona Climática]]="A3",Tabla1[[#This Row],[Zona Climática]]="A4")),"A",(IF((OR(Tabla1[[#This Row],[Zona Climática]]="B1",Tabla1[[#This Row],[Zona Climática]]="B2",Tabla1[[#This Row],[Zona Climática]]="B3",Tabla1[[#This Row],[Zona Climática]]="B4")),"B",(IF((OR(Tabla1[[#This Row],[Zona Climática]]="C1",Tabla1[[#This Row],[Zona Climática]]="C2",Tabla1[[#This Row],[Zona Climática]]="C3",Tabla1[[#This Row],[Zona Climática]]="C4")),"C",(IF((OR(Tabla1[[#This Row],[Zona Climática]]="D1",Tabla1[[#This Row],[Zona Climática]]="D2",Tabla1[[#This Row],[Zona Climática]]="D3",Tabla1[[#This Row],[Zona Climática]]="D4")),"D","E"))))))))) -> B | E11: B3 | F11: 36.99081 | G11: -2.5853511 | H11: =CONCATENATE(Tabla1[[#This Row],[Latitud N]],", ",Tabla1[[#This Row],[Longitud W]]) -> 36,99081, -2,5853511 | I11: 289 | J11: SI | K11: =ROUND((IF(Tabla1[[#This Row],[Altitud (m)]]<(VLOOKUP(Tabla1[[#This Row],[Provincia]],AUX_LOCALIDADES!$A$2:$D$54,3,FALSE)),(VLOOKUP(Tabla1[[#This Row],[Provincia]],AUX_LOCALIDADES!$A$2:$D$54,4,FALSE)),((VLOOKUP(Tabla1[[#This Row],[Provincia]],AUX_LOCALIDADES!$A$2:$D$54,4,FALSE))-((Tabla1[[#This Row],[Altitud (m)]]-(VLOOKUP(Tabla1[[#This Row],[Provincia]],AUX_LOCALIDADES!$A$2:$D$54,3,FALSE)))/100)))),1) -> 9.6 | L11: =IF((ROUND((IF(Tabla1[[#This Row],[Altitud (m)]]>=(VLOOKUP(Tabla1[[#This Row],[Provincia]],AUX_LOCALIDADES!$A$2:$D$54,3,FALSE)),(((VLOOKUP(Tabla1[[#This Row],[Provincia]],AUX_LOCALIDADES!$A$3:$Q$54,17,FALSE))/(IF(Tabla1[[#This Row],[Text media Enero (ºC)]]<0,(610.5*(EXP((21.875*Tabla1[[#This Row],[Text media Enero (ºC)]])/(265.5+Tabla1[[#This Row],[Text media Enero (ºC)]])))),(610.5*(EXP((17.269*Tabla1[[#This Row],[Text media Enero (ºC)]])/(237.3+Tabla1[[#This Row],[Text media Enero (ºC)]])))))))),((VLOOKUP(Tabla1[[#This Row],[Provincia]],AUX_LOCALIDADES!$S$3:$AG$54,4,FALSE))/100))),2))>1,1,(ROUND((IF(Tabla1[[#This Row],[Altitud (m)]]>=(VLOOKUP(Tabla1[[#This Row],[Provincia]],AUX_LOCALIDADES!$A$2:$D$54,3,FALSE)),(((VLOOKUP(Tabla1[[#This Row],[Provincia]],AUX_LOCALIDADES!$A$3:$Q$54,17,FALSE))/(IF(Tabla1[[#This Row],[Text media Enero (ºC)]]<0,(610.5*(EXP((21.875*Tabla1[[#This Row],[Text media Enero (ºC)]])/(265.5+Tabla1[[#This Row],[Text media Enero (ºC)]])))),(610.5*(EXP((17.269*Tabla1[[#This Row],[Text media Enero (ºC)]])/(237.3+Tabla1[[#This Row],[Text media Enero (ºC)]])))))))),((VLOOKUP(Tabla1[[#This Row],[Provincia]],AUX_LOCALIDADES!$S$3:$AG$54,4,FALSE))/100))),2))) -> 0.84 | M11: =IF(Tabla1[[#This Row],[Text media Enero (ºC)]]<0,(ROUND((610.5*(EXP((21.875*Tabla1[[#This Row],[Text media Enero (ºC)]])/(265.5+Tabla1[[#This Row],[Text media Enero (ºC)]])))),2)),(ROUND((610.5*(EXP((17.269*Tabla1[[#This Row],[Text media Enero (ºC)]])/(237.3+Tabla1[[#This Row],[Text media Enero (ºC)]])))),2))) -> 1194.8 | N11: =ROUND((Tabla1[[#This Row],[Psat (Pa)]]*Tabla1[[#This Row],[HRext Enero (tanto por 1)]]),2) -> 1003.63
A12: Andalucía | B12: Almería | C12: Alhama de Almería | D12: =IF((OR(Tabla1[[#This Row],[Zona Climática]]="α1",Tabla1[[#This Row],[Zona Climática]]="α2",Tabla1[[#This Row],[Zona Climática]]="α3",Tabla1[[#This Row],[Zona Climática]]="α4")),"α",(IF((OR(Tabla1[[#This Row],[Zona Climática]]="A1",Tabla1[[#This Row],[Zona Climática]]="A2",Tabla1[[#This Row],[Zona Climática]]="A3",Tabla1[[#This Row],[Zona Climática]]="A4")),"A",(IF((OR(Tabla1[[#This Row],[Zona Climática]]="B1",Tabla1[[#This Row],[Zona Climática]]="B2",Tabla1[[#This Row],[Zona Climática]]="B3",Tabla1[[#This Row],[Zona Climática]]="B4")),"B",(IF((OR(Tabla1[[#This Row],[Zona Climática]]="C1",Tabla1[[#This Row],[Zona Climática]]="C2",Tabla1[[#This Row],[Zona Climática]]="C3",Tabla1[[#This Row],[Zona Climática]]="C4")),"C",(IF((OR(Tabla1[[#This Row],[Zona Climática]]="D1",Tabla1[[#This Row],[Zona Climática]]="D2",Tabla1[[#This Row],[Zona Climática]]="D3",Tabla1[[#This Row],[Zona Climática]]="D4")),"D","E"))))))))) -> C | E12: C3 | F12: 36.9578449 | G12: -2.5675584 | H12: =CONCATENATE(Tabla1[[#This Row],[Latitud N]],", ",Tabla1[[#This Row],[Longitud W]]) -> 36,9578449, -2,5675584 | I12: 520 | J12: SI | K12: =ROUND((IF(Tabla1[[#This Row],[Altitud (m)]]<(VLOOKUP(Tabla1[[#This Row],[Provincia]],AUX_LOCALIDADES!$A$2:$D$54,3,FALSE)),(VLOOKUP(Tabla1[[#This Row],[Provincia]],AUX_LOCALIDADES!$A$2:$D$54,4,FALSE)),((VLOOKUP(Tabla1[[#This Row],[Provincia]],AUX_LOCALIDADES!$A$2:$D$54,4,FALSE))-((Tabla1[[#This Row],[Altitud (m)]]-(VLOOKUP(Tabla1[[#This Row],[Provincia]],AUX_LOCALIDADES!$A$2:$D$54,3,FALSE)))/100)))),1) -> 7.3 | L12: =IF((ROUND((IF(Tabla1[[#This Row],[Altitud (m)]]>=(VLOOKUP(Tabla1[[#This Row],[Provincia]],AUX_LOCALIDADES!$A$2:$D$54,3,FALSE)),(((VLOOKUP(Tabla1[[#This Row],[Provincia]],AUX_LOCALIDADES!$A$3:$Q$54,17,FALSE))/(IF(Tabla1[[#This Row],[Text media Enero (ºC)]]<0,(610.5*(EXP((21.875*Tabla1[[#This Row],[Text media Enero (ºC)]])/(265.5+Tabla1[[#This Row],[Text media Enero (ºC)]])))),(610.5*(EXP((17.269*Tabla1[[#This Row],[Text media Enero (ºC)]])/(237.3+Tabla1[[#This Row],[Text media Enero (ºC)]])))))))),((VLOOKUP(Tabla1[[#This Row],[Provincia]],AUX_LOCALIDADES!$S$3:$AG$54,4,FALSE))/100))),2))>1,1,(ROUND((IF(Tabla1[[#This Row],[Altitud (m)]]>=(VLOOKUP(Tabla1[[#This Row],[Provincia]],AUX_LOCALIDADES!$A$2:$D$54,3,FALSE)),(((VLOOKUP(Tabla1[[#This Row],[Provincia]],AUX_LOCALIDADES!$A$3:$Q$54,17,FALSE))/(IF(Tabla1[[#This Row],[Text media Enero (ºC)]]<0,(610.5*(EXP((21.875*Tabla1[[#This Row],[Text media Enero (ºC)]])/(265.5+Tabla1[[#This Row],[Text media Enero (ºC)]])))),(610.5*(EXP((17.269*Tabla1[[#This Row],[Text media Enero (ºC)]])/(237.3+Tabla1[[#This Row],[Text media Enero (ºC)]])))))))),((VLOOKUP(Tabla1[[#This Row],[Provincia]],AUX_LOCALIDADES!$S$3:$AG$54,4,FALSE))/100))),2))) -> 0.99 | M12: =IF(Tabla1[[#This Row],[Text media Enero (ºC)]]<0,(ROUND((610.5*(EXP((21.875*Tabla1[[#This Row],[Text media Enero (ºC)]])/(265.5+Tabla1[[#This Row],[Text media Enero (ºC)]])))),2)),(ROUND((610.5*(EXP((17.269*Tabla1[[#This Row],[Text media Enero (ºC)]])/(237.3+Tabla1[[#This Row],[Text media Enero (ºC)]])))),2))) -> 1022.15 | N12: =ROUND((Tabla1[[#This Row],[Psat (Pa)]]*Tabla1[[#This Row],[HRext Enero (tanto por 1)]]),2) -> 1011.93
A13: Andalucía | B13: Almería | C13: Alicún | D13: =IF((OR(Tabla1[[#This Row],[Zona Climática]]="α1",Tabla1[[#This Row],[Zona Climática]]="α2",Tabla1[[#This Row],[Zona Climática]]="α3",Tabla1[[#This Row],[Zona Climática]]="α4")),"α",(IF((OR(Tabla1[[#This Row],[Zona Climática]]="A1",Tabla1[[#This Row],[Zona Climática]]="A2",Tabla1[[#This Row],[Zona Climática]]="A3",Tabla1[[#This Row],[Zona Climática]]="A4")),"A",(IF((OR(Tabla1[[#This Row],[Zona Climática]]="B1",Tabla1[[#This Row],[Zona Climática]]="B2",Tabla1[[#This Row],[Zona Climática]]="B3",Tabla1[[#This Row],[Zona Climática]]="B4")),"B",(IF((OR(Tabla1[[#This Row],[Zona Climática]]="C1",Tabla1[[#This Row],[Zona Climática]]="C2",Tabla1[[#This Row],[Zona Climática]]="C3",Tabla1[[#This Row],[Zona Climática]]="C4")),"C",(IF((OR(Tabla1[[#This Row],[Zona Climática]]="D1",Tabla1[[#This Row],[Zona Climática]]="D2",Tabla1[[#This Row],[Zona Climática]]="D3",Tabla1[[#This Row],[Zona Climática]]="D4")),"D","E"))))))))) -> C | E13: C3 | F13: 36.9671552 | G13: -2.6006447 | H13: =CONCATENATE(Tabla1[[#This Row],[Latitud N]],", ",Tabla1[[#This Row],[Longitud W]]) -> 36,9671552, -2,6006447 | I13: 416 | J13: SI | K13: =ROUND((IF(Tabla1[[#This Row],[Altitud (m)]]<(VLOOKUP(Tabla1[[#This Row],[Provincia]],AUX_LOCALIDADES!$A$2:$D$54,3,FALSE)),(VLOOKUP(Tabla1[[#This Row],[Provincia]],AUX_LOCALIDADES!$A$2:$D$54,4,FALSE)),((VLOOKUP(Tabla1[[#This Row],[Provincia]],AUX_LOCALIDADES!$A$2:$D$54,4,FALSE))-((Tabla1[[#This Row],[Altitud (m)]]-(VLOOKUP(Tabla1[[#This Row],[Provincia]],AUX_LOCALIDADES!$A$2:$D$54,3,FALSE)))/100)))),1) -> 8.3 | L13: =IF((ROUND((IF(Tabla1[[#This Row],[Altitud (m)]]>=(VLOOKUP(Tabla1[[#This Row],[Provincia]],AUX_LOCALIDADES!$A$2:$D$54,3,FALSE)),(((VLOOKUP(Tabla1[[#This Row],[Provincia]],AUX_LOCALIDADES!$A$3:$Q$54,17,FALSE))/(IF(Tabla1[[#This Row],[Text media Enero (ºC)]]<0,(610.5*(EXP((21.875*Tabla1[[#This Row],[Text media Enero (ºC)]])/(265.5+Tabla1[[#This Row],[Text media Enero (ºC)]])))),(610.5*(EXP((17.269*Tabla1[[#This Row],[Text media Enero (ºC)]])/(237.3+Tabla1[[#This Row],[Text media Enero (ºC)]])))))))),((VLOOKUP(Tabla1[[#This Row],[Provincia]],AUX_LOCALIDADES!$S$3:$AG$54,4,FALSE))/100))),2))>1,1,(ROUND((IF(Tabla1[[#This Row],[Altitud (m)]]>=(VLOOKUP(Tabla1[[#This Row],[Provincia]],AUX_LOCALIDADES!$A$2:$D$54,3,FALSE)),(((VLOOKUP(Tabla1[[#This Row],[Provincia]],AUX_LOCALIDADES!$A$3:$Q$54,17,FALSE))/(IF(Tabla1[[#This Row],[Text media Enero (ºC)]]<0,(610.5*(EXP((21.875*Tabla1[[#This Row],[Text media Enero (ºC)]])/(265.5+Tabla1[[#This Row],[Text media Enero (ºC)]])))),(610.5*(EXP((17.269*Tabla1[[#This Row],[Text media Enero (ºC)]])/(237.3+Tabla1[[#This Row],[Text media Enero (ºC)]])))))))),((VLOOKUP(Tabla1[[#This Row],[Provincia]],AUX_LOCALIDADES!$S$3:$AG$54,4,FALSE))/100))),2))) -> 0.92 | M13: =IF(Tabla1[[#This Row],[Text media Enero (ºC)]]<0,(ROUND((610.5*(EXP((21.875*Tabla1[[#This Row],[Text media Enero (ºC)]])/(265.5+Tabla1[[#This Row],[Text media Enero (ºC)]])))),2)),(ROUND((610.5*(EXP((17.269*Tabla1[[#This Row],[Text media Enero (ºC)]])/(237.3+Tabla1[[#This Row],[Text media Enero (ºC)]])))),2))) -> 1094.31 | N13: =ROUND((Tabla1[[#This Row],[Psat (Pa)]]*Tabla1[[#This Row],[HRext Enero (tanto por 1)]]),2) -> 1006.77
A14: Andalucía | B14: Almería | C14: Almería | D14: =IF((OR(Tabla1[[#This Row],[Zona Climática]]="α1",Tabla1[[#This Row],[Zona Climática]]="α2",Tabla1[[#This Row],[Zona Climática]]="α3",Tabla1[[#This Row],[Zona Climática]]="α4")),"α",(IF((OR(Tabla1[[#This Row],[Zona Climática]]="A1",Tabla1[[#This Row],[Zona Climática]]="A2",Tabla1[[#This Row],[Zona Climática]]="A3",Tabla1[[#This Row],[Zona Climática]]="A4")),"A",(IF((OR(Tabla1[[#This Row],[Zona Climática]]="B1",Tabla1[[#This Row],[Zona Climática]]="B2",Tabla1[[#This Row],[Zona Climática]]="B3",Tabla1[[#This Row],[Zona Climática]]="B4")),"B",(IF((OR(Tabla1[[#This Row],[Zona Climática]]="C1",Tabla1[[#This Row],[Zona Climática]]="C2",Tabla1[[#This Row],[Zona Climática]]="C3",Tabla1[[#This Row],[Zona Climática]]="C4")),"C",(IF((OR(Tabla1[[#This Row],[Zona Climática]]="D1",Tabla1[[#This Row],[Zona Climática]]="D2",Tabla1[[#This Row],[Zona Climática]]="D3",Tabla1[[#This Row],[Zona Climática]]="D4")),"D","E"))))))))) -> A | E14: A4 | F14: 36.8415791 | G14: -2.4616701 | H14: =CONCATENATE(Tabla1[[#This Row],[Latitud N]],", ",Tabla1[[#This Row],[Longitud W]]) -> 36,8415791, -2,4616701 | I14: 10 | J14: SI | K14: =ROUND((IF(Tabla1[[#This Row],[Altitud (m)]]<(VLOOKUP(Tabla1[[#This Row],[Provincia]],AUX_LOCALIDADES!$A$2:$D$54,3,FALSE)),(VLOOKUP(Tabla1[[#This Row],[Provincia]],AUX_LOCALIDADES!$A$2:$D$54,4,FALSE)),((VLOOKUP(Tabla1[[#This Row],[Provincia]],AUX_LOCALIDADES!$A$2:$D$54,4,FALSE))-((Tabla1[[#This Row],[Altitud (m)]]-(VLOOKUP(Tabla1[[#This Row],[Provincia]],AUX_LOCALIDADES!$A$2:$D$54,3,FALSE)))/100)))),1) -> 12.4 | L14: =IF((ROUND((IF(Tabla1[[#This Row],[Altitud (m)]]>=(VLOOKUP(Tabla1[[#This Row],[Provincia]],AUX_LOCALIDADES!$A$2:$D$54,3,FALSE)),(((VLOOKUP(Tabla1[[#This Row],[Provincia]],AUX_LOCALIDADES!$A$3:$Q$54,17,FALSE))/(IF(Tabla1[[#This Row],[Text media Enero (ºC)]]<0,(610.5*(EXP((21.875*Tabla1[[#This Row],[Text media Enero (ºC)]])/(265.5+Tabla1[[#This Row],[Text media Enero (ºC)]])))),(610.5*(EXP((17.269*Tabla1[[#This Row],[Text media Enero (ºC)]])/(237.3+Tabla1[[#This Row],[Text media Enero (ºC)]])))))))),((VLOOKUP(Tabla1[[#This Row],[Provincia]],AUX_LOCALIDADES!$S$3:$AG$54,4,FALSE))/100))),2))>1,1,(ROUND((IF(Tabla1[[#This Row],[Altitud (m)]]>=(VLOOKUP(Tabla1[[#This Row],[Provincia]],AUX_LOCALIDADES!$A$2:$D$54,3,FALSE)),(((VLOOKUP(Tabla1[[#This Row],[Provincia]],AUX_LOCALIDADES!$A$3:$Q$54,17,FALSE))/(IF(Tabla1[[#This Row],[Text media Enero (ºC)]]<0,(610.5*(EXP((21.875*Tabla1[[#This Row],[Text media Enero (ºC)]])/(265.5+Tabla1[[#This Row],[Text media Enero (ºC)]])))),(610.5*(EXP((17.269*Tabla1[[#This Row],[Text media Enero (ºC)]])/(237.3+Tabla1[[#This Row],[Text media Enero (ºC)]])))))))),((VLOOKUP(Tabla1[[#This Row],[Provincia]],AUX_LOCALIDADES!$S$3:$AG$54,4,FALSE))/100))),2))) -> 0.7 | M14: =IF(Tabla1[[#This Row],[Text media Enero (ºC)]]<0,(ROUND((610.5*(EXP((21.875*Tabla1[[#This Row],[Text media Enero (ºC)]])/(265.5+Tabla1[[#This Row],[Text media Enero (ºC)]])))),2)),(ROUND((610.5*(EXP((17.269*Tabla1[[#This Row],[Text media Enero (ºC)]])/(237.3+Tabla1[[#This Row],[Text media Enero (ºC)]])))),2))) -> 1439.21 | N14: =ROUND((Tabla1[[#This Row],[Psat (Pa)]]*Tabla1[[#This Row],[HRext Enero (tanto por 1)]]),2) -> 1007.45
A15: Andalucía | B15: Almería | C15: Almócita | D15: =IF((OR(Tabla1[[#This Row],[Zona Climática]]="α1",Tabla1[[#This Row],[Zona Climática]]="α2",Tabla1[[#This Row],[Zona Climática]]="α3",Tabla1[[#This Row],[Zona Climática]]="α4")),"α",(IF((OR(Tabla1[[#This Row],[Zona Climática]]="A1",Tabla1[[#This Row],[Zona Climática]]="A2",Tabla1[[#This Row],[Zona Climática]]="A3",Tabla1[[#This Row],[Zona Climática]]="A4")),"A",(IF((OR(Tabla1[[#This Row],[Zona Climática]]="B1",Tabla1[[#This Row],[Zona Climática]]="B2",Tabla1[[#This Row],[Zona Climática]]="B3",Tabla1[[#This Row],[Zona Climática]]="B4")),"B",(IF((OR(Tabla1[[#This Row],[Zona Climática]]="C1",Tabla1[[#This Row],[Zona Climática]]="C2",Tabla1[[#This Row],[Zona Climática]]="C3",Tabla1[[#This Row],[Zona Climática]]="C4")),"C",(IF((OR(Tabla1[[#This Row],[Zona Climática]]="D1",Tabla1[[#This Row],[Zona Climática]]="D2",Tabla1[[#This Row],[Zona Climática]]="D3",Tabla1[[#This Row],[Zona Climática]]="D4")),"D","E"))))))))) -> D | E15: D3 | F15: 37.0039662 | G15: -2.7888182 | H15: =CONCATENATE(Tabla1[[#This Row],[Latitud N]],", ",Tabla1[[#This Row],[Longitud W]]) -> 37,0039662, -2,7888182 | I15: 836 | J15: SI | K15: =ROUND((IF(Tabla1[[#This Row],[Altitud (m)]]<(VLOOKUP(Tabla1[[#This Row],[Provincia]],AUX_LOCALIDADES!$A$2:$D$54,3,FALSE)),(VLOOKUP(Tabla1[[#This Row],[Provincia]],AUX_LOCALIDADES!$A$2:$D$54,4,FALSE)),((VLOOKUP(Tabla1[[#This Row],[Provincia]],AUX_LOCALIDADES!$A$2:$D$54,4,FALSE))-((Tabla1[[#This Row],[Altitud (m)]]-(VLOOKUP(Tabla1[[#This Row],[Provincia]],AUX_LOCALIDADES!$A$2:$D$54,3,FALSE)))/100)))),1) -> 4.1 | L15: =IF((ROUND((IF(Tabla1[[#This Row],[Altitud (m)]]>=(VLOOKUP(Tabla1[[#This Row],[Provincia]],AUX_LOCALIDADES!$A$2:$D$54,3,FALSE)),(((VLOOKUP(Tabla1[[#This Row],[Provincia]],AUX_LOCALIDADES!$A$3:$Q$54,17,FALSE))/(IF(Tabla1[[#This Row],[Text media Enero (ºC)]]<0,(610.5*(EXP((21.875*Tabla1[[#This Row],[Text media Enero (ºC)]])/(265.5+Tabla1[[#This Row],[Text media Enero (ºC)]])))),(610.5*(EXP((17.269*Tabla1[[#This Row],[Text media Enero (ºC)]])/(237.3+Tabla1[[#This Row],[Text media Enero (ºC)]])))))))),((VLOOKUP(Tabla1[[#This Row],[Provincia]],AUX_LOCALIDADES!$S$3:$AG$54,4,FALSE))/100))),2))>1,1,(ROUND((IF(Tabla1[[#This Row],[Altitud (m)]]>=(VLOOKUP(Tabla1[[#This Row],[Provincia]],AUX_LOCALIDADES!$A$2:$D$54,3,FALSE)),(((VLOOKUP(Tabla1[[#This Row],[Provincia]],AUX_LOCALIDADES!$A$3:$Q$54,17,FALSE))/(IF(Tabla1[[#This Row],[Text media Enero (ºC)]]<0,(610.5*(EXP((21.875*Tabla1[[#This Row],[Text media Enero (ºC)]])/(265.5+Tabla1[[#This Row],[Text media Enero (ºC)]])))),(610.5*(EXP((17.269*Tabla1[[#This Row],[Text media Enero (ºC)]])/(237.3+Tabla1[[#This Row],[Text media Enero (ºC)]])))))))),((VLOOKUP(Tabla1[[#This Row],[Provincia]],AUX_LOCALIDADES!$S$3:$AG$54,4,FALSE))/100))),2))) -> 1 | M15: =IF(Tabla1[[#This Row],[Text media Enero (ºC)]]<0,(ROUND((610.5*(EXP((21.875*Tabla1[[#This Row],[Text media Enero (ºC)]])/(265.5+Tabla1[[#This Row],[Text media Enero (ºC)]])))),2)),(ROUND((610.5*(EXP((17.269*Tabla1[[#This Row],[Text media Enero (ºC)]])/(237.3+Tabla1[[#This Row],[Text media Enero (ºC)]])))),2))) -> 818.59 | N15: =ROUND((Tabla1[[#This Row],[Psat (Pa)]]*Tabla1[[#This Row],[HRext Enero (tanto por 1)]]),2) -> 818.59
A16: Andalucía | B16: Almería | C16: Alsodux | D16: =IF((OR(Tabla1[[#This Row],[Zona Climática]]="α1",Tabla1[[#This Row],[Zona Climática]]="α2",Tabla1[[#This Row],[Zona Climática]]="α3",Tabla1[[#This Row],[Zona Climática]]="α4")),"α",(IF((OR(Tabla1[[#This Row],[Zona Climática]]="A1",Tabla1[[#This Row],[Zona Climática]]="A2",Tabla1[[#This Row],[Zona Climática]]="A3",Tabla1[[#This Row],[Zona Climática]]="A4")),"A",(IF((OR(Tabla1[[#This Row],[Zona Climática]]="B1",Tabla1[[#This Row],[Zona Climática]]="B2",Tabla1[[#This Row],[Zona Climática]]="B3",Tabla1[[#This Row],[Zona Climática]]="B4")),"B",(IF((OR(Tabla1[[#This Row],[Zona Climática]]="C1",Tabla1[[#This Row],[Zona Climática]]="C2",Tabla1[[#This Row],[Zona Climática]]="C3",Tabla1[[#This Row],[Zona Climática]]="C4")),"C",(IF((OR(Tabla1[[#This Row],[Zona Climática]]="D1",Tabla1[[#This Row],[Zona Climática]]="D2",Tabla1[[#This Row],[Zona Climática]]="D3",Tabla1[[#This Row],[Zona Climática]]="D4")),"D","E"))))))))) -> B | E16: B3 | F16: 37.0037272 | G16: -2.5931482 | H16: =CONCATENATE(Tabla1[[#This Row],[Latitud N]],", ",Tabla1[[#This Row],[Longitud W]]) -> 37,0037272, -2,5931482 | I16: 310 | J16: SI | K16: =ROUND((IF(Tabla1[[#This Row],[Altitud (m)]]<(VLOOKUP(Tabla1[[#This Row],[Provincia]],AUX_LOCALIDADES!$A$2:$D$54,3,FALSE)),(VLOOKUP(Tabla1[[#This Row],[Provincia]],AUX_LOCALIDADES!$A$2:$D$54,4,FALSE)),((VLOOKUP(Tabla1[[#This Row],[Provincia]],AUX_LOCALIDADES!$A$2:$D$54,4,FALSE))-((Tabla1[[#This Row],[Altitud (m)]]-(VLOOKUP(Tabla1[[#This Row],[Provincia]],AUX_LOCALIDADES!$A$2:$D$54,3,FALSE)))/100)))),1) -> 9.4 | L16: =IF((ROUND((IF(Tabla1[[#This Row],[Altitud (m)]]>=(VLOOKUP(Tabla1[[#This Row],[Provincia]],AUX_LOCALIDADES!$A$2:$D$54,3,FALSE)),(((VLOOKUP(Tabla1[[#This Row],[Provincia]],AUX_LOCALIDADES!$A$3:$Q$54,17,FALSE))/(IF(Tabla1[[#This Row],[Text media Enero (ºC)]]<0,(610.5*(EXP((21.875*Tabla1[[#This Row],[Text media Enero (ºC)]])/(265.5+Tabla1[[#This Row],[Text media Enero (ºC)]])))),(610.5*(EXP((17.269*Tabla1[[#This Row],[Text media Enero (ºC)]])/(237.3+Tabla1[[#This Row],[Text media Enero (ºC)]])))))))),((VLOOKUP(Tabla1[[#This Row],[Provincia]],AUX_LOCALIDADES!$S$3:$AG$54,4,FALSE))/100))),2))>1,1,(ROUND((IF(Tabla1[[#This Row],[Altitud (m)]]>=(VLOOKUP(Tabla1[[#This Row],[Provincia]],AUX_LOCALIDADES!$A$2:$D$54,3,FALSE)),(((VLOOKUP(Tabla1[[#This Row],[Provincia]],AUX_LOCALIDADES!$A$3:$Q$54,17,FALSE))/(IF(Tabla1[[#This Row],[Text media Enero (ºC)]]<0,(610.5*(EXP((21.875*Tabla1[[#This Row],[Text media Enero (ºC)]])/(265.5+Tabla1[[#This Row],[Text media Enero (ºC)]])))),(610.5*(EXP((17.269*Tabla1[[#This Row],[Text media Enero (ºC)]])/(237.3+Tabla1[[#This Row],[Text media Enero (ºC)]])))))))),((VLOOKUP(Tabla1[[#This Row],[Provincia]],AUX_LOCALIDADES!$S$3:$AG$54,4,FALSE))/100))),2))) -> 0.85 | M16: =IF(Tabla1[[#This Row],[Text media Enero (ºC)]]<0,(ROUND((610.5*(EXP((21.875*Tabla1[[#This Row],[Text media Enero (ºC)]])/(265.5+Tabla1[[#This Row],[Text media Enero (ºC)]])))),2)),(ROUND((610.5*(EXP((17.269*Tabla1[[#This Row],[Text media Enero (ºC)]])/(237.3+Tabla1[[#This Row],[Text media Enero (ºC)]])))),2))) -> 1178.83 | N16: =ROUND((Tabla1[[#This Row],[Psat (Pa)]]*Tabla1[[#This Row],[HRext Enero (tanto por 1)]]),2) -> 1002.01
A17: Andalucía | B17: Almería | C17: Antas | D17: =IF((OR(Tabla1[[#This Row],[Zona Climática]]="α1",Tabla1[[#This Row],[Zona Climática]]="α2",Tabla1[[#This Row],[Zona Climática]]="α3",Tabla1[[#This Row],[Zona Climática]]="α4")),"α",(IF((OR(Tabla1[[#This Row],[Zona Climática]]="A1",Tabla1[[#This Row],[Zona Climática]]="A2",Tabla1[[#This Row],[Zona Climática]]="A3",Tabla1[[#This Row],[Zona Climática]]="A4")),"A",(IF((OR(Tabla1[[#This Row],[Zona Climática]]="B1",Tabla1[[#This Row],[Zona Climática]]="B2",Tabla1[[#This Row],[Zona Climática]]="B3",Tabla1[[#This Row],[Zona Climática]]="B4")),"B",(IF((OR(Tabla1[[#This Row],[Zona Climática]]="C1",Tabla1[[#This Row],[Zona Climática]]="C2",Tabla1[[#This Row],[Zona Climática]]="C3",Tabla1[[#This Row],[Zona Climática]]="C4")),"C",(IF((OR(Tabla1[[#This Row],[Zona Climática]]="D1",Tabla1[[#This Row],[Zona Climática]]="D2",Tabla1[[#This Row],[Zona Climática]]="D3",Tabla1[[#This Row],[Zona Climática]]="D4")),"D","E"))))))))) -> B | E17: B4 | F17: 37.2466255 | G17: -1.9159265 | H17: =CONCATENATE(Tabla1[[#This Row],[Latitud N]],", ",Tabla1[[#This Row],[Longitud W]]) -> 37,2466255, -1,9159265 | I17: 108 | J17: SI | K17: =ROUND((IF(Tabla1[[#This Row],[Altitud (m)]]<(VLOOKUP(Tabla1[[#This Row],[Provincia]],AUX_LOCALIDADES!$A$2:$D$54,3,FALSE)),(VLOOKUP(Tabla1[[#This Row],[Provincia]],AUX_LOCALIDADES!$A$2:$D$54,4,FALSE)),((VLOOKUP(Tabla1[[#This Row],[Provincia]],AUX_LOCALIDADES!$A$2:$D$54,4,FALSE))-((Tabla1[[#This Row],[Altitud (m)]]-(VLOOKUP(Tabla1[[#This Row],[Provincia]],AUX_LOCALIDADES!$A$2:$D$54,3,FALSE)))/100)))),1) -> 11.4 | L17: =IF((ROUND((IF(Tabla1[[#This Row],[Altitud (m)]]>=(VLOOKUP(Tabla1[[#This Row],[Provincia]],AUX_LOCALIDADES!$A$2:$D$54,3,FALSE)),(((VLOOKUP(Tabla1[[#This Row],[Provincia]],AUX_LOCALIDADES!$A$3:$Q$54,17,FALSE))/(IF(Tabla1[[#This Row],[Text media Enero (ºC)]]<0,(610.5*(EXP((21.875*Tabla1[[#This Row],[Text media Enero (ºC)]])/(265.5+Tabla1[[#This Row],[Text media Enero (ºC)]])))),(610.5*(EXP((17.269*Tabla1[[#This Row],[Text media Enero (ºC)]])/(237.3+Tabla1[[#This Row],[Text media Enero (ºC)]])))))))),((VLOOKUP(Tabla1[[#This Row],[Provincia]],AUX_LOCALIDADES!$S$3:$AG$54,4,FALSE))/100))),2))>1,1,(ROUND((IF(Tabla1[[#This Row],[Altitud (m)]]>=(VLOOKUP(Tabla1[[#This Row],[Provincia]],AUX_LOCALIDADES!$A$2:$D$54,3,FALSE)),(((VLOOKUP(Tabla1[[#This Row],[Provincia]],AUX_LOCALIDADES!$A$3:$Q$54,17,FALSE))/(IF(Tabla1[[#This Row],[Text media Enero (ºC)]]<0,(610.5*(EXP((21.875*Tabla1[[#This Row],[Text media Enero (ºC)]])/(265.5+Tabla1[[#This Row],[Text media Enero (ºC)]])))),(610.5*(EXP((17.269*Tabla1[[#This Row],[Text media Enero (ºC)]])/(237.3+Tabla1[[#This Row],[Text media Enero (ºC)]])))))))),((VLOOKUP(Tabla1[[#This Row],[Provincia]],AUX_LOCALIDADES!$S$3:$AG$54,4,FALSE))/100))),2))) -> 0.75 | M17: =IF(Tabla1[[#This Row],[Text media Enero (ºC)]]<0,(ROUND((610.5*(EXP((21.875*Tabla1[[#This Row],[Text media Enero (ºC)]])/(265.5+Tabla1[[#This Row],[Text media Enero (ºC)]])))),2)),(ROUND((610.5*(EXP((17.269*Tabla1[[#This Row],[Text media Enero (ºC)]])/(237.3+Tabla1[[#This Row],[Text media Enero (ºC)]])))),2))) -> 1347.3 | N17: =ROUND((Tabla1[[#This Row],[Psat (Pa)]]*Tabla1[[#This Row],[HRext Enero (tanto por 1)]]),2) -> 1010.48
A18: Andalucía | B18: Almería | C18: Arboleas | D18: =IF((OR(Tabla1[[#This Row],[Zona Climática]]="α1",Tabla1[[#This Row],[Zona Climática]]="α2",Tabla1[[#This Row],[Zona Climática]]="α3",Tabla1[[#This Row],[Zona Climática]]="α4")),"α",(IF((OR(Tabla1[[#This Row],[Zona Climática]]="A1",Tabla1[[#This Row],[Zona Climática]]="A2",Tabla1[[#This Row],[Zona Climática]]="A3",Tabla1[[#This Row],[Zona Climática]]="A4")),"A",(IF((OR(Tabla1[[#This Row],[Zona Climática]]="B1",Tabla1[[#This Row],[Zona Climática]]="B2",Tabla1[[#This Row],[Zona Climática]]="B3",Tabla1[[#This Row],[Zona Climática]]="B4")),"B",(IF((OR(Tabla1[[#This Row],[Zona Climática]]="C1",Tabla1[[#This Row],[Zona Climática]]="C2",Tabla1[[#This Row],[Zona Climática]]="C3",Tabla1[[#This Row],[Zona Climática]]="C4")),"C",(IF((OR(Tabla1[[#This Row],[Zona Climática]]="D1",Tabla1[[#This Row],[Zona Climática]]="D2",Tabla1[[#This Row],[Zona Climática]]="D3",Tabla1[[#This Row],[Zona Climática]]="D4")),"D","E"))))))))) -> B | E18: B3 | F18: 37.352966 | G18: -2.0730294 | H18: =CONCATENATE(Tabla1[[#This Row],[Latitud N]],", ",Tabla1[[#This Row],[Longitud W]]) -> 37,352966, -2,0730294 | I18: 272 | J18: SI | K18: =ROUND((IF(Tabla1[[#This Row],[Altitud (m)]]<(VLOOKUP(Tabla1[[#This Row],[Provincia]],AUX_LOCALIDADES!$A$2:$D$54,3,FALSE)),(VLOOKUP(Tabla1[[#This Row],[Provincia]],AUX_LOCALIDADES!$A$2:$D$54,4,FALSE)),((VLOOKUP(Tabla1[[#This Row],[Provincia]],AUX_LOCALIDADES!$A$2:$D$54,4,FALSE))-((Tabla1[[#This Row],[Altitud (m)]]-(VLOOKUP(Tabla1[[#This Row],[Provincia]],AUX_LOCALIDADES!$A$2:$D$54,3,FALSE)))/100)))),1) -> 9.8 | L18: =IF((ROUND((IF(Tabla1[[#This Row],[Altitud (m)]]>=(VLOOKUP(Tabla1[[#This Row],[Provincia]],AUX_LOCALIDADES!$A$2:$D$54,3,FALSE)),(((VLOOKUP(Tabla1[[#This Row],[Provincia]],AUX_LOCALIDADES!$A$3:$Q$54,17,FALSE))/(IF(Tabla1[[#This Row],[Text media Enero (ºC)]]<0,(610.5*(EXP((21.875*Tabla1[[#This Row],[Text media Enero (ºC)]])/(265.5+Tabla1[[#This Row],[Text media Enero (ºC)]])))),(610.5*(EXP((17.269*Tabla1[[#This Row],[Text media Enero (ºC)]])/(237.3+Tabla1[[#This Row],[Text media Enero (ºC)]])))))))),((VLOOKUP(Tabla1[[#This Row],[Provincia]],AUX_LOCALIDADES!$S$3:$AG$54,4,FALSE))/100))),2))>1,1,(ROUND((IF(Tabla1[[#This Row],[Altitud (m)]]>=(VLOOKUP(Tabla1[[#This Row],[Provincia]],AUX_LOCALIDADES!$A$2:$D$54,3,FALSE)),(((VLOOKUP(Tabla1[[#This Row],[Provincia]],AUX_LOCALIDADES!$A$3:$Q$54,17,FALSE))/(IF(Tabla1[[#This Row],[Text media Enero (ºC)]]<0,(610.5*(EXP((21.875*Tabla1[[#This Row],[Text media Enero (ºC)]])/(265.5+Tabla1[[#This Row],[Text media Enero (ºC)]])))),(610.5*(EXP((17.269*Tabla1[[#This Row],[Text media Enero (ºC)]])/(237.3+Tabla1[[#This Row],[Text media Enero (ºC)]])))))))),((VLOOKUP(Tabla1[[#This Row],[Provincia]],AUX_LOCALIDADES!$S$3:$AG$54,4,FALSE))/100))),2))) -> 0.83 | M18: =IF(Tabla1[[#This Row],[Text media Enero (ºC)]]<0,(ROUND((610.5*(EXP((21.875*Tabla1[[#This Row],[Text media Enero (ºC)]])/(265.5+Tabla1[[#This Row],[Text media Enero (ºC)]])))),2)),(ROUND((610.5*(EXP((17.269*Tabla1[[#This Row],[Text media Enero (ºC)]])/(237.3+Tabla1[[#This Row],[Text media Enero (ºC)]])))),2))) -> 1210.96 | N18: =ROUND((Tabla1[[#This Row],[Psat (Pa)]]*Tabla1[[#This Row],[HRext Enero (tanto por 1)]]),2) -> 1005.1
A19: Andalucía | B19: Almería | C19: Armuña de Almanzora | D19: =IF((OR(Tabla1[[#This Row],[Zona Climática]]="α1",Tabla1[[#This Row],[Zona Climática]]="α2",Tabla1[[#This Row],[Zona Climática]]="α3",Tabla1[[#This Row],[Zona Climática]]="α4")),"α",(IF((OR(Tabla1[[#This Row],[Zona Climática]]="A1",Tabla1[[#This Row],[Zona Climática]]="A2",Tabla1[[#This Row],[Zona Climática]]="A3",Tabla1[[#This Row],[Zona Climática]]="A4")),"A",(IF((OR(Tabla1[[#This Row],[Zona Climática]]="B1",Tabla1[[#This Row],[Zona Climática]]="B2",Tabla1[[#This Row],[Zona Climática]]="B3",Tabla1[[#This Row],[Zona Climática]]="B4")),"B",(IF((OR(Tabla1[[#This Row],[Zona Climática]]="C1",Tabla1[[#This Row],[Zona Climática]]="C2",Tabla1[[#This Row],[Zona Climática]]="C3",Tabla1[[#This Row],[Zona Climática]]="C4")),"C",(IF((OR(Tabla1[[#This Row],[Zona Climática]]="D1",Tabla1[[#This Row],[Zona Climática]]="D2",Tabla1[[#This Row],[Zona Climática]]="D3",Tabla1[[#This Row],[Zona Climática]]="D4")),"D","E"))))))))) -> C | E19: C3 | F19: 37.3506165 | G19: -2.4092823 | H19: =CONCATENATE(Tabla1[[#This Row],[Latitud N]],", ",Tabla1[[#This Row],[Longitud W]]) -> 37,3506165, -2,4092823 | I19: 629 | J19: SI | K19: =ROUND((IF(Tabla1[[#This Row],[Altitud (m)]]<(VLOOKUP(Tabla1[[#This Row],[Provincia]],AUX_LOCALIDADES!$A$2:$D$54,3,FALSE)),(VLOOKUP(Tabla1[[#This Row],[Provincia]],AUX_LOCALIDADES!$A$2:$D$54,4,FALSE)),((VLOOKUP(Tabla1[[#This Row],[Provincia]],AUX_LOCALIDADES!$A$2:$D$54,4,FALSE))-((Tabla1[[#This Row],[Altitud (m)]]-(VLOOKUP(Tabla1[[#This Row],[Provincia]],AUX_LOCALIDADES!$A$2:$D$54,3,FALSE)))/100)))),1) -> 6.2 | L19: =IF((ROUND((IF(Tabla1[[#This Row],[Altitud (m)]]>=(VLOOKUP(Tabla1[[#This Row],[Provincia]],AUX_LOCALIDADES!$A$2:$D$54,3,FALSE)),(((VLOOKUP(Tabla1[[#This Row],[Provincia]],AUX_LOCALIDADES!$A$3:$Q$54,17,FALSE))/(IF(Tabla1[[#This Row],[Text media Enero (ºC)]]<0,(610.5*(EXP((21.875*Tabla1[[#This Row],[Text media Enero (ºC)]])/(265.5+Tabla1[[#This Row],[Text media Enero (ºC)]])))),(610.5*(EXP((17.269*Tabla1[[#This Row],[Text media Enero (ºC)]])/(237.3+Tabla1[[#This Row],[Text media Enero (ºC)]])))))))),((VLOOKUP(Tabla1[[#This Row],[Provincia]],AUX_LOCALIDADES!$S$3:$AG$54,4,FALSE))/100))),2))>1,1,(ROUND((IF(Tabla1[[#This Row],[Altitud (m)]]>=(VLOOKUP(Tabla1[[#This Row],[Provincia]],AUX_LOCALIDADES!$A$2:$D$54,3,FALSE)),(((VLOOKUP(Tabla1[[#This Row],[Provincia]],AUX_LOCALIDADES!$A$3:$Q$54,17,FALSE))/(IF(Tabla1[[#This Row],[Text media Enero (ºC)]]<0,(610.5*(EXP((21.875*Tabla1[[#This Row],[Text media Enero (ºC)]])/(265.5+Tabla1[[#This Row],[Text media Enero (ºC)]])))),(610.5*(EXP((17.269*Tabla1[[#This Row],[Text media Enero (ºC)]])/(237.3+Tabla1[[#This Row],[Text media Enero (ºC)]])))))))),((VLOOKUP(Tabla1[[#This Row],[Provincia]],AUX_LOCALIDADES!$S$3:$AG$54,4,FALSE))/100))),2))) -> 1 | M19: =IF(Tabla1[[#This Row],[Text media Enero (ºC)]]<0,(ROUND((610.5*(EXP((21.875*Tabla1[[#This Row],[Text media Enero (ºC)]])/(265.5+Tabla1[[#This Row],[Text media Enero (ºC)]])))),2)),(ROUND((610.5*(EXP((17.269*Tabla1[[#This Row],[Text media Enero (ºC)]])/(237.3+Tabla1[[#This Row],[Text media Enero (ºC)]])))),2))) -> 947.65 | N19: =ROUND((Tabla1[[#This Row],[Psat (Pa)]]*Tabla1[[#This Row],[HRext Enero (tanto por 1)]]),2) -> 947.65
A20: Andalucía | B20: Almería | C20: Bacares | D20: =IF((OR(Tabla1[[#This Row],[Zona Climática]]="α1",Tabla1[[#This Row],[Zona Climática]]="α2",Tabla1[[#This Row],[Zona Climática]]="α3",Tabla1[[#This Row],[Zona Climática]]="α4")),"α",(IF((OR(Tabla1[[#This Row],[Zona Climática]]="A1",Tabla1[[#This Row],[Zona Climática]]="A2",Tabla1[[#This Row],[Zona Climática]]="A3",Tabla1[[#This Row],[Zona Climática]]="A4")),"A",(IF((OR(Tabla1[[#This Row],[Zona Climática]]="B1",Tabla1[[#This Row],[Zona Climática]]="B2",Tabla1[[#This Row],[Zona Climática]]="B3",Tabla1[[#This Row],[Zona Climática]]="B4")),"B",(IF((OR(Tabla1[[#This Row],[Zona Climática]]="C1",Tabla1[[#This Row],[Zona Climática]]="C2",Tabla1[[#This Row],[Zona Climática]]="C3",Tabla1[[#This Row],[Zona Climática]]="C4")),"C",(IF((OR(Tabla1[[#This Row],[Zona Climática]]="D1",Tabla1[[#This Row],[Zona Climática]]="D2",Tabla1[[#This Row],[Zona Climática]]="D3",Tabla1[[#This Row],[Zona Climática]]="D4")),"D","E"))))))))) -> D | E20: D3 | F20: 37.2617673 | G20: -2.4519277 | H20: =CONCATENATE(Tabla1[[#This Row],[Latitud N]],", ",Tabla1[[#This Row],[Longitud W]]) -> 37,2617673, -2,4519277 | I20: 1213 | J20: SI | K20: =ROUND((IF(Tabla1[[#This Row],[Altitud (m)]]<(VLOOKUP(Tabla1[[#This Row],[Provincia]],AUX_LOCALIDADES!$A$2:$D$54,3,FALSE)),(VLOOKUP(Tabla1[[#This Row],[Provincia]],AUX_LOCALIDADES!$A$2:$D$54,4,FALSE)),((VLOOKUP(Tabla1[[#This Row],[Provincia]],AUX_LOCALIDADES!$A$2:$D$54,4,FALSE))-((Tabla1[[#This Row],[Altitud (m)]]-(VLOOKUP(Tabla1[[#This Row],[Provincia]],AUX_LOCALIDADES!$A$2:$D$54,3,FALSE)))/100)))),1) -> 0.4 | L20: =IF((ROUND((IF(Tabla1[[#This Row],[Altitud (m)]]>=(VLOOKUP(Tabla1[[#This Row],[Provincia]],AUX_LOCALIDADES!$A$2:$D$54,3,FALSE)),(((VLOOKUP(Tabla1[[#This Row],[Provincia]],AUX_LOCALIDADES!$A$3:$Q$54,17,FALSE))/(IF(Tabla1[[#This Row],[Text media Enero (ºC)]]<0,(610.5*(EXP((21.875*Tabla1[[#This Row],[Text media Enero (ºC)]])/(265.5+Tabla1[[#This Row],[Text media Enero (ºC)]])))),(610.5*(EXP((17.269*Tabla1[[#This Row],[Text media Enero (ºC)]])/(237.3+Tabla1[[#This Row],[Text media Enero (ºC)]])))))))),((VLOOKUP(Tabla1[[#This Row],[Provincia]],AUX_LOCALIDADES!$S$3:$AG$54,4,FALSE))/100))),2))>1,1,(ROUND((IF(Tabla1[[#This Row],[Altitud (m)]]>=(VLOOKUP(Tabla1[[#This Row],[Provincia]],AUX_LOCALIDADES!$A$2:$D$54,3,FALSE)),(((VLOOKUP(Tabla1[[#This Row],[Provincia]],AUX_LOCALIDADES!$A$3:$Q$54,17,FALSE))/(IF(Tabla1[[#This Row],[Text media Enero (ºC)]]<0,(610.5*(EXP((21.875*Tabla1[[#This Row],[Text media Enero (ºC)]])/(265.5+Tabla1[[#This Row],[Text media Enero (ºC)]])))),(610.5*(EXP((17.269*Tabla1[[#This Row],[Text media Enero (ºC)]])/(237.3+Tabla1[[#This Row],[Text media Enero (ºC)]])))))))),((VLOOKUP(Tabla1[[#This Row],[Provincia]],AUX_LOCALIDADES!$S$3:$AG$54,4,FALSE))/100))),2))) -> 1 | M20: =IF(Tabla1[[#This Row],[Text media Enero (ºC)]]<0,(ROUND((610.5*(EXP((21.875*Tabla1[[#This Row],[Text media Enero (ºC)]])/(265.5+Tabla1[[#This Row],[Text media Enero (ºC)]])))),2)),(ROUND((610.5*(EXP((17.269*Tabla1[[#This Row],[Text media Enero (ºC)]])/(237.3+Tabla1[[#This Row],[Text media Enero (ºC)]])))),2))) -> 628.5 | N20: =ROUND((Tabla1[[#This Row],[Psat (Pa)]]*Tabla1[[#This Row],[HRext Enero (tanto por 1)]]),2) -> 628.5
A21: Andalucía | B21: Almería | C21: Bayárcal | D21: =IF((OR(Tabla1[[#This Row],[Zona Climática]]="α1",Tabla1[[#This Row],[Zona Climática]]="α2",Tabla1[[#This Row],[Zona Climática]]="α3",Tabla1[[#This Row],[Zona Climática]]="α4")),"α",(IF((OR(Tabla1[[#This Row],[Zona Climática]]="A1",Tabla1[[#This Row],[Zona Climática]]="A2",Tabla1[[#This Row],[Zona Climática]]="A3",Tabla1[[#This Row],[Zona Climática]]="A4")),"A",(IF((OR(Tabla1[[#This Row],[Zona Climática]]="B1",Tabla1[[#This Row],[Zona Climática]]="B2",Tabla1[[#This Row],[Zona Climática]]="B3",Tabla1[[#This Row],[Zona Climática]]="B4")),"B",(IF((OR(Tabla1[[#This Row],[Zona Climática]]="C1",Tabla1[[#This Row],[Zona Climática]]="C2",Tabla1[[#This Row],[Zona Climática]]="C3",Tabla1[[#This Row],[Zona Climática]]="C4")),"C",(IF((OR(Tabla1[[#This Row],[Zona Climática]]="D1",Tabla1[[#This Row],[Zona Climática]]="D2",Tabla1[[#This Row],[Zona Climática]]="D3",Tabla1[[#This Row],[Zona Climática]]="D4")),"D","E"))))))))) -> D | E21: D3 | F21: 37.0320979 | G21: -2.9946595 | H21: =CONCATENATE(Tabla1[[#This Row],[Latitud N]],", ",Tabla1[[#This Row],[Longitud W]]) -> 37,0320979, -2,9946595 | I21: 1258 | J21: SI | K21: =ROUND((IF(Tabla1[[#This Row],[Altitud (m)]]<(VLOOKUP(Tabla1[[#This Row],[Provincia]],AUX_LOCALIDADES!$A$2:$D$54,3,FALSE)),(VLOOKUP(Tabla1[[#This Row],[Provincia]],AUX_LOCALIDADES!$A$2:$D$54,4,FALSE)),((VLOOKUP(Tabla1[[#This Row],[Provincia]],AUX_LOCALIDADES!$A$2:$D$54,4,FALSE))-((Tabla1[[#This Row],[Altitud (m)]]-(VLOOKUP(Tabla1[[#This Row],[Provincia]],AUX_LOCALIDADES!$A$2:$D$54,3,FALSE)))/100)))),1) -> -0.1 | L21: =IF((ROUND((IF(Tabla1[[#This Row],[Altitud (m)]]>=(VLOOKUP(Tabla1[[#This Row],[Provincia]],AUX_LOCALIDADES!$A$2:$D$54,3,FALSE)),(((VLOOKUP(Tabla1[[#This Row],[Provincia]],AUX_LOCALIDADES!$A$3:$Q$54,17,FALSE))/(IF(Tabla1[[#This Row],[Text media Enero (ºC)]]<0,(610.5*(EXP((21.875*Tabla1[[#This Row],[Text media Enero (ºC)]])/(265.5+Tabla1[[#This Row],[Text media Enero (ºC)]])))),(610.5*(EXP((17.269*Tabla1[[#This Row],[Text media Enero (ºC)]])/(237.3+Tabla1[[#This Row],[Text media Enero (ºC)]])))))))),((VLOOKUP(Tabla1[[#This Row],[Provincia]],AUX_LOCALIDADES!$S$3:$AG$54,4,FALSE))/100))),2))>1,1,(ROUND((IF(Tabla1[[#This Row],[Altitud (m)]]>=(VLOOKUP(Tabla1[[#This Row],[Provincia]],AUX_LOCALIDADES!$A$2:$D$54,3,FALSE)),(((VLOOKUP(Tabla1[[#This Row],[Provincia]],AUX_LOCALIDADES!$A$3:$Q$54,17,FALSE))/(IF(Tabla1[[#This Row],[Text media Enero (ºC)]]<0,(610.5*(EXP((21.875*Tabla1[[#This Row],[Text media Enero (ºC)]])/(265.5+Tabla1[[#This Row],[Text media Enero (ºC)]])))),(610.5*(EXP((17.269*Tabla1[[#This Row],[Text media Enero (ºC)]])/(237.3+Tabla1[[#This Row],[Text media Enero (ºC)]])))))))),((VLOOKUP(Tabla1[[#This Row],[Provincia]],AUX_LOCALIDADES!$S$3:$AG$54,4,FALSE))/100))),2))) -> 1 | M21: =IF(Tabla1[[#This Row],[Text media Enero (ºC)]]<0,(ROUND((610.5*(EXP((21.875*Tabla1[[#This Row],[Text media Enero (ºC)]])/(265.5+Tabla1[[#This Row],[Text media Enero (ºC)]])))),2)),(ROUND((610.5*(EXP((17.269*Tabla1[[#This Row],[Text media Enero (ºC)]])/(237.3+Tabla1[[#This Row],[Text media Enero (ºC)]])))),2))) -> 605.49 | N21: =ROUND((Tabla1[[#This Row],[Psat (Pa)]]*Tabla1[[#This Row],[HRext Enero (tanto por 1)]]),2) -> 605.49
A22: Andalucía | B22: Almería | C22: Bayarque | D22: =IF((OR(Tabla1[[#This Row],[Zona Climática]]="α1",Tabla1[[#This Row],[Zona Climática]]="α2",Tabla1[[#This Row],[Zona Climática]]="α3",Tabla1[[#This Row],[Zona Climática]]="α4")),"α",(IF((OR(Tabla1[[#This Row],[Zona Climática]]="A1",Tabla1[[#This Row],[Zona Climática]]="A2",Tabla1[[#This Row],[Zona Climática]]="A3",Tabla1[[#This Row],[Zona Climática]]="A4")),"A",(IF((OR(Tabla1[[#This Row],[Zona Climática]]="B1",Tabla1[[#This Row],[Zona Climática]]="B2",Tabla1[[#This Row],[Zona Climática]]="B3",Tabla1[[#This Row],[Zona Climática]]="B4")),"B",(IF((OR(Tabla1[[#This Row],[Zona Climática]]="C1",Tabla1[[#This Row],[Zona Climática]]="C2",Tabla1[[#This Row],[Zona Climática]]="C3",Tabla1[[#This Row],[Zona Climática]]="C4")),"C",(IF((OR(Tabla1[[#This Row],[Zona Climática]]="D1",Tabla1[[#This Row],[Zona Climática]]="D2",Tabla1[[#This Row],[Zona Climática]]="D3",Tabla1[[#This Row],[Zona Climática]]="D4")),"D","E"))))))))) -> D | E22: D3 | F22: 37.3318101 | G22: -2.4342622 | H22: =CONCATENATE(Tabla1[[#This Row],[Latitud N]],", ",Tabla1[[#This Row],[Longitud W]]) -> 37,3318101, -2,4342622 | I22: 816 | J22: SI | K22: =ROUND((IF(Tabla1[[#This Row],[Altitud (m)]]<(VLOOKUP(Tabla1[[#This Row],[Provincia]],AUX_LOCALIDADES!$A$2:$D$54,3,FALSE)),(VLOOKUP(Tabla1[[#This Row],[Provincia]],AUX_LOCALIDADES!$A$2:$D$54,4,FALSE)),((VLOOKUP(Tabla1[[#This Row],[Provincia]],AUX_LOCALIDADES!$A$2:$D$54,4,FALSE))-((Tabla1[[#This Row],[Altitud (m)]]-(VLOOKUP(Tabla1[[#This Row],[Provincia]],AUX_LOCALIDADES!$A$2:$D$54,3,FALSE)))/100)))),1) -> 4.3 | L22: =IF((ROUND((IF(Tabla1[[#This Row],[Altitud (m)]]>=(VLOOKUP(Tabla1[[#This Row],[Provincia]],AUX_LOCALIDADES!$A$2:$D$54,3,FALSE)),(((VLOOKUP(Tabla1[[#This Row],[Provincia]],AUX_LOCALIDADES!$A$3:$Q$54,17,FALSE))/(IF(Tabla1[[#This Row],[Text media Enero (ºC)]]<0,(610.5*(EXP((21.875*Tabla1[[#This Row],[Text media Enero (ºC)]])/(265.5+Tabla1[[#This Row],[Text media Enero (ºC)]])))),(610.5*(EXP((17.269*Tabla1[[#This Row],[Text media Enero (ºC)]])/(237.3+Tabla1[[#This Row],[Text media Enero (ºC)]])))))))),((VLOOKUP(Tabla1[[#This Row],[Provincia]],AUX_LOCALIDADES!$S$3:$AG$54,4,FALSE))/100))),2))>1,1,(ROUND((IF(Tabla1[[#This Row],[Altitud (m)]]>=(VLOOKUP(Tabla1[[#This Row],[Provincia]],AUX_LOCALIDADES!$A$2:$D$54,3,FALSE)),(((VLOOKUP(Tabla1[[#This Row],[Provincia]],AUX_LOCALIDADES!$A$3:$Q$54,17,FALSE))/(IF(Tabla1[[#This Row],[Text media Enero (ºC)]]<0,(610.5*(EXP((21.875*Tabla1[[#This Row],[Text media Enero (ºC)]])/(265.5+Tabla1[[#This Row],[Text media Enero (ºC)]])))),(610.5*(EXP((17.269*Tabla1[[#This Row],[Text media Enero (ºC)]])/(237.3+Tabla1[[#This Row],[Text media Enero (ºC)]])))))))),((VLOOKUP(Tabla1[[#This Row],[Provincia]],AUX_LOCALIDADES!$S$3:$AG$54,4,FALSE))/100))),2))) -> 1 | M22: =IF(Tabla1[[#This Row],[Text media Enero (ºC)]]<0,(ROUND((610.5*(EXP((21.875*Tabla1[[#This Row],[Text media Enero (ºC)]])/(265.5+Tabla1[[#This Row],[Text media Enero (ºC)]])))),2)),(ROUND((610.5*(EXP((17.269*Tabla1[[#This Row],[Text media Enero (ºC)]])/(237.3+Tabla1[[#This Row],[Text media Enero (ºC)]])))),2))) -> 830.17 | N22: =ROUND((Tabla1[[#This Row],[Psat (Pa)]]*Tabla1[[#This Row],[HRext Enero (tanto por 1)]]),2) -> 830.17
A23: Andalucía | B23: Almería | C23: Bédar | D23: =IF((OR(Tabla1[[#This Row],[Zona Climática]]="α1",Tabla1[[#This Row],[Zona Climática]]="α2",Tabla1[[#This Row],[Zona Climática]]="α3",Tabla1[[#This Row],[Zona Climática]]="α4")),"α",(IF((OR(Tabla1[[#This Row],[Zona Climática]]="A1",Tabla1[[#This Row],[Zona Climática]]="A2",Tabla1[[#This Row],[Zona Climática]]="A3",Tabla1[[#This Row],[Zona Climática]]="A4")),"A",(IF((OR(Tabla1[[#This Row],[Zona Climática]]="B1",Tabla1[[#This Row],[Zona Climática]]="B2",Tabla1[[#This Row],[Zona Climática]]="B3",Tabla1[[#This Row],[Zona Climática]]="B4")),"B",(IF((OR(Tabla1[[#This Row],[Zona Climática]]="C1",Tabla1[[#This Row],[Zona Climática]]="C2",Tabla1[[#This Row],[Zona Climática]]="C3",Tabla1[[#This Row],[Zona Climática]]="C4")),"C",(IF((OR(Tabla1[[#This Row],[Zona Climática]]="D1",Tabla1[[#This Row],[Zona Climática]]="D2",Tabla1[[#This Row],[Zona Climática]]="D3",Tabla1[[#This Row],[Zona Climática]]="D4")),"D","E"))))))))) -> C | E23: C3 | F23: 37.1917681 | G23: -1.9807041 | H23: =CONCATENATE(Tabla1[[#This Row],[Latitud N]],", ",Tabla1[[#This Row],[Longitud W]]) -> 37,1917681, -1,9807041 | I23: 403 | J23: SI | K23: =ROUND((IF(Tabla1[[#This Row],[Altitud (m)]]<(VLOOKUP(Tabla1[[#This Row],[Provincia]],AUX_LOCALIDADES!$A$2:$D$54,3,FALSE)),(VLOOKUP(Tabla1[[#This Row],[Provincia]],AUX_LOCALIDADES!$A$2:$D$54,4,FALSE)),((VLOOKUP(Tabla1[[#This Row],[Provincia]],AUX_LOCALIDADES!$A$2:$D$54,4,FALSE))-((Tabla1[[#This Row],[Altitud (m)]]-(VLOOKUP(Tabla1[[#This Row],[Provincia]],AUX_LOCALIDADES!$A$2:$D$54,3,FALSE)))/100)))),1) -> 8.5 | L23: =IF((ROUND((IF(Tabla1[[#This Row],[Altitud (m)]]>=(VLOOKUP(Tabla1[[#This Row],[Provincia]],AUX_LOCALIDADES!$A$2:$D$54,3,FALSE)),(((VLOOKUP(Tabla1[[#This Row],[Provincia]],AUX_LOCALIDADES!$A$3:$Q$54,17,FALSE))/(IF(Tabla1[[#This Row],[Text media Enero (ºC)]]<0,(610.5*(EXP((21.875*Tabla1[[#This Row],[Text media Enero (ºC)]])/(265.5+Tabla1[[#This Row],[Text media Enero (ºC)]])))),(610.5*(EXP((17.269*Tabla1[[#This Row],[Text media Enero (ºC)]])/(237.3+Tabla1[[#This Row],[Text media Enero (ºC)]])))))))),((VLOOKUP(Tabla1[[#This Row],[Provincia]],AUX_LOCALIDADES!$S$3:$AG$54,4,FALSE))/100))),2))>1,1,(ROUND((IF(Tabla1[[#This Row],[Altitud (m)]]>=(VLOOKUP(Tabla1[[#This Row],[Provincia]],AUX_LOCALIDADES!$A$2:$D$54,3,FALSE)),(((VLOOKUP(Tabla1[[#This Row],[Provincia]],AUX_LOCALIDADES!$A$3:$Q$54,17,FALSE))/(IF(Tabla1[[#This Row],[Text media Enero (ºC)]]<0,(610.5*(EXP((21.875*Tabla1[[#This Row],[Text media Enero (ºC)]])/(265.5+Tabla1[[#This Row],[Text media Enero (ºC)]])))),(610.5*(EXP((17.269*Tabla1[[#This Row],[Text media Enero (ºC)]])/(237.3+Tabla1[[#This Row],[Text media Enero (ºC)]])))))))),((VLOOKUP(Tabla1[[#This Row],[Provincia]],AUX_LOCALIDADES!$S$3:$AG$54,4,FALSE))/100))),2))) -> 0.91 | M23: =IF(Tabla1[[#This Row],[Text media Enero (ºC)]]<0,(ROUND((610.5*(EXP((21.875*Tabla1[[#This Row],[Text media Enero (ºC)]])/(265.5+Tabla1[[#This Row],[Text media Enero (ºC)]])))),2)),(ROUND((610.5*(EXP((17.269*Tabla1[[#This Row],[Text media Enero (ºC)]])/(237.3+Tabla1[[#This Row],[Text media Enero (ºC)]])))),2))) -> 1109.27 | N23: =ROUND((Tabla1[[#This Row],[Psat (Pa)]]*Tabla1[[#This Row],[HRext Enero (tanto por 1)]]),2) -> 1009.44
A24: Andalucía | B24: Almería | C24: Beires | D24: =IF((OR(Tabla1[[#This Row],[Zona Climática]]="α1",Tabla1[[#This Row],[Zona Climática]]="α2",Tabla1[[#This Row],[Zona Climática]]="α3",Tabla1[[#This Row],[Zona Climática]]="α4")),"α",(IF((OR(Tabla1[[#This Row],[Zona Climática]]="A1",Tabla1[[#This Row],[Zona Climática]]="A2",Tabla1[[#This Row],[Zona Climática]]="A3",Tabla1[[#This Row],[Zona Climática]]="A4")),"A",(IF((OR(Tabla1[[#This Row],[Zona Climática]]="B1",Tabla1[[#This Row],[Zona Climática]]="B2",Tabla1[[#This Row],[Zona Climática]]="B3",Tabla1[[#This Row],[Zona Climática]]="B4")),"B",(IF((OR(Tabla1[[#This Row],[Zona Climática]]="C1",Tabla1[[#This Row],[Zona Climática]]="C2",Tabla1[[#This Row],[Zona Climática]]="C3",Tabla1[[#This Row],[Zona Climática]]="C4")),"C",(IF((OR(Tabla1[[#This Row],[Zona Climática]]="D1",Tabla1[[#This Row],[Zona Climática]]="D2",Tabla1[[#This Row],[Zona Climática]]="D3",Tabla1[[#This Row],[Zona Climática]]="D4")),"D","E"))))))))) -> D | E24: D3 | F24: 37.0134331 | G24: -2.7899722 | H24: =CONCATENATE(Tabla1[[#This Row],[Latitud N]],", ",Tabla1[[#This Row],[Longitud W]]) -> 37,0134331, -2,7899722 | I24: 914 | J24: SI | K24: =ROUND((IF(Tabla1[[#This Row],[Altitud (m)]]<(VLOOKUP(Tabla1[[#This Row],[Provincia]],AUX_LOCALIDADES!$A$2:$D$54,3,FALSE)),(VLOOKUP(Tabla1[[#This Row],[Provincia]],AUX_LOCALIDADES!$A$2:$D$54,4,FALSE)),((VLOOKUP(Tabla1[[#This Row],[Provincia]],AUX_LOCALIDADES!$A$2:$D$54,4,FALSE))-((Tabla1[[#This Row],[Altitud (m)]]-(VLOOKUP(Tabla1[[#This Row],[Provincia]],AUX_LOCALIDADES!$A$2:$D$54,3,FALSE)))/100)))),1) -> 3.4 | L24: =IF((ROUND((IF(Tabla1[[#This Row],[Altitud (m)]]>=(VLOOKUP(Tabla1[[#This Row],[Provincia]],AUX_LOCALIDADES!$A$2:$D$54,3,FALSE)),(((VLOOKUP(Tabla1[[#This Row],[Provincia]],AUX_LOCALIDADES!$A$3:$Q$54,17,FALSE))/(IF(Tabla1[[#This Row],[Text media Enero (ºC)]]<0,(610.5*(EXP((21.875*Tabla1[[#This Row],[Text media Enero (ºC)]])/(265.5+Tabla1[[#This Row],[Text media Enero (ºC)]])))),(610.5*(EXP((17.269*Tabla1[[#This Row],[Text media Enero (ºC)]])/(237.3+Tabla1[[#This Row],[Text media Enero (ºC)]])))))))),((VLOOKUP(Tabla1[[#This Row],[Provincia]],AUX_LOCALIDADES!$S$3:$AG$54,4,FALSE))/100))),2))>1,1,(ROUND((IF(Tabla1[[#This Row],[Altitud (m)]]>=(VLOOKUP(Tabla1[[#This Row],[Provincia]],AUX_LOCALIDADES!$A$2:$D$54,3,FALSE)),(((VLOOKUP(Tabla1[[#This Row],[Provincia]],AUX_LOCALIDADES!$A$3:$Q$54,17,FALSE))/(IF(Tabla1[[#This Row],[Text media Enero (ºC)]]<0,(610.5*(EXP((21.875*Tabla1[[#This Row],[Text media Enero (ºC)]])/(265.5+Tabla1[[#This Row],[Text media Enero (ºC)]])))),(610.5*(EXP((17.269*Tabla1[[#This Row],[Text media Enero (ºC)]])/(237.3+Tabla1[[#This Row],[Text media Enero (ºC)]])))))))),((VLOOKUP(Tabla1[[#This Row],[Provincia]],AUX_LOCALIDADES!$S$3:$AG$54,4,FALSE))/100))),2))) -> 1 | M24: =IF(Tabla1[[#This Row],[Text media Enero (ºC)]]<0,(ROUND((610.5*(EXP((21.875*Tabla1[[#This Row],[Text media Enero (ºC)]])/(265.5+Tabla1[[#This Row],[Text media Enero (ºC)]])))),2)),(ROUND((610.5*(EXP((17.269*Tabla1[[#This Row],[Text media Enero (ºC)]])/(237.3+Tabla1[[#This Row],[Text media Enero (ºC)]])))),2))) -> 779.16 | N24: =ROUND((Tabla1[[#This Row],[Psat (Pa)]]*Tabla1[[#This Row],[HRext Enero (tanto por 1)]]),2) -> 779.16
A25: Andalucía | B25: Almería | C25: Benahadux | D25: =IF((OR(Tabla1[[#This Row],[Zona Climática]]="α1",Tabla1[[#This Row],[Zona Climática]]="α2",Tabla1[[#This Row],[Zona Climática]]="α3",Tabla1[[#This Row],[Zona Climática]]="α4")),"α",(IF((OR(Tabla1[[#This Row],[Zona Climática]]="A1",Tabla1[[#This Row],[Zona Climática]]="A2",Tabla1[[#This Row],[Zona Climática]]="A3",Tabla1[[#This Row],[Zona Climática]]="A4")),"A",(IF((OR(Tabla1[[#This Row],[Zona Climática]]="B1",Tabla1[[#This Row],[Zona Climática]]="B2",Tabla1[[#This Row],[Zona Climática]]="B3",Tabla1[[#This Row],[Zona Climática]]="B4")),"B",(IF((OR(Tabla1[[#This Row],[Zona Climática]]="C1",Tabla1[[#This Row],[Zona Climática]]="C2",Tabla1[[#This Row],[Zona Climática]]="C3",Tabla1[[#This Row],[Zona Climática]]="C4")),"C",(IF((OR(Tabla1[[#This Row],[Zona Climática]]="D1",Tabla1[[#This Row],[Zona Climática]]="D2",Tabla1[[#This Row],[Zona Climática]]="D3",Tabla1[[#This Row],[Zona Climática]]="D4")),"D","E"))))))))) -> B | E25: B4 | F25: 36.9265808 | G25: -2.461073 | H25: =CONCATENATE(Tabla1[[#This Row],[Latitud N]],", ",Tabla1[[#This Row],[Longitud W]]) -> 36,9265808, -2,461073 | I25: 113 | J25: SI | K25: =ROUND((IF(Tabla1[[#This Row],[Altitud (m)]]<(VLOOKUP(Tabla1[[#This Row],[Provincia]],AUX_LOCALIDADES!$A$2:$D$54,3,FALSE)),(VLOOKUP(Tabla1[[#This Row],[Provincia]],AUX_LOCALIDADES!$A$2:$D$54,4,FALSE)),((VLOOKUP(Tabla1[[#This Row],[Provincia]],AUX_LOCALIDADES!$A$2:$D$54,4,FALSE))-((Tabla1[[#This Row],[Altitud (m)]]-(VLOOKUP(Tabla1[[#This Row],[Provincia]],AUX_LOCALIDADES!$A$2:$D$54,3,FALSE)))/100)))),1) -> 11.4 | L25: =IF((ROUND((IF(Tabla1[[#This Row],[Altitud (m)]]>=(VLOOKUP(Tabla1[[#This Row],[Provincia]],AUX_LOCALIDADES!$A$2:$D$54,3,FALSE)),(((VLOOKUP(Tabla1[[#This Row],[Provincia]],AUX_LOCALIDADES!$A$3:$Q$54,17,FALSE))/(IF(Tabla1[[#This Row],[Text media Enero (ºC)]]<0,(610.5*(EXP((21.875*Tabla1[[#This Row],[Text media Enero (ºC)]])/(265.5+Tabla1[[#This Row],[Text media Enero (ºC)]])))),(610.5*(EXP((17.269*Tabla1[[#This Row],[Text media Enero (ºC)]])/(237.3+Tabla1[[#This Row],[Text media Enero (ºC)]])))))))),((VLOOKUP(Tabla1[[#This Row],[Provincia]],AUX_LOCALIDADES!$S$3:$AG$54,4,FALSE))/100))),2))>1,1,(ROUND((IF(Tabla1[[#This Row],[Altitud (m)]]>=(VLOOKUP(Tabla1[[#This Row],[Provincia]],AUX_LOCALIDADES!$A$2:$D$54,3,FALSE)),(((VLOOKUP(Tabla1[[#This Row],[Provincia]],AUX_LOCALIDADES!$A$3:$Q$54,17,FALSE))/(IF(Tabla1[[#This Row],[Text media Enero (ºC)]]<0,(610.5*(EXP((21.875*Tabla1[[#This Row],[Text media Enero (ºC)]])/(265.5+Tabla1[[#This Row],[Text media Enero (ºC)]])))),(610.5*(EXP((17.269*Tabla1[[#This Row],[Text media Enero (ºC)]])/(237.3+Tabla1[[#This Row],[Text media Enero (ºC)]])))))))),((VLOOKUP(Tabla1[[#This Row],[Provincia]],AUX_LOCALIDADES!$S$3:$AG$54,4,FALSE))/100))),2))) -> 0.75 | M25: =IF(Tabla1[[#This Row],[Text media Enero (ºC)]]<0,(ROUND((610.5*(EXP((21.875*Tabla1[[#This Row],[Text media Enero (ºC)]])/(265.5+Tabla1[[#This Row],[Text media Enero (ºC)]])))),2)),(ROUND((610.5*(EXP((17.269*Tabla1[[#This Row],[Text media Enero (ºC)]])/(237.3+Tabla1[[#This Row],[Text media Enero (ºC)]])))),2))) -> 1347.3 | N25: =ROUND((Tabla1[[#This Row],[Psat (Pa)]]*Tabla1[[#This Row],[HRext Enero (tanto por 1)]]),2) -> 1010.48
A26: Andalucía | B26: Almería | C26: Benitagla | D26: =IF((OR(Tabla1[[#This Row],[Zona Climática]]="α1",Tabla1[[#This Row],[Zona Climática]]="α2",Tabla1[[#This Row],[Zona Climática]]="α3",Tabla1[[#This Row],[Zona Climática]]="α4")),"α",(IF((OR(Tabla1[[#This Row],[Zona Climática]]="A1",Tabla1[[#This Row],[Zona Climática]]="A2",Tabla1[[#This Row],[Zona Climática]]="A3",Tabla1[[#This Row],[Zona Climática]]="A4")),"A",(IF((OR(Tabla1[[#This Row],[Zona Climática]]="B1",Tabla1[[#This Row],[Zona Climática]]="B2",Tabla1[[#This Row],[Zona Climática]]="B3",Tabla1[[#This Row],[Zona Climática]]="B4")),"B",(IF((OR(Tabla1[[#This Row],[Zona Climática]]="C1",Tabla1[[#This Row],[Zona Climática]]="C2",Tabla1[[#This Row],[Zona Climática]]="C3",Tabla1[[#This Row],[Zona Climática]]="C4")),"C",(IF((OR(Tabla1[[#This Row],[Zona Climática]]="D1",Tabla1[[#This Row],[Zona Climática]]="D2",Tabla1[[#This Row],[Zona Climática]]="D3",Tabla1[[#This Row],[Zona Climática]]="D4")),"D","E"))))))))) -> D | E26: D3 | F26: 37.2328193 | G26: -2.2376171 | H26: =CONCATENATE(Tabla1[[#This Row],[Latitud N]],", ",Tabla1[[#This Row],[Longitud W]]) -> 37,2328193, -2,2376171 | I26: 942 | J26: SI | K26: =ROUND((IF(Tabla1[[#This Row],[Altitud (m)]]<(VLOOKUP(Tabla1[[#This Row],[Provincia]],AUX_LOCALIDADES!$A$2:$D$54,3,FALSE)),(VLOOKUP(Tabla1[[#This Row],[Provincia]],AUX_LOCALIDADES!$A$2:$D$54,4,FALSE)),((VLOOKUP(Tabla1[[#This Row],[Provincia]],AUX_LOCALIDADES!$A$2:$D$54,4,FALSE))-((Tabla1[[#This Row],[Altitud (m)]]-(VLOOKUP(Tabla1[[#This Row],[Provincia]],AUX_LOCALIDADES!$A$2:$D$54,3,FALSE)))/100)))),1) -> 3.1 | L26: =IF((ROUND((IF(Tabla1[[#This Row],[Altitud (m)]]>=(VLOOKUP(Tabla1[[#This Row],[Provincia]],AUX_LOCALIDADES!$A$2:$D$54,3,FALSE)),(((VLOOKUP(Tabla1[[#This Row],[Provincia]],AUX_LOCALIDADES!$A$3:$Q$54,17,FALSE))/(IF(Tabla1[[#This Row],[Text media Enero (ºC)]]<0,(610.5*(EXP((21.875*Tabla1[[#This Row],[Text media Enero (ºC)]])/(265.5+Tabla1[[#This Row],[Text media Enero (ºC)]])))),(610.5*(EXP((17.269*Tabla1[[#This Row],[Text media Enero (ºC)]])/(237.3+Tabla1[[#This Row],[Text media Enero (ºC)]])))))))),((VLOOKUP(Tabla1[[#This Row],[Provincia]],AUX_LOCALIDADES!$S$3:$AG$54,4,FALSE))/100))),2))>1,1,(ROUND((IF(Tabla1[[#This Row],[Altitud (m)]]>=(VLOOKUP(Tabla1[[#This Row],[Provincia]],AUX_LOCALIDADES!$A$2:$D$54,3,FALSE)),(((VLOOKUP(Tabla1[[#This Row],[Provincia]],AUX_LOCALIDADES!$A$3:$Q$54,17,FALSE))/(IF(Tabla1[[#This Row],[Text media Enero (ºC)]]<0,(610.5*(EXP((21.875*Tabla1[[#This Row],[Text media Enero (ºC)]])/(265.5+Tabla1[[#This Row],[Text media Enero (ºC)]])))),(610.5*(EXP((17.269*Tabla1[[#This Row],[Text media Enero (ºC)]])/(237.3+Tabla1[[#This Row],[Text media Enero (ºC)]])))))))),((VLOOKUP(Tabla1[[#This Row],[Provincia]],AUX_LOCALIDADES!$S$3:$AG$54,4,FALSE))/100))),2))) -> 1 | M26: =IF(Tabla1[[#This Row],[Text media Enero (ºC)]]<0,(ROUND((610.5*(EXP((21.875*Tabla1[[#This Row],[Text media Enero (ºC)]])/(265.5+Tabla1[[#This Row],[Text media Enero (ºC)]])))),2)),(ROUND((610.5*(EXP((17.269*Tabla1[[#This Row],[Text media Enero (ºC)]])/(237.3+Tabla1[[#This Row],[Text media Enero (ºC)]])))),2))) -> 762.78 | N26: =ROUND((Tabla1[[#This Row],[Psat (Pa)]]*Tabla1[[#This Row],[HRext Enero (tanto por 1)]]),2) -> 762.78
A27: Andalucía | B27: Almería | C27: Benizalón | D27: =IF((OR(Tabla1[[#This Row],[Zona Climática]]="α1",Tabla1[[#This Row],[Zona Climática]]="α2",Tabla1[[#This Row],[Zona Climática]]="α3",Tabla1[[#This Row],[Zona Climática]]="α4")),"α",(IF((OR(Tabla1[[#This Row],[Zona Climática]]="A1",Tabla1[[#This Row],[Zona Climática]]="A2",Tabla1[[#This Row],[Zona Climática]]="A3",Tabla1[[#This Row],[Zona Climática]]="A4")),"A",(IF((OR(Tabla1[[#This Row],[Zona Climática]]="B1",Tabla1[[#This Row],[Zona Climática]]="B2",Tabla1[[#This Row],[Zona Climática]]="B3",Tabla1[[#This Row],[Zona Climática]]="B4")),"B",(IF((OR(Tabla1[[#This Row],[Zona Climática]]="C1",Tabla1[[#This Row],[Zona Climática]]="C2",Tabla1[[#This Row],[Zona Climática]]="C3",Tabla1[[#This Row],[Zona Climática]]="C4")),"C",(IF((OR(Tabla1[[#This Row],[Zona Climática]]="D1",Tabla1[[#This Row],[Zona Climática]]="D2",Tabla1[[#This Row],[Zona Climática]]="D3",Tabla1[[#This Row],[Zona Climática]]="D4")),"D","E"))))))))) -> D | E27: D3 | F27: 37.2126467 | G27: -2.2404122 | H27: =CONCATENATE(Tabla1[[#This Row],[Latitud N]],", ",Tabla1[[#This Row],[Longitud W]]) -> 37,2126467, -2,2404122 | I27: 935 | J27: SI | K27: =ROUND((IF(Tabla1[[#This Row],[Altitud (m)]]<(VLOOKUP(Tabla1[[#This Row],[Provincia]],AUX_LOCALIDADES!$A$2:$D$54,3,FALSE)),(VLOOKUP(Tabla1[[#This Row],[Provincia]],AUX_LOCALIDADES!$A$2:$D$54,4,FALSE)),((VLOOKUP(Tabla1[[#This Row],[Provincia]],AUX_LOCALIDADES!$A$2:$D$54,4,FALSE))-((Tabla1[[#This Row],[Altitud (m)]]-(VLOOKUP(Tabla1[[#This Row],[Provincia]],AUX_LOCALIDADES!$A$2:$D$54,3,FALSE)))/100)))),1) -> 3.2 | L27: =IF((ROUND((IF(Tabla1[[#This Row],[Altitud (m)]]>=(VLOOKUP(Tabla1[[#This Row],[Provincia]],AUX_LOCALIDADES!$A$2:$D$54,3,FALSE)),(((VLOOKUP(Tabla1[[#This Row],[Provincia]],AUX_LOCALIDADES!$A$3:$Q$54,17,FALSE))/(IF(Tabla1[[#This Row],[Text media Enero (ºC)]]<0,(610.5*(EXP((21.875*Tabla1[[#This Row],[Text media Enero (ºC)]])/(265.5+Tabla1[[#This Row],[Text media Enero (ºC)]])))),(610.5*(EXP((17.269*Tabla1[[#This Row],[Text media Enero (ºC)]])/(237.3+Tabla1[[#This Row],[Text media Enero (ºC)]])))))))),((VLOOKUP(Tabla1[[#This Row],[Provincia]],AUX_LOCALIDADES!$S$3:$AG$54,4,FALSE))/100))),2))>1,1,(ROUND((IF(Tabla1[[#This Row],[Altitud (m)]]>=(VLOOKUP(Tabla1[[#This Row],[Provincia]],AUX_LOCALIDADES!$A$2:$D$54,3,FALSE)),(((VLOOKUP(Tabla1[[#This Row],[Provincia]],AUX_LOCALIDADES!$A$3:$Q$54,17,FALSE))/(IF(Tabla1[[#This Row],[Text media Enero (ºC)]]<0,(610.5*(EXP((21.875*Tabla1[[#This Row],[Text media Enero (ºC)]])/(265.5+Tabla1[[#This Row],[Text media Enero (ºC)]])))),(610.5*(EXP((17.269*Tabla1[[#This Row],[Text media Enero (ºC)]])/(237.3+Tabla1[[#This Row],[Text media Enero (ºC)]])))))))),((VLOOKUP(Tabla1[[#This Row],[Provincia]],AUX_LOCALIDADES!$S$3:$AG$54,4,FALSE))/100))),2))) -> 1 | M27: =IF(Tabla1[[#This Row],[Text media Enero (ºC)]]<0,(ROUND((610.5*(EXP((21.875*Tabla1[[#This Row],[Text media Enero (ºC)]])/(265.5+Tabla1[[#This Row],[Text media Enero (ºC)]])))),2)),(ROUND((610.5*(EXP((17.269*Tabla1[[#This Row],[Text media Enero (ºC)]])/(237.3+Tabla1[[#This Row],[Text media Enero (ºC)]])))),2))) -> 768.2 | N27: =ROUND((Tabla1[[#This Row],[Psat (Pa)]]*Tabla1[[#This Row],[HRext Enero (tanto por 1)]]),2) -> 768.2
A28: Andalucía | B28: Almería | C28: Bentarique | D28: =IF((OR(Tabla1[[#This Row],[Zona Climática]]="α1",Tabla1[[#This Row],[Zona Climática]]="α2",Tabla1[[#This Row],[Zona Climática]]="α3",Tabla1[[#This Row],[Zona Climática]]="α4")),"α",(IF((OR(Tabla1[[#This Row],[Zona Climática]]="A1",Tabla1[[#This Row],[Zona Climática]]="A2",Tabla1[[#This Row],[Zona Climática]]="A3",Tabla1[[#This Row],[Zona Climática]]="A4")),"A",(IF((OR(Tabla1[[#This Row],[Zona Climática]]="B1",Tabla1[[#This Row],[Zona Climática]]="B2",Tabla1[[#This Row],[Zona Climática]]="B3",Tabla1[[#This Row],[Zona Climática]]="B4")),"B",(IF((OR(Tabla1[[#This Row],[Zona Climática]]="C1",Tabla1[[#This Row],[Zona Climática]]="C2",Tabla1[[#This Row],[Zona Climática]]="C3",Tabla1[[#This Row],[Zona Climática]]="C4")),"C",(IF((OR(Tabla1[[#This Row],[Zona Climática]]="D1",Tabla1[[#This Row],[Zona Climática]]="D2",Tabla1[[#This Row],[Zona Climática]]="D3",Tabla1[[#This Row],[Zona Climática]]="D4")),"D","E"))))))))) -> B | E28: B3 | F28: 36.9877659 | G28: -2.6184032 | H28: =CONCATENATE(Tabla1[[#This Row],[Latitud N]],", ",Tabla1[[#This Row],[Longitud W]]) -> 36,9877659, -2,6184032 | I28: 324 | J28: SI | K28: =ROUND((IF(Tabla1[[#This Row],[Altitud (m)]]<(VLOOKUP(Tabla1[[#This Row],[Provincia]],AUX_LOCALIDADES!$A$2:$D$54,3,FALSE)),(VLOOKUP(Tabla1[[#This Row],[Provincia]],AUX_LOCALIDADES!$A$2:$D$54,4,FALSE)),((VLOOKUP(Tabla1[[#This Row],[Provincia]],AUX_LOCALIDADES!$A$2:$D$54,4,FALSE))-((Tabla1[[#This Row],[Altitud (m)]]-(VLOOKUP(Tabla1[[#This Row],[Provincia]],AUX_LOCALIDADES!$A$2:$D$54,3,FALSE)))/100)))),1) -> 9.3 | L28: =IF((ROUND((IF(Tabla1[[#This Row],[Altitud (m)]]>=(VLOOKUP(Tabla1[[#This Row],[Provincia]],AUX_LOCALIDADES!$A$2:$D$54,3,FALSE)),(((VLOOKUP(Tabla1[[#This Row],[Provincia]],AUX_LOCALIDADES!$A$3:$Q$54,17,FALSE))/(IF(Tabla1[[#This Row],[Text media Enero (ºC)]]<0,(610.5*(EXP((21.875*Tabla1[[#This Row],[Text media Enero (ºC)]])/(265.5+Tabla1[[#This Row],[Text media Enero (ºC)]])))),(610.5*(EXP((17.269*Tabla1[[#This Row],[Text media Enero (ºC)]])/(237.3+Tabla1[[#This Row],[Text media Enero (ºC)]])))))))),((VLOOKUP(Tabla1[[#This Row],[Provincia]],AUX_LOCALIDADES!$S$3:$AG$54,4,FALSE))/100))),2))>1,1,(ROUND((IF(Tabla1[[#This Row],[Altitud (m)]]>=(VLOOKUP(Tabla1[[#This Row],[Provincia]],AUX_LOCALIDADES!$A$2:$D$54,3,FALSE)),(((VLOOKUP(Tabla1[[#This Row],[Provincia]],AUX_LOCALIDADES!$A$3:$Q$54,17,FALSE))/(IF(Tabla1[[#This Row],[Text media Enero (ºC)]]<0,(610.5*(EXP((21.875*Tabla1[[#This Row],[Text media Enero (ºC)]])/(265.5+Tabla1[[#This Row],[Text media Enero (ºC)]])))),(610.5*(EXP((17.269*Tabla1[[#This Row],[Text media Enero (ºC)]])/(237.3+Tabla1[[#This Row],[Text media Enero (ºC)]])))))))),((VLOOKUP(Tabla1[[#This Row],[Provincia]],AUX_LOCALIDADES!$S$3:$AG$54,4,FALSE))/100))),2))) -> 0.86 | M28: =IF(Tabla1[[#This Row],[Text media Enero (ºC)]]<0,(ROUND((610.5*(EXP((21.875*Tabla1[[#This Row],[Text media Enero (ºC)]])/(265.5+Tabla1[[#This Row],[Text media Enero (ºC)]])))),2)),(ROUND((610.5*(EXP((17.269*Tabla1[[#This Row],[Text media Enero (ºC)]])/(237.3+Tabla1[[#This Row],[Text media Enero (ºC)]])))),2))) -> 1170.92 | N28: =ROUND((Tabla1[[#This Row],[Psat (Pa)]]*Tabla1[[#This Row],[HRext Enero (tanto por 1)]]),2) -> 1006.99
A29: Andalucía | B29: Almería | C29: Berja | D29: =IF((OR(Tabla1[[#This Row],[Zona Climática]]="α1",Tabla1[[#This Row],[Zona Climática]]="α2",Tabla1[[#This Row],[Zona Climática]]="α3",Tabla1[[#This Row],[Zona Climática]]="α4")),"α",(IF((OR(Tabla1[[#This Row],[Zona Climática]]="A1",Tabla1[[#This Row],[Zona Climática]]="A2",Tabla1[[#This Row],[Zona Climática]]="A3",Tabla1[[#This Row],[Zona Climática]]="A4")),"A",(IF((OR(Tabla1[[#This Row],[Zona Climática]]="B1",Tabla1[[#This Row],[Zona Climática]]="B2",Tabla1[[#This Row],[Zona Climática]]="B3",Tabla1[[#This Row],[Zona Climática]]="B4")),"B",(IF((OR(Tabla1[[#This Row],[Zona Climática]]="C1",Tabla1[[#This Row],[Zona Climática]]="C2",Tabla1[[#This Row],[Zona Climática]]="C3",Tabla1[[#This Row],[Zona Climática]]="C4")),"C",(IF((OR(Tabla1[[#This Row],[Zona Climática]]="D1",Tabla1[[#This Row],[Zona Climática]]="D2",Tabla1[[#This Row],[Zona Climática]]="D3",Tabla1[[#This Row],[Zona Climática]]="D4")),"D","E"))))))))) -> B | E29: B3 | F29: 36.8472937 | G29: -2.9478452 | H29: =CONCATENATE(Tabla1[[#This Row],[Latitud N]],", ",Tabla1[[#This Row],[Longitud W]]) -> 36,8472937, -2,9478452 | I29: 331 | J29: SI | K29: =ROUND((IF(Tabla1[[#This Row],[Altitud (m)]]<(VLOOKUP(Tabla1[[#This Row],[Provincia]],AUX_LOCALIDADES!$A$2:$D$54,3,FALSE)),(VLOOKUP(Tabla1[[#This Row],[Provincia]],AUX_LOCALIDADES!$A$2:$D$54,4,FALSE)),((VLOOKUP(Tabla1[[#This Row],[Provincia]],AUX_LOCALIDADES!$A$2:$D$54,4,FALSE))-((Tabla1[[#This Row],[Altitud (m)]]-(VLOOKUP(Tabla1[[#This Row],[Provincia]],AUX_LOCALIDADES!$A$2:$D$54,3,FALSE)))/100)))),1) -> 9.2 | L29: =IF((ROUND((IF(Tabla1[[#This Row],[Altitud (m)]]>=(VLOOKUP(Tabla1[[#This Row],[Provincia]],AUX_LOCALIDADES!$A$2:$D$54,3,FALSE)),(((VLOOKUP(Tabla1[[#This Row],[Provincia]],AUX_LOCALIDADES!$A$3:$Q$54,17,FALSE))/(IF(Tabla1[[#This Row],[Text media Enero (ºC)]]<0,(610.5*(EXP((21.875*Tabla1[[#This Row],[Text media Enero (ºC)]])/(265.5+Tabla1[[#This Row],[Text media Enero (ºC)]])))),(610.5*(EXP((17.269*Tabla1[[#This Row],[Text media Enero (ºC)]])/(237.3+Tabla1[[#This Row],[Text media Enero (ºC)]])))))))),((VLOOKUP(Tabla1[[#This Row],[Provincia]],AUX_LOCALIDADES!$S$3:$AG$54,4,FALSE))/100))),2))>1,1,(ROUND((IF(Tabla1[[#This Row],[Altitud (m)]]>=(VLOOKUP(Tabla1[[#This Row],[Provincia]],AUX_LOCALIDADES!$A$2:$D$54,3,FALSE)),(((VLOOKUP(Tabla1[[#This Row],[Provincia]],AUX_LOCALIDADES!$A$3:$Q$54,17,FALSE))/(IF(Tabla1[[#This Row],[Text media Enero (ºC)]]<0,(610.5*(EXP((21.875*Tabla1[[#This Row],[Text media Enero (ºC)]])/(265.5+Tabla1[[#This Row],[Text media Enero (ºC)]])))),(610.5*(EXP((17.269*Tabla1[[#This Row],[Text media Enero (ºC)]])/(237.3+Tabla1[[#This Row],[Text media Enero (ºC)]])))))))),((VLOOKUP(Tabla1[[#This Row],[Provincia]],AUX_LOCALIDADES!$S$3:$AG$54,4,FALSE))/100))),2))) -> 0.87 | M29: =IF(Tabla1[[#This Row],[Text media Enero (ºC)]]<0,(ROUND((610.5*(EXP((21.875*Tabla1[[#This Row],[Text media Enero (ºC)]])/(265.5+Tabla1[[#This Row],[Text media Enero (ºC)]])))),2)),(ROUND((610.5*(EXP((17.269*Tabla1[[#This Row],[Text media Enero (ºC)]])/(237.3+Tabla1[[#This Row],[Text media Enero (ºC)]])))),2))) -> 1163.05 | N29: =ROUND((Tabla1[[#This Row],[Psat (Pa)]]*Tabla1[[#This Row],[HRext Enero (tanto por 1)]]),2) -> 1011.85
A30: Andalucía | B30: Almería | C30: Canjáyar | D30: =IF((OR(Tabla1[[#This Row],[Zona Climática]]="α1",Tabla1[[#This Row],[Zona Climática]]="α2",Tabla1[[#This Row],[Zona Climática]]="α3",Tabla1[[#This Row],[Zona Climática]]="α4")),"α",(IF((OR(Tabla1[[#This Row],[Zona Climática]]="A1",Tabla1[[#This Row],[Zona Climática]]="A2",Tabla1[[#This Row],[Zona Climática]]="A3",Tabla1[[#This Row],[Zona Climática]]="A4")),"A",(IF((OR(Tabla1[[#This Row],[Zona Climática]]="B1",Tabla1[[#This Row],[Zona Climática]]="B2",Tabla1[[#This Row],[Zona Climática]]="B3",Tabla1[[#This Row],[Zona Climática]]="B4")),"B",(IF((OR(Tabla1[[#This Row],[Zona Climática]]="C1",Tabla1[[#This Row],[Zona Climática]]="C2",Tabla1[[#This Row],[Zona Climática]]="C3",Tabla1[[#This Row],[Zona Climática]]="C4")),"C",(IF((OR(Tabla1[[#This Row],[Zona Climática]]="D1",Tabla1[[#This Row],[Zona Climática]]="D2",Tabla1[[#This Row],[Zona Climática]]="D3",Tabla1[[#This Row],[Zona Climática]]="D4")),"D","E"))))))))) -> C | E30: C3 | F30: 37.0110782 | G30: -2.7388925 | H30: =CONCATENATE(Tabla1[[#This Row],[Latitud N]],", ",Tabla1[[#This Row],[Longitud W]]) -> 37,0110782, -2,7388925 | I30: 605 | J30: SI | K30: =ROUND((IF(Tabla1[[#This Row],[Altitud (m)]]<(VLOOKUP(Tabla1[[#This Row],[Provincia]],AUX_LOCALIDADES!$A$2:$D$54,3,FALSE)),(VLOOKUP(Tabla1[[#This Row],[Provincia]],AUX_LOCALIDADES!$A$2:$D$54,4,FALSE)),((VLOOKUP(Tabla1[[#This Row],[Provincia]],AUX_LOCALIDADES!$A$2:$D$54,4,FALSE))-((Tabla1[[#This Row],[Altitud (m)]]-(VLOOKUP(Tabla1[[#This Row],[Provincia]],AUX_LOCALIDADES!$A$2:$D$54,3,FALSE)))/100)))),1) -> 6.5 | L30: =IF((ROUND((IF(Tabla1[[#This Row],[Altitud (m)]]>=(VLOOKUP(Tabla1[[#This Row],[Provincia]],AUX_LOCALIDADES!$A$2:$D$54,3,FALSE)),(((VLOOKUP(Tabla1[[#This Row],[Provincia]],AUX_LOCALIDADES!$A$3:$Q$54,17,FALSE))/(IF(Tabla1[[#This Row],[Text media Enero (ºC)]]<0,(610.5*(EXP((21.875*Tabla1[[#This Row],[Text media Enero (ºC)]])/(265.5+Tabla1[[#This Row],[Text media Enero (ºC)]])))),(610.5*(EXP((17.269*Tabla1[[#This Row],[Text media Enero (ºC)]])/(237.3+Tabla1[[#This Row],[Text media Enero (ºC)]])))))))),((VLOOKUP(Tabla1[[#This Row],[Provincia]],AUX_LOCALIDADES!$S$3:$AG$54,4,FALSE))/100))),2))>1,1,(ROUND((IF(Tabla1[[#This Row],[Altitud (m)]]>=(VLOOKUP(Tabla1[[#This Row],[Provincia]],AUX_LOCALIDADES!$A$2:$D$54,3,FALSE)),(((VLOOKUP(Tabla1[[#This Row],[Provincia]],AUX_LOCALIDADES!$A$3:$Q$54,17,FALSE))/(IF(Tabla1[[#This Row],[Text media Enero (ºC)]]<0,(610.5*(EXP((21.875*Tabla1[[#This Row],[Text media Enero (ºC)]])/(265.5+Tabla1[[#This Row],[Text media Enero (ºC)]])))),(610.5*(EXP((17.269*Tabla1[[#This Row],[Text media Enero (ºC)]])/(237.3+Tabla1[[#This Row],[Text media Enero (ºC)]])))))))),((VLOOKUP(Tabla1[[#This Row],[Provincia]],AUX_LOCALIDADES!$S$3:$AG$54,4,FALSE))/100))),2))) -> 1 | M30: =IF(Tabla1[[#This Row],[Text media Enero (ºC)]]<0,(ROUND((610.5*(EXP((21.875*Tabla1[[#This Row],[Text media Enero (ºC)]])/(265.5+Tabla1[[#This Row],[Text media Enero (ºC)]])))),2)),(ROUND((610.5*(EXP((17.269*Tabla1[[#This Row],[Text media Enero (ºC)]])/(237.3+Tabla1[[#This Row],[Text media Enero (ºC)]])))),2))) -> 967.48 | N30: =ROUND((Tabla1[[#This Row],[Psat (Pa)]]*Tabla1[[#This Row],[HRext Enero (tanto por 1)]]),2) -> 967.48
A31: Andalucía | B31: Almería | C31: Cantoria | D31: =IF((OR(Tabla1[[#This Row],[Zona Climática]]="α1",Tabla1[[#This Row],[Zona Climática]]="α2",Tabla1[[#This Row],[Zona Climática]]="α3",Tabla1[[#This Row],[Zona Climática]]="α4")),"α",(IF((OR(Tabla1[[#This Row],[Zona Climática]]="A1",Tabla1[[#This Row],[Zona Climática]]="A2",Tabla1[[#This Row],[Zona Climática]]="A3",Tabla1[[#This Row],[Zona Climática]]="A4")),"A",(IF((OR(Tabla1[[#This Row],[Zona Climática]]="B1",Tabla1[[#This Row],[Zona Climática]]="B2",Tabla1[[#This Row],[Zona Climática]]="B3",Tabla1[[#This Row],[Zona Climática]]="B4")),"B",(IF((OR(Tabla1[[#This Row],[Zona Climática]]="C1",Tabla1[[#This Row],[Zona Climática]]="C2",Tabla1[[#This Row],[Zona Climática]]="C3",Tabla1[[#This Row],[Zona Climática]]="C4")),"C",(IF((OR(Tabla1[[#This Row],[Zona Climática]]="D1",Tabla1[[#This Row],[Zona Climática]]="D2",Tabla1[[#This Row],[Zona Climática]]="D3",Tabla1[[#This Row],[Zona Climática]]="D4")),"D","E"))))))))) -> B | E31: B3 | F31: 37.3529382 | G31: -2.1921449 | H31: =CONCATENATE(Tabla1[[#This Row],[Latitud N]],", ",Tabla1[[#This Row],[Longitud W]]) -> 37,3529382, -2,1921449 | I31: 382 | J31: SI | K31: =ROUND((IF(Tabla1[[#This Row],[Altitud (m)]]<(VLOOKUP(Tabla1[[#This Row],[Provincia]],AUX_LOCALIDADES!$A$2:$D$54,3,FALSE)),(VLOOKUP(Tabla1[[#This Row],[Provincia]],AUX_LOCALIDADES!$A$2:$D$54,4,FALSE)),((VLOOKUP(Tabla1[[#This Row],[Provincia]],AUX_LOCALIDADES!$A$2:$D$54,4,FALSE))-((Tabla1[[#This Row],[Altitud (m)]]-(VLOOKUP(Tabla1[[#This Row],[Provincia]],AUX_LOCALIDADES!$A$2:$D$54,3,FALSE)))/100)))),1) -> 8.7 | L31: =IF((ROUND((IF(Tabla1[[#This Row],[Altitud (m)]]>=(VLOOKUP(Tabla1[[#This Row],[Provincia]],AUX_LOCALIDADES!$A$2:$D$54,3,FALSE)),(((VLOOKUP(Tabla1[[#This Row],[Provincia]],AUX_LOCALIDADES!$A$3:$Q$54,17,FALSE))/(IF(Tabla1[[#This Row],[Text media Enero (ºC)]]<0,(610.5*(EXP((21.875*Tabla1[[#This Row],[Text media Enero (ºC)]])/(265.5+Tabla1[[#This Row],[Text media Enero (ºC)]])))),(610.5*(EXP((17.269*Tabla1[[#This Row],[Text media Enero (ºC)]])/(237.3+Tabla1[[#This Row],[Text media Enero (ºC)]])))))))),((VLOOKUP(Tabla1[[#This Row],[Provincia]],AUX_LOCALIDADES!$S$3:$AG$54,4,FALSE))/100))),2))>1,1,(ROUND((IF(Tabla1[[#This Row],[Altitud (m)]]>=(VLOOKUP(Tabla1[[#This Row],[Provincia]],AUX_LOCALIDADES!$A$2:$D$54,3,FALSE)),(((VLOOKUP(Tabla1[[#This Row],[Provincia]],AUX_LOCALIDADES!$A$3:$Q$54,17,FALSE))/(IF(Tabla1[[#This Row],[Text media Enero (ºC)]]<0,(610.5*(EXP((21.875*Tabla1[[#This Row],[Text media Enero (ºC)]])/(265.5+Tabla1[[#This Row],[Text media Enero (ºC)]])))),(610.5*(EXP((17.269*Tabla1[[#This Row],[Text media Enero (ºC)]])/(237.3+Tabla1[[#This Row],[Text media Enero (ºC)]])))))))),((VLOOKUP(Tabla1[[#This Row],[Provincia]],AUX_LOCALIDADES!$S$3:$AG$54,4,FALSE))/100))),2))) -> 0.9 | M31: =IF(Tabla1[[#This Row],[Text media Enero (ºC)]]<0,(ROUND((610.5*(EXP((21.875*Tabla1[[#This Row],[Text media Enero (ºC)]])/(265.5+Tabla1[[#This Row],[Text media Enero (ºC)]])))),2)),(ROUND((610.5*(EXP((17.269*Tabla1[[#This Row],[Text media Enero (ºC)]])/(237.3+Tabla1[[#This Row],[Text media Enero (ºC)]])))),2))) -> 1124.41 | N31: =ROUND((Tabla1[[#This Row],[Psat (Pa)]]*Tabla1[[#This Row],[HRext Enero (tanto por 1)]]),2) -> 1011.97
A32: Andalucía | B32: Almería | C32: Carboneras | D32: =IF((OR(Tabla1[[#This Row],[Zona Climática]]="α1",Tabla1[[#This Row],[Zona Climática]]="α2",Tabla1[[#This Row],[Zona Climática]]="α3",Tabla1[[#This Row],[Zona Climática]]="α4")),"α",(IF((OR(Tabla1[[#This Row],[Zona Climática]]="A1",Tabla1[[#This Row],[Zona Climática]]="A2",Tabla1[[#This Row],[Zona Climática]]="A3",Tabla1[[#This Row],[Zona Climática]]="A4")),"A",(IF((OR(Tabla1[[#This Row],[Zona Climática]]="B1",Tabla1[[#This Row],[Zona Climática]]="B2",Tabla1[[#This Row],[Zona Climática]]="B3",Tabla1[[#This Row],[Zona Climática]]="B4")),"B",(IF((OR(Tabla1[[#This Row],[Zona Climática]]="C1",Tabla1[[#This Row],[Zona Climática]]="C2",Tabla1[[#This Row],[Zona Climática]]="C3",Tabla1[[#This Row],[Zona Climática]]="C4")),"C",(IF((OR(Tabla1[[#This Row],[Zona Climática]]="D1",Tabla1[[#This Row],[Zona Climática]]="D2",Tabla1[[#This Row],[Zona Climática]]="D3",Tabla1[[#This Row],[Zona Climática]]="D4")),"D","E"))))))))) -> A | E32: A4 | F32: 36.9989868 | G32: -1.892482 | H32: =CONCATENATE(Tabla1[[#This Row],[Latitud N]],", ",Tabla1[[#This Row],[Longitud W]]) -> 36,9989868, -1,892482 | I32: 19 | J32: SI | K32: =ROUND((IF(Tabla1[[#This Row],[Altitud (m)]]<(VLOOKUP(Tabla1[[#This Row],[Provincia]],AUX_LOCALIDADES!$A$2:$D$54,3,FALSE)),(VLOOKUP(Tabla1[[#This Row],[Provincia]],AUX_LOCALIDADES!$A$2:$D$54,4,FALSE)),((VLOOKUP(Tabla1[[#This Row],[Provincia]],AUX_LOCALIDADES!$A$2:$D$54,4,FALSE))-((Tabla1[[#This Row],[Altitud (m)]]-(VLOOKUP(Tabla1[[#This Row],[Provincia]],AUX_LOCALIDADES!$A$2:$D$54,3,FALSE)))/100)))),1) -> 12.3 | L32: =IF((ROUND((IF(Tabla1[[#This Row],[Altitud (m)]]>=(VLOOKUP(Tabla1[[#This Row],[Provincia]],AUX_LOCALIDADES!$A$2:$D$54,3,FALSE)),(((VLOOKUP(Tabla1[[#This Row],[Provincia]],AUX_LOCALIDADES!$A$3:$Q$54,17,FALSE))/(IF(Tabla1[[#This Row],[Text media Enero (ºC)]]<0,(610.5*(EXP((21.875*Tabla1[[#This Row],[Text media Enero (ºC)]])/(265.5+Tabla1[[#This Row],[Text media Enero (ºC)]])))),(610.5*(EXP((17.269*Tabla1[[#This Row],[Text media Enero (ºC)]])/(237.3+Tabla1[[#This Row],[Text media Enero (ºC)]])))))))),((VLOOKUP(Tabla1[[#This Row],[Provincia]],AUX_LOCALIDADES!$S$3:$AG$54,4,FALSE))/100))),2))>1,1,(ROUND((IF(Tabla1[[#This Row],[Altitud (m)]]>=(VLOOKUP(Tabla1[[#This Row],[Provincia]],AUX_LOCALIDADES!$A$2:$D$54,3,FALSE)),(((VLOOKUP(Tabla1[[#This Row],[Provincia]],AUX_LOCALIDADES!$A$3:$Q$54,17,FALSE))/(IF(Tabla1[[#This Row],[Text media Enero (ºC)]]<0,(610.5*(EXP((21.875*Tabla1[[#This Row],[Text media Enero (ºC)]])/(265.5+Tabla1[[#This Row],[Text media Enero (ºC)]])))),(610.5*(EXP((17.269*Tabla1[[#This Row],[Text media Enero (ºC)]])/(237.3+Tabla1[[#This Row],[Text media Enero (ºC)]])))))))),((VLOOKUP(Tabla1[[#This Row],[Provincia]],AUX_LOCALIDADES!$S$3:$AG$54,4,FALSE))/100))),2))) -> 0.7 | M32: =IF(Tabla1[[#This Row],[Text media Enero (ºC)]]<0,(ROUND((610.5*(EXP((21.875*Tabla1[[#This Row],[Text media Enero (ºC)]])/(265.5+Tabla1[[#This Row],[Text media Enero (ºC)]])))),2)),(ROUND((610.5*(EXP((17.269*Tabla1[[#This Row],[Text media Enero (ºC)]])/(237.3+Tabla1[[#This Row],[Text media Enero (ºC)]])))),2))) -> 1429.78 | N32: =ROUND((Tabla1[[#This Row],[Psat (Pa)]]*Tabla1[[#This Row],[HRext Enero (tanto por 1)]]),2) -> 1000.85
A33: Andalucía | B33: Almería | C33: Castro de Filabres | D33: =IF((OR(Tabla1[[#This Row],[Zona Climática]]="α1",Tabla1[[#This Row],[Zona Climática]]="α2",Tabla1[[#This Row],[Zona Climática]]="α3",Tabla1[[#This Row],[Zona Climática]]="α4")),"α",(IF((OR(Tabla1[[#This Row],[Zona Climática]]="A1",Tabla1[[#This Row],[Zona Climática]]="A2",Tabla1[[#This Row],[Zona Climática]]="A3",Tabla1[[#This Row],[Zona Climática]]="A4")),"A",(IF((OR(Tabla1[[#This Row],[Zona Climática]]="B1",Tabla1[[#This Row],[Zona Climática]]="B2",Tabla1[[#This Row],[Zona Climática]]="B3",Tabla1[[#This Row],[Zona Climática]]="B4")),"B",(IF((OR(Tabla1[[#This Row],[Zona Climática]]="C1",Tabla1[[#This Row],[Zona Climática]]="C2",Tabla1[[#This Row],[Zona Climática]]="C3",Tabla1[[#This Row],[Zona Climática]]="C4")),"C",(IF((OR(Tabla1[[#This Row],[Zona Climática]]="D1",Tabla1[[#This Row],[Zona Climática]]="D2",Tabla1[[#This Row],[Zona Climática]]="D3",Tabla1[[#This Row],[Zona Climática]]="D4")),"D","E"))))))))) -> D | E33: D3 | F33: 37.1858114 | G33: -2.4390708 | H33: =CONCATENATE(Tabla1[[#This Row],[Latitud N]],", ",Tabla1[[#This Row],[Longitud W]]) -> 37,1858114, -2,4390708 | I33: 939 | J33: SI | K33: =ROUND((IF(Tabla1[[#This Row],[Altitud (m)]]<(VLOOKUP(Tabla1[[#This Row],[Provincia]],AUX_LOCALIDADES!$A$2:$D$54,3,FALSE)),(VLOOKUP(Tabla1[[#This Row],[Provincia]],AUX_LOCALIDADES!$A$2:$D$54,4,FALSE)),((VLOOKUP(Tabla1[[#This Row],[Provincia]],AUX_LOCALIDADES!$A$2:$D$54,4,FALSE))-((Tabla1[[#This Row],[Altitud (m)]]-(VLOOKUP(Tabla1[[#This Row],[Provincia]],AUX_LOCALIDADES!$A$2:$D$54,3,FALSE)))/100)))),1) -> 3.1 | L33: =IF((ROUND((IF(Tabla1[[#This Row],[Altitud (m)]]>=(VLOOKUP(Tabla1[[#This Row],[Provincia]],AUX_LOCALIDADES!$A$2:$D$54,3,FALSE)),(((VLOOKUP(Tabla1[[#This Row],[Provincia]],AUX_LOCALIDADES!$A$3:$Q$54,17,FALSE))/(IF(Tabla1[[#This Row],[Text media Enero (ºC)]]<0,(610.5*(EXP((21.875*Tabla1[[#This Row],[Text media Enero (ºC)]])/(265.5+Tabla1[[#This Row],[Text media Enero (ºC)]])))),(610.5*(EXP((17.269*Tabla1[[#This Row],[Text media Enero (ºC)]])/(237.3+Tabla1[[#This Row],[Text media Enero (ºC)]])))))))),((VLOOKUP(Tabla1[[#This Row],[Provincia]],AUX_LOCALIDADES!$S$3:$AG$54,4,FALSE))/100))),2))>1,1,(ROUND((IF(Tabla1[[#This Row],[Altitud (m)]]>=(VLOOKUP(Tabla1[[#This Row],[Provincia]],AUX_LOCALIDADES!$A$2:$D$54,3,FALSE)),(((VLOOKUP(Tabla1[[#This Row],[Provincia]],AUX_LOCALIDADES!$A$3:$Q$54,17,FALSE))/(IF(Tabla1[[#This Row],[Text media Enero (ºC)]]<0,(610.5*(EXP((21.875*Tabla1[[#This Row],[Text media Enero (ºC)]])/(265.5+Tabla1[[#This Row],[Text media Enero (ºC)]])))),(610.5*(EXP((17.269*Tabla1[[#This Row],[Text media Enero (ºC)]])/(237.3+Tabla1[[#This Row],[Text media Enero (ºC)]])))))))),((VLOOKUP(Tabla1[[#This Row],[Provincia]],AUX_LOCALIDADES!$S$3:$AG$54,4,FALSE))/100))),2))) -> 1 | M33: =IF(Tabla1[[#This Row],[Text media Enero (ºC)]]<0,(ROUND((610.5*(EXP((21.875*Tabla1[[#This Row],[Text media Enero (ºC)]])/(265.5+Tabla1[[#This Row],[Text media Enero (ºC)]])))),2)),(ROUND((610.5*(EXP((17.269*Tabla1[[#This Row],[Text media Enero (ºC)]])/(237.3+Tabla1[[#This Row],[Text media Enero (ºC)]])))),2))) -> 762.78 | N33: =ROUND((Tabla1[[#This Row],[Psat (Pa)]]*Tabla1[[#This Row],[HRext Enero (tanto por 1)]]),2) -> 762.78
A34: Andalucía | B34: Almería | C34: Chercos | D34: =IF((OR(Tabla1[[#This Row],[Zona Climática]]="α1",Tabla1[[#This Row],[Zona Climática]]="α2",Tabla1[[#This Row],[Zona Climática]]="α3",Tabla1[[#This Row],[Zona Climática]]="α4")),"α",(IF((OR(Tabla1[[#This Row],[Zona Climática]]="A1",Tabla1[[#This Row],[Zona Climática]]="A2",Tabla1[[#This Row],[Zona Climática]]="A3",Tabla1[[#This Row],[Zona Climática]]="A4")),"A",(IF((OR(Tabla1[[#This Row],[Zona Climática]]="B1",Tabla1[[#This Row],[Zona Climática]]="B2",Tabla1[[#This Row],[Zona Climática]]="B3",Tabla1[[#This Row],[Zona Climática]]="B4")),"B",(IF((OR(Tabla1[[#This Row],[Zona Climática]]="C1",Tabla1[[#This Row],[Zona Climática]]="C2",Tabla1[[#This Row],[Zona Climática]]="C3",Tabla1[[#This Row],[Zona Climática]]="C4")),"C",(IF((OR(Tabla1[[#This Row],[Zona Climática]]="D1",Tabla1[[#This Row],[Zona Climática]]="D2",Tabla1[[#This Row],[Zona Climática]]="D3",Tabla1[[#This Row],[Zona Climática]]="D4")),"D","E"))))))))) -> D | E34: D3 | F34: 37.2556153 | G34: -2.2647883 | H34: =CONCATENATE(Tabla1[[#This Row],[Latitud N]],", ",Tabla1[[#This Row],[Longitud W]]) -> 37,2556153, -2,2647883 | I34: 919 | J34: SI | K34: =ROUND((IF(Tabla1[[#This Row],[Altitud (m)]]<(VLOOKUP(Tabla1[[#This Row],[Provincia]],AUX_LOCALIDADES!$A$2:$D$54,3,FALSE)),(VLOOKUP(Tabla1[[#This Row],[Provincia]],AUX_LOCALIDADES!$A$2:$D$54,4,FALSE)),((VLOOKUP(Tabla1[[#This Row],[Provincia]],AUX_LOCALIDADES!$A$2:$D$54,4,FALSE))-((Tabla1[[#This Row],[Altitud (m)]]-(VLOOKUP(Tabla1[[#This Row],[Provincia]],AUX_LOCALIDADES!$A$2:$D$54,3,FALSE)))/100)))),1) -> 3.3 | L34: =IF((ROUND((IF(Tabla1[[#This Row],[Altitud (m)]]>=(VLOOKUP(Tabla1[[#This Row],[Provincia]],AUX_LOCALIDADES!$A$2:$D$54,3,FALSE)),(((VLOOKUP(Tabla1[[#This Row],[Provincia]],AUX_LOCALIDADES!$A$3:$Q$54,17,FALSE))/(IF(Tabla1[[#This Row],[Text media Enero (ºC)]]<0,(610.5*(EXP((21.875*Tabla1[[#This Row],[Text media Enero (ºC)]])/(265.5+Tabla1[[#This Row],[Text media Enero (ºC)]])))),(610.5*(EXP((17.269*Tabla1[[#This Row],[Text media Enero (ºC)]])/(237.3+Tabla1[[#This Row],[Text media Enero (ºC)]])))))))),((VLOOKUP(Tabla1[[#This Row],[Provincia]],AUX_LOCALIDADES!$S$3:$AG$54,4,FALSE))/100))),2))>1,1,(ROUND((IF(Tabla1[[#This Row],[Altitud (m)]]>=(VLOOKUP(Tabla1[[#This Row],[Provincia]],AUX_LOCALIDADES!$A$2:$D$54,3,FALSE)),(((VLOOKUP(Tabla1[[#This Row],[Provincia]],AUX_LOCALIDADES!$A$3:$Q$54,17,FALSE))/(IF(Tabla1[[#This Row],[Text media Enero (ºC)]]<0,(610.5*(EXP((21.875*Tabla1[[#This Row],[Text media Enero (ºC)]])/(265.5+Tabla1[[#This Row],[Text media Enero (ºC)]])))),(610.5*(EXP((17.269*Tabla1[[#This Row],[Text media Enero (ºC)]])/(237.3+Tabla1[[#This Row],[Text media Enero (ºC)]])))))))),((VLOOKUP(Tabla1[[#This Row],[Provincia]],AUX_LOCALIDADES!$S$3:$AG$54,4,FALSE))/100))),2))) -> 1 | M34: =IF(Tabla1[[#This Row],[Text media Enero (ºC)]]<0,(ROUND((610.5*(EXP((21.875*Tabla1[[#This Row],[Text media Enero (ºC)]])/(265.5+Tabla1[[#This Row],[Text media Enero (ºC)]])))),2)),(ROUND((610.5*(EXP((17.269*Tabla1[[#This Row],[Text media Enero (ºC)]])/(237.3+Tabla1[[#This Row],[Text media Enero (ºC)]])))),2))) -> 773.66 | N34: =ROUND((Tabla1[[#This Row],[Psat (Pa)]]*Tabla1[[#This Row],[HRext Enero (tanto por 1)]]),2) -> 773.66
A35: Andalucía | B35: Almería | C35: Chirivel | D35: =IF((OR(Tabla1[[#This Row],[Zona Climática]]="α1",Tabla1[[#This Row],[Zona Climática]]="α2",Tabla1[[#This Row],[Zona Climática]]="α3",Tabla1[[#This Row],[Zona Climática]]="α4")),"α",(IF((OR(Tabla1[[#This Row],[Zona Climática]]="A1",Tabla1[[#This Row],[Zona Climática]]="A2",Tabla1[[#This Row],[Zona Climática]]="A3",Tabla1[[#This Row],[Zona Climática]]="A4")),"A",(IF((OR(Tabla1[[#This Row],[Zona Climática]]="B1",Tabla1[[#This Row],[Zona Climática]]="B2",Tabla1[[#This Row],[Zona Climática]]="B3",Tabla1[[#This Row],[Zona Climática]]="B4")),"B",(IF((OR(Tabla1[[#This Row],[Zona Climática]]="C1",Tabla1[[#This Row],[Zona Climática]]="C2",Tabla1[[#This Row],[Zona Climática]]="C3",Tabla1[[#This Row],[Zona Climática]]="C4")),"C",(IF((OR(Tabla1[[#This Row],[Zona Climática]]="D1",Tabla1[[#This Row],[Zona Climática]]="D2",Tabla1[[#This Row],[Zona Climática]]="D3",Tabla1[[#This Row],[Zona Climática]]="D4")),"D","E"))))))))) -> D | E35: D3 | F35: 37.5967756 | G35: -2.2656357 | H35: =CONCATENATE(Tabla1[[#This Row],[Latitud N]],", ",Tabla1[[#This Row],[Longitud W]]) -> 37,5967756, -2,2656357 | I35: 1038 | J35: SI | K35: =ROUND((IF(Tabla1[[#This Row],[Altitud (m)]]<(VLOOKUP(Tabla1[[#This Row],[Provincia]],AUX_LOCALIDADES!$A$2:$D$54,3,FALSE)),(VLOOKUP(Tabla1[[#This Row],[Provincia]],AUX_LOCALIDADES!$A$2:$D$54,4,FALSE)),((VLOOKUP(Tabla1[[#This Row],[Provincia]],AUX_LOCALIDADES!$A$2:$D$54,4,FALSE))-((Tabla1[[#This Row],[Altitud (m)]]-(VLOOKUP(Tabla1[[#This Row],[Provincia]],AUX_LOCALIDADES!$A$2:$D$54,3,FALSE)))/100)))),1) -> 2.1 | L35: =IF((ROUND((IF(Tabla1[[#This Row],[Altitud (m)]]>=(VLOOKUP(Tabla1[[#This Row],[Provincia]],AUX_LOCALIDADES!$A$2:$D$54,3,FALSE)),(((VLOOKUP(Tabla1[[#This Row],[Provincia]],AUX_LOCALIDADES!$A$3:$Q$54,17,FALSE))/(IF(Tabla1[[#This Row],[Text media Enero (ºC)]]<0,(610.5*(EXP((21.875*Tabla1[[#This Row],[Text media Enero (ºC)]])/(265.5+Tabla1[[#This Row],[Text media Enero (ºC)]])))),(610.5*(EXP((17.269*Tabla1[[#This Row],[Text media Enero (ºC)]])/(237.3+Tabla1[[#This Row],[Text media Enero (ºC)]])))))))),((VLOOKUP(Tabla1[[#This Row],[Provincia]],AUX_LOCALIDADES!$S$3:$AG$54,4,FALSE))/100))),2))>1,1,(ROUND((IF(Tabla1[[#This Row],[Altitud (m)]]>=(VLOOKUP(Tabla1[[#This Row],[Provincia]],AUX_LOCALIDADES!$A$2:$D$54,3,FALSE)),(((VLOOKUP(Tabla1[[#This Row],[Provincia]],AUX_LOCALIDADES!$A$3:$Q$54,17,FALSE))/(IF(Tabla1[[#This Row],[Text media Enero (ºC)]]<0,(610.5*(EXP((21.875*Tabla1[[#This Row],[Text media Enero (ºC)]])/(265.5+Tabla1[[#This Row],[Text media Enero (ºC)]])))),(610.5*(EXP((17.269*Tabla1[[#This Row],[Text media Enero (ºC)]])/(237.3+Tabla1[[#This Row],[Text media Enero (ºC)]])))))))),((VLOOKUP(Tabla1[[#This Row],[Provincia]],AUX_LOCALIDADES!$S$3:$AG$54,4,FALSE))/100))),2))) -> 1 | M35: =IF(Tabla1[[#This Row],[Text media Enero (ºC)]]<0,(ROUND((610.5*(EXP((21.875*Tabla1[[#This Row],[Text media Enero (ºC)]])/(265.5+Tabla1[[#This Row],[Text media Enero (ºC)]])))),2)),(ROUND((610.5*(EXP((17.269*Tabla1[[#This Row],[Text media Enero (ºC)]])/(237.3+Tabla1[[#This Row],[Text media Enero (ºC)]])))),2))) -> 710.35 | N35: =ROUND((Tabla1[[#This Row],[Psat (Pa)]]*Tabla1[[#This Row],[HRext Enero (tanto por 1)]]),2) -> 710.35
A36: Andalucía | B36: Almería | C36: Cóbdar | D36: =IF((OR(Tabla1[[#This Row],[Zona Climática]]="α1",Tabla1[[#This Row],[Zona Climática]]="α2",Tabla1[[#This Row],[Zona Climática]]="α3",Tabla1[[#This Row],[Zona Climática]]="α4")),"α",(IF((OR(Tabla1[[#This Row],[Zona Climática]]="A1",Tabla1[[#This Row],[Zona Climática]]="A2",Tabla1[[#This Row],[Zona Climática]]="A3",Tabla1[[#This Row],[Zona Climática]]="A4")),"A",(IF((OR(Tabla1[[#This Row],[Zona Climática]]="B1",Tabla1[[#This Row],[Zona Climática]]="B2",Tabla1[[#This Row],[Zona Climática]]="B3",Tabla1[[#This Row],[Zona Climática]]="B4")),"B",(IF((OR(Tabla1[[#This Row],[Zona Climática]]="C1",Tabla1[[#This Row],[Zona Climática]]="C2",Tabla1[[#This Row],[Zona Climática]]="C3",Tabla1[[#This Row],[Zona Climática]]="C4")),"C",(IF((OR(Tabla1[[#This Row],[Zona Climática]]="D1",Tabla1[[#This Row],[Zona Climática]]="D2",Tabla1[[#This Row],[Zona Climática]]="D3",Tabla1[[#This Row],[Zona Climática]]="D4")),"D","E"))))))))) -> C | E36: C3 | F36: 37.2628369 | G36: -2.2104751 | H36: =CONCATENATE(Tabla1[[#This Row],[Latitud N]],", ",Tabla1[[#This Row],[Longitud W]]) -> 37,2628369, -2,2104751 | I36: 607 | J36: SI | K36: =ROUND((IF(Tabla1[[#This Row],[Altitud (m)]]<(VLOOKUP(Tabla1[[#This Row],[Provincia]],AUX_LOCALIDADES!$A$2:$D$54,3,FALSE)),(VLOOKUP(Tabla1[[#This Row],[Provincia]],AUX_LOCALIDADES!$A$2:$D$54,4,FALSE)),((VLOOKUP(Tabla1[[#This Row],[Provincia]],AUX_LOCALIDADES!$A$2:$D$54,4,FALSE))-((Tabla1[[#This Row],[Altitud (m)]]-(VLOOKUP(Tabla1[[#This Row],[Provincia]],AUX_LOCALIDADES!$A$2:$D$54,3,FALSE)))/100)))),1) -> 6.4 | L36: =IF((ROUND((IF(Tabla1[[#This Row],[Altitud (m)]]>=(VLOOKUP(Tabla1[[#This Row],[Provincia]],AUX_LOCALIDADES!$A$2:$D$54,3,FALSE)),(((VLOOKUP(Tabla1[[#This Row],[Provincia]],AUX_LOCALIDADES!$A$3:$Q$54,17,FALSE))/(IF(Tabla1[[#This Row],[Text media Enero (ºC)]]<0,(610.5*(EXP((21.875*Tabla1[[#This Row],[Text media Enero (ºC)]])/(265.5+Tabla1[[#This Row],[Text media Enero (ºC)]])))),(610.5*(EXP((17.269*Tabla1[[#This Row],[Text media Enero (ºC)]])/(237.3+Tabla1[[#This Row],[Text media Enero (ºC)]])))))))),((VLOOKUP(Tabla1[[#This Row],[Provincia]],AUX_LOCALIDADES!$S$3:$AG$54,4,FALSE))/100))),2))>1,1,(ROUND((IF(Tabla1[[#This Row],[Altitud (m)]]>=(VLOOKUP(Tabla1[[#This Row],[Provincia]],AUX_LOCALIDADES!$A$2:$D$54,3,FALSE)),(((VLOOKUP(Tabla1[[#This Row],[Provincia]],AUX_LOCALIDADES!$A$3:$Q$54,17,FALSE))/(IF(Tabla1[[#This Row],[Text media Enero (ºC)]]<0,(610.5*(EXP((21.875*Tabla1[[#This Row],[Text media Enero (ºC)]])/(265.5+Tabla1[[#This Row],[Text media Enero (ºC)]])))),(610.5*(EXP((17.269*Tabla1[[#This Row],[Text media Enero (ºC)]])/(237.3+Tabla1[[#This Row],[Text media Enero (ºC)]])))))))),((VLOOKUP(Tabla1[[#This Row],[Provincia]],AUX_LOCALIDADES!$S$3:$AG$54,4,FALSE))/100))),2))) -> 1 | M36: =IF(Tabla1[[#This Row],[Text media Enero (ºC)]]<0,(ROUND((610.5*(EXP((21.875*Tabla1[[#This Row],[Text media Enero (ºC)]])/(265.5+Tabla1[[#This Row],[Text media Enero (ºC)]])))),2)),(ROUND((610.5*(EXP((17.269*Tabla1[[#This Row],[Text media Enero (ºC)]])/(237.3+Tabla1[[#This Row],[Text media Enero (ºC)]])))),2))) -> 960.83 | N36: =ROUND((Tabla1[[#This Row],[Psat (Pa)]]*Tabla1[[#This Row],[HRext Enero (tanto por 1)]]),2) -> 960.83
A37: Andalucía | B37: Almería | C37: Cuevas del Almanzora | D37: =IF((OR(Tabla1[[#This Row],[Zona Climática]]="α1",Tabla1[[#This Row],[Zona Climática]]="α2",Tabla1[[#This Row],[Zona Climática]]="α3",Tabla1[[#This Row],[Zona Climática]]="α4")),"α",(IF((OR(Tabla1[[#This Row],[Zona Climática]]="A1",Tabla1[[#This Row],[Zona Climática]]="A2",Tabla1[[#This Row],[Zona Climática]]="A3",Tabla1[[#This Row],[Zona Climática]]="A4")),"A",(IF((OR(Tabla1[[#This Row],[Zona Climática]]="B1",Tabla1[[#This Row],[Zona Climática]]="B2",Tabla1[[#This Row],[Zona Climática]]="B3",Tabla1[[#This Row],[Zona Climática]]="B4")),"B",(IF((OR(Tabla1[[#This Row],[Zona Climática]]="C1",Tabla1[[#This Row],[Zona Climática]]="C2",Tabla1[[#This Row],[Zona Climática]]="C3",Tabla1[[#This Row],[Zona Climática]]="C4")),"C",(IF((OR(Tabla1[[#This Row],[Zona Climática]]="D1",Tabla1[[#This Row],[Zona Climática]]="D2",Tabla1[[#This Row],[Zona Climática]]="D3",Tabla1[[#This Row],[Zona Climática]]="D4")),"D","E"))))))))) -> A | E37: A4 | F37: 37.2972078 | G37: -1.8790986 | H37: =CONCATENATE(Tabla1[[#This Row],[Latitud N]],", ",Tabla1[[#This Row],[Longitud W]]) -> 37,2972078, -1,8790986 | I37: 86 | J37: SI | K37: =ROUND((IF(Tabla1[[#This Row],[Altitud (m)]]<(VLOOKUP(Tabla1[[#This Row],[Provincia]],AUX_LOCALIDADES!$A$2:$D$54,3,FALSE)),(VLOOKUP(Tabla1[[#This Row],[Provincia]],AUX_LOCALIDADES!$A$2:$D$54,4,FALSE)),((VLOOKUP(Tabla1[[#This Row],[Provincia]],AUX_LOCALIDADES!$A$2:$D$54,4,FALSE))-((Tabla1[[#This Row],[Altitud (m)]]-(VLOOKUP(Tabla1[[#This Row],[Provincia]],AUX_LOCALIDADES!$A$2:$D$54,3,FALSE)))/100)))),1) -> 11.6 | L37: =IF((ROUND((IF(Tabla1[[#This Row],[Altitud (m)]]>=(VLOOKUP(Tabla1[[#This Row],[Provincia]],AUX_LOCALIDADES!$A$2:$D$54,3,FALSE)),(((VLOOKUP(Tabla1[[#This Row],[Provincia]],AUX_LOCALIDADES!$A$3:$Q$54,17,FALSE))/(IF(Tabla1[[#This Row],[Text media Enero (ºC)]]<0,(610.5*(EXP((21.875*Tabla1[[#This Row],[Text media Enero (ºC)]])/(265.5+Tabla1[[#This Row],[Text media Enero (ºC)]])))),(610.5*(EXP((17.269*Tabla1[[#This Row],[Text media Enero (ºC)]])/(237.3+Tabla1[[#This Row],[Text media Enero (ºC)]])))))))),((VLOOKUP(Tabla1[[#This Row],[Provincia]],AUX_LOCALIDADES!$S$3:$AG$54,4,FALSE))/100))),2))>1,1,(ROUND((IF(Tabla1[[#This Row],[Altitud (m)]]>=(VLOOKUP(Tabla1[[#This Row],[Provincia]],AUX_LOCALIDADES!$A$2:$D$54,3,FALSE)),(((VLOOKUP(Tabla1[[#This Row],[Provincia]],AUX_LOCALIDADES!$A$3:$Q$54,17,FALSE))/(IF(Tabla1[[#This Row],[Text media Enero (ºC)]]<0,(610.5*(EXP((21.875*Tabla1[[#This Row],[Text media Enero (ºC)]])/(265.5+Tabla1[[#This Row],[Text media Enero (ºC)]])))),(610.5*(EXP((17.269*Tabla1[[#This Row],[Text media Enero (ºC)]])/(237.3+Tabla1[[#This Row],[Text media Enero (ºC)]])))))))),((VLOOKUP(Tabla1[[#This Row],[Provincia]],AUX_LOCALIDADES!$S$3:$AG$54,4,FALSE))/100))),2))) -> 0.74 | M37: =IF(Tabla1[[#This Row],[Text media Enero (ºC)]]<0,(ROUND((610.5*(EXP((21.875*Tabla1[[#This Row],[Text media Enero (ºC)]])/(265.5+Tabla1[[#This Row],[Text media Enero (ºC)]])))),2)),(ROUND((610.5*(EXP((17.269*Tabla1[[#This Row],[Text media Enero (ºC)]])/(237.3+Tabla1[[#This Row],[Text media Enero (ºC)]])))),2))) -> 1365.26 | N37: =ROUND((Tabla1[[#This Row],[Psat (Pa)]]*Tabla1[[#This Row],[HRext Enero (tanto por 1)]]),2) -> 1010.29
A38: Andalucía | B38: Almería | C38: Dalías | D38: =IF((OR(Tabla1[[#This Row],[Zona Climática]]="α1",Tabla1[[#This Row],[Zona Climática]]="α2",Tabla1[[#This Row],[Zona Climática]]="α3",Tabla1[[#This Row],[Zona Climática]]="α4")),"α",(IF((OR(Tabla1[[#This Row],[Zona Climática]]="A1",Tabla1[[#This Row],[Zona Climática]]="A2",Tabla1[[#This Row],[Zona Climática]]="A3",Tabla1[[#This Row],[Zona Climática]]="A4")),"A",(IF((OR(Tabla1[[#This Row],[Zona Climática]]="B1",Tabla1[[#This Row],[Zona Climática]]="B2",Tabla1[[#This Row],[Zona Climática]]="B3",Tabla1[[#This Row],[Zona Climática]]="B4")),"B",(IF((OR(Tabla1[[#This Row],[Zona Climática]]="C1",Tabla1[[#This Row],[Zona Climática]]="C2",Tabla1[[#This Row],[Zona Climática]]="C3",Tabla1[[#This Row],[Zona Climática]]="C4")),"C",(IF((OR(Tabla1[[#This Row],[Zona Climática]]="D1",Tabla1[[#This Row],[Zona Climática]]="D2",Tabla1[[#This Row],[Zona Climática]]="D3",Tabla1[[#This Row],[Zona Climática]]="D4")),"D","E"))))))))) -> C | E38: C3 | F38: 36.8219924 | G38: -2.868815 | H38: =CONCATENATE(Tabla1[[#This Row],[Latitud N]],", ",Tabla1[[#This Row],[Longitud W]]) -> 36,8219924, -2,868815 | I38: 414 | J38: SI | K38: =ROUND((IF(Tabla1[[#This Row],[Altitud (m)]]<(VLOOKUP(Tabla1[[#This Row],[Provincia]],AUX_LOCALIDADES!$A$2:$D$54,3,FALSE)),(VLOOKUP(Tabla1[[#This Row],[Provincia]],AUX_LOCALIDADES!$A$2:$D$54,4,FALSE)),((VLOOKUP(Tabla1[[#This Row],[Provincia]],AUX_LOCALIDADES!$A$2:$D$54,4,FALSE))-((Tabla1[[#This Row],[Altitud (m)]]-(VLOOKUP(Tabla1[[#This Row],[Provincia]],AUX_LOCALIDADES!$A$2:$D$54,3,FALSE)))/100)))),1) -> 8.4 | L38: =IF((ROUND((IF(Tabla1[[#This Row],[Altitud (m)]]>=(VLOOKUP(Tabla1[[#This Row],[Provincia]],AUX_LOCALIDADES!$A$2:$D$54,3,FALSE)),(((VLOOKUP(Tabla1[[#This Row],[Provincia]],AUX_LOCALIDADES!$A$3:$Q$54,17,FALSE))/(IF(Tabla1[[#This Row],[Text media Enero (ºC)]]<0,(610.5*(EXP((21.875*Tabla1[[#This Row],[Text media Enero (ºC)]])/(265.5+Tabla1[[#This Row],[Text media Enero (ºC)]])))),(610.5*(EXP((17.269*Tabla1[[#This Row],[Text media Enero (ºC)]])/(237.3+Tabla1[[#This Row],[Text media Enero (ºC)]])))))))),((VLOOKUP(Tabla1[[#This Row],[Provincia]],AUX_LOCALIDADES!$S$3:$AG$54,4,FALSE))/100))),2))>1,1,(ROUND((IF(Tabla1[[#This Row],[Altitud (m)]]>=(VLOOKUP(Tabla1[[#This Row],[Provincia]],AUX_LOCALIDADES!$A$2:$D$54,3,FALSE)),(((VLOOKUP(Tabla1[[#This Row],[Provincia]],AUX_LOCALIDADES!$A$3:$Q$54,17,FALSE))/(IF(Tabla1[[#This Row],[Text media Enero (ºC)]]<0,(610.5*(EXP((21.875*Tabla1[[#This Row],[Text media Enero (ºC)]])/(265.5+Tabla1[[#This Row],[Text media Enero (ºC)]])))),(610.5*(EXP((17.269*Tabla1[[#This Row],[Text media Enero (ºC)]])/(237.3+Tabla1[[#This Row],[Text media Enero (ºC)]])))))))),((VLOOKUP(Tabla1[[#This Row],[Provincia]],AUX_LOCALIDADES!$S$3:$AG$54,4,FALSE))/100))),2))) -> 0.91 | M38: =IF(Tabla1[[#This Row],[Text media Enero (ºC)]]<0,(ROUND((610.5*(EXP((21.875*Tabla1[[#This Row],[Text media Enero (ºC)]])/(265.5+Tabla1[[#This Row],[Text media Enero (ºC)]])))),2)),(ROUND((610.5*(EXP((17.269*Tabla1[[#This Row],[Text media Enero (ºC)]])/(237.3+Tabla1[[#This Row],[Text media Enero (ºC)]])))),2))) -> 1101.77 | N38: =ROUND((Tabla1[[#This Row],[Psat (Pa)]]*Tabla1[[#This Row],[HRext Enero (tanto por 1)]]),2) -> 1002.61
A39: Andalucía | B39: Almería | C39: Ejido, El | D39: =IF((OR(Tabla1[[#This Row],[Zona Climática]]="α1",Tabla1[[#This Row],[Zona Climática]]="α2",Tabla1[[#This Row],[Zona Climática]]="α3",Tabla1[[#This Row],[Zona Climática]]="α4")),"α",(IF((OR(Tabla1[[#This Row],[Zona Climática]]="A1",Tabla1[[#This Row],[Zona Climática]]="A2",Tabla1[[#This Row],[Zona Climática]]="A3",Tabla1[[#This Row],[Zona Climática]]="A4")),"A",(IF((OR(Tabla1[[#This Row],[Zona Climática]]="B1",Tabla1[[#This Row],[Zona Climática]]="B2",Tabla1[[#This Row],[Zona Climática]]="B3",Tabla1[[#This Row],[Zona Climática]]="B4")),"B",(IF((OR(Tabla1[[#This Row],[Zona Climática]]="C1",Tabla1[[#This Row],[Zona Climática]]="C2",Tabla1[[#This Row],[Zona Climática]]="C3",Tabla1[[#This Row],[Zona Climática]]="C4")),"C",(IF((OR(Tabla1[[#This Row],[Zona Climática]]="D1",Tabla1[[#This Row],[Zona Climática]]="D2",Tabla1[[#This Row],[Zona Climática]]="D3",Tabla1[[#This Row],[Zona Climática]]="D4")),"D","E"))))))))) -> A | E39: A4 | F39: 36.7736943 | G39: -2.815672 | H39: =CONCATENATE(Tabla1[[#This Row],[Latitud N]],", ",Tabla1[[#This Row],[Longitud W]]) -> 36,7736943, -2,815672 | I39: 80 | J39: SI | K39: =ROUND((IF(Tabla1[[#This Row],[Altitud (m)]]<(VLOOKUP(Tabla1[[#This Row],[Provincia]],AUX_LOCALIDADES!$A$2:$D$54,3,FALSE)),(VLOOKUP(Tabla1[[#This Row],[Provincia]],AUX_LOCALIDADES!$A$2:$D$54,4,FALSE)),((VLOOKUP(Tabla1[[#This Row],[Provincia]],AUX_LOCALIDADES!$A$2:$D$54,4,FALSE))-((Tabla1[[#This Row],[Altitud (m)]]-(VLOOKUP(Tabla1[[#This Row],[Provincia]],AUX_LOCALIDADES!$A$2:$D$54,3,FALSE)))/100)))),1) -> 11.7 | L39: =IF((ROUND((IF(Tabla1[[#This Row],[Altitud (m)]]>=(VLOOKUP(Tabla1[[#This Row],[Provincia]],AUX_LOCALIDADES!$A$2:$D$54,3,FALSE)),(((VLOOKUP(Tabla1[[#This Row],[Provincia]],AUX_LOCALIDADES!$A$3:$Q$54,17,FALSE))/(IF(Tabla1[[#This Row],[Text media Enero (ºC)]]<0,(610.5*(EXP((21.875*Tabla1[[#This Row],[Text media Enero (ºC)]])/(265.5+Tabla1[[#This Row],[Text media Enero (ºC)]])))),(610.5*(EXP((17.269*Tabla1[[#This Row],[Text media Enero (ºC)]])/(237.3+Tabla1[[#This Row],[Text media Enero (ºC)]])))))))),((VLOOKUP(Tabla1[[#This Row],[Provincia]],AUX_LOCALIDADES!$S$3:$AG$54,4,FALSE))/100))),2))>1,1,(ROUND((IF(Tabla1[[#This Row],[Altitud (m)]]>=(VLOOKUP(Tabla1[[#This Row],[Provincia]],AUX_LOCALIDADES!$A$2:$D$54,3,FALSE)),(((VLOOKUP(Tabla1[[#This Row],[Provincia]],AUX_LOCALIDADES!$A$3:$Q$54,17,FALSE))/(IF(Tabla1[[#This Row],[Text media Enero (ºC)]]<0,(610.5*(EXP((21.875*Tabla1[[#This Row],[Text media Enero (ºC)]])/(265.5+Tabla1[[#This Row],[Text media Enero (ºC)]])))),(610.5*(EXP((17.269*Tabla1[[#This Row],[Text media Enero (ºC)]])/(237.3+Tabla1[[#This Row],[Text media Enero (ºC)]])))))))),((VLOOKUP(Tabla1[[#This Row],[Provincia]],AUX_LOCALIDADES!$S$3:$AG$54,4,FALSE))/100))),2))) -> 0.73 | M39: =IF(Tabla1[[#This Row],[Text media Enero (ºC)]]<0,(ROUND((610.5*(EXP((21.875*Tabla1[[#This Row],[Text media Enero (ºC)]])/(265.5+Tabla1[[#This Row],[Text media Enero (ºC)]])))),2)),(ROUND((610.5*(EXP((17.269*Tabla1[[#This Row],[Text media Enero (ºC)]])/(237.3+Tabla1[[#This Row],[Text media Enero (ºC)]])))),2))) -> 1374.32 | N39: =ROUND((Tabla1[[#This Row],[Psat (Pa)]]*Tabla1[[#This Row],[HRext Enero (tanto por 1)]]),2) -> 1003.25
A40: Andalucía | B40: Almería | C40: Enix | D40: =IF((OR(Tabla1[[#This Row],[Zona Climática]]="α1",Tabla1[[#This Row],[Zona Climática]]="α2",Tabla1[[#This Row],[Zona Climática]]="α3",Tabla1[[#This Row],[Zona Climática]]="α4")),"α",(IF((OR(Tabla1[[#This Row],[Zona Climática]]="A1",Tabla1[[#This Row],[Zona Climática]]="A2",Tabla1[[#This Row],[Zona Climática]]="A3",Tabla1[[#This Row],[Zona Climática]]="A4")),"A",(IF((OR(Tabla1[[#This Row],[Zona Climática]]="B1",Tabla1[[#This Row],[Zona Climática]]="B2",Tabla1[[#This Row],[Zona Climática]]="B3",Tabla1[[#This Row],[Zona Climática]]="B4")),"B",(IF((OR(Tabla1[[#This Row],[Zona Climática]]="C1",Tabla1[[#This Row],[Zona Climática]]="C2",Tabla1[[#This Row],[Zona Climática]]="C3",Tabla1[[#This Row],[Zona Climática]]="C4")),"C",(IF((OR(Tabla1[[#This Row],[Zona Climática]]="D1",Tabla1[[#This Row],[Zona Climática]]="D2",Tabla1[[#This Row],[Zona Climática]]="D3",Tabla1[[#This Row],[Zona Climática]]="D4")),"D","E"))))))))) -> C | E40: C3 | F40: 36.8782763 | G40: -2.601108 | H40: =CONCATENATE(Tabla1[[#This Row],[Latitud N]],", ",Tabla1[[#This Row],[Longitud W]]) -> 36,8782763, -2,601108 | I40: 723 | J40: SI | K40: =ROUND((IF(Tabla1[[#This Row],[Altitud (m)]]<(VLOOKUP(Tabla1[[#This Row],[Provincia]],AUX_LOCALIDADES!$A$2:$D$54,3,FALSE)),(VLOOKUP(Tabla1[[#This Row],[Provincia]],AUX_LOCALIDADES!$A$2:$D$54,4,FALSE)),((VLOOKUP(Tabla1[[#This Row],[Provincia]],AUX_LOCALIDADES!$A$2:$D$54,4,FALSE))-((Tabla1[[#This Row],[Altitud (m)]]-(VLOOKUP(Tabla1[[#This Row],[Provincia]],AUX_LOCALIDADES!$A$2:$D$54,3,FALSE)))/100)))),1) -> 5.3 | L40: =IF((ROUND((IF(Tabla1[[#This Row],[Altitud (m)]]>=(VLOOKUP(Tabla1[[#This Row],[Provincia]],AUX_LOCALIDADES!$A$2:$D$54,3,FALSE)),(((VLOOKUP(Tabla1[[#This Row],[Provincia]],AUX_LOCALIDADES!$A$3:$Q$54,17,FALSE))/(IF(Tabla1[[#This Row],[Text media Enero (ºC)]]<0,(610.5*(EXP((21.875*Tabla1[[#This Row],[Text media Enero (ºC)]])/(265.5+Tabla1[[#This Row],[Text media Enero (ºC)]])))),(610.5*(EXP((17.269*Tabla1[[#This Row],[Text media Enero (ºC)]])/(237.3+Tabla1[[#This Row],[Text media Enero (ºC)]])))))))),((VLOOKUP(Tabla1[[#This Row],[Provincia]],AUX_LOCALIDADES!$S$3:$AG$54,4,FALSE))/100))),2))>1,1,(ROUND((IF(Tabla1[[#This Row],[Altitud (m)]]>=(VLOOKUP(Tabla1[[#This Row],[Provincia]],AUX_LOCALIDADES!$A$2:$D$54,3,FALSE)),(((VLOOKUP(Tabla1[[#This Row],[Provincia]],AUX_LOCALIDADES!$A$3:$Q$54,17,FALSE))/(IF(Tabla1[[#This Row],[Text media Enero (ºC)]]<0,(610.5*(EXP((21.875*Tabla1[[#This Row],[Text media Enero (ºC)]])/(265.5+Tabla1[[#This Row],[Text media Enero (ºC)]])))),(610.5*(EXP((17.269*Tabla1[[#This Row],[Text media Enero (ºC)]])/(237.3+Tabla1[[#This Row],[Text media Enero (ºC)]])))))))),((VLOOKUP(Tabla1[[#This Row],[Provincia]],AUX_LOCALIDADES!$S$3:$AG$54,4,FALSE))/100))),2))) -> 1 | M40: =IF(Tabla1[[#This Row],[Text media Enero (ºC)]]<0,(ROUND((610.5*(EXP((21.875*Tabla1[[#This Row],[Text media Enero (ºC)]])/(265.5+Tabla1[[#This Row],[Text media Enero (ºC)]])))),2)),(ROUND((610.5*(EXP((17.269*Tabla1[[#This Row],[Text media Enero (ºC)]])/(237.3+Tabla1[[#This Row],[Text media Enero (ºC)]])))),2))) -> 890.29 | N40: =ROUND((Tabla1[[#This Row],[Psat (Pa)]]*Tabla1[[#This Row],[HRext Enero (tanto por 1)]]),2) -> 890.29
A41: Andalucía | B41: Almería | C41: Felix | D41: =IF((OR(Tabla1[[#This Row],[Zona Climática]]="α1",Tabla1[[#This Row],[Zona Climática]]="α2",Tabla1[[#This Row],[Zona Climática]]="α3",Tabla1[[#This Row],[Zona Climática]]="α4")),"α",(IF((OR(Tabla1[[#This Row],[Zona Climática]]="A1",Tabla1[[#This Row],[Zona Climática]]="A2",Tabla1[[#This Row],[Zona Climática]]="A3",Tabla1[[#This Row],[Zona Climática]]="A4")),"A",(IF((OR(Tabla1[[#This Row],[Zona Climática]]="B1",Tabla1[[#This Row],[Zona Climática]]="B2",Tabla1[[#This Row],[Zona Climática]]="B3",Tabla1[[#This Row],[Zona Climática]]="B4")),"B",(IF((OR(Tabla1[[#This Row],[Zona Climática]]="C1",Tabla1[[#This Row],[Zona Climática]]="C2",Tabla1[[#This Row],[Zona Climática]]="C3",Tabla1[[#This Row],[Zona Climática]]="C4")),"C",(IF((OR(Tabla1[[#This Row],[Zona Climática]]="D1",Tabla1[[#This Row],[Zona Climática]]="D2",Tabla1[[#This Row],[Zona Climática]]="D3",Tabla1[[#This Row],[Zona Climática]]="D4")),"D","E"))))))))) -> D | E41: D3 | F41: 36.8697993 | G41: -2.6578096 | H41: =CONCATENATE(Tabla1[[#This Row],[Latitud N]],", ",Tabla1[[#This Row],[Longitud W]]) -> 36,8697993, -2,6578096 | I41: 812 | J41: SI | K41: =ROUND((IF(Tabla1[[#This Row],[Altitud (m)]]<(VLOOKUP(Tabla1[[#This Row],[Provincia]],AUX_LOCALIDADES!$A$2:$D$54,3,FALSE)),(VLOOKUP(Tabla1[[#This Row],[Provincia]],AUX_LOCALIDADES!$A$2:$D$54,4,FALSE)),((VLOOKUP(Tabla1[[#This Row],[Provincia]],AUX_LOCALIDADES!$A$2:$D$54,4,FALSE))-((Tabla1[[#This Row],[Altitud (m)]]-(VLOOKUP(Tabla1[[#This Row],[Provincia]],AUX_LOCALIDADES!$A$2:$D$54,3,FALSE)))/100)))),1) -> 4.4 | L41: =IF((ROUND((IF(Tabla1[[#This Row],[Altitud (m)]]>=(VLOOKUP(Tabla1[[#This Row],[Provincia]],AUX_LOCALIDADES!$A$2:$D$54,3,FALSE)),(((VLOOKUP(Tabla1[[#This Row],[Provincia]],AUX_LOCALIDADES!$A$3:$Q$54,17,FALSE))/(IF(Tabla1[[#This Row],[Text media Enero (ºC)]]<0,(610.5*(EXP((21.875*Tabla1[[#This Row],[Text media Enero (ºC)]])/(265.5+Tabla1[[#This Row],[Text media Enero (ºC)]])))),(610.5*(EXP((17.269*Tabla1[[#This Row],[Text media Enero (ºC)]])/(237.3+Tabla1[[#This Row],[Text media Enero (ºC)]])))))))),((VLOOKUP(Tabla1[[#This Row],[Provincia]],AUX_LOCALIDADES!$S$3:$AG$54,4,FALSE))/100))),2))>1,1,(ROUND((IF(Tabla1[[#This Row],[Altitud (m)]]>=(VLOOKUP(Tabla1[[#This Row],[Provincia]],AUX_LOCALIDADES!$A$2:$D$54,3,FALSE)),(((VLOOKUP(Tabla1[[#This Row],[Provincia]],AUX_LOCALIDADES!$A$3:$Q$54,17,FALSE))/(IF(Tabla1[[#This Row],[Text media Enero (ºC)]]<0,(610.5*(EXP((21.875*Tabla1[[#This Row],[Text media Enero (ºC)]])/(265.5+Tabla1[[#This Row],[Text media Enero (ºC)]])))),(610.5*(EXP((17.269*Tabla1[[#This Row],[Text media Enero (ºC)]])/(237.3+Tabla1[[#This Row],[Text media Enero (ºC)]])))))))),((VLOOKUP(Tabla1[[#This Row],[Provincia]],AUX_LOCALIDADES!$S$3:$AG$54,4,FALSE))/100))),2))) -> 1 | M41: =IF(Tabla1[[#This Row],[Text media Enero (ºC)]]<0,(ROUND((610.5*(EXP((21.875*Tabla1[[#This Row],[Text media Enero (ºC)]])/(265.5+Tabla1[[#This Row],[Text media Enero (ºC)]])))),2)),(ROUND((610.5*(EXP((17.269*Tabla1[[#This Row],[Text media Enero (ºC)]])/(237.3+Tabla1[[#This Row],[Text media Enero (ºC)]])))),2))) -> 836.02 | N41: =ROUND((Tabla1[[#This Row],[Psat (Pa)]]*Tabla1[[#This Row],[HRext Enero (tanto por 1)]]),2) -> 836.02
A42: Andalucía | B42: Almería | C42: Fines | D42: =IF((OR(Tabla1[[#This Row],[Zona Climática]]="α1",Tabla1[[#This Row],[Zona Climática]]="α2",Tabla1[[#This Row],[Zona Climática]]="α3",Tabla1[[#This Row],[Zona Climática]]="α4")),"α",(IF((OR(Tabla1[[#This Row],[Zona Climática]]="A1",Tabla1[[#This Row],[Zona Climática]]="A2",Tabla1[[#This Row],[Zona Climática]]="A3",Tabla1[[#This Row],[Zona Climática]]="A4")),"A",(IF((OR(Tabla1[[#This Row],[Zona Climática]]="B1",Tabla1[[#This Row],[Zona Climática]]="B2",Tabla1[[#This Row],[Zona Climática]]="B3",Tabla1[[#This Row],[Zona Climática]]="B4")),"B",(IF((OR(Tabla1[[#This Row],[Zona Climática]]="C1",Tabla1[[#This Row],[Zona Climática]]="C2",Tabla1[[#This Row],[Zona Climática]]="C3",Tabla1[[#This Row],[Zona Climática]]="C4")),"C",(IF((OR(Tabla1[[#This Row],[Zona Climática]]="D1",Tabla1[[#This Row],[Zona Climática]]="D2",Tabla1[[#This Row],[Zona Climática]]="D3",Tabla1[[#This Row],[Zona Climática]]="D4")),"D","E"))))))))) -> C | E42: C3 | F42: 37.3606024 | G42: -2.261507 | H42: =CONCATENATE(Tabla1[[#This Row],[Latitud N]],", ",Tabla1[[#This Row],[Longitud W]]) -> 37,3606024, -2,261507 | I42: 443 | J42: SI | K42: =ROUND((IF(Tabla1[[#This Row],[Altitud (m)]]<(VLOOKUP(Tabla1[[#This Row],[Provincia]],AUX_LOCALIDADES!$A$2:$D$54,3,FALSE)),(VLOOKUP(Tabla1[[#This Row],[Provincia]],AUX_LOCALIDADES!$A$2:$D$54,4,FALSE)),((VLOOKUP(Tabla1[[#This Row],[Provincia]],AUX_LOCALIDADES!$A$2:$D$54,4,FALSE))-((Tabla1[[#This Row],[Altitud (m)]]-(VLOOKUP(Tabla1[[#This Row],[Provincia]],AUX_LOCALIDADES!$A$2:$D$54,3,FALSE)))/100)))),1) -> 8.1 | L42: =IF((ROUND((IF(Tabla1[[#This Row],[Altitud (m)]]>=(VLOOKUP(Tabla1[[#This Row],[Provincia]],AUX_LOCALIDADES!$A$2:$D$54,3,FALSE)),(((VLOOKUP(Tabla1[[#This Row],[Provincia]],AUX_LOCALIDADES!$A$3:$Q$54,17,FALSE))/(IF(Tabla1[[#This Row],[Text media Enero (ºC)]]<0,(610.5*(EXP((21.875*Tabla1[[#This Row],[Text media Enero (ºC)]])/(265.5+Tabla1[[#This Row],[Text media Enero (ºC)]])))),(610.5*(EXP((17.269*Tabla1[[#This Row],[Text media Enero (ºC)]])/(237.3+Tabla1[[#This Row],[Text media Enero (ºC)]])))))))),((VLOOKUP(Tabla1[[#This Row],[Provincia]],AUX_LOCALIDADES!$S$3:$AG$54,4,FALSE))/100))),2))>1,1,(ROUND((IF(Tabla1[[#This Row],[Altitud (m)]]>=(VLOOKUP(Tabla1[[#This Row],[Provincia]],AUX_LOCALIDADES!$A$2:$D$54,3,FALSE)),(((VLOOKUP(Tabla1[[#This Row],[Provincia]],AUX_LOCALIDADES!$A$3:$Q$54,17,FALSE))/(IF(Tabla1[[#This Row],[Text media Enero (ºC)]]<0,(610.5*(EXP((21.875*Tabla1[[#This Row],[Text media Enero (ºC)]])/(265.5+Tabla1[[#This Row],[Text media Enero (ºC)]])))),(610.5*(EXP((17.269*Tabla1[[#This Row],[Text media Enero (ºC)]])/(237.3+Tabla1[[#This Row],[Text media Enero (ºC)]])))))))),((VLOOKUP(Tabla1[[#This Row],[Provincia]],AUX_LOCALIDADES!$S$3:$AG$54,4,FALSE))/100))),2))) -> 0.93 | M42: =IF(Tabla1[[#This Row],[Text media Enero (ºC)]]<0,(ROUND((610.5*(EXP((21.875*Tabla1[[#This Row],[Text media Enero (ºC)]])/(265.5+Tabla1[[#This Row],[Text media Enero (ºC)]])))),2)),(ROUND((610.5*(EXP((17.269*Tabla1[[#This Row],[Text media Enero (ºC)]])/(237.3+Tabla1[[#This Row],[Text media Enero (ºC)]])))),2))) -> 1079.53 | N42: =ROUND((Tabla1[[#This Row],[Psat (Pa)]]*Tabla1[[#This Row],[HRext Enero (tanto por 1)]]),2) -> 1003.96
A43: Andalucía | B43: Almería | C43: Fiñana | D43: =IF((OR(Tabla1[[#This Row],[Zona Climática]]="α1",Tabla1[[#This Row],[Zona Climática]]="α2",Tabla1[[#This Row],[Zona Climática]]="α3",Tabla1[[#This Row],[Zona Climática]]="α4")),"α",(IF((OR(Tabla1[[#This Row],[Zona Climática]]="A1",Tabla1[[#This Row],[Zona Climática]]="A2",Tabla1[[#This Row],[Zona Climática]]="A3",Tabla1[[#This Row],[Zona Climática]]="A4")),"A",(IF((OR(Tabla1[[#This Row],[Zona Climática]]="B1",Tabla1[[#This Row],[Zona Climática]]="B2",Tabla1[[#This Row],[Zona Climática]]="B3",Tabla1[[#This Row],[Zona Climática]]="B4")),"B",(IF((OR(Tabla1[[#This Row],[Zona Climática]]="C1",Tabla1[[#This Row],[Zona Climática]]="C2",Tabla1[[#This Row],[Zona Climática]]="C3",Tabla1[[#This Row],[Zona Climática]]="C4")),"C",(IF((OR(Tabla1[[#This Row],[Zona Climática]]="D1",Tabla1[[#This Row],[Zona Climática]]="D2",Tabla1[[#This Row],[Zona Climática]]="D3",Tabla1[[#This Row],[Zona Climática]]="D4")),"D","E"))))))))) -> D | E43: D3 | F43: 37.1717061 | G43: -2.8389269 | H43: =CONCATENATE(Tabla1[[#This Row],[Latitud N]],", ",Tabla1[[#This Row],[Longitud W]]) -> 37,1717061, -2,8389269 | I43: 946 | J43: SI | K43: =ROUND((IF(Tabla1[[#This Row],[Altitud (m)]]<(VLOOKUP(Tabla1[[#This Row],[Provincia]],AUX_LOCALIDADES!$A$2:$D$54,3,FALSE)),(VLOOKUP(Tabla1[[#This Row],[Provincia]],AUX_LOCALIDADES!$A$2:$D$54,4,FALSE)),((VLOOKUP(Tabla1[[#This Row],[Provincia]],AUX_LOCALIDADES!$A$2:$D$54,4,FALSE))-((Tabla1[[#This Row],[Altitud (m)]]-(VLOOKUP(Tabla1[[#This Row],[Provincia]],AUX_LOCALIDADES!$A$2:$D$54,3,FALSE)))/100)))),1) -> 3 | L43: =IF((ROUND((IF(Tabla1[[#This Row],[Altitud (m)]]>=(VLOOKUP(Tabla1[[#This Row],[Provincia]],AUX_LOCALIDADES!$A$2:$D$54,3,FALSE)),(((VLOOKUP(Tabla1[[#This Row],[Provincia]],AUX_LOCALIDADES!$A$3:$Q$54,17,FALSE))/(IF(Tabla1[[#This Row],[Text media Enero (ºC)]]<0,(610.5*(EXP((21.875*Tabla1[[#This Row],[Text media Enero (ºC)]])/(265.5+Tabla1[[#This Row],[Text media Enero (ºC)]])))),(610.5*(EXP((17.269*Tabla1[[#This Row],[Text media Enero (ºC)]])/(237.3+Tabla1[[#This Row],[Text media Enero (ºC)]])))))))),((VLOOKUP(Tabla1[[#This Row],[Provincia]],AUX_LOCALIDADES!$S$3:$AG$54,4,FALSE))/100))),2))>1,1,(ROUND((IF(Tabla1[[#This Row],[Altitud (m)]]>=(VLOOKUP(Tabla1[[#This Row],[Provincia]],AUX_LOCALIDADES!$A$2:$D$54,3,FALSE)),(((VLOOKUP(Tabla1[[#This Row],[Provincia]],AUX_LOCALIDADES!$A$3:$Q$54,17,FALSE))/(IF(Tabla1[[#This Row],[Text media Enero (ºC)]]<0,(610.5*(EXP((21.875*Tabla1[[#This Row],[Text media Enero (ºC)]])/(265.5+Tabla1[[#This Row],[Text media Enero (ºC)]])))),(610.5*(EXP((17.269*Tabla1[[#This Row],[Text media Enero (ºC)]])/(237.3+Tabla1[[#This Row],[Text media Enero (ºC)]])))))))),((VLOOKUP(Tabla1[[#This Row],[Provincia]],AUX_LOCALIDADES!$S$3:$AG$54,4,FALSE))/100))),2))) -> 1 | M43: =IF(Tabla1[[#This Row],[Text media Enero (ºC)]]<0,(ROUND((610.5*(EXP((21.875*Tabla1[[#This Row],[Text media Enero (ºC)]])/(265.5+Tabla1[[#This Row],[Text media Enero (ºC)]])))),2)),(ROUND((610.5*(EXP((17.269*Tabla1[[#This Row],[Text media Enero (ºC)]])/(237.3+Tabla1[[#This Row],[Text media Enero (ºC)]])))),2))) -> 757.38 | N43: =ROUND((Tabla1[[#This Row],[Psat (Pa)]]*Tabla1[[#This Row],[HRext Enero (tanto por 1)]]),2) -> 757.38
A44: Andalucía | B44: Almería | C44: Fondón | D44: =IF((OR(Tabla1[[#This Row],[Zona Climática]]="α1",Tabla1[[#This Row],[Zona Climática]]="α2",Tabla1[[#This Row],[Zona Climática]]="α3",Tabla1[[#This Row],[Zona Climática]]="α4")),"α",(IF((OR(Tabla1[[#This Row],[Zona Climática]]="A1",Tabla1[[#This Row],[Zona Climática]]="A2",Tabla1[[#This Row],[Zona Climática]]="A3",Tabla1[[#This Row],[Zona Climática]]="A4")),"A",(IF((OR(Tabla1[[#This Row],[Zona Climática]]="B1",Tabla1[[#This Row],[Zona Climática]]="B2",Tabla1[[#This Row],[Zona Climática]]="B3",Tabla1[[#This Row],[Zona Climática]]="B4")),"B",(IF((OR(Tabla1[[#This Row],[Zona Climática]]="C1",Tabla1[[#This Row],[Zona Climática]]="C2",Tabla1[[#This Row],[Zona Climática]]="C3",Tabla1[[#This Row],[Zona Climática]]="C4")),"C",(IF((OR(Tabla1[[#This Row],[Zona Climática]]="D1",Tabla1[[#This Row],[Zona Climática]]="D2",Tabla1[[#This Row],[Zona Climática]]="D3",Tabla1[[#This Row],[Zona Climática]]="D4")),"D","E"))))))))) -> D | E44: D3 | F44: 36.9813532 | G44: -2.857868 | H44: =CONCATENATE(Tabla1[[#This Row],[Latitud N]],", ",Tabla1[[#This Row],[Longitud W]]) -> 36,9813532, -2,857868 | I44: 847 | J44: SI | K44: =ROUND((IF(Tabla1[[#This Row],[Altitud (m)]]<(VLOOKUP(Tabla1[[#This Row],[Provincia]],AUX_LOCALIDADES!$A$2:$D$54,3,FALSE)),(VLOOKUP(Tabla1[[#This Row],[Provincia]],AUX_LOCALIDADES!$A$2:$D$54,4,FALSE)),((VLOOKUP(Tabla1[[#This Row],[Provincia]],AUX_LOCALIDADES!$A$2:$D$54,4,FALSE))-((Tabla1[[#This Row],[Altitud (m)]]-(VLOOKUP(Tabla1[[#This Row],[Provincia]],AUX_LOCALIDADES!$A$2:$D$54,3,FALSE)))/100)))),1) -> 4 | L44: =IF((ROUND((IF(Tabla1[[#This Row],[Altitud (m)]]>=(VLOOKUP(Tabla1[[#This Row],[Provincia]],AUX_LOCALIDADES!$A$2:$D$54,3,FALSE)),(((VLOOKUP(Tabla1[[#This Row],[Provincia]],AUX_LOCALIDADES!$A$3:$Q$54,17,FALSE))/(IF(Tabla1[[#This Row],[Text media Enero (ºC)]]<0,(610.5*(EXP((21.875*Tabla1[[#This Row],[Text media Enero (ºC)]])/(265.5+Tabla1[[#This Row],[Text media Enero (ºC)]])))),(610.5*(EXP((17.269*Tabla1[[#This Row],[Text media Enero (ºC)]])/(237.3+Tabla1[[#This Row],[Text media Enero (ºC)]])))))))),((VLOOKUP(Tabla1[[#This Row],[Provincia]],AUX_LOCALIDADES!$S$3:$AG$54,4,FALSE))/100))),2))>1,1,(ROUND((IF(Tabla1[[#This Row],[Altitud (m)]]>=(VLOOKUP(Tabla1[[#This Row],[Provincia]],AUX_LOCALIDADES!$A$2:$D$54,3,FALSE)),(((VLOOKUP(Tabla1[[#This Row],[Provincia]],AUX_LOCALIDADES!$A$3:$Q$54,17,FALSE))/(IF(Tabla1[[#This Row],[Text media Enero (ºC)]]<0,(610.5*(EXP((21.875*Tabla1[[#This Row],[Text media Enero (ºC)]])/(265.5+Tabla1[[#This Row],[Text media Enero (ºC)]])))),(610.5*(EXP((17.269*Tabla1[[#This Row],[Text media Enero (ºC)]])/(237.3+Tabla1[[#This Row],[Text media Enero (ºC)]])))))))),((VLOOKUP(Tabla1[[#This Row],[Provincia]],AUX_LOCALIDADES!$S$3:$AG$54,4,FALSE))/100))),2))) -> 1 | M44: =IF(Tabla1[[#This Row],[Text media Enero (ºC)]]<0,(ROUND((610.5*(EXP((21.875*Tabla1[[#This Row],[Text media Enero (ºC)]])/(265.5+Tabla1[[#This Row],[Text media Enero (ºC)]])))),2)),(ROUND((610.5*(EXP((17.269*Tabla1[[#This Row],[Text media Enero (ºC)]])/(237.3+Tabla1[[#This Row],[Text media Enero (ºC)]])))),2))) -> 812.85 | N44: =ROUND((Tabla1[[#This Row],[Psat (Pa)]]*Tabla1[[#This Row],[HRext Enero (tanto por 1)]]),2) -> 812.85
A45: Andalucía | B45: Almería | C45: Gádor | D45: =IF((OR(Tabla1[[#This Row],[Zona Climática]]="α1",Tabla1[[#This Row],[Zona Climática]]="α2",Tabla1[[#This Row],[Zona Climática]]="α3",Tabla1[[#This Row],[Zona Climática]]="α4")),"α",(IF((OR(Tabla1[[#This Row],[Zona Climática]]="A1",Tabla1[[#This Row],[Zona Climática]]="A2",Tabla1[[#This Row],[Zona Climática]]="A3",Tabla1[[#This Row],[Zona Climática]]="A4")),"A",(IF((OR(Tabla1[[#This Row],[Zona Climática]]="B1",Tabla1[[#This Row],[Zona Climática]]="B2",Tabla1[[#This Row],[Zona Climática]]="B3",Tabla1[[#This Row],[Zona Climática]]="B4")),"B",(IF((OR(Tabla1[[#This Row],[Zona Climática]]="C1",Tabla1[[#This Row],[Zona Climática]]="C2",Tabla1[[#This Row],[Zona Climática]]="C3",Tabla1[[#This Row],[Zona Climática]]="C4")),"C",(IF((OR(Tabla1[[#This Row],[Zona Climática]]="D1",Tabla1[[#This Row],[Zona Climática]]="D2",Tabla1[[#This Row],[Zona Climática]]="D3",Tabla1[[#This Row],[Zona Climática]]="D4")),"D","E"))))))))) -> B | E45: B4 | F45: 36.9545743 | G45: -2.4927738 | H45: =CONCATENATE(Tabla1[[#This Row],[Latitud N]],", ",Tabla1[[#This Row],[Longitud W]]) -> 36,9545743, -2,4927738 | I45: 178 | J45: SI | K45: =ROUND((IF(Tabla1[[#This Row],[Altitud (m)]]<(VLOOKUP(Tabla1[[#This Row],[Provincia]],AUX_LOCALIDADES!$A$2:$D$54,3,FALSE)),(VLOOKUP(Tabla1[[#This Row],[Provincia]],AUX_LOCALIDADES!$A$2:$D$54,4,FALSE)),((VLOOKUP(Tabla1[[#This Row],[Provincia]],AUX_LOCALIDADES!$A$2:$D$54,4,FALSE))-((Tabla1[[#This Row],[Altitud (m)]]-(VLOOKUP(Tabla1[[#This Row],[Provincia]],AUX_LOCALIDADES!$A$2:$D$54,3,FALSE)))/100)))),1) -> 10.7 | L45: =IF((ROUND((IF(Tabla1[[#This Row],[Altitud (m)]]>=(VLOOKUP(Tabla1[[#This Row],[Provincia]],AUX_LOCALIDADES!$A$2:$D$54,3,FALSE)),(((VLOOKUP(Tabla1[[#This Row],[Provincia]],AUX_LOCALIDADES!$A$3:$Q$54,17,FALSE))/(IF(Tabla1[[#This Row],[Text media Enero (ºC)]]<0,(610.5*(EXP((21.875*Tabla1[[#This Row],[Text media Enero (ºC)]])/(265.5+Tabla1[[#This Row],[Text media Enero (ºC)]])))),(610.5*(EXP((17.269*Tabla1[[#This Row],[Text media Enero (ºC)]])/(237.3+Tabla1[[#This Row],[Text media Enero (ºC)]])))))))),((VLOOKUP(Tabla1[[#This Row],[Provincia]],AUX_LOCALIDADES!$S$3:$AG$54,4,FALSE))/100))),2))>1,1,(ROUND((IF(Tabla1[[#This Row],[Altitud (m)]]>=(VLOOKUP(Tabla1[[#This Row],[Provincia]],AUX_LOCALIDADES!$A$2:$D$54,3,FALSE)),(((VLOOKUP(Tabla1[[#This Row],[Provincia]],AUX_LOCALIDADES!$A$3:$Q$54,17,FALSE))/(IF(Tabla1[[#This Row],[Text media Enero (ºC)]]<0,(610.5*(EXP((21.875*Tabla1[[#This Row],[Text media Enero (ºC)]])/(265.5+Tabla1[[#This Row],[Text media Enero (ºC)]])))),(610.5*(EXP((17.269*Tabla1[[#This Row],[Text media Enero (ºC)]])/(237.3+Tabla1[[#This Row],[Text media Enero (ºC)]])))))))),((VLOOKUP(Tabla1[[#This Row],[Provincia]],AUX_LOCALIDADES!$S$3:$AG$54,4,FALSE))/100))),2))) -> 0.78 | M45: =IF(Tabla1[[#This Row],[Text media Enero (ºC)]]<0,(ROUND((610.5*(EXP((21.875*Tabla1[[#This Row],[Text media Enero (ºC)]])/(265.5+Tabla1[[#This Row],[Text media Enero (ºC)]])))),2)),(ROUND((610.5*(EXP((17.269*Tabla1[[#This Row],[Text media Enero (ºC)]])/(237.3+Tabla1[[#This Row],[Text media Enero (ºC)]])))),2))) -> 1286.08 | N45: =ROUND((Tabla1[[#This Row],[Psat (Pa)]]*Tabla1[[#This Row],[HRext Enero (tanto por 1)]]),2) -> 1003.14
A46: Andalucía | B46: Almería | C46: Gallardos, Los | D46: =IF((OR(Tabla1[[#This Row],[Zona Climática]]="α1",Tabla1[[#This Row],[Zona Climática]]="α2",Tabla1[[#This Row],[Zona Climática]]="α3",Tabla1[[#This Row],[Zona Climática]]="α4")),"α",(IF((OR(Tabla1[[#This Row],[Zona Climática]]="A1",Tabla1[[#This Row],[Zona Climática]]="A2",Tabla1[[#This Row],[Zona Climática]]="A3",Tabla1[[#This Row],[Zona Climática]]="A4")),"A",(IF((OR(Tabla1[[#This Row],[Zona Climática]]="B1",Tabla1[[#This Row],[Zona Climática]]="B2",Tabla1[[#This Row],[Zona Climática]]="B3",Tabla1[[#This Row],[Zona Climática]]="B4")),"B",(IF((OR(Tabla1[[#This Row],[Zona Climática]]="C1",Tabla1[[#This Row],[Zona Climática]]="C2",Tabla1[[#This Row],[Zona Climática]]="C3",Tabla1[[#This Row],[Zona Climática]]="C4")),"C",(IF((OR(Tabla1[[#This Row],[Zona Climática]]="D1",Tabla1[[#This Row],[Zona Climática]]="D2",Tabla1[[#This Row],[Zona Climática]]="D3",Tabla1[[#This Row],[Zona Climática]]="D4")),"D","E"))))))))) -> B | E46: B4 | F46: 37.1693218 | G46: -1.9393326 | H46: =CONCATENATE(Tabla1[[#This Row],[Latitud N]],", ",Tabla1[[#This Row],[Longitud W]]) -> 37,1693218, -1,9393326 | I46: 120 | J46: SI | K46: =ROUND((IF(Tabla1[[#This Row],[Altitud (m)]]<(VLOOKUP(Tabla1[[#This Row],[Provincia]],AUX_LOCALIDADES!$A$2:$D$54,3,FALSE)),(VLOOKUP(Tabla1[[#This Row],[Provincia]],AUX_LOCALIDADES!$A$2:$D$54,4,FALSE)),((VLOOKUP(Tabla1[[#This Row],[Provincia]],AUX_LOCALIDADES!$A$2:$D$54,4,FALSE))-((Tabla1[[#This Row],[Altitud (m)]]-(VLOOKUP(Tabla1[[#This Row],[Provincia]],AUX_LOCALIDADES!$A$2:$D$54,3,FALSE)))/100)))),1) -> 11.3 | L46: =IF((ROUND((IF(Tabla1[[#This Row],[Altitud (m)]]>=(VLOOKUP(Tabla1[[#This Row],[Provincia]],AUX_LOCALIDADES!$A$2:$D$54,3,FALSE)),(((VLOOKUP(Tabla1[[#This Row],[Provincia]],AUX_LOCALIDADES!$A$3:$Q$54,17,FALSE))/(IF(Tabla1[[#This Row],[Text media Enero (ºC)]]<0,(610.5*(EXP((21.875*Tabla1[[#This Row],[Text media Enero (ºC)]])/(265.5+Tabla1[[#This Row],[Text media Enero (ºC)]])))),(610.5*(EXP((17.269*Tabla1[[#This Row],[Text media Enero (ºC)]])/(237.3+Tabla1[[#This Row],[Text media Enero (ºC)]])))))))),((VLOOKUP(Tabla1[[#This Row],[Provincia]],AUX_LOCALIDADES!$S$3:$AG$54,4,FALSE))/100))),2))>1,1,(ROUND((IF(Tabla1[[#This Row],[Altitud (m)]]>=(VLOOKUP(Tabla1[[#This Row],[Provincia]],AUX_LOCALIDADES!$A$2:$D$54,3,FALSE)),(((VLOOKUP(Tabla1[[#This Row],[Provincia]],AUX_LOCALIDADES!$A$3:$Q$54,17,FALSE))/(IF(Tabla1[[#This Row],[Text media Enero (ºC)]]<0,(610.5*(EXP((21.875*Tabla1[[#This Row],[Text media Enero (ºC)]])/(265.5+Tabla1[[#This Row],[Text media Enero (ºC)]])))),(610.5*(EXP((17.269*Tabla1[[#This Row],[Text media Enero (ºC)]])/(237.3+Tabla1[[#This Row],[Text media Enero (ºC)]])))))))),((VLOOKUP(Tabla1[[#This Row],[Provincia]],AUX_LOCALIDADES!$S$3:$AG$54,4,FALSE))/100))),2))) -> 0.75 | M46: =IF(Tabla1[[#This Row],[Text media Enero (ºC)]]<0,(ROUND((610.5*(EXP((21.875*Tabla1[[#This Row],[Text media Enero (ºC)]])/(265.5+Tabla1[[#This Row],[Text media Enero (ºC)]])))),2)),(ROUND((610.5*(EXP((17.269*Tabla1[[#This Row],[Text media Enero (ºC)]])/(237.3+Tabla1[[#This Row],[Text media Enero (ºC)]])))),2))) -> 1338.4 | N46: =ROUND((Tabla1[[#This Row],[Psat (Pa)]]*Tabla1[[#This Row],[HRext Enero (tanto por 1)]]),2) -> 1003.8
A47: Andalucía | B47: Almería | C47: Garrucha | D47: =IF((OR(Tabla1[[#This Row],[Zona Climática]]="α1",Tabla1[[#This Row],[Zona Climática]]="α2",Tabla1[[#This Row],[Zona Climática]]="α3",Tabla1[[#This Row],[Zona Climática]]="α4")),"α",(IF((OR(Tabla1[[#This Row],[Zona Climática]]="A1",Tabla1[[#This Row],[Zona Climática]]="A2",Tabla1[[#This Row],[Zona Climática]]="A3",Tabla1[[#This Row],[Zona Climática]]="A4")),"A",(IF((OR(Tabla1[[#This Row],[Zona Climática]]="B1",Tabla1[[#This Row],[Zona Climática]]="B2",Tabla1[[#This Row],[Zona Climática]]="B3",Tabla1[[#This Row],[Zona Climática]]="B4")),"B",(IF((OR(Tabla1[[#This Row],[Zona Climática]]="C1",Tabla1[[#This Row],[Zona Climática]]="C2",Tabla1[[#This Row],[Zona Climática]]="C3",Tabla1[[#This Row],[Zona Climática]]="C4")),"C",(IF((OR(Tabla1[[#This Row],[Zona Climática]]="D1",Tabla1[[#This Row],[Zona Climática]]="D2",Tabla1[[#This Row],[Zona Climática]]="D3",Tabla1[[#This Row],[Zona Climática]]="D4")),"D","E"))))))))) -> A | E47: A4 | F47: 37.180829 | G47: -1.8216816 | H47: =CONCATENATE(Tabla1[[#This Row],[Latitud N]],", ",Tabla1[[#This Row],[Longitud W]]) -> 37,180829, -1,8216816 | I47: 22 | J47: SI | K47: =ROUND((IF(Tabla1[[#This Row],[Altitud (m)]]<(VLOOKUP(Tabla1[[#This Row],[Provincia]],AUX_LOCALIDADES!$A$2:$D$54,3,FALSE)),(VLOOKUP(Tabla1[[#This Row],[Provincia]],AUX_LOCALIDADES!$A$2:$D$54,4,FALSE)),((VLOOKUP(Tabla1[[#This Row],[Provincia]],AUX_LOCALIDADES!$A$2:$D$54,4,FALSE))-((Tabla1[[#This Row],[Altitud (m)]]-(VLOOKUP(Tabla1[[#This Row],[Provincia]],AUX_LOCALIDADES!$A$2:$D$54,3,FALSE)))/100)))),1) -> 12.3 | L47: =IF((ROUND((IF(Tabla1[[#This Row],[Altitud (m)]]>=(VLOOKUP(Tabla1[[#This Row],[Provincia]],AUX_LOCALIDADES!$A$2:$D$54,3,FALSE)),(((VLOOKUP(Tabla1[[#This Row],[Provincia]],AUX_LOCALIDADES!$A$3:$Q$54,17,FALSE))/(IF(Tabla1[[#This Row],[Text media Enero (ºC)]]<0,(610.5*(EXP((21.875*Tabla1[[#This Row],[Text media Enero (ºC)]])/(265.5+Tabla1[[#This Row],[Text media Enero (ºC)]])))),(610.5*(EXP((17.269*Tabla1[[#This Row],[Text media Enero (ºC)]])/(237.3+Tabla1[[#This Row],[Text media Enero (ºC)]])))))))),((VLOOKUP(Tabla1[[#This Row],[Provincia]],AUX_LOCALIDADES!$S$3:$AG$54,4,FALSE))/100))),2))>1,1,(ROUND((IF(Tabla1[[#This Row],[Altitud (m)]]>=(VLOOKUP(Tabla1[[#This Row],[Provincia]],AUX_LOCALIDADES!$A$2:$D$54,3,FALSE)),(((VLOOKUP(Tabla1[[#This Row],[Provincia]],AUX_LOCALIDADES!$A$3:$Q$54,17,FALSE))/(IF(Tabla1[[#This Row],[Text media Enero (ºC)]]<0,(610.5*(EXP((21.875*Tabla1[[#This Row],[Text media Enero (ºC)]])/(265.5+Tabla1[[#This Row],[Text media Enero (ºC)]])))),(610.5*(EXP((17.269*Tabla1[[#This Row],[Text media Enero (ºC)]])/(237.3+Tabla1[[#This Row],[Text media Enero (ºC)]])))))))),((VLOOKUP(Tabla1[[#This Row],[Provincia]],AUX_LOCALIDADES!$S$3:$AG$54,4,FALSE))/100))),2))) -> 0.7 | M47: =IF(Tabla1[[#This Row],[Text media Enero (ºC)]]<0,(ROUND((610.5*(EXP((21.875*Tabla1[[#This Row],[Text media Enero (ºC)]])/(265.5+Tabla1[[#This Row],[Text media Enero (ºC)]])))),2)),(ROUND((610.5*(EXP((17.269*Tabla1[[#This Row],[Text media Enero (ºC)]])/(237.3+Tabla1[[#This Row],[Text media Enero (ºC)]])))),2))) -> 1429.78 | N47: =ROUND((Tabla1[[#This Row],[Psat (Pa)]]*Tabla1[[#This Row],[HRext Enero (tanto por 1)]]),2) -> 1000.85
A48: Andalucía | B48: Almería | C48: Gérgal | D48: =IF((OR(Tabla1[[#This Row],[Zona Climática]]="α1",Tabla1[[#This Row],[Zona Climática]]="α2",Tabla1[[#This Row],[Zona Climática]]="α3",Tabla1[[#This Row],[Zona Climática]]="α4")),"α",(IF((OR(Tabla1[[#This Row],[Zona Climática]]="A1",Tabla1[[#This Row],[Zona Climática]]="A2",Tabla1[[#This Row],[Zona Climática]]="A3",Tabla1[[#This Row],[Zona Climática]]="A4")),"A",(IF((OR(Tabla1[[#This Row],[Zona Climática]]="B1",Tabla1[[#This Row],[Zona Climática]]="B2",Tabla1[[#This Row],[Zona Climática]]="B3",Tabla1[[#This Row],[Zona Climática]]="B4")),"B",(IF((OR(Tabla1[[#This Row],[Zona Climática]]="C1",Tabla1[[#This Row],[Zona Climática]]="C2",Tabla1[[#This Row],[Zona Climática]]="C3",Tabla1[[#This Row],[Zona Climática]]="C4")),"C",(IF((OR(Tabla1[[#This Row],[Zona Climática]]="D1",Tabla1[[#This Row],[Zona Climática]]="D2",Tabla1[[#This Row],[Zona Climática]]="D3",Tabla1[[#This Row],[Zona Climática]]="D4")),"D","E"))))))))) -> C | E48: C3 | F48: 37.1204391 | G48: -2.5384949 | H48: =CONCATENATE(Tabla1[[#This Row],[Latitud N]],", ",Tabla1[[#This Row],[Longitud W]]) -> 37,1204391, -2,5384949 | I48: 758 | J48: SI | K48: =ROUND((IF(Tabla1[[#This Row],[Altitud (m)]]<(VLOOKUP(Tabla1[[#This Row],[Provincia]],AUX_LOCALIDADES!$A$2:$D$54,3,FALSE)),(VLOOKUP(Tabla1[[#This Row],[Provincia]],AUX_LOCALIDADES!$A$2:$D$54,4,FALSE)),((VLOOKUP(Tabla1[[#This Row],[Provincia]],AUX_LOCALIDADES!$A$2:$D$54,4,FALSE))-((Tabla1[[#This Row],[Altitud (m)]]-(VLOOKUP(Tabla1[[#This Row],[Provincia]],AUX_LOCALIDADES!$A$2:$D$54,3,FALSE)))/100)))),1) -> 4.9 | L48: =IF((ROUND((IF(Tabla1[[#This Row],[Altitud (m)]]>=(VLOOKUP(Tabla1[[#This Row],[Provincia]],AUX_LOCALIDADES!$A$2:$D$54,3,FALSE)),(((VLOOKUP(Tabla1[[#This Row],[Provincia]],AUX_LOCALIDADES!$A$3:$Q$54,17,FALSE))/(IF(Tabla1[[#This Row],[Text media Enero (ºC)]]<0,(610.5*(EXP((21.875*Tabla1[[#This Row],[Text media Enero (ºC)]])/(265.5+Tabla1[[#This Row],[Text media Enero (ºC)]])))),(610.5*(EXP((17.269*Tabla1[[#This Row],[Text media Enero (ºC)]])/(237.3+Tabla1[[#This Row],[Text media Enero (ºC)]])))))))),((VLOOKUP(Tabla1[[#This Row],[Provincia]],AUX_LOCALIDADES!$S$3:$AG$54,4,FALSE))/100))),2))>1,1,(ROUND((IF(Tabla1[[#This Row],[Altitud (m)]]>=(VLOOKUP(Tabla1[[#This Row],[Provincia]],AUX_LOCALIDADES!$A$2:$D$54,3,FALSE)),(((VLOOKUP(Tabla1[[#This Row],[Provincia]],AUX_LOCALIDADES!$A$3:$Q$54,17,FALSE))/(IF(Tabla1[[#This Row],[Text media Enero (ºC)]]<0,(610.5*(EXP((21.875*Tabla1[[#This Row],[Text media Enero (ºC)]])/(265.5+Tabla1[[#This Row],[Text media Enero (ºC)]])))),(610.5*(EXP((17.269*Tabla1[[#This Row],[Text media Enero (ºC)]])/(237.3+Tabla1[[#This Row],[Text media Enero (ºC)]])))))))),((VLOOKUP(Tabla1[[#This Row],[Provincia]],AUX_LOCALIDADES!$S$3:$AG$54,4,FALSE))/100))),2))) -> 1 | M48: =IF(Tabla1[[#This Row],[Text media Enero (ºC)]]<0,(ROUND((610.5*(EXP((21.875*Tabla1[[#This Row],[Text media Enero (ºC)]])/(265.5+Tabla1[[#This Row],[Text media Enero (ºC)]])))),2)),(ROUND((610.5*(EXP((17.269*Tabla1[[#This Row],[Text media Enero (ºC)]])/(237.3+Tabla1[[#This Row],[Text media Enero (ºC)]])))),2))) -> 865.8 | N48: =ROUND((Tabla1[[#This Row],[Psat (Pa)]]*Tabla1[[#This Row],[HRext Enero (tanto por 1)]]),2) -> 865.8
A49: Andalucía | B49: Almería | C49: Huécija | D49: =IF((OR(Tabla1[[#This Row],[Zona Climática]]="α1",Tabla1[[#This Row],[Zona Climática]]="α2",Tabla1[[#This Row],[Zona Climática]]="α3",Tabla1[[#This Row],[Zona Climática]]="α4")),"α",(IF((OR(Tabla1[[#This Row],[Zona Climática]]="A1",Tabla1[[#This Row],[Zona Climática]]="A2",Tabla1[[#This Row],[Zona Climática]]="A3",Tabla1[[#This Row],[Zona Climática]]="A4")),"A",(IF((OR(Tabla1[[#This Row],[Zona Climática]]="B1",Tabla1[[#This Row],[Zona Climática]]="B2",Tabla1[[#This Row],[Zona Climática]]="B3",Tabla1[[#This Row],[Zona Climática]]="B4")),"B",(IF((OR(Tabla1[[#This Row],[Zona Climática]]="C1",Tabla1[[#This Row],[Zona Climática]]="C2",Tabla1[[#This Row],[Zona Climática]]="C3",Tabla1[[#This Row],[Zona Climática]]="C4")),"C",(IF((OR(Tabla1[[#This Row],[Zona Climática]]="D1",Tabla1[[#This Row],[Zona Climática]]="D2",Tabla1[[#This Row],[Zona Climática]]="D3",Tabla1[[#This Row],[Zona Climática]]="D4")),"D","E"))))))))) -> C | E49: C3 | F49: 36.9690755 | G49: -2.6088354 | H49: =CONCATENATE(Tabla1[[#This Row],[Latitud N]],", ",Tabla1[[#This Row],[Longitud W]]) -> 36,9690755, -2,6088354 | I49: 411 | J49: SI | K49: =ROUND((IF(Tabla1[[#This Row],[Altitud (m)]]<(VLOOKUP(Tabla1[[#This Row],[Provincia]],AUX_LOCALIDADES!$A$2:$D$54,3,FALSE)),(VLOOKUP(Tabla1[[#This Row],[Provincia]],AUX_LOCALIDADES!$A$2:$D$54,4,FALSE)),((VLOOKUP(Tabla1[[#This Row],[Provincia]],AUX_LOCALIDADES!$A$2:$D$54,4,FALSE))-((Tabla1[[#This Row],[Altitud (m)]]-(VLOOKUP(Tabla1[[#This Row],[Provincia]],AUX_LOCALIDADES!$A$2:$D$54,3,FALSE)))/100)))),1) -> 8.4 | L49: =IF((ROUND((IF(Tabla1[[#This Row],[Altitud (m)]]>=(VLOOKUP(Tabla1[[#This Row],[Provincia]],AUX_LOCALIDADES!$A$2:$D$54,3,FALSE)),(((VLOOKUP(Tabla1[[#This Row],[Provincia]],AUX_LOCALIDADES!$A$3:$Q$54,17,FALSE))/(IF(Tabla1[[#This Row],[Text media Enero (ºC)]]<0,(610.5*(EXP((21.875*Tabla1[[#This Row],[Text media Enero (ºC)]])/(265.5+Tabla1[[#This Row],[Text media Enero (ºC)]])))),(610.5*(EXP((17.269*Tabla1[[#This Row],[Text media Enero (ºC)]])/(237.3+Tabla1[[#This Row],[Text media Enero (ºC)]])))))))),((VLOOKUP(Tabla1[[#This Row],[Provincia]],AUX_LOCALIDADES!$S$3:$AG$54,4,FALSE))/100))),2))>1,1,(ROUND((IF(Tabla1[[#This Row],[Altitud (m)]]>=(VLOOKUP(Tabla1[[#This Row],[Provincia]],AUX_LOCALIDADES!$A$2:$D$54,3,FALSE)),(((VLOOKUP(Tabla1[[#This Row],[Provincia]],AUX_LOCALIDADES!$A$3:$Q$54,17,FALSE))/(IF(Tabla1[[#This Row],[Text media Enero (ºC)]]<0,(610.5*(EXP((21.875*Tabla1[[#This Row],[Text media Enero (ºC)]])/(265.5+Tabla1[[#This Row],[Text media Enero (ºC)]])))),(610.5*(EXP((17.269*Tabla1[[#This Row],[Text media Enero (ºC)]])/(237.3+Tabla1[[#This Row],[Text media Enero (ºC)]])))))))),((VLOOKUP(Tabla1[[#This Row],[Provincia]],AUX_LOCALIDADES!$S$3:$AG$54,4,FALSE))/100))),2))) -> 0.91 | M49: =IF(Tabla1[[#This Row],[Text media Enero (ºC)]]<0,(ROUND((610.5*(EXP((21.875*Tabla1[[#This Row],[Text media Enero (ºC)]])/(265.5+Tabla1[[#This Row],[Text media Enero (ºC)]])))),2)),(ROUND((610.5*(EXP((17.269*Tabla1[[#This Row],[Text media Enero (ºC)]])/(237.3+Tabla1[[#This Row],[Text media Enero (ºC)]])))),2))) -> 1101.77 | N49: =ROUND((Tabla1[[#This Row],[Psat (Pa)]]*Tabla1[[#This Row],[HRext Enero (tanto por 1)]]),2) -> 1002.61
A50: Andalucía | B50: Almería | C50: Huércal de Almería | D50: =IF((OR(Tabla1[[#This Row],[Zona Climática]]="α1",Tabla1[[#This Row],[Zona Climática]]="α2",Tabla1[[#This Row],[Zona Climática]]="α3",Tabla1[[#This Row],[Zona Climática]]="α4")),"α",(IF((OR(Tabla1[[#This Row],[Zona Climática]]="A1",Tabla1[[#This Row],[Zona Climática]]="A2",Tabla1[[#This Row],[Zona Climática]]="A3",Tabla1[[#This Row],[Zona Climática]]="A4")),"A",(IF((OR(Tabla1[[#This Row],[Zona Climática]]="B1",Tabla1[[#This Row],[Zona Climática]]="B2",Tabla1[[#This Row],[Zona Climática]]="B3",Tabla1[[#This Row],[Zona Climática]]="B4")),"B",(IF((OR(Tabla1[[#This Row],[Zona Climática]]="C1",Tabla1[[#This Row],[Zona Climática]]="C2",Tabla1[[#This Row],[Zona Climática]]="C3",Tabla1[[#This Row],[Zona Climática]]="C4")),"C",(IF((OR(Tabla1[[#This Row],[Zona Climática]]="D1",Tabla1[[#This Row],[Zona Climática]]="D2",Tabla1[[#This Row],[Zona Climática]]="D3",Tabla1[[#This Row],[Zona Climática]]="D4")),"D","E"))))))))) -> A | E50: A4 | F50: 36.8838225 | G50: -2.4350037 | H50: =CONCATENATE(Tabla1[[#This Row],[Latitud N]],", ",Tabla1[[#This Row],[Longitud W]]) -> 36,8838225, -2,4350037 | I50: 68 | J50: SI | K50: =ROUND((IF(Tabla1[[#This Row],[Altitud (m)]]<(VLOOKUP(Tabla1[[#This Row],[Provincia]],AUX_LOCALIDADES!$A$2:$D$54,3,FALSE)),(VLOOKUP(Tabla1[[#This Row],[Provincia]],AUX_LOCALIDADES!$A$2:$D$54,4,FALSE)),((VLOOKUP(Tabla1[[#This Row],[Provincia]],AUX_LOCALIDADES!$A$2:$D$54,4,FALSE))-((Tabla1[[#This Row],[Altitud (m)]]-(VLOOKUP(Tabla1[[#This Row],[Provincia]],AUX_LOCALIDADES!$A$2:$D$54,3,FALSE)))/100)))),1) -> 11.8 | L50: =IF((ROUND((IF(Tabla1[[#This Row],[Altitud (m)]]>=(VLOOKUP(Tabla1[[#This Row],[Provincia]],AUX_LOCALIDADES!$A$2:$D$54,3,FALSE)),(((VLOOKUP(Tabla1[[#This Row],[Provincia]],AUX_LOCALIDADES!$A$3:$Q$54,17,FALSE))/(IF(Tabla1[[#This Row],[Text media Enero (ºC)]]<0,(610.5*(EXP((21.875*Tabla1[[#This Row],[Text media Enero (ºC)]])/(265.5+Tabla1[[#This Row],[Text media Enero (ºC)]])))),(610.5*(EXP((17.269*Tabla1[[#This Row],[Text media Enero (ºC)]])/(237.3+Tabla1[[#This Row],[Text media Enero (ºC)]])))))))),((VLOOKUP(Tabla1[[#This Row],[Provincia]],AUX_LOCALIDADES!$S$3:$AG$54,4,FALSE))/100))),2))>1,1,(ROUND((IF(Tabla1[[#This Row],[Altitud (m)]]>=(VLOOKUP(Tabla1[[#This Row],[Provincia]],AUX_LOCALIDADES!$A$2:$D$54,3,FALSE)),(((VLOOKUP(Tabla1[[#This Row],[Provincia]],AUX_LOCALIDADES!$A$3:$Q$54,17,FALSE))/(IF(Tabla1[[#This Row],[Text media Enero (ºC)]]<0,(610.5*(EXP((21.875*Tabla1[[#This Row],[Text media Enero (ºC)]])/(265.5+Tabla1[[#This Row],[Text media Enero (ºC)]])))),(610.5*(EXP((17.269*Tabla1[[#This Row],[Text media Enero (ºC)]])/(237.3+Tabla1[[#This Row],[Text media Enero (ºC)]])))))))),((VLOOKUP(Tabla1[[#This Row],[Provincia]],AUX_LOCALIDADES!$S$3:$AG$54,4,FALSE))/100))),2))) -> 0.73 | M50: =IF(Tabla1[[#This Row],[Text media Enero (ºC)]]<0,(ROUND((610.5*(EXP((21.875*Tabla1[[#This Row],[Text media Enero (ºC)]])/(265.5+Tabla1[[#This Row],[Text media Enero (ºC)]])))),2)),(ROUND((610.5*(EXP((17.269*Tabla1[[#This Row],[Text media Enero (ºC)]])/(237.3+Tabla1[[#This Row],[Text media Enero (ºC)]])))),2))) -> 1383.43 | N50: =ROUND((Tabla1[[#This Row],[Psat (Pa)]]*Tabla1[[#This Row],[HRext Enero (tanto por 1)]]),2) -> 1009.9
A51: Andalucía | B51: Almería | C51: Huércal-Overa | D51: =IF((OR(Tabla1[[#This Row],[Zona Climática]]="α1",Tabla1[[#This Row],[Zona Climática]]="α2",Tabla1[[#This Row],[Zona Climática]]="α3",Tabla1[[#This Row],[Zona Climática]]="α4")),"α",(IF((OR(Tabla1[[#This Row],[Zona Climática]]="A1",Tabla1[[#This Row],[Zona Climática]]="A2",Tabla1[[#This Row],[Zona Climática]]="A3",Tabla1[[#This Row],[Zona Climática]]="A4")),"A",(IF((OR(Tabla1[[#This Row],[Zona Climática]]="B1",Tabla1[[#This Row],[Zona Climática]]="B2",Tabla1[[#This Row],[Zona Climática]]="B3",Tabla1[[#This Row],[Zona Climática]]="B4")),"B",(IF((OR(Tabla1[[#This Row],[Zona Climática]]="C1",Tabla1[[#This Row],[Zona Climática]]="C2",Tabla1[[#This Row],[Zona Climática]]="C3",Tabla1[[#This Row],[Zona Climática]]="C4")),"C",(IF((OR(Tabla1[[#This Row],[Zona Climática]]="D1",Tabla1[[#This Row],[Zona Climática]]="D2",Tabla1[[#This Row],[Zona Climática]]="D3",Tabla1[[#This Row],[Zona Climática]]="D4")),"D","E"))))))))) -> B | E51: B3 | F51: 37.3906212 | G51: -1.9417574 | H51: =CONCATENATE(Tabla1[[#This Row],[Latitud N]],", ",Tabla1[[#This Row],[Longitud W]]) -> 37,3906212, -1,9417574 | I51: 274 | J51: SI | K51: =ROUND((IF(Tabla1[[#This Row],[Altitud (m)]]<(VLOOKUP(Tabla1[[#This Row],[Provincia]],AUX_LOCALIDADES!$A$2:$D$54,3,FALSE)),(VLOOKUP(Tabla1[[#This Row],[Provincia]],AUX_LOCALIDADES!$A$2:$D$54,4,FALSE)),((VLOOKUP(Tabla1[[#This Row],[Provincia]],AUX_LOCALIDADES!$A$2:$D$54,4,FALSE))-((Tabla1[[#This Row],[Altitud (m)]]-(VLOOKUP(Tabla1[[#This Row],[Provincia]],AUX_LOCALIDADES!$A$2:$D$54,3,FALSE)))/100)))),1) -> 9.8 | L51: =IF((ROUND((IF(Tabla1[[#This Row],[Altitud (m)]]>=(VLOOKUP(Tabla1[[#This Row],[Provincia]],AUX_LOCALIDADES!$A$2:$D$54,3,FALSE)),(((VLOOKUP(Tabla1[[#This Row],[Provincia]],AUX_LOCALIDADES!$A$3:$Q$54,17,FALSE))/(IF(Tabla1[[#This Row],[Text media Enero (ºC)]]<0,(610.5*(EXP((21.875*Tabla1[[#This Row],[Text media Enero (ºC)]])/(265.5+Tabla1[[#This Row],[Text media Enero (ºC)]])))),(610.5*(EXP((17.269*Tabla1[[#This Row],[Text media Enero (ºC)]])/(237.3+Tabla1[[#This Row],[Text media Enero (ºC)]])))))))),((VLOOKUP(Tabla1[[#This Row],[Provincia]],AUX_LOCALIDADES!$S$3:$AG$54,4,FALSE))/100))),2))>1,1,(ROUND((IF(Tabla1[[#This Row],[Altitud (m)]]>=(VLOOKUP(Tabla1[[#This Row],[Provincia]],AUX_LOCALIDADES!$A$2:$D$54,3,FALSE)),(((VLOOKUP(Tabla1[[#This Row],[Provincia]],AUX_LOCALIDADES!$A$3:$Q$54,17,FALSE))/(IF(Tabla1[[#This Row],[Text media Enero (ºC)]]<0,(610.5*(EXP((21.875*Tabla1[[#This Row],[Text media Enero (ºC)]])/(265.5+Tabla1[[#This Row],[Text media Enero (ºC)]])))),(610.5*(EXP((17.269*Tabla1[[#This Row],[Text media Enero (ºC)]])/(237.3+Tabla1[[#This Row],[Text media Enero (ºC)]])))))))),((VLOOKUP(Tabla1[[#This Row],[Provincia]],AUX_LOCALIDADES!$S$3:$AG$54,4,FALSE))/100))),2))) -> 0.83 | M51: =IF(Tabla1[[#This Row],[Text media Enero (ºC)]]<0,(ROUND((610.5*(EXP((21.875*Tabla1[[#This Row],[Text media Enero (ºC)]])/(265.5+Tabla1[[#This Row],[Text media Enero (ºC)]])))),2)),(ROUND((610.5*(EXP((17.269*Tabla1[[#This Row],[Text media Enero (ºC)]])/(237.3+Tabla1[[#This Row],[Text media Enero (ºC)]])))),2))) -> 1210.96 | N51: =ROUND((Tabla1[[#This Row],[Psat (Pa)]]*Tabla1[[#This Row],[HRext Enero (tanto por 1)]]),2) -> 1005.1
A52: Andalucía | B52: Almería | C52: Illar | D52: =IF((OR(Tabla1[[#This Row],[Zona Climática]]="α1",Tabla1[[#This Row],[Zona Climática]]="α2",Tabla1[[#This Row],[Zona Climática]]="α3",Tabla1[[#This Row],[Zona Climática]]="α4")),"α",(IF((OR(Tabla1[[#This Row],[Zona Climática]]="A1",Tabla1[[#This Row],[Zona Climática]]="A2",Tabla1[[#This Row],[Zona Climática]]="A3",Tabla1[[#This Row],[Zona Climática]]="A4")),"A",(IF((OR(Tabla1[[#This Row],[Zona Climática]]="B1",Tabla1[[#This Row],[Zona Climática]]="B2",Tabla1[[#This Row],[Zona Climática]]="B3",Tabla1[[#This Row],[Zona Climática]]="B4")),"B",(IF((OR(Tabla1[[#This Row],[Zona Climática]]="C1",Tabla1[[#This Row],[Zona Climática]]="C2",Tabla1[[#This Row],[Zona Climática]]="C3",Tabla1[[#This Row],[Zona Climática]]="C4")),"C",(IF((OR(Tabla1[[#This Row],[Zona Climática]]="D1",Tabla1[[#This Row],[Zona Climática]]="D2",Tabla1[[#This Row],[Zona Climática]]="D3",Tabla1[[#This Row],[Zona Climática]]="D4")),"D","E"))))))))) -> C | E52: C3 | F52: 36.9866543 | G52: -2.6376231 | H52: =CONCATENATE(Tabla1[[#This Row],[Latitud N]],", ",Tabla1[[#This Row],[Longitud W]]) -> 36,9866543, -2,6376231 | I52: 425 | J52: SI | K52: =ROUND((IF(Tabla1[[#This Row],[Altitud (m)]]<(VLOOKUP(Tabla1[[#This Row],[Provincia]],AUX_LOCALIDADES!$A$2:$D$54,3,FALSE)),(VLOOKUP(Tabla1[[#This Row],[Provincia]],AUX_LOCALIDADES!$A$2:$D$54,4,FALSE)),((VLOOKUP(Tabla1[[#This Row],[Provincia]],AUX_LOCALIDADES!$A$2:$D$54,4,FALSE))-((Tabla1[[#This Row],[Altitud (m)]]-(VLOOKUP(Tabla1[[#This Row],[Provincia]],AUX_LOCALIDADES!$A$2:$D$54,3,FALSE)))/100)))),1) -> 8.3 | L52: =IF((ROUND((IF(Tabla1[[#This Row],[Altitud (m)]]>=(VLOOKUP(Tabla1[[#This Row],[Provincia]],AUX_LOCALIDADES!$A$2:$D$54,3,FALSE)),(((VLOOKUP(Tabla1[[#This Row],[Provincia]],AUX_LOCALIDADES!$A$3:$Q$54,17,FALSE))/(IF(Tabla1[[#This Row],[Text media Enero (ºC)]]<0,(610.5*(EXP((21.875*Tabla1[[#This Row],[Text media Enero (ºC)]])/(265.5+Tabla1[[#This Row],[Text media Enero (ºC)]])))),(610.5*(EXP((17.269*Tabla1[[#This Row],[Text media Enero (ºC)]])/(237.3+Tabla1[[#This Row],[Text media Enero (ºC)]])))))))),((VLOOKUP(Tabla1[[#This Row],[Provincia]],AUX_LOCALIDADES!$S$3:$AG$54,4,FALSE))/100))),2))>1,1,(ROUND((IF(Tabla1[[#This Row],[Altitud (m)]]>=(VLOOKUP(Tabla1[[#This Row],[Provincia]],AUX_LOCALIDADES!$A$2:$D$54,3,FALSE)),(((VLOOKUP(Tabla1[[#This Row],[Provincia]],AUX_LOCALIDADES!$A$3:$Q$54,17,FALSE))/(IF(Tabla1[[#This Row],[Text media Enero (ºC)]]<0,(610.5*(EXP((21.875*Tabla1[[#This Row],[Text media Enero (ºC)]])/(265.5+Tabla1[[#This Row],[Text media Enero (ºC)]])))),(610.5*(EXP((17.269*Tabla1[[#This Row],[Text media Enero (ºC)]])/(237.3+Tabla1[[#This Row],[Text media Enero (ºC)]])))))))),((VLOOKUP(Tabla1[[#This Row],[Provincia]],AUX_LOCALIDADES!$S$3:$AG$54,4,FALSE))/100))),2))) -> 0.92 | M52: =IF(Tabla1[[#This Row],[Text media Enero (ºC)]]<0,(ROUND((610.5*(EXP((21.875*Tabla1[[#This Row],[Text media Enero (ºC)]])/(265.5+Tabla1[[#This Row],[Text media Enero (ºC)]])))),2)),(ROUND((610.5*(EXP((17.269*Tabla1[[#This Row],[Text media Enero (ºC)]])/(237.3+Tabla1[[#This Row],[Text media Enero (ºC)]])))),2))) -> 1094.31 | N52: =ROUND((Tabla1[[#This Row],[Psat (Pa)]]*Tabla1[[#This Row],[HRext Enero (tanto por 1)]]),2) -> 1006.77
A53: Andalucía | B53: Almería | C53: Instinción | D53: =IF((OR(Tabla1[[#This Row],[Zona Climática]]="α1",Tabla1[[#This Row],[Zona Climática]]="α2",Tabla1[[#This Row],[Zona Climática]]="α3",Tabla1[[#This Row],[Zona Climática]]="α4")),"α",(IF((OR(Tabla1[[#This Row],[Zona Climática]]="A1",Tabla1[[#This Row],[Zona Climática]]="A2",Tabla1[[#This Row],[Zona Climática]]="A3",Tabla1[[#This Row],[Zona Climática]]="A4")),"A",(IF((OR(Tabla1[[#This Row],[Zona Climática]]="B1",Tabla1[[#This Row],[Zona Climática]]="B2",Tabla1[[#This Row],[Zona Climática]]="B3",Tabla1[[#This Row],[Zona Climática]]="B4")),"B",(IF((OR(Tabla1[[#This Row],[Zona Climática]]="C1",Tabla1[[#This Row],[Zona Climática]]="C2",Tabla1[[#This Row],[Zona Climática]]="C3",Tabla1[[#This Row],[Zona Climática]]="C4")),"C",(IF((OR(Tabla1[[#This Row],[Zona Climática]]="D1",Tabla1[[#This Row],[Zona Climática]]="D2",Tabla1[[#This Row],[Zona Climática]]="D3",Tabla1[[#This Row],[Zona Climática]]="D4")),"D","E"))))))))) -> C | E53: C3 | F53: 36.9941992 | G53: -2.6589387 | H53: =CONCATENATE(Tabla1[[#This Row],[Latitud N]],", ",Tabla1[[#This Row],[Longitud W]]) -> 36,9941992, -2,6589387 | I53: 437 | J53: SI | K53: =ROUND((IF(Tabla1[[#This Row],[Altitud (m)]]<(VLOOKUP(Tabla1[[#This Row],[Provincia]],AUX_LOCALIDADES!$A$2:$D$54,3,FALSE)),(VLOOKUP(Tabla1[[#This Row],[Provincia]],AUX_LOCALIDADES!$A$2:$D$54,4,FALSE)),((VLOOKUP(Tabla1[[#This Row],[Provincia]],AUX_LOCALIDADES!$A$2:$D$54,4,FALSE))-((Tabla1[[#This Row],[Altitud (m)]]-(VLOOKUP(Tabla1[[#This Row],[Provincia]],AUX_LOCALIDADES!$A$2:$D$54,3,FALSE)))/100)))),1) -> 8.1 | L53: =IF((ROUND((IF(Tabla1[[#This Row],[Altitud (m)]]>=(VLOOKUP(Tabla1[[#This Row],[Provincia]],AUX_LOCALIDADES!$A$2:$D$54,3,FALSE)),(((VLOOKUP(Tabla1[[#This Row],[Provincia]],AUX_LOCALIDADES!$A$3:$Q$54,17,FALSE))/(IF(Tabla1[[#This Row],[Text media Enero (ºC)]]<0,(610.5*(EXP((21.875*Tabla1[[#This Row],[Text media Enero (ºC)]])/(265.5+Tabla1[[#This Row],[Text media Enero (ºC)]])))),(610.5*(EXP((17.269*Tabla1[[#This Row],[Text media Enero (ºC)]])/(237.3+Tabla1[[#This Row],[Text media Enero (ºC)]])))))))),((VLOOKUP(Tabla1[[#This Row],[Provincia]],AUX_LOCALIDADES!$S$3:$AG$54,4,FALSE))/100))),2))>1,1,(ROUND((IF(Tabla1[[#This Row],[Altitud (m)]]>=(VLOOKUP(Tabla1[[#This Row],[Provincia]],AUX_LOCALIDADES!$A$2:$D$54,3,FALSE)),(((VLOOKUP(Tabla1[[#This Row],[Provincia]],AUX_LOCALIDADES!$A$3:$Q$54,17,FALSE))/(IF(Tabla1[[#This Row],[Text media Enero (ºC)]]<0,(610.5*(EXP((21.875*Tabla1[[#This Row],[Text media Enero (ºC)]])/(265.5+Tabla1[[#This Row],[Text media Enero (ºC)]])))),(610.5*(EXP((17.269*Tabla1[[#This Row],[Text media Enero (ºC)]])/(237.3+Tabla1[[#This Row],[Text media Enero (ºC)]])))))))),((VLOOKUP(Tabla1[[#This Row],[Provincia]],AUX_LOCALIDADES!$S$3:$AG$54,4,FALSE))/100))),2))) -> 0.93 | M53: =IF(Tabla1[[#This Row],[Text media Enero (ºC)]]<0,(ROUND((610.5*(EXP((21.875*Tabla1[[#This Row],[Text media Enero (ºC)]])/(265.5+Tabla1[[#This Row],[Text media Enero (ºC)]])))),2)),(ROUND((610.5*(EXP((17.269*Tabla1[[#This Row],[Text media Enero (ºC)]])/(237.3+Tabla1[[#This Row],[Text media Enero (ºC)]])))),2))) -> 1079.53 | N53: =ROUND((Tabla1[[#This Row],[Psat (Pa)]]*Tabla1[[#This Row],[HRext Enero (tanto por 1)]]),2) -> 1003.96
A54: Andalucía | B54: Almería | C54: Laroya | D54: =IF((OR(Tabla1[[#This Row],[Zona Climática]]="α1",Tabla1[[#This Row],[Zona Climática]]="α2",Tabla1[[#This Row],[Zona Climática]]="α3",Tabla1[[#This Row],[Zona Climática]]="α4")),"α",(IF((OR(Tabla1[[#This Row],[Zona Climática]]="A1",Tabla1[[#This Row],[Zona Climática]]="A2",Tabla1[[#This Row],[Zona Climática]]="A3",Tabla1[[#This Row],[Zona Climática]]="A4")),"A",(IF((OR(Tabla1[[#This Row],[Zona Climática]]="B1",Tabla1[[#This Row],[Zona Climática]]="B2",Tabla1[[#This Row],[Zona Climática]]="B3",Tabla1[[#This Row],[Zona Climática]]="B4")),"B",(IF((OR(Tabla1[[#This Row],[Zona Climática]]="C1",Tabla1[[#This Row],[Zona Climática]]="C2",Tabla1[[#This Row],[Zona Climática]]="C3",Tabla1[[#This Row],[Zona Climática]]="C4")),"C",(IF((OR(Tabla1[[#This Row],[Zona Climática]]="D1",Tabla1[[#This Row],[Zona Climática]]="D2",Tabla1[[#This Row],[Zona Climática]]="D3",Tabla1[[#This Row],[Zona Climática]]="D4")),"D","E"))))))))) -> D | E54: D3 | F54: 37.2972835 | G54: -2.3298204 | H54: =CONCATENATE(Tabla1[[#This Row],[Latitud N]],", ",Tabla1[[#This Row],[Longitud W]]) -> 37,2972835, -2,3298204 | I54: 858 | J54: SI | K54: =ROUND((IF(Tabla1[[#This Row],[Altitud (m)]]<(VLOOKUP(Tabla1[[#This Row],[Provincia]],AUX_LOCALIDADES!$A$2:$D$54,3,FALSE)),(VLOOKUP(Tabla1[[#This Row],[Provincia]],AUX_LOCALIDADES!$A$2:$D$54,4,FALSE)),((VLOOKUP(Tabla1[[#This Row],[Provincia]],AUX_LOCALIDADES!$A$2:$D$54,4,FALSE))-((Tabla1[[#This Row],[Altitud (m)]]-(VLOOKUP(Tabla1[[#This Row],[Provincia]],AUX_LOCALIDADES!$A$2:$D$54,3,FALSE)))/100)))),1) -> 3.9 | L54: =IF((ROUND((IF(Tabla1[[#This Row],[Altitud (m)]]>=(VLOOKUP(Tabla1[[#This Row],[Provincia]],AUX_LOCALIDADES!$A$2:$D$54,3,FALSE)),(((VLOOKUP(Tabla1[[#This Row],[Provincia]],AUX_LOCALIDADES!$A$3:$Q$54,17,FALSE))/(IF(Tabla1[[#This Row],[Text media Enero (ºC)]]<0,(610.5*(EXP((21.875*Tabla1[[#This Row],[Text media Enero (ºC)]])/(265.5+Tabla1[[#This Row],[Text media Enero (ºC)]])))),(610.5*(EXP((17.269*Tabla1[[#This Row],[Text media Enero (ºC)]])/(237.3+Tabla1[[#This Row],[Text media Enero (ºC)]])))))))),((VLOOKUP(Tabla1[[#This Row],[Provincia]],AUX_LOCALIDADES!$S$3:$AG$54,4,FALSE))/100))),2))>1,1,(ROUND((IF(Tabla1[[#This Row],[Altitud (m)]]>=(VLOOKUP(Tabla1[[#This Row],[Provincia]],AUX_LOCALIDADES!$A$2:$D$54,3,FALSE)),(((VLOOKUP(Tabla1[[#This Row],[Provincia]],AUX_LOCALIDADES!$A$3:$Q$54,17,FALSE))/(IF(Tabla1[[#This Row],[Text media Enero (ºC)]]<0,(610.5*(EXP((21.875*Tabla1[[#This Row],[Text media Enero (ºC)]])/(265.5+Tabla1[[#This Row],[Text media Enero (ºC)]])))),(610.5*(EXP((17.269*Tabla1[[#This Row],[Text media Enero (ºC)]])/(237.3+Tabla1[[#This Row],[Text media Enero (ºC)]])))))))),((VLOOKUP(Tabla1[[#This Row],[Provincia]],AUX_LOCALIDADES!$S$3:$AG$54,4,FALSE))/100))),2))) -> 1 | M54: =IF(Tabla1[[#This Row],[Text media Enero (ºC)]]<0,(ROUND((610.5*(EXP((21.875*Tabla1[[#This Row],[Text media Enero (ºC)]])/(265.5+Tabla1[[#This Row],[Text media Enero (ºC)]])))),2)),(ROUND((610.5*(EXP((17.269*Tabla1[[#This Row],[Text media Enero (ºC)]])/(237.3+Tabla1[[#This Row],[Text media Enero (ºC)]])))),2))) -> 807.15 | N54: =ROUND((Tabla1[[#This Row],[Psat (Pa)]]*Tabla1[[#This Row],[HRext Enero (tanto por 1)]]),2) -> 807.15
A55: Andalucía | B55: Almería | C55: Láujar de Andarax | D55: =IF((OR(Tabla1[[#This Row],[Zona Climática]]="α1",Tabla1[[#This Row],[Zona Climática]]="α2",Tabla1[[#This Row],[Zona Climática]]="α3",Tabla1[[#This Row],[Zona Climática]]="α4")),"α",(IF((OR(Tabla1[[#This Row],[Zona Climática]]="A1",Tabla1[[#This Row],[Zona Climática]]="A2",Tabla1[[#This Row],[Zona Climática]]="A3",Tabla1[[#This Row],[Zona Climática]]="A4")),"A",(IF((OR(Tabla1[[#This Row],[Zona Climática]]="B1",Tabla1[[#This Row],[Zona Climática]]="B2",Tabla1[[#This Row],[Zona Climática]]="B3",Tabla1[[#This Row],[Zona Climática]]="B4")),"B",(IF((OR(Tabla1[[#This Row],[Zona Climática]]="C1",Tabla1[[#This Row],[Zona Climática]]="C2",Tabla1[[#This Row],[Zona Climática]]="C3",Tabla1[[#This Row],[Zona Climática]]="C4")),"C",(IF((OR(Tabla1[[#This Row],[Zona Climática]]="D1",Tabla1[[#This Row],[Zona Climática]]="D2",Tabla1[[#This Row],[Zona Climática]]="D3",Tabla1[[#This Row],[Zona Climática]]="D4")),"D","E"))))))))) -> D | E55: D3 | F55: 36.9954499 | G55: -2.8904314 | H55: =CONCATENATE(Tabla1[[#This Row],[Latitud N]],", ",Tabla1[[#This Row],[Longitud W]]) -> 36,9954499, -2,8904314 | I55: 921 | J55: SI | K55: =ROUND((IF(Tabla1[[#This Row],[Altitud (m)]]<(VLOOKUP(Tabla1[[#This Row],[Provincia]],AUX_LOCALIDADES!$A$2:$D$54,3,FALSE)),(VLOOKUP(Tabla1[[#This Row],[Provincia]],AUX_LOCALIDADES!$A$2:$D$54,4,FALSE)),((VLOOKUP(Tabla1[[#This Row],[Provincia]],AUX_LOCALIDADES!$A$2:$D$54,4,FALSE))-((Tabla1[[#This Row],[Altitud (m)]]-(VLOOKUP(Tabla1[[#This Row],[Provincia]],AUX_LOCALIDADES!$A$2:$D$54,3,FALSE)))/100)))),1) -> 3.3 | L55: =IF((ROUND((IF(Tabla1[[#This Row],[Altitud (m)]]>=(VLOOKUP(Tabla1[[#This Row],[Provincia]],AUX_LOCALIDADES!$A$2:$D$54,3,FALSE)),(((VLOOKUP(Tabla1[[#This Row],[Provincia]],AUX_LOCALIDADES!$A$3:$Q$54,17,FALSE))/(IF(Tabla1[[#This Row],[Text media Enero (ºC)]]<0,(610.5*(EXP((21.875*Tabla1[[#This Row],[Text media Enero (ºC)]])/(265.5+Tabla1[[#This Row],[Text media Enero (ºC)]])))),(610.5*(EXP((17.269*Tabla1[[#This Row],[Text media Enero (ºC)]])/(237.3+Tabla1[[#This Row],[Text media Enero (ºC)]])))))))),((VLOOKUP(Tabla1[[#This Row],[Provincia]],AUX_LOCALIDADES!$S$3:$AG$54,4,FALSE))/100))),2))>1,1,(ROUND((IF(Tabla1[[#This Row],[Altitud (m)]]>=(VLOOKUP(Tabla1[[#This Row],[Provincia]],AUX_LOCALIDADES!$A$2:$D$54,3,FALSE)),(((VLOOKUP(Tabla1[[#This Row],[Provincia]],AUX_LOCALIDADES!$A$3:$Q$54,17,FALSE))/(IF(Tabla1[[#This Row],[Text media Enero (ºC)]]<0,(610.5*(EXP((21.875*Tabla1[[#This Row],[Text media Enero (ºC)]])/(265.5+Tabla1[[#This Row],[Text media Enero (ºC)]])))),(610.5*(EXP((17.269*Tabla1[[#This Row],[Text media Enero (ºC)]])/(237.3+Tabla1[[#This Row],[Text media Enero (ºC)]])))))))),((VLOOKUP(Tabla1[[#This Row],[Provincia]],AUX_LOCALIDADES!$S$3:$AG$54,4,FALSE))/100))),2))) -> 1 | M55: =IF(Tabla1[[#This Row],[Text media Enero (ºC)]]<0,(ROUND((610.5*(EXP((21.875*Tabla1[[#This Row],[Text media Enero (ºC)]])/(265.5+Tabla1[[#This Row],[Text media Enero (ºC)]])))),2)),(ROUND((610.5*(EXP((17.269*Tabla1[[#This Row],[Text media Enero (ºC)]])/(237.3+Tabla1[[#This Row],[Text media Enero (ºC)]])))),2))) -> 773.66 | N55: =ROUND((Tabla1[[#This Row],[Psat (Pa)]]*Tabla1[[#This Row],[HRext Enero (tanto por 1)]]),2) -> 773.66
A56: Andalucía | B56: Almería | C56: Líjar | D56: =IF((OR(Tabla1[[#This Row],[Zona Climática]]="α1",Tabla1[[#This Row],[Zona Climática]]="α2",Tabla1[[#This Row],[Zona Climática]]="α3",Tabla1[[#This Row],[Zona Climática]]="α4")),"α",(IF((OR(Tabla1[[#This Row],[Zona Climática]]="A1",Tabla1[[#This Row],[Zona Climática]]="A2",Tabla1[[#This Row],[Zona Climática]]="A3",Tabla1[[#This Row],[Zona Climática]]="A4")),"A",(IF((OR(Tabla1[[#This Row],[Zona Climática]]="B1",Tabla1[[#This Row],[Zona Climática]]="B2",Tabla1[[#This Row],[Zona Climática]]="B3",Tabla1[[#This Row],[Zona Climática]]="B4")),"B",(IF((OR(Tabla1[[#This Row],[Zona Climática]]="C1",Tabla1[[#This Row],[Zona Climática]]="C2",Tabla1[[#This Row],[Zona Climática]]="C3",Tabla1[[#This Row],[Zona Climática]]="C4")),"C",(IF((OR(Tabla1[[#This Row],[Zona Climática]]="D1",Tabla1[[#This Row],[Zona Climática]]="D2",Tabla1[[#This Row],[Zona Climática]]="D3",Tabla1[[#This Row],[Zona Climática]]="D4")),"D","E"))))))))) -> C | E56: C3 | F56: 37.2958736 | G56: -2.2175761 | H56: =CONCATENATE(Tabla1[[#This Row],[Latitud N]],", ",Tabla1[[#This Row],[Longitud W]]) -> 37,2958736, -2,2175761 | I56: 602 | J56: SI | K56: =ROUND((IF(Tabla1[[#This Row],[Altitud (m)]]<(VLOOKUP(Tabla1[[#This Row],[Provincia]],AUX_LOCALIDADES!$A$2:$D$54,3,FALSE)),(VLOOKUP(Tabla1[[#This Row],[Provincia]],AUX_LOCALIDADES!$A$2:$D$54,4,FALSE)),((VLOOKUP(Tabla1[[#This Row],[Provincia]],AUX_LOCALIDADES!$A$2:$D$54,4,FALSE))-((Tabla1[[#This Row],[Altitud (m)]]-(VLOOKUP(Tabla1[[#This Row],[Provincia]],AUX_LOCALIDADES!$A$2:$D$54,3,FALSE)))/100)))),1) -> 6.5 | L56: =IF((ROUND((IF(Tabla1[[#This Row],[Altitud (m)]]>=(VLOOKUP(Tabla1[[#This Row],[Provincia]],AUX_LOCALIDADES!$A$2:$D$54,3,FALSE)),(((VLOOKUP(Tabla1[[#This Row],[Provincia]],AUX_LOCALIDADES!$A$3:$Q$54,17,FALSE))/(IF(Tabla1[[#This Row],[Text media Enero (ºC)]]<0,(610.5*(EXP((21.875*Tabla1[[#This Row],[Text media Enero (ºC)]])/(265.5+Tabla1[[#This Row],[Text media Enero (ºC)]])))),(610.5*(EXP((17.269*Tabla1[[#This Row],[Text media Enero (ºC)]])/(237.3+Tabla1[[#This Row],[Text media Enero (ºC)]])))))))),((VLOOKUP(Tabla1[[#This Row],[Provincia]],AUX_LOCALIDADES!$S$3:$AG$54,4,FALSE))/100))),2))>1,1,(ROUND((IF(Tabla1[[#This Row],[Altitud (m)]]>=(VLOOKUP(Tabla1[[#This Row],[Provincia]],AUX_LOCALIDADES!$A$2:$D$54,3,FALSE)),(((VLOOKUP(Tabla1[[#This Row],[Provincia]],AUX_LOCALIDADES!$A$3:$Q$54,17,FALSE))/(IF(Tabla1[[#This Row],[Text media Enero (ºC)]]<0,(610.5*(EXP((21.875*Tabla1[[#This Row],[Text media Enero (ºC)]])/(265.5+Tabla1[[#This Row],[Text media Enero (ºC)]])))),(610.5*(EXP((17.269*Tabla1[[#This Row],[Text media Enero (ºC)]])/(237.3+Tabla1[[#This Row],[Text media Enero (ºC)]])))))))),((VLOOKUP(Tabla1[[#This Row],[Provincia]],AUX_LOCALIDADES!$S$3:$AG$54,4,FALSE))/100))),2))) -> 1 | M56: =IF(Tabla1[[#This Row],[Text media Enero (ºC)]]<0,(ROUND((610.5*(EXP((21.875*Tabla1[[#This Row],[Text media Enero (ºC)]])/(265.5+Tabla1[[#This Row],[Text media Enero (ºC)]])))),2)),(ROUND((610.5*(EXP((17.269*Tabla1[[#This Row],[Text media Enero (ºC)]])/(237.3+Tabla1[[#This Row],[Text media Enero (ºC)]])))),2))) -> 967.48 | N56: =ROUND((Tabla1[[#This Row],[Psat (Pa)]]*Tabla1[[#This Row],[HRext Enero (tanto por 1)]]),2) -> 967.48
A57: Andalucía | B57: Almería | C57: Lubrín | D57: =IF((OR(Tabla1[[#This Row],[Zona Climática]]="α1",Tabla1[[#This Row],[Zona Climática]]="α2",Tabla1[[#This Row],[Zona Climática]]="α3",Tabla1[[#This Row],[Zona Climática]]="α4")),"α",(IF((OR(Tabla1[[#This Row],[Zona Climática]]="A1",Tabla1[[#This Row],[Zona Climática]]="A2",Tabla1[[#This Row],[Zona Climática]]="A3",Tabla1[[#This Row],[Zona Climática]]="A4")),"A",(IF((OR(Tabla1[[#This Row],[Zona Climática]]="B1",Tabla1[[#This Row],[Zona Climática]]="B2",Tabla1[[#This Row],[Zona Climática]]="B3",Tabla1[[#This Row],[Zona Climática]]="B4")),"B",(IF((OR(Tabla1[[#This Row],[Zona Climática]]="C1",Tabla1[[#This Row],[Zona Climática]]="C2",Tabla1[[#This Row],[Zona Climática]]="C3",Tabla1[[#This Row],[Zona Climática]]="C4")),"C",(IF((OR(Tabla1[[#This Row],[Zona Climática]]="D1",Tabla1[[#This Row],[Zona Climática]]="D2",Tabla1[[#This Row],[Zona Climática]]="D3",Tabla1[[#This Row],[Zona Climática]]="D4")),"D","E"))))))))) -> C | E57: C3 | F57: 37.2168054 | G57: -2.065682 | H57: =CONCATENATE(Tabla1[[#This Row],[Latitud N]],", ",Tabla1[[#This Row],[Longitud W]]) -> 37,2168054, -2,065682 | I57: 509 | J57: SI | K57: =ROUND((IF(Tabla1[[#This Row],[Altitud (m)]]<(VLOOKUP(Tabla1[[#This Row],[Provincia]],AUX_LOCALIDADES!$A$2:$D$54,3,FALSE)),(VLOOKUP(Tabla1[[#This Row],[Provincia]],AUX_LOCALIDADES!$A$2:$D$54,4,FALSE)),((VLOOKUP(Tabla1[[#This Row],[Provincia]],AUX_LOCALIDADES!$A$2:$D$54,4,FALSE))-((Tabla1[[#This Row],[Altitud (m)]]-(VLOOKUP(Tabla1[[#This Row],[Provincia]],AUX_LOCALIDADES!$A$2:$D$54,3,FALSE)))/100)))),1) -> 7.4 | L57: =IF((ROUND((IF(Tabla1[[#This Row],[Altitud (m)]]>=(VLOOKUP(Tabla1[[#This Row],[Provincia]],AUX_LOCALIDADES!$A$2:$D$54,3,FALSE)),(((VLOOKUP(Tabla1[[#This Row],[Provincia]],AUX_LOCALIDADES!$A$3:$Q$54,17,FALSE))/(IF(Tabla1[[#This Row],[Text media Enero (ºC)]]<0,(610.5*(EXP((21.875*Tabla1[[#This Row],[Text media Enero (ºC)]])/(265.5+Tabla1[[#This Row],[Text media Enero (ºC)]])))),(610.5*(EXP((17.269*Tabla1[[#This Row],[Text media Enero (ºC)]])/(237.3+Tabla1[[#This Row],[Text media Enero (ºC)]])))))))),((VLOOKUP(Tabla1[[#This Row],[Provincia]],AUX_LOCALIDADES!$S$3:$AG$54,4,FALSE))/100))),2))>1,1,(ROUND((IF(Tabla1[[#This Row],[Altitud (m)]]>=(VLOOKUP(Tabla1[[#This Row],[Provincia]],AUX_LOCALIDADES!$A$2:$D$54,3,FALSE)),(((VLOOKUP(Tabla1[[#This Row],[Provincia]],AUX_LOCALIDADES!$A$3:$Q$54,17,FALSE))/(IF(Tabla1[[#This Row],[Text media Enero (ºC)]]<0,(610.5*(EXP((21.875*Tabla1[[#This Row],[Text media Enero (ºC)]])/(265.5+Tabla1[[#This Row],[Text media Enero (ºC)]])))),(610.5*(EXP((17.269*Tabla1[[#This Row],[Text media Enero (ºC)]])/(237.3+Tabla1[[#This Row],[Text media Enero (ºC)]])))))))),((VLOOKUP(Tabla1[[#This Row],[Provincia]],AUX_LOCALIDADES!$S$3:$AG$54,4,FALSE))/100))),2))) -> 0.98 | M57: =IF(Tabla1[[#This Row],[Text media Enero (ºC)]]<0,(ROUND((610.5*(EXP((21.875*Tabla1[[#This Row],[Text media Enero (ºC)]])/(265.5+Tabla1[[#This Row],[Text media Enero (ºC)]])))),2)),(ROUND((610.5*(EXP((17.269*Tabla1[[#This Row],[Text media Enero (ºC)]])/(237.3+Tabla1[[#This Row],[Text media Enero (ºC)]])))),2))) -> 1029.17 | N57: =ROUND((Tabla1[[#This Row],[Psat (Pa)]]*Tabla1[[#This Row],[HRext Enero (tanto por 1)]]),2) -> 1008.59
A58: Andalucía | B58: Almería | C58: Lucainena de las Torres | D58: =IF((OR(Tabla1[[#This Row],[Zona Climática]]="α1",Tabla1[[#This Row],[Zona Climática]]="α2",Tabla1[[#This Row],[Zona Climática]]="α3",Tabla1[[#This Row],[Zona Climática]]="α4")),"α",(IF((OR(Tabla1[[#This Row],[Zona Climática]]="A1",Tabla1[[#This Row],[Zona Climática]]="A2",Tabla1[[#This Row],[Zona Climática]]="A3",Tabla1[[#This Row],[Zona Climática]]="A4")),"A",(IF((OR(Tabla1[[#This Row],[Zona Climática]]="B1",Tabla1[[#This Row],[Zona Climática]]="B2",Tabla1[[#This Row],[Zona Climática]]="B3",Tabla1[[#This Row],[Zona Climática]]="B4")),"B",(IF((OR(Tabla1[[#This Row],[Zona Climática]]="C1",Tabla1[[#This Row],[Zona Climática]]="C2",Tabla1[[#This Row],[Zona Climática]]="C3",Tabla1[[#This Row],[Zona Climática]]="C4")),"C",(IF((OR(Tabla1[[#This Row],[Zona Climática]]="D1",Tabla1[[#This Row],[Zona Climática]]="D2",Tabla1[[#This Row],[Zona Climática]]="D3",Tabla1[[#This Row],[Zona Climática]]="D4")),"D","E"))))))))) -> C | E58: C3 | F58: 37.0406645 | G58: -2.1994011 | H58: =CONCATENATE(Tabla1[[#This Row],[Latitud N]],", ",Tabla1[[#This Row],[Longitud W]]) -> 37,0406645, -2,1994011 | I58: 550 | J58: SI | K58: =ROUND((IF(Tabla1[[#This Row],[Altitud (m)]]<(VLOOKUP(Tabla1[[#This Row],[Provincia]],AUX_LOCALIDADES!$A$2:$D$54,3,FALSE)),(VLOOKUP(Tabla1[[#This Row],[Provincia]],AUX_LOCALIDADES!$A$2:$D$54,4,FALSE)),((VLOOKUP(Tabla1[[#This Row],[Provincia]],AUX_LOCALIDADES!$A$2:$D$54,4,FALSE))-((Tabla1[[#This Row],[Altitud (m)]]-(VLOOKUP(Tabla1[[#This Row],[Provincia]],AUX_LOCALIDADES!$A$2:$D$54,3,FALSE)))/100)))),1) -> 7 | L58: =IF((ROUND((IF(Tabla1[[#This Row],[Altitud (m)]]>=(VLOOKUP(Tabla1[[#This Row],[Provincia]],AUX_LOCALIDADES!$A$2:$D$54,3,FALSE)),(((VLOOKUP(Tabla1[[#This Row],[Provincia]],AUX_LOCALIDADES!$A$3:$Q$54,17,FALSE))/(IF(Tabla1[[#This Row],[Text media Enero (ºC)]]<0,(610.5*(EXP((21.875*Tabla1[[#This Row],[Text media Enero (ºC)]])/(265.5+Tabla1[[#This Row],[Text media Enero (ºC)]])))),(610.5*(EXP((17.269*Tabla1[[#This Row],[Text media Enero (ºC)]])/(237.3+Tabla1[[#This Row],[Text media Enero (ºC)]])))))))),((VLOOKUP(Tabla1[[#This Row],[Provincia]],AUX_LOCALIDADES!$S$3:$AG$54,4,FALSE))/100))),2))>1,1,(ROUND((IF(Tabla1[[#This Row],[Altitud (m)]]>=(VLOOKUP(Tabla1[[#This Row],[Provincia]],AUX_LOCALIDADES!$A$2:$D$54,3,FALSE)),(((VLOOKUP(Tabla1[[#This Row],[Provincia]],AUX_LOCALIDADES!$A$3:$Q$54,17,FALSE))/(IF(Tabla1[[#This Row],[Text media Enero (ºC)]]<0,(610.5*(EXP((21.875*Tabla1[[#This Row],[Text media Enero (ºC)]])/(265.5+Tabla1[[#This Row],[Text media Enero (ºC)]])))),(610.5*(EXP((17.269*Tabla1[[#This Row],[Text media Enero (ºC)]])/(237.3+Tabla1[[#This Row],[Text media Enero (ºC)]])))))))),((VLOOKUP(Tabla1[[#This Row],[Provincia]],AUX_LOCALIDADES!$S$3:$AG$54,4,FALSE))/100))),2))) -> 1 | M58: =IF(Tabla1[[#This Row],[Text media Enero (ºC)]]<0,(ROUND((610.5*(EXP((21.875*Tabla1[[#This Row],[Text media Enero (ºC)]])/(265.5+Tabla1[[#This Row],[Text media Enero (ºC)]])))),2)),(ROUND((610.5*(EXP((17.269*Tabla1[[#This Row],[Text media Enero (ºC)]])/(237.3+Tabla1[[#This Row],[Text media Enero (ºC)]])))),2))) -> 1001.34 | N58: =ROUND((Tabla1[[#This Row],[Psat (Pa)]]*Tabla1[[#This Row],[HRext Enero (tanto por 1)]]),2) -> 1001.34
A59: Andalucía | B59: Almería | C59: Lúcar | D59: =IF((OR(Tabla1[[#This Row],[Zona Climática]]="α1",Tabla1[[#This Row],[Zona Climática]]="α2",Tabla1[[#This Row],[Zona Climática]]="α3",Tabla1[[#This Row],[Zona Climática]]="α4")),"α",(IF((OR(Tabla1[[#This Row],[Zona Climática]]="A1",Tabla1[[#This Row],[Zona Climática]]="A2",Tabla1[[#This Row],[Zona Climática]]="A3",Tabla1[[#This Row],[Zona Climática]]="A4")),"A",(IF((OR(Tabla1[[#This Row],[Zona Climática]]="B1",Tabla1[[#This Row],[Zona Climática]]="B2",Tabla1[[#This Row],[Zona Climática]]="B3",Tabla1[[#This Row],[Zona Climática]]="B4")),"B",(IF((OR(Tabla1[[#This Row],[Zona Climática]]="C1",Tabla1[[#This Row],[Zona Climática]]="C2",Tabla1[[#This Row],[Zona Climática]]="C3",Tabla1[[#This Row],[Zona Climática]]="C4")),"C",(IF((OR(Tabla1[[#This Row],[Zona Climática]]="D1",Tabla1[[#This Row],[Zona Climática]]="D2",Tabla1[[#This Row],[Zona Climática]]="D3",Tabla1[[#This Row],[Zona Climática]]="D4")),"D","E"))))))))) -> D | E59: D3 | F59: 37.4020595 | G59: -2.4226624 | H59: =CONCATENATE(Tabla1[[#This Row],[Latitud N]],", ",Tabla1[[#This Row],[Longitud W]]) -> 37,4020595, -2,4226624 | I59: 895 | J59: SI | K59: =ROUND((IF(Tabla1[[#This Row],[Altitud (m)]]<(VLOOKUP(Tabla1[[#This Row],[Provincia]],AUX_LOCALIDADES!$A$2:$D$54,3,FALSE)),(VLOOKUP(Tabla1[[#This Row],[Provincia]],AUX_LOCALIDADES!$A$2:$D$54,4,FALSE)),((VLOOKUP(Tabla1[[#This Row],[Provincia]],AUX_LOCALIDADES!$A$2:$D$54,4,FALSE))-((Tabla1[[#This Row],[Altitud (m)]]-(VLOOKUP(Tabla1[[#This Row],[Provincia]],AUX_LOCALIDADES!$A$2:$D$54,3,FALSE)))/100)))),1) -> 3.6 | L59: =IF((ROUND((IF(Tabla1[[#This Row],[Altitud (m)]]>=(VLOOKUP(Tabla1[[#This Row],[Provincia]],AUX_LOCALIDADES!$A$2:$D$54,3,FALSE)),(((VLOOKUP(Tabla1[[#This Row],[Provincia]],AUX_LOCALIDADES!$A$3:$Q$54,17,FALSE))/(IF(Tabla1[[#This Row],[Text media Enero (ºC)]]<0,(610.5*(EXP((21.875*Tabla1[[#This Row],[Text media Enero (ºC)]])/(265.5+Tabla1[[#This Row],[Text media Enero (ºC)]])))),(610.5*(EXP((17.269*Tabla1[[#This Row],[Text media Enero (ºC)]])/(237.3+Tabla1[[#This Row],[Text media Enero (ºC)]])))))))),((VLOOKUP(Tabla1[[#This Row],[Provincia]],AUX_LOCALIDADES!$S$3:$AG$54,4,FALSE))/100))),2))>1,1,(ROUND((IF(Tabla1[[#This Row],[Altitud (m)]]>=(VLOOKUP(Tabla1[[#This Row],[Provincia]],AUX_LOCALIDADES!$A$2:$D$54,3,FALSE)),(((VLOOKUP(Tabla1[[#This Row],[Provincia]],AUX_LOCALIDADES!$A$3:$Q$54,17,FALSE))/(IF(Tabla1[[#This Row],[Text media Enero (ºC)]]<0,(610.5*(EXP((21.875*Tabla1[[#This Row],[Text media Enero (ºC)]])/(265.5+Tabla1[[#This Row],[Text media Enero (ºC)]])))),(610.5*(EXP((17.269*Tabla1[[#This Row],[Text media Enero (ºC)]])/(237.3+Tabla1[[#This Row],[Text media Enero (ºC)]])))))))),((VLOOKUP(Tabla1[[#This Row],[Provincia]],AUX_LOCALIDADES!$S$3:$AG$54,4,FALSE))/100))),2))) -> 1 | M59: =IF(Tabla1[[#This Row],[Text media Enero (ºC)]]<0,(ROUND((610.5*(EXP((21.875*Tabla1[[#This Row],[Text media Enero (ºC)]])/(265.5+Tabla1[[#This Row],[Text media Enero (ºC)]])))),2)),(ROUND((610.5*(EXP((17.269*Tabla1[[#This Row],[Text media Enero (ºC)]])/(237.3+Tabla1[[#This Row],[Text media Enero (ºC)]])))),2))) -> 790.25 | N59: =ROUND((Tabla1[[#This Row],[Psat (Pa)]]*Tabla1[[#This Row],[HRext Enero (tanto por 1)]]),2) -> 790.25
A60: Andalucía | B60: Almería | C60: Macael | D60: =IF((OR(Tabla1[[#This Row],[Zona Climática]]="α1",Tabla1[[#This Row],[Zona Climática]]="α2",Tabla1[[#This Row],[Zona Climática]]="α3",Tabla1[[#This Row],[Zona Climática]]="α4")),"α",(IF((OR(Tabla1[[#This Row],[Zona Climática]]="A1",Tabla1[[#This Row],[Zona Climática]]="A2",Tabla1[[#This Row],[Zona Climática]]="A3",Tabla1[[#This Row],[Zona Climática]]="A4")),"A",(IF((OR(Tabla1[[#This Row],[Zona Climática]]="B1",Tabla1[[#This Row],[Zona Climática]]="B2",Tabla1[[#This Row],[Zona Climática]]="B3",Tabla1[[#This Row],[Zona Climática]]="B4")),"B",(IF((OR(Tabla1[[#This Row],[Zona Climática]]="C1",Tabla1[[#This Row],[Zona Climática]]="C2",Tabla1[[#This Row],[Zona Climática]]="C3",Tabla1[[#This Row],[Zona Climática]]="C4")),"C",(IF((OR(Tabla1[[#This Row],[Zona Climática]]="D1",Tabla1[[#This Row],[Zona Climática]]="D2",Tabla1[[#This Row],[Zona Climática]]="D3",Tabla1[[#This Row],[Zona Climática]]="D4")),"D","E"))))))))) -> C | E60: C3 | F60: 37.3333595 | G60: -2.3024095 | H60: =CONCATENATE(Tabla1[[#This Row],[Latitud N]],", ",Tabla1[[#This Row],[Longitud W]]) -> 37,3333595, -2,3024095 | I60: 536 | J60: SI | K60: =ROUND((IF(Tabla1[[#This Row],[Altitud (m)]]<(VLOOKUP(Tabla1[[#This Row],[Provincia]],AUX_LOCALIDADES!$A$2:$D$54,3,FALSE)),(VLOOKUP(Tabla1[[#This Row],[Provincia]],AUX_LOCALIDADES!$A$2:$D$54,4,FALSE)),((VLOOKUP(Tabla1[[#This Row],[Provincia]],AUX_LOCALIDADES!$A$2:$D$54,4,FALSE))-((Tabla1[[#This Row],[Altitud (m)]]-(VLOOKUP(Tabla1[[#This Row],[Provincia]],AUX_LOCALIDADES!$A$2:$D$54,3,FALSE)))/100)))),1) -> 7.1 | L60: =IF((ROUND((IF(Tabla1[[#This Row],[Altitud (m)]]>=(VLOOKUP(Tabla1[[#This Row],[Provincia]],AUX_LOCALIDADES!$A$2:$D$54,3,FALSE)),(((VLOOKUP(Tabla1[[#This Row],[Provincia]],AUX_LOCALIDADES!$A$3:$Q$54,17,FALSE))/(IF(Tabla1[[#This Row],[Text media Enero (ºC)]]<0,(610.5*(EXP((21.875*Tabla1[[#This Row],[Text media Enero (ºC)]])/(265.5+Tabla1[[#This Row],[Text media Enero (ºC)]])))),(610.5*(EXP((17.269*Tabla1[[#This Row],[Text media Enero (ºC)]])/(237.3+Tabla1[[#This Row],[Text media Enero (ºC)]])))))))),((VLOOKUP(Tabla1[[#This Row],[Provincia]],AUX_LOCALIDADES!$S$3:$AG$54,4,FALSE))/100))),2))>1,1,(ROUND((IF(Tabla1[[#This Row],[Altitud (m)]]>=(VLOOKUP(Tabla1[[#This Row],[Provincia]],AUX_LOCALIDADES!$A$2:$D$54,3,FALSE)),(((VLOOKUP(Tabla1[[#This Row],[Provincia]],AUX_LOCALIDADES!$A$3:$Q$54,17,FALSE))/(IF(Tabla1[[#This Row],[Text media Enero (ºC)]]<0,(610.5*(EXP((21.875*Tabla1[[#This Row],[Text media Enero (ºC)]])/(265.5+Tabla1[[#This Row],[Text media Enero (ºC)]])))),(610.5*(EXP((17.269*Tabla1[[#This Row],[Text media Enero (ºC)]])/(237.3+Tabla1[[#This Row],[Text media Enero (ºC)]])))))))),((VLOOKUP(Tabla1[[#This Row],[Provincia]],AUX_LOCALIDADES!$S$3:$AG$54,4,FALSE))/100))),2))) -> 1 | M60: =IF(Tabla1[[#This Row],[Text media Enero (ºC)]]<0,(ROUND((610.5*(EXP((21.875*Tabla1[[#This Row],[Text media Enero (ºC)]])/(265.5+Tabla1[[#This Row],[Text media Enero (ºC)]])))),2)),(ROUND((610.5*(EXP((17.269*Tabla1[[#This Row],[Text media Enero (ºC)]])/(237.3+Tabla1[[#This Row],[Text media Enero (ºC)]])))),2))) -> 1008.23 | N60: =ROUND((Tabla1[[#This Row],[Psat (Pa)]]*Tabla1[[#This Row],[HRext Enero (tanto por 1)]]),2) -> 1008.23
A61: Andalucía | B61: Almería | C61: María | D61: =IF((OR(Tabla1[[#This Row],[Zona Climática]]="α1",Tabla1[[#This Row],[Zona Climática]]="α2",Tabla1[[#This Row],[Zona Climática]]="α3",Tabla1[[#This Row],[Zona Climática]]="α4")),"α",(IF((OR(Tabla1[[#This Row],[Zona Climática]]="A1",Tabla1[[#This Row],[Zona Climática]]="A2",Tabla1[[#This Row],[Zona Climática]]="A3",Tabla1[[#This Row],[Zona Climática]]="A4")),"A",(IF((OR(Tabla1[[#This Row],[Zona Climática]]="B1",Tabla1[[#This Row],[Zona Climática]]="B2",Tabla1[[#This Row],[Zona Climática]]="B3",Tabla1[[#This Row],[Zona Climática]]="B4")),"B",(IF((OR(Tabla1[[#This Row],[Zona Climática]]="C1",Tabla1[[#This Row],[Zona Climática]]="C2",Tabla1[[#This Row],[Zona Climática]]="C3",Tabla1[[#This Row],[Zona Climática]]="C4")),"C",(IF((OR(Tabla1[[#This Row],[Zona Climática]]="D1",Tabla1[[#This Row],[Zona Climática]]="D2",Tabla1[[#This Row],[Zona Climática]]="D3",Tabla1[[#This Row],[Zona Climática]]="D4")),"D","E"))))))))) -> D | E61: D3 | F61: 37.7128177 | G61: -2.1640888 | H61: =CONCATENATE(Tabla1[[#This Row],[Latitud N]],", ",Tabla1[[#This Row],[Longitud W]]) -> 37,7128177, -2,1640888 | I61: 1198 | J61: SI | K61: =ROUND((IF(Tabla1[[#This Row],[Altitud (m)]]<(VLOOKUP(Tabla1[[#This Row],[Provincia]],AUX_LOCALIDADES!$A$2:$D$54,3,FALSE)),(VLOOKUP(Tabla1[[#This Row],[Provincia]],AUX_LOCALIDADES!$A$2:$D$54,4,FALSE)),((VLOOKUP(Tabla1[[#This Row],[Provincia]],AUX_LOCALIDADES!$A$2:$D$54,4,FALSE))-((Tabla1[[#This Row],[Altitud (m)]]-(VLOOKUP(Tabla1[[#This Row],[Provincia]],AUX_LOCALIDADES!$A$2:$D$54,3,FALSE)))/100)))),1) -> 0.5 | L61: =IF((ROUND((IF(Tabla1[[#This Row],[Altitud (m)]]>=(VLOOKUP(Tabla1[[#This Row],[Provincia]],AUX_LOCALIDADES!$A$2:$D$54,3,FALSE)),(((VLOOKUP(Tabla1[[#This Row],[Provincia]],AUX_LOCALIDADES!$A$3:$Q$54,17,FALSE))/(IF(Tabla1[[#This Row],[Text media Enero (ºC)]]<0,(610.5*(EXP((21.875*Tabla1[[#This Row],[Text media Enero (ºC)]])/(265.5+Tabla1[[#This Row],[Text media Enero (ºC)]])))),(610.5*(EXP((17.269*Tabla1[[#This Row],[Text media Enero (ºC)]])/(237.3+Tabla1[[#This Row],[Text media Enero (ºC)]])))))))),((VLOOKUP(Tabla1[[#This Row],[Provincia]],AUX_LOCALIDADES!$S$3:$AG$54,4,FALSE))/100))),2))>1,1,(ROUND((IF(Tabla1[[#This Row],[Altitud (m)]]>=(VLOOKUP(Tabla1[[#This Row],[Provincia]],AUX_LOCALIDADES!$A$2:$D$54,3,FALSE)),(((VLOOKUP(Tabla1[[#This Row],[Provincia]],AUX_LOCALIDADES!$A$3:$Q$54,17,FALSE))/(IF(Tabla1[[#This Row],[Text media Enero (ºC)]]<0,(610.5*(EXP((21.875*Tabla1[[#This Row],[Text media Enero (ºC)]])/(265.5+Tabla1[[#This Row],[Text media Enero (ºC)]])))),(610.5*(EXP((17.269*Tabla1[[#This Row],[Text media Enero (ºC)]])/(237.3+Tabla1[[#This Row],[Text media Enero (ºC)]])))))))),((VLOOKUP(Tabla1[[#This Row],[Provincia]],AUX_LOCALIDADES!$S$3:$AG$54,4,FALSE))/100))),2))) -> 1 | M61: =IF(Tabla1[[#This Row],[Text media Enero (ºC)]]<0,(ROUND((610.5*(EXP((21.875*Tabla1[[#This Row],[Text media Enero (ºC)]])/(265.5+Tabla1[[#This Row],[Text media Enero (ºC)]])))),2)),(ROUND((610.5*(EXP((17.269*Tabla1[[#This Row],[Text media Enero (ºC)]])/(237.3+Tabla1[[#This Row],[Text media Enero (ºC)]])))),2))) -> 633.07 | N61: =ROUND((Tabla1[[#This Row],[Psat (Pa)]]*Tabla1[[#This Row],[HRext Enero (tanto por 1)]]),2) -> 633.07
A62: Andalucía | B62: Almería | C62: Mojácar | D62: =IF((OR(Tabla1[[#This Row],[Zona Climática]]="α1",Tabla1[[#This Row],[Zona Climática]]="α2",Tabla1[[#This Row],[Zona Climática]]="α3",Tabla1[[#This Row],[Zona Climática]]="α4")),"α",(IF((OR(Tabla1[[#This Row],[Zona Climática]]="A1",Tabla1[[#This Row],[Zona Climática]]="A2",Tabla1[[#This Row],[Zona Climática]]="A3",Tabla1[[#This Row],[Zona Climática]]="A4")),"A",(IF((OR(Tabla1[[#This Row],[Zona Climática]]="B1",Tabla1[[#This Row],[Zona Climática]]="B2",Tabla1[[#This Row],[Zona Climática]]="B3",Tabla1[[#This Row],[Zona Climática]]="B4")),"B",(IF((OR(Tabla1[[#This Row],[Zona Climática]]="C1",Tabla1[[#This Row],[Zona Climática]]="C2",Tabla1[[#This Row],[Zona Climática]]="C3",Tabla1[[#This Row],[Zona Climática]]="C4")),"C",(IF((OR(Tabla1[[#This Row],[Zona Climática]]="D1",Tabla1[[#This Row],[Zona Climática]]="D2",Tabla1[[#This Row],[Zona Climática]]="D3",Tabla1[[#This Row],[Zona Climática]]="D4")),"D","E"))))))))) -> B | E62: B4 | F62: 37.1414447 | G62: -1.8496516 | H62: =CONCATENATE(Tabla1[[#This Row],[Latitud N]],", ",Tabla1[[#This Row],[Longitud W]]) -> 37,1414447, -1,8496516 | I62: 169 | J62: SI | K62: =ROUND((IF(Tabla1[[#This Row],[Altitud (m)]]<(VLOOKUP(Tabla1[[#This Row],[Provincia]],AUX_LOCALIDADES!$A$2:$D$54,3,FALSE)),(VLOOKUP(Tabla1[[#This Row],[Provincia]],AUX_LOCALIDADES!$A$2:$D$54,4,FALSE)),((VLOOKUP(Tabla1[[#This Row],[Provincia]],AUX_LOCALIDADES!$A$2:$D$54,4,FALSE))-((Tabla1[[#This Row],[Altitud (m)]]-(VLOOKUP(Tabla1[[#This Row],[Provincia]],AUX_LOCALIDADES!$A$2:$D$54,3,FALSE)))/100)))),1) -> 10.8 | L62: =IF((ROUND((IF(Tabla1[[#This Row],[Altitud (m)]]>=(VLOOKUP(Tabla1[[#This Row],[Provincia]],AUX_LOCALIDADES!$A$2:$D$54,3,FALSE)),(((VLOOKUP(Tabla1[[#This Row],[Provincia]],AUX_LOCALIDADES!$A$3:$Q$54,17,FALSE))/(IF(Tabla1[[#This Row],[Text media Enero (ºC)]]<0,(610.5*(EXP((21.875*Tabla1[[#This Row],[Text media Enero (ºC)]])/(265.5+Tabla1[[#This Row],[Text media Enero (ºC)]])))),(610.5*(EXP((17.269*Tabla1[[#This Row],[Text media Enero (ºC)]])/(237.3+Tabla1[[#This Row],[Text media Enero (ºC)]])))))))),((VLOOKUP(Tabla1[[#This Row],[Provincia]],AUX_LOCALIDADES!$S$3:$AG$54,4,FALSE))/100))),2))>1,1,(ROUND((IF(Tabla1[[#This Row],[Altitud (m)]]>=(VLOOKUP(Tabla1[[#This Row],[Provincia]],AUX_LOCALIDADES!$A$2:$D$54,3,FALSE)),(((VLOOKUP(Tabla1[[#This Row],[Provincia]],AUX_LOCALIDADES!$A$3:$Q$54,17,FALSE))/(IF(Tabla1[[#This Row],[Text media Enero (ºC)]]<0,(610.5*(EXP((21.875*Tabla1[[#This Row],[Text media Enero (ºC)]])/(265.5+Tabla1[[#This Row],[Text media Enero (ºC)]])))),(610.5*(EXP((17.269*Tabla1[[#This Row],[Text media Enero (ºC)]])/(237.3+Tabla1[[#This Row],[Text media Enero (ºC)]])))))))),((VLOOKUP(Tabla1[[#This Row],[Provincia]],AUX_LOCALIDADES!$S$3:$AG$54,4,FALSE))/100))),2))) -> 0.78 | M62: =IF(Tabla1[[#This Row],[Text media Enero (ºC)]]<0,(ROUND((610.5*(EXP((21.875*Tabla1[[#This Row],[Text media Enero (ºC)]])/(265.5+Tabla1[[#This Row],[Text media Enero (ºC)]])))),2)),(ROUND((610.5*(EXP((17.269*Tabla1[[#This Row],[Text media Enero (ºC)]])/(237.3+Tabla1[[#This Row],[Text media Enero (ºC)]])))),2))) -> 1294.67 | N62: =ROUND((Tabla1[[#This Row],[Psat (Pa)]]*Tabla1[[#This Row],[HRext Enero (tanto por 1)]]),2) -> 1009.84
A63: Andalucía | B63: Almería | C63: Mojonera, La | D63: =IF((OR(Tabla1[[#This Row],[Zona Climática]]="α1",Tabla1[[#This Row],[Zona Climática]]="α2",Tabla1[[#This Row],[Zona Climática]]="α3",Tabla1[[#This Row],[Zona Climática]]="α4")),"α",(IF((OR(Tabla1[[#This Row],[Zona Climática]]="A1",Tabla1[[#This Row],[Zona Climática]]="A2",Tabla1[[#This Row],[Zona Climática]]="A3",Tabla1[[#This Row],[Zona Climática]]="A4")),"A",(IF((OR(Tabla1[[#This Row],[Zona Climática]]="B1",Tabla1[[#This Row],[Zona Climática]]="B2",Tabla1[[#This Row],[Zona Climática]]="B3",Tabla1[[#This Row],[Zona Climática]]="B4")),"B",(IF((OR(Tabla1[[#This Row],[Zona Climática]]="C1",Tabla1[[#This Row],[Zona Climática]]="C2",Tabla1[[#This Row],[Zona Climática]]="C3",Tabla1[[#This Row],[Zona Climática]]="C4")),"C",(IF((OR(Tabla1[[#This Row],[Zona Climática]]="D1",Tabla1[[#This Row],[Zona Climática]]="D2",Tabla1[[#This Row],[Zona Climática]]="D3",Tabla1[[#This Row],[Zona Climática]]="D4")),"D","E"))))))))) -> A | E63: A4 | F63: 36.7553767 | G63: -2.6796035 | H63: =CONCATENATE(Tabla1[[#This Row],[Latitud N]],", ",Tabla1[[#This Row],[Longitud W]]) -> 36,7553767, -2,6796035 | I63: 30 | J63: SI | K63: =ROUND((IF(Tabla1[[#This Row],[Altitud (m)]]<(VLOOKUP(Tabla1[[#This Row],[Provincia]],AUX_LOCALIDADES!$A$2:$D$54,3,FALSE)),(VLOOKUP(Tabla1[[#This Row],[Provincia]],AUX_LOCALIDADES!$A$2:$D$54,4,FALSE)),((VLOOKUP(Tabla1[[#This Row],[Provincia]],AUX_LOCALIDADES!$A$2:$D$54,4,FALSE))-((Tabla1[[#This Row],[Altitud (m)]]-(VLOOKUP(Tabla1[[#This Row],[Provincia]],AUX_LOCALIDADES!$A$2:$D$54,3,FALSE)))/100)))),1) -> 12.2 | L63: =IF((ROUND((IF(Tabla1[[#This Row],[Altitud (m)]]>=(VLOOKUP(Tabla1[[#This Row],[Provincia]],AUX_LOCALIDADES!$A$2:$D$54,3,FALSE)),(((VLOOKUP(Tabla1[[#This Row],[Provincia]],AUX_LOCALIDADES!$A$3:$Q$54,17,FALSE))/(IF(Tabla1[[#This Row],[Text media Enero (ºC)]]<0,(610.5*(EXP((21.875*Tabla1[[#This Row],[Text media Enero (ºC)]])/(265.5+Tabla1[[#This Row],[Text media Enero (ºC)]])))),(610.5*(EXP((17.269*Tabla1[[#This Row],[Text media Enero (ºC)]])/(237.3+Tabla1[[#This Row],[Text media Enero (ºC)]])))))))),((VLOOKUP(Tabla1[[#This Row],[Provincia]],AUX_LOCALIDADES!$S$3:$AG$54,4,FALSE))/100))),2))>1,1,(ROUND((IF(Tabla1[[#This Row],[Altitud (m)]]>=(VLOOKUP(Tabla1[[#This Row],[Provincia]],AUX_LOCALIDADES!$A$2:$D$54,3,FALSE)),(((VLOOKUP(Tabla1[[#This Row],[Provincia]],AUX_LOCALIDADES!$A$3:$Q$54,17,FALSE))/(IF(Tabla1[[#This Row],[Text media Enero (ºC)]]<0,(610.5*(EXP((21.875*Tabla1[[#This Row],[Text media Enero (ºC)]])/(265.5+Tabla1[[#This Row],[Text media Enero (ºC)]])))),(610.5*(EXP((17.269*Tabla1[[#This Row],[Text media Enero (ºC)]])/(237.3+Tabla1[[#This Row],[Text media Enero (ºC)]])))))))),((VLOOKUP(Tabla1[[#This Row],[Provincia]],AUX_LOCALIDADES!$S$3:$AG$54,4,FALSE))/100))),2))) -> 0.71 | M63: =IF(Tabla1[[#This Row],[Text media Enero (ºC)]]<0,(ROUND((610.5*(EXP((21.875*Tabla1[[#This Row],[Text media Enero (ºC)]])/(265.5+Tabla1[[#This Row],[Text media Enero (ºC)]])))),2)),(ROUND((610.5*(EXP((17.269*Tabla1[[#This Row],[Text media Enero (ºC)]])/(237.3+Tabla1[[#This Row],[Text media Enero (ºC)]])))),2))) -> 1420.4 | N63: =ROUND((Tabla1[[#This Row],[Psat (Pa)]]*Tabla1[[#This Row],[HRext Enero (tanto por 1)]]),2) -> 1008.48
A64: Andalucía | B64: Almería | C64: Nacimiento | D64: =IF((OR(Tabla1[[#This Row],[Zona Climática]]="α1",Tabla1[[#This Row],[Zona Climática]]="α2",Tabla1[[#This Row],[Zona Climática]]="α3",Tabla1[[#This Row],[Zona Climática]]="α4")),"α",(IF((OR(Tabla1[[#This Row],[Zona Climática]]="A1",Tabla1[[#This Row],[Zona Climática]]="A2",Tabla1[[#This Row],[Zona Climática]]="A3",Tabla1[[#This Row],[Zona Climática]]="A4")),"A",(IF((OR(Tabla1[[#This Row],[Zona Climática]]="B1",Tabla1[[#This Row],[Zona Climática]]="B2",Tabla1[[#This Row],[Zona Climática]]="B3",Tabla1[[#This Row],[Zona Climática]]="B4")),"B",(IF((OR(Tabla1[[#This Row],[Zona Climática]]="C1",Tabla1[[#This Row],[Zona Climática]]="C2",Tabla1[[#This Row],[Zona Climática]]="C3",Tabla1[[#This Row],[Zona Climática]]="C4")),"C",(IF((OR(Tabla1[[#This Row],[Zona Climática]]="D1",Tabla1[[#This Row],[Zona Climática]]="D2",Tabla1[[#This Row],[Zona Climática]]="D3",Tabla1[[#This Row],[Zona Climática]]="D4")),"D","E"))))))))) -> C | E64: C3 | F64: 37.1072897 | G64: -2.6466153 | H64: =CONCATENATE(Tabla1[[#This Row],[Latitud N]],", ",Tabla1[[#This Row],[Longitud W]]) -> 37,1072897, -2,6466153 | I64: 593 | J64: SI | K64: =ROUND((IF(Tabla1[[#This Row],[Altitud (m)]]<(VLOOKUP(Tabla1[[#This Row],[Provincia]],AUX_LOCALIDADES!$A$2:$D$54,3,FALSE)),(VLOOKUP(Tabla1[[#This Row],[Provincia]],AUX_LOCALIDADES!$A$2:$D$54,4,FALSE)),((VLOOKUP(Tabla1[[#This Row],[Provincia]],AUX_LOCALIDADES!$A$2:$D$54,4,FALSE))-((Tabla1[[#This Row],[Altitud (m)]]-(VLOOKUP(Tabla1[[#This Row],[Provincia]],AUX_LOCALIDADES!$A$2:$D$54,3,FALSE)))/100)))),1) -> 6.6 | L64: =IF((ROUND((IF(Tabla1[[#This Row],[Altitud (m)]]>=(VLOOKUP(Tabla1[[#This Row],[Provincia]],AUX_LOCALIDADES!$A$2:$D$54,3,FALSE)),(((VLOOKUP(Tabla1[[#This Row],[Provincia]],AUX_LOCALIDADES!$A$3:$Q$54,17,FALSE))/(IF(Tabla1[[#This Row],[Text media Enero (ºC)]]<0,(610.5*(EXP((21.875*Tabla1[[#This Row],[Text media Enero (ºC)]])/(265.5+Tabla1[[#This Row],[Text media Enero (ºC)]])))),(610.5*(EXP((17.269*Tabla1[[#This Row],[Text media Enero (ºC)]])/(237.3+Tabla1[[#This Row],[Text media Enero (ºC)]])))))))),((VLOOKUP(Tabla1[[#This Row],[Provincia]],AUX_LOCALIDADES!$S$3:$AG$54,4,FALSE))/100))),2))>1,1,(ROUND((IF(Tabla1[[#This Row],[Altitud (m)]]>=(VLOOKUP(Tabla1[[#This Row],[Provincia]],AUX_LOCALIDADES!$A$2:$D$54,3,FALSE)),(((VLOOKUP(Tabla1[[#This Row],[Provincia]],AUX_LOCALIDADES!$A$3:$Q$54,17,FALSE))/(IF(Tabla1[[#This Row],[Text media Enero (ºC)]]<0,(610.5*(EXP((21.875*Tabla1[[#This Row],[Text media Enero (ºC)]])/(265.5+Tabla1[[#This Row],[Text media Enero (ºC)]])))),(610.5*(EXP((17.269*Tabla1[[#This Row],[Text media Enero (ºC)]])/(237.3+Tabla1[[#This Row],[Text media Enero (ºC)]])))))))),((VLOOKUP(Tabla1[[#This Row],[Provincia]],AUX_LOCALIDADES!$S$3:$AG$54,4,FALSE))/100))),2))) -> 1 | M64: =IF(Tabla1[[#This Row],[Text media Enero (ºC)]]<0,(ROUND((610.5*(EXP((21.875*Tabla1[[#This Row],[Text media Enero (ºC)]])/(265.5+Tabla1[[#This Row],[Text media Enero (ºC)]])))),2)),(ROUND((610.5*(EXP((17.269*Tabla1[[#This Row],[Text media Enero (ºC)]])/(237.3+Tabla1[[#This Row],[Text media Enero (ºC)]])))),2))) -> 974.17 | N64: =ROUND((Tabla1[[#This Row],[Psat (Pa)]]*Tabla1[[#This Row],[HRext Enero (tanto por 1)]]),2) -> 974.17
A65: Andalucía | B65: Almería | C65: Níjar | D65: =IF((OR(Tabla1[[#This Row],[Zona Climática]]="α1",Tabla1[[#This Row],[Zona Climática]]="α2",Tabla1[[#This Row],[Zona Climática]]="α3",Tabla1[[#This Row],[Zona Climática]]="α4")),"α",(IF((OR(Tabla1[[#This Row],[Zona Climática]]="A1",Tabla1[[#This Row],[Zona Climática]]="A2",Tabla1[[#This Row],[Zona Climática]]="A3",Tabla1[[#This Row],[Zona Climática]]="A4")),"A",(IF((OR(Tabla1[[#This Row],[Zona Climática]]="B1",Tabla1[[#This Row],[Zona Climática]]="B2",Tabla1[[#This Row],[Zona Climática]]="B3",Tabla1[[#This Row],[Zona Climática]]="B4")),"B",(IF((OR(Tabla1[[#This Row],[Zona Climática]]="C1",Tabla1[[#This Row],[Zona Climática]]="C2",Tabla1[[#This Row],[Zona Climática]]="C3",Tabla1[[#This Row],[Zona Climática]]="C4")),"C",(IF((OR(Tabla1[[#This Row],[Zona Climática]]="D1",Tabla1[[#This Row],[Zona Climática]]="D2",Tabla1[[#This Row],[Zona Climática]]="D3",Tabla1[[#This Row],[Zona Climática]]="D4")),"D","E"))))))))) -> B | E65: B3 | F65: 36.9667931 | G65: -2.205792 | H65: =CONCATENATE(Tabla1[[#This Row],[Latitud N]],", ",Tabla1[[#This Row],[Longitud W]]) -> 36,9667931, -2,205792 | I65: 356 | J65: SI | K65: =ROUND((IF(Tabla1[[#This Row],[Altitud (m)]]<(VLOOKUP(Tabla1[[#This Row],[Provincia]],AUX_LOCALIDADES!$A$2:$D$54,3,FALSE)),(VLOOKUP(Tabla1[[#This Row],[Provincia]],AUX_LOCALIDADES!$A$2:$D$54,4,FALSE)),((VLOOKUP(Tabla1[[#This Row],[Provincia]],AUX_LOCALIDADES!$A$2:$D$54,4,FALSE))-((Tabla1[[#This Row],[Altitud (m)]]-(VLOOKUP(Tabla1[[#This Row],[Provincia]],AUX_LOCALIDADES!$A$2:$D$54,3,FALSE)))/100)))),1) -> 8.9 | L65: =IF((ROUND((IF(Tabla1[[#This Row],[Altitud (m)]]>=(VLOOKUP(Tabla1[[#This Row],[Provincia]],AUX_LOCALIDADES!$A$2:$D$54,3,FALSE)),(((VLOOKUP(Tabla1[[#This Row],[Provincia]],AUX_LOCALIDADES!$A$3:$Q$54,17,FALSE))/(IF(Tabla1[[#This Row],[Text media Enero (ºC)]]<0,(610.5*(EXP((21.875*Tabla1[[#This Row],[Text media Enero (ºC)]])/(265.5+Tabla1[[#This Row],[Text media Enero (ºC)]])))),(610.5*(EXP((17.269*Tabla1[[#This Row],[Text media Enero (ºC)]])/(237.3+Tabla1[[#This Row],[Text media Enero (ºC)]])))))))),((VLOOKUP(Tabla1[[#This Row],[Provincia]],AUX_LOCALIDADES!$S$3:$AG$54,4,FALSE))/100))),2))>1,1,(ROUND((IF(Tabla1[[#This Row],[Altitud (m)]]>=(VLOOKUP(Tabla1[[#This Row],[Provincia]],AUX_LOCALIDADES!$A$2:$D$54,3,FALSE)),(((VLOOKUP(Tabla1[[#This Row],[Provincia]],AUX_LOCALIDADES!$A$3:$Q$54,17,FALSE))/(IF(Tabla1[[#This Row],[Text media Enero (ºC)]]<0,(610.5*(EXP((21.875*Tabla1[[#This Row],[Text media Enero (ºC)]])/(265.5+Tabla1[[#This Row],[Text media Enero (ºC)]])))),(610.5*(EXP((17.269*Tabla1[[#This Row],[Text media Enero (ºC)]])/(237.3+Tabla1[[#This Row],[Text media Enero (ºC)]])))))))),((VLOOKUP(Tabla1[[#This Row],[Provincia]],AUX_LOCALIDADES!$S$3:$AG$54,4,FALSE))/100))),2))) -> 0.88 | M65: =IF(Tabla1[[#This Row],[Text media Enero (ºC)]]<0,(ROUND((610.5*(EXP((21.875*Tabla1[[#This Row],[Text media Enero (ºC)]])/(265.5+Tabla1[[#This Row],[Text media Enero (ºC)]])))),2)),(ROUND((610.5*(EXP((17.269*Tabla1[[#This Row],[Text media Enero (ºC)]])/(237.3+Tabla1[[#This Row],[Text media Enero (ºC)]])))),2))) -> 1139.73 | N65: =ROUND((Tabla1[[#This Row],[Psat (Pa)]]*Tabla1[[#This Row],[HRext Enero (tanto por 1)]]),2) -> 1002.96
A66: Andalucía | B66: Almería | C66: Ohanes | D66: =IF((OR(Tabla1[[#This Row],[Zona Climática]]="α1",Tabla1[[#This Row],[Zona Climática]]="α2",Tabla1[[#This Row],[Zona Climática]]="α3",Tabla1[[#This Row],[Zona Climática]]="α4")),"α",(IF((OR(Tabla1[[#This Row],[Zona Climática]]="A1",Tabla1[[#This Row],[Zona Climática]]="A2",Tabla1[[#This Row],[Zona Climática]]="A3",Tabla1[[#This Row],[Zona Climática]]="A4")),"A",(IF((OR(Tabla1[[#This Row],[Zona Climática]]="B1",Tabla1[[#This Row],[Zona Climática]]="B2",Tabla1[[#This Row],[Zona Climática]]="B3",Tabla1[[#This Row],[Zona Climática]]="B4")),"B",(IF((OR(Tabla1[[#This Row],[Zona Climática]]="C1",Tabla1[[#This Row],[Zona Climática]]="C2",Tabla1[[#This Row],[Zona Climática]]="C3",Tabla1[[#This Row],[Zona Climática]]="C4")),"C",(IF((OR(Tabla1[[#This Row],[Zona Climática]]="D1",Tabla1[[#This Row],[Zona Climática]]="D2",Tabla1[[#This Row],[Zona Climática]]="D3",Tabla1[[#This Row],[Zona Climática]]="D4")),"D","E"))))))))) -> D | E66: D3 | F66: 37.0394831 | G66: -2.7436303 | H66: =CONCATENATE(Tabla1[[#This Row],[Latitud N]],", ",Tabla1[[#This Row],[Longitud W]]) -> 37,0394831, -2,7436303 | I66: 956 | J66: SI | K66: =ROUND((IF(Tabla1[[#This Row],[Altitud (m)]]<(VLOOKUP(Tabla1[[#This Row],[Provincia]],AUX_LOCALIDADES!$A$2:$D$54,3,FALSE)),(VLOOKUP(Tabla1[[#This Row],[Provincia]],AUX_LOCALIDADES!$A$2:$D$54,4,FALSE)),((VLOOKUP(Tabla1[[#This Row],[Provincia]],AUX_LOCALIDADES!$A$2:$D$54,4,FALSE))-((Tabla1[[#This Row],[Altitud (m)]]-(VLOOKUP(Tabla1[[#This Row],[Provincia]],AUX_LOCALIDADES!$A$2:$D$54,3,FALSE)))/100)))),1) -> 2.9 | L66: =IF((ROUND((IF(Tabla1[[#This Row],[Altitud (m)]]>=(VLOOKUP(Tabla1[[#This Row],[Provincia]],AUX_LOCALIDADES!$A$2:$D$54,3,FALSE)),(((VLOOKUP(Tabla1[[#This Row],[Provincia]],AUX_LOCALIDADES!$A$3:$Q$54,17,FALSE))/(IF(Tabla1[[#This Row],[Text media Enero (ºC)]]<0,(610.5*(EXP((21.875*Tabla1[[#This Row],[Text media Enero (ºC)]])/(265.5+Tabla1[[#This Row],[Text media Enero (ºC)]])))),(610.5*(EXP((17.269*Tabla1[[#This Row],[Text media Enero (ºC)]])/(237.3+Tabla1[[#This Row],[Text media Enero (ºC)]])))))))),((VLOOKUP(Tabla1[[#This Row],[Provincia]],AUX_LOCALIDADES!$S$3:$AG$54,4,FALSE))/100))),2))>1,1,(ROUND((IF(Tabla1[[#This Row],[Altitud (m)]]>=(VLOOKUP(Tabla1[[#This Row],[Provincia]],AUX_LOCALIDADES!$A$2:$D$54,3,FALSE)),(((VLOOKUP(Tabla1[[#This Row],[Provincia]],AUX_LOCALIDADES!$A$3:$Q$54,17,FALSE))/(IF(Tabla1[[#This Row],[Text media Enero (ºC)]]<0,(610.5*(EXP((21.875*Tabla1[[#This Row],[Text media Enero (ºC)]])/(265.5+Tabla1[[#This Row],[Text media Enero (ºC)]])))),(610.5*(EXP((17.269*Tabla1[[#This Row],[Text media Enero (ºC)]])/(237.3+Tabla1[[#This Row],[Text media Enero (ºC)]])))))))),((VLOOKUP(Tabla1[[#This Row],[Provincia]],AUX_LOCALIDADES!$S$3:$AG$54,4,FALSE))/100))),2))) -> 1 | M66: =IF(Tabla1[[#This Row],[Text media Enero (ºC)]]<0,(ROUND((610.5*(EXP((21.875*Tabla1[[#This Row],[Text media Enero (ºC)]])/(265.5+Tabla1[[#This Row],[Text media Enero (ºC)]])))),2)),(ROUND((610.5*(EXP((17.269*Tabla1[[#This Row],[Text media Enero (ºC)]])/(237.3+Tabla1[[#This Row],[Text media Enero (ºC)]])))),2))) -> 752.03 | N66: =ROUND((Tabla1[[#This Row],[Psat (Pa)]]*Tabla1[[#This Row],[HRext Enero (tanto por 1)]]),2) -> 752.03
A67: Andalucía | B67: Almería | C67: Olula de Castro | D67: =IF((OR(Tabla1[[#This Row],[Zona Climática]]="α1",Tabla1[[#This Row],[Zona Climática]]="α2",Tabla1[[#This Row],[Zona Climática]]="α3",Tabla1[[#This Row],[Zona Climática]]="α4")),"α",(IF((OR(Tabla1[[#This Row],[Zona Climática]]="A1",Tabla1[[#This Row],[Zona Climática]]="A2",Tabla1[[#This Row],[Zona Climática]]="A3",Tabla1[[#This Row],[Zona Climática]]="A4")),"A",(IF((OR(Tabla1[[#This Row],[Zona Climática]]="B1",Tabla1[[#This Row],[Zona Climática]]="B2",Tabla1[[#This Row],[Zona Climática]]="B3",Tabla1[[#This Row],[Zona Climática]]="B4")),"B",(IF((OR(Tabla1[[#This Row],[Zona Climática]]="C1",Tabla1[[#This Row],[Zona Climática]]="C2",Tabla1[[#This Row],[Zona Climática]]="C3",Tabla1[[#This Row],[Zona Climática]]="C4")),"C",(IF((OR(Tabla1[[#This Row],[Zona Climática]]="D1",Tabla1[[#This Row],[Zona Climática]]="D2",Tabla1[[#This Row],[Zona Climática]]="D3",Tabla1[[#This Row],[Zona Climática]]="D4")),"D","E"))))))))) -> D | E67: D3 | F67: 37.1760572 | G67: -2.4741751 | H67: =CONCATENATE(Tabla1[[#This Row],[Latitud N]],", ",Tabla1[[#This Row],[Longitud W]]) -> 37,1760572, -2,4741751 | I67: 1006 | J67: SI | K67: =ROUND((IF(Tabla1[[#This Row],[Altitud (m)]]<(VLOOKUP(Tabla1[[#This Row],[Provincia]],AUX_LOCALIDADES!$A$2:$D$54,3,FALSE)),(VLOOKUP(Tabla1[[#This Row],[Provincia]],AUX_LOCALIDADES!$A$2:$D$54,4,FALSE)),((VLOOKUP(Tabla1[[#This Row],[Provincia]],AUX_LOCALIDADES!$A$2:$D$54,4,FALSE))-((Tabla1[[#This Row],[Altitud (m)]]-(VLOOKUP(Tabla1[[#This Row],[Provincia]],AUX_LOCALIDADES!$A$2:$D$54,3,FALSE)))/100)))),1) -> 2.4 | L67: =IF((ROUND((IF(Tabla1[[#This Row],[Altitud (m)]]>=(VLOOKUP(Tabla1[[#This Row],[Provincia]],AUX_LOCALIDADES!$A$2:$D$54,3,FALSE)),(((VLOOKUP(Tabla1[[#This Row],[Provincia]],AUX_LOCALIDADES!$A$3:$Q$54,17,FALSE))/(IF(Tabla1[[#This Row],[Text media Enero (ºC)]]<0,(610.5*(EXP((21.875*Tabla1[[#This Row],[Text media Enero (ºC)]])/(265.5+Tabla1[[#This Row],[Text media Enero (ºC)]])))),(610.5*(EXP((17.269*Tabla1[[#This Row],[Text media Enero (ºC)]])/(237.3+Tabla1[[#This Row],[Text media Enero (ºC)]])))))))),((VLOOKUP(Tabla1[[#This Row],[Provincia]],AUX_LOCALIDADES!$S$3:$AG$54,4,FALSE))/100))),2))>1,1,(ROUND((IF(Tabla1[[#This Row],[Altitud (m)]]>=(VLOOKUP(Tabla1[[#This Row],[Provincia]],AUX_LOCALIDADES!$A$2:$D$54,3,FALSE)),(((VLOOKUP(Tabla1[[#This Row],[Provincia]],AUX_LOCALIDADES!$A$3:$Q$54,17,FALSE))/(IF(Tabla1[[#This Row],[Text media Enero (ºC)]]<0,(610.5*(EXP((21.875*Tabla1[[#This Row],[Text media Enero (ºC)]])/(265.5+Tabla1[[#This Row],[Text media Enero (ºC)]])))),(610.5*(EXP((17.269*Tabla1[[#This Row],[Text media Enero (ºC)]])/(237.3+Tabla1[[#This Row],[Text media Enero (ºC)]])))))))),((VLOOKUP(Tabla1[[#This Row],[Provincia]],AUX_LOCALIDADES!$S$3:$AG$54,4,FALSE))/100))),2))) -> 1 | M67: =IF(Tabla1[[#This Row],[Text media Enero (ºC)]]<0,(ROUND((610.5*(EXP((21.875*Tabla1[[#This Row],[Text media Enero (ºC)]])/(265.5+Tabla1[[#This Row],[Text media Enero (ºC)]])))),2)),(ROUND((610.5*(EXP((17.269*Tabla1[[#This Row],[Text media Enero (ºC)]])/(237.3+Tabla1[[#This Row],[Text media Enero (ºC)]])))),2))) -> 725.73 | N67: =ROUND((Tabla1[[#This Row],[Psat (Pa)]]*Tabla1[[#This Row],[HRext Enero (tanto por 1)]]),2) -> 725.73
A68: Andalucía | B68: Almería | C68: Olula del Río | D68: =IF((OR(Tabla1[[#This Row],[Zona Climática]]="α1",Tabla1[[#This Row],[Zona Climática]]="α2",Tabla1[[#This Row],[Zona Climática]]="α3",Tabla1[[#This Row],[Zona Climática]]="α4")),"α",(IF((OR(Tabla1[[#This Row],[Zona Climática]]="A1",Tabla1[[#This Row],[Zona Climática]]="A2",Tabla1[[#This Row],[Zona Climática]]="A3",Tabla1[[#This Row],[Zona Climática]]="A4")),"A",(IF((OR(Tabla1[[#This Row],[Zona Climática]]="B1",Tabla1[[#This Row],[Zona Climática]]="B2",Tabla1[[#This Row],[Zona Climática]]="B3",Tabla1[[#This Row],[Zona Climática]]="B4")),"B",(IF((OR(Tabla1[[#This Row],[Zona Climática]]="C1",Tabla1[[#This Row],[Zona Climática]]="C2",Tabla1[[#This Row],[Zona Climática]]="C3",Tabla1[[#This Row],[Zona Climática]]="C4")),"C",(IF((OR(Tabla1[[#This Row],[Zona Climática]]="D1",Tabla1[[#This Row],[Zona Climática]]="D2",Tabla1[[#This Row],[Zona Climática]]="D3",Tabla1[[#This Row],[Zona Climática]]="D4")),"D","E"))))))))) -> C | E68: C3 | F68: 37.3531581 | G68: -2.2971455 | H68: =CONCATENATE(Tabla1[[#This Row],[Latitud N]],", ",Tabla1[[#This Row],[Longitud W]]) -> 37,3531581, -2,2971455 | I68: 486 | J68: SI | K68: =ROUND((IF(Tabla1[[#This Row],[Altitud (m)]]<(VLOOKUP(Tabla1[[#This Row],[Provincia]],AUX_LOCALIDADES!$A$2:$D$54,3,FALSE)),(VLOOKUP(Tabla1[[#This Row],[Provincia]],AUX_LOCALIDADES!$A$2:$D$54,4,FALSE)),((VLOOKUP(Tabla1[[#This Row],[Provincia]],AUX_LOCALIDADES!$A$2:$D$54,4,FALSE))-((Tabla1[[#This Row],[Altitud (m)]]-(VLOOKUP(Tabla1[[#This Row],[Provincia]],AUX_LOCALIDADES!$A$2:$D$54,3,FALSE)))/100)))),1) -> 7.6 | L68: =IF((ROUND((IF(Tabla1[[#This Row],[Altitud (m)]]>=(VLOOKUP(Tabla1[[#This Row],[Provincia]],AUX_LOCALIDADES!$A$2:$D$54,3,FALSE)),(((VLOOKUP(Tabla1[[#This Row],[Provincia]],AUX_LOCALIDADES!$A$3:$Q$54,17,FALSE))/(IF(Tabla1[[#This Row],[Text media Enero (ºC)]]<0,(610.5*(EXP((21.875*Tabla1[[#This Row],[Text media Enero (ºC)]])/(265.5+Tabla1[[#This Row],[Text media Enero (ºC)]])))),(610.5*(EXP((17.269*Tabla1[[#This Row],[Text media Enero (ºC)]])/(237.3+Tabla1[[#This Row],[Text media Enero (ºC)]])))))))),((VLOOKUP(Tabla1[[#This Row],[Provincia]],AUX_LOCALIDADES!$S$3:$AG$54,4,FALSE))/100))),2))>1,1,(ROUND((IF(Tabla1[[#This Row],[Altitud (m)]]>=(VLOOKUP(Tabla1[[#This Row],[Provincia]],AUX_LOCALIDADES!$A$2:$D$54,3,FALSE)),(((VLOOKUP(Tabla1[[#This Row],[Provincia]],AUX_LOCALIDADES!$A$3:$Q$54,17,FALSE))/(IF(Tabla1[[#This Row],[Text media Enero (ºC)]]<0,(610.5*(EXP((21.875*Tabla1[[#This Row],[Text media Enero (ºC)]])/(265.5+Tabla1[[#This Row],[Text media Enero (ºC)]])))),(610.5*(EXP((17.269*Tabla1[[#This Row],[Text media Enero (ºC)]])/(237.3+Tabla1[[#This Row],[Text media Enero (ºC)]])))))))),((VLOOKUP(Tabla1[[#This Row],[Provincia]],AUX_LOCALIDADES!$S$3:$AG$54,4,FALSE))/100))),2))) -> 0.97 | M68: =IF(Tabla1[[#This Row],[Text media Enero (ºC)]]<0,(ROUND((610.5*(EXP((21.875*Tabla1[[#This Row],[Text media Enero (ºC)]])/(265.5+Tabla1[[#This Row],[Text media Enero (ºC)]])))),2)),(ROUND((610.5*(EXP((17.269*Tabla1[[#This Row],[Text media Enero (ºC)]])/(237.3+Tabla1[[#This Row],[Text media Enero (ºC)]])))),2))) -> 1043.35 | N68: =ROUND((Tabla1[[#This Row],[Psat (Pa)]]*Tabla1[[#This Row],[HRext Enero (tanto por 1)]]),2) -> 1012.05
A69: Andalucía | B69: Almería | C69: Oria | D69: =IF((OR(Tabla1[[#This Row],[Zona Climática]]="α1",Tabla1[[#This Row],[Zona Climática]]="α2",Tabla1[[#This Row],[Zona Climática]]="α3",Tabla1[[#This Row],[Zona Climática]]="α4")),"α",(IF((OR(Tabla1[[#This Row],[Zona Climática]]="A1",Tabla1[[#This Row],[Zona Climática]]="A2",Tabla1[[#This Row],[Zona Climática]]="A3",Tabla1[[#This Row],[Zona Climática]]="A4")),"A",(IF((OR(Tabla1[[#This Row],[Zona Climática]]="B1",Tabla1[[#This Row],[Zona Climática]]="B2",Tabla1[[#This Row],[Zona Climática]]="B3",Tabla1[[#This Row],[Zona Climática]]="B4")),"B",(IF((OR(Tabla1[[#This Row],[Zona Climática]]="C1",Tabla1[[#This Row],[Zona Climática]]="C2",Tabla1[[#This Row],[Zona Climática]]="C3",Tabla1[[#This Row],[Zona Climática]]="C4")),"C",(IF((OR(Tabla1[[#This Row],[Zona Climática]]="D1",Tabla1[[#This Row],[Zona Climática]]="D2",Tabla1[[#This Row],[Zona Climática]]="D3",Tabla1[[#This Row],[Zona Climática]]="D4")),"D","E"))))))))) -> D | E69: D3 | F69: 37.4851865 | G69: -2.2942139 | H69: =CONCATENATE(Tabla1[[#This Row],[Latitud N]],", ",Tabla1[[#This Row],[Longitud W]]) -> 37,4851865, -2,2942139 | I69: 1022 | J69: SI | K69: =ROUND((IF(Tabla1[[#This Row],[Altitud (m)]]<(VLOOKUP(Tabla1[[#This Row],[Provincia]],AUX_LOCALIDADES!$A$2:$D$54,3,FALSE)),(VLOOKUP(Tabla1[[#This Row],[Provincia]],AUX_LOCALIDADES!$A$2:$D$54,4,FALSE)),((VLOOKUP(Tabla1[[#This Row],[Provincia]],AUX_LOCALIDADES!$A$2:$D$54,4,FALSE))-((Tabla1[[#This Row],[Altitud (m)]]-(VLOOKUP(Tabla1[[#This Row],[Provincia]],AUX_LOCALIDADES!$A$2:$D$54,3,FALSE)))/100)))),1) -> 2.3 | L69: =IF((ROUND((IF(Tabla1[[#This Row],[Altitud (m)]]>=(VLOOKUP(Tabla1[[#This Row],[Provincia]],AUX_LOCALIDADES!$A$2:$D$54,3,FALSE)),(((VLOOKUP(Tabla1[[#This Row],[Provincia]],AUX_LOCALIDADES!$A$3:$Q$54,17,FALSE))/(IF(Tabla1[[#This Row],[Text media Enero (ºC)]]<0,(610.5*(EXP((21.875*Tabla1[[#This Row],[Text media Enero (ºC)]])/(265.5+Tabla1[[#This Row],[Text media Enero (ºC)]])))),(610.5*(EXP((17.269*Tabla1[[#This Row],[Text media Enero (ºC)]])/(237.3+Tabla1[[#This Row],[Text media Enero (ºC)]])))))))),((VLOOKUP(Tabla1[[#This Row],[Provincia]],AUX_LOCALIDADES!$S$3:$AG$54,4,FALSE))/100))),2))>1,1,(ROUND((IF(Tabla1[[#This Row],[Altitud (m)]]>=(VLOOKUP(Tabla1[[#This Row],[Provincia]],AUX_LOCALIDADES!$A$2:$D$54,3,FALSE)),(((VLOOKUP(Tabla1[[#This Row],[Provincia]],AUX_LOCALIDADES!$A$3:$Q$54,17,FALSE))/(IF(Tabla1[[#This Row],[Text media Enero (ºC)]]<0,(610.5*(EXP((21.875*Tabla1[[#This Row],[Text media Enero (ºC)]])/(265.5+Tabla1[[#This Row],[Text media Enero (ºC)]])))),(610.5*(EXP((17.269*Tabla1[[#This Row],[Text media Enero (ºC)]])/(237.3+Tabla1[[#This Row],[Text media Enero (ºC)]])))))))),((VLOOKUP(Tabla1[[#This Row],[Provincia]],AUX_LOCALIDADES!$S$3:$AG$54,4,FALSE))/100))),2))) -> 1 | M69: =IF(Tabla1[[#This Row],[Text media Enero (ºC)]]<0,(ROUND((610.5*(EXP((21.875*Tabla1[[#This Row],[Text media Enero (ºC)]])/(265.5+Tabla1[[#This Row],[Text media Enero (ºC)]])))),2)),(ROUND((610.5*(EXP((17.269*Tabla1[[#This Row],[Text media Enero (ºC)]])/(237.3+Tabla1[[#This Row],[Text media Enero (ºC)]])))),2))) -> 720.57 | N69: =ROUND((Tabla1[[#This Row],[Psat (Pa)]]*Tabla1[[#This Row],[HRext Enero (tanto por 1)]]),2) -> 720.57
A70: Andalucía | B70: Almería | C70: Padules | D70: =IF((OR(Tabla1[[#This Row],[Zona Climática]]="α1",Tabla1[[#This Row],[Zona Climática]]="α2",Tabla1[[#This Row],[Zona Climática]]="α3",Tabla1[[#This Row],[Zona Climática]]="α4")),"α",(IF((OR(Tabla1[[#This Row],[Zona Climática]]="A1",Tabla1[[#This Row],[Zona Climática]]="A2",Tabla1[[#This Row],[Zona Climática]]="A3",Tabla1[[#This Row],[Zona Climática]]="A4")),"A",(IF((OR(Tabla1[[#This Row],[Zona Climática]]="B1",Tabla1[[#This Row],[Zona Climática]]="B2",Tabla1[[#This Row],[Zona Climática]]="B3",Tabla1[[#This Row],[Zona Climática]]="B4")),"B",(IF((OR(Tabla1[[#This Row],[Zona Climática]]="C1",Tabla1[[#This Row],[Zona Climática]]="C2",Tabla1[[#This Row],[Zona Climática]]="C3",Tabla1[[#This Row],[Zona Climática]]="C4")),"C",(IF((OR(Tabla1[[#This Row],[Zona Climática]]="D1",Tabla1[[#This Row],[Zona Climática]]="D2",Tabla1[[#This Row],[Zona Climática]]="D3",Tabla1[[#This Row],[Zona Climática]]="D4")),"D","E"))))))))) -> C | E70: C3 | F70: 36.9985279 | G70: -2.7726502 | H70: =CONCATENATE(Tabla1[[#This Row],[Latitud N]],", ",Tabla1[[#This Row],[Longitud W]]) -> 36,9985279, -2,7726502 | I70: 753 | J70: SI | K70: =ROUND((IF(Tabla1[[#This Row],[Altitud (m)]]<(VLOOKUP(Tabla1[[#This Row],[Provincia]],AUX_LOCALIDADES!$A$2:$D$54,3,FALSE)),(VLOOKUP(Tabla1[[#This Row],[Provincia]],AUX_LOCALIDADES!$A$2:$D$54,4,FALSE)),((VLOOKUP(Tabla1[[#This Row],[Provincia]],AUX_LOCALIDADES!$A$2:$D$54,4,FALSE))-((Tabla1[[#This Row],[Altitud (m)]]-(VLOOKUP(Tabla1[[#This Row],[Provincia]],AUX_LOCALIDADES!$A$2:$D$54,3,FALSE)))/100)))),1) -> 5 | L70: =IF((ROUND((IF(Tabla1[[#This Row],[Altitud (m)]]>=(VLOOKUP(Tabla1[[#This Row],[Provincia]],AUX_LOCALIDADES!$A$2:$D$54,3,FALSE)),(((VLOOKUP(Tabla1[[#This Row],[Provincia]],AUX_LOCALIDADES!$A$3:$Q$54,17,FALSE))/(IF(Tabla1[[#This Row],[Text media Enero (ºC)]]<0,(610.5*(EXP((21.875*Tabla1[[#This Row],[Text media Enero (ºC)]])/(265.5+Tabla1[[#This Row],[Text media Enero (ºC)]])))),(610.5*(EXP((17.269*Tabla1[[#This Row],[Text media Enero (ºC)]])/(237.3+Tabla1[[#This Row],[Text media Enero (ºC)]])))))))),((VLOOKUP(Tabla1[[#This Row],[Provincia]],AUX_LOCALIDADES!$S$3:$AG$54,4,FALSE))/100))),2))>1,1,(ROUND((IF(Tabla1[[#This Row],[Altitud (m)]]>=(VLOOKUP(Tabla1[[#This Row],[Provincia]],AUX_LOCALIDADES!$A$2:$D$54,3,FALSE)),(((VLOOKUP(Tabla1[[#This Row],[Provincia]],AUX_LOCALIDADES!$A$3:$Q$54,17,FALSE))/(IF(Tabla1[[#This Row],[Text media Enero (ºC)]]<0,(610.5*(EXP((21.875*Tabla1[[#This Row],[Text media Enero (ºC)]])/(265.5+Tabla1[[#This Row],[Text media Enero (ºC)]])))),(610.5*(EXP((17.269*Tabla1[[#This Row],[Text media Enero (ºC)]])/(237.3+Tabla1[[#This Row],[Text media Enero (ºC)]])))))))),((VLOOKUP(Tabla1[[#This Row],[Provincia]],AUX_LOCALIDADES!$S$3:$AG$54,4,FALSE))/100))),2))) -> 1 | M70: =IF(Tabla1[[#This Row],[Text media Enero (ºC)]]<0,(ROUND((610.5*(EXP((21.875*Tabla1[[#This Row],[Text media Enero (ºC)]])/(265.5+Tabla1[[#This Row],[Text media Enero (ºC)]])))),2)),(ROUND((610.5*(EXP((17.269*Tabla1[[#This Row],[Text media Enero (ºC)]])/(237.3+Tabla1[[#This Row],[Text media Enero (ºC)]])))),2))) -> 871.86 | N70: =ROUND((Tabla1[[#This Row],[Psat (Pa)]]*Tabla1[[#This Row],[HRext Enero (tanto por 1)]]),2) -> 871.86
A71: Andalucía | B71: Almería | C71: Partaloa | D71: =IF((OR(Tabla1[[#This Row],[Zona Climática]]="α1",Tabla1[[#This Row],[Zona Climática]]="α2",Tabla1[[#This Row],[Zona Climática]]="α3",Tabla1[[#This Row],[Zona Climática]]="α4")),"α",(IF((OR(Tabla1[[#This Row],[Zona Climática]]="A1",Tabla1[[#This Row],[Zona Climática]]="A2",Tabla1[[#This Row],[Zona Climática]]="A3",Tabla1[[#This Row],[Zona Climática]]="A4")),"A",(IF((OR(Tabla1[[#This Row],[Zona Climática]]="B1",Tabla1[[#This Row],[Zona Climática]]="B2",Tabla1[[#This Row],[Zona Climática]]="B3",Tabla1[[#This Row],[Zona Climática]]="B4")),"B",(IF((OR(Tabla1[[#This Row],[Zona Climática]]="C1",Tabla1[[#This Row],[Zona Climática]]="C2",Tabla1[[#This Row],[Zona Climática]]="C3",Tabla1[[#This Row],[Zona Climática]]="C4")),"C",(IF((OR(Tabla1[[#This Row],[Zona Climática]]="D1",Tabla1[[#This Row],[Zona Climática]]="D2",Tabla1[[#This Row],[Zona Climática]]="D3",Tabla1[[#This Row],[Zona Climática]]="D4")),"D","E"))))))))) -> C | E71: C3 | F71: 37.4076913 | G71: -2.2253407 | H71: =CONCATENATE(Tabla1[[#This Row],[Latitud N]],", ",Tabla1[[#This Row],[Longitud W]]) -> 37,4076913, -2,2253407 | I71: 542 | J71: SI | K71: =ROUND((IF(Tabla1[[#This Row],[Altitud (m)]]<(VLOOKUP(Tabla1[[#This Row],[Provincia]],AUX_LOCALIDADES!$A$2:$D$54,3,FALSE)),(VLOOKUP(Tabla1[[#This Row],[Provincia]],AUX_LOCALIDADES!$A$2:$D$54,4,FALSE)),((VLOOKUP(Tabla1[[#This Row],[Provincia]],AUX_LOCALIDADES!$A$2:$D$54,4,FALSE))-((Tabla1[[#This Row],[Altitud (m)]]-(VLOOKUP(Tabla1[[#This Row],[Provincia]],AUX_LOCALIDADES!$A$2:$D$54,3,FALSE)))/100)))),1) -> 7.1 | L71: =IF((ROUND((IF(Tabla1[[#This Row],[Altitud (m)]]>=(VLOOKUP(Tabla1[[#This Row],[Provincia]],AUX_LOCALIDADES!$A$2:$D$54,3,FALSE)),(((VLOOKUP(Tabla1[[#This Row],[Provincia]],AUX_LOCALIDADES!$A$3:$Q$54,17,FALSE))/(IF(Tabla1[[#This Row],[Text media Enero (ºC)]]<0,(610.5*(EXP((21.875*Tabla1[[#This Row],[Text media Enero (ºC)]])/(265.5+Tabla1[[#This Row],[Text media Enero (ºC)]])))),(610.5*(EXP((17.269*Tabla1[[#This Row],[Text media Enero (ºC)]])/(237.3+Tabla1[[#This Row],[Text media Enero (ºC)]])))))))),((VLOOKUP(Tabla1[[#This Row],[Provincia]],AUX_LOCALIDADES!$S$3:$AG$54,4,FALSE))/100))),2))>1,1,(ROUND((IF(Tabla1[[#This Row],[Altitud (m)]]>=(VLOOKUP(Tabla1[[#This Row],[Provincia]],AUX_LOCALIDADES!$A$2:$D$54,3,FALSE)),(((VLOOKUP(Tabla1[[#This Row],[Provincia]],AUX_LOCALIDADES!$A$3:$Q$54,17,FALSE))/(IF(Tabla1[[#This Row],[Text media Enero (ºC)]]<0,(610.5*(EXP((21.875*Tabla1[[#This Row],[Text media Enero (ºC)]])/(265.5+Tabla1[[#This Row],[Text media Enero (ºC)]])))),(610.5*(EXP((17.269*Tabla1[[#This Row],[Text media Enero (ºC)]])/(237.3+Tabla1[[#This Row],[Text media Enero (ºC)]])))))))),((VLOOKUP(Tabla1[[#This Row],[Provincia]],AUX_LOCALIDADES!$S$3:$AG$54,4,FALSE))/100))),2))) -> 1 | M71: =IF(Tabla1[[#This Row],[Text media Enero (ºC)]]<0,(ROUND((610.5*(EXP((21.875*Tabla1[[#This Row],[Text media Enero (ºC)]])/(265.5+Tabla1[[#This Row],[Text media Enero (ºC)]])))),2)),(ROUND((610.5*(EXP((17.269*Tabla1[[#This Row],[Text media Enero (ºC)]])/(237.3+Tabla1[[#This Row],[Text media Enero (ºC)]])))),2))) -> 1008.23 | N71: =ROUND((Tabla1[[#This Row],[Psat (Pa)]]*Tabla1[[#This Row],[HRext Enero (tanto por 1)]]),2) -> 1008.23
A72: Andalucía | B72: Almería | C72: Paterna del Río | D72: =IF((OR(Tabla1[[#This Row],[Zona Climática]]="α1",Tabla1[[#This Row],[Zona Climática]]="α2",Tabla1[[#This Row],[Zona Climática]]="α3",Tabla1[[#This Row],[Zona Climática]]="α4")),"α",(IF((OR(Tabla1[[#This Row],[Zona Climática]]="A1",Tabla1[[#This Row],[Zona Climática]]="A2",Tabla1[[#This Row],[Zona Climática]]="A3",Tabla1[[#This Row],[Zona Climática]]="A4")),"A",(IF((OR(Tabla1[[#This Row],[Zona Climática]]="B1",Tabla1[[#This Row],[Zona Climática]]="B2",Tabla1[[#This Row],[Zona Climática]]="B3",Tabla1[[#This Row],[Zona Climática]]="B4")),"B",(IF((OR(Tabla1[[#This Row],[Zona Climática]]="C1",Tabla1[[#This Row],[Zona Climática]]="C2",Tabla1[[#This Row],[Zona Climática]]="C3",Tabla1[[#This Row],[Zona Climática]]="C4")),"C",(IF((OR(Tabla1[[#This Row],[Zona Climática]]="D1",Tabla1[[#This Row],[Zona Climática]]="D2",Tabla1[[#This Row],[Zona Climática]]="D3",Tabla1[[#This Row],[Zona Climática]]="D4")),"D","E"))))))))) -> D | E72: D3 | F72: 37.0226233 | G72: -2.9516602 | H72: =CONCATENATE(Tabla1[[#This Row],[Latitud N]],", ",Tabla1[[#This Row],[Longitud W]]) -> 37,0226233, -2,9516602 | I72: 1205 | J72: SI | K72: =ROUND((IF(Tabla1[[#This Row],[Altitud (m)]]<(VLOOKUP(Tabla1[[#This Row],[Provincia]],AUX_LOCALIDADES!$A$2:$D$54,3,FALSE)),(VLOOKUP(Tabla1[[#This Row],[Provincia]],AUX_LOCALIDADES!$A$2:$D$54,4,FALSE)),((VLOOKUP(Tabla1[[#This Row],[Provincia]],AUX_LOCALIDADES!$A$2:$D$54,4,FALSE))-((Tabla1[[#This Row],[Altitud (m)]]-(VLOOKUP(Tabla1[[#This Row],[Provincia]],AUX_LOCALIDADES!$A$2:$D$54,3,FALSE)))/100)))),1) -> 0.5 | L72: =IF((ROUND((IF(Tabla1[[#This Row],[Altitud (m)]]>=(VLOOKUP(Tabla1[[#This Row],[Provincia]],AUX_LOCALIDADES!$A$2:$D$54,3,FALSE)),(((VLOOKUP(Tabla1[[#This Row],[Provincia]],AUX_LOCALIDADES!$A$3:$Q$54,17,FALSE))/(IF(Tabla1[[#This Row],[Text media Enero (ºC)]]<0,(610.5*(EXP((21.875*Tabla1[[#This Row],[Text media Enero (ºC)]])/(265.5+Tabla1[[#This Row],[Text media Enero (ºC)]])))),(610.5*(EXP((17.269*Tabla1[[#This Row],[Text media Enero (ºC)]])/(237.3+Tabla1[[#This Row],[Text media Enero (ºC)]])))))))),((VLOOKUP(Tabla1[[#This Row],[Provincia]],AUX_LOCALIDADES!$S$3:$AG$54,4,FALSE))/100))),2))>1,1,(ROUND((IF(Tabla1[[#This Row],[Altitud (m)]]>=(VLOOKUP(Tabla1[[#This Row],[Provincia]],AUX_LOCALIDADES!$A$2:$D$54,3,FALSE)),(((VLOOKUP(Tabla1[[#This Row],[Provincia]],AUX_LOCALIDADES!$A$3:$Q$54,17,FALSE))/(IF(Tabla1[[#This Row],[Text media Enero (ºC)]]<0,(610.5*(EXP((21.875*Tabla1[[#This Row],[Text media Enero (ºC)]])/(265.5+Tabla1[[#This Row],[Text media Enero (ºC)]])))),(610.5*(EXP((17.269*Tabla1[[#This Row],[Text media Enero (ºC)]])/(237.3+Tabla1[[#This Row],[Text media Enero (ºC)]])))))))),((VLOOKUP(Tabla1[[#This Row],[Provincia]],AUX_LOCALIDADES!$S$3:$AG$54,4,FALSE))/100))),2))) -> 1 | M72: =IF(Tabla1[[#This Row],[Text media Enero (ºC)]]<0,(ROUND((610.5*(EXP((21.875*Tabla1[[#This Row],[Text media Enero (ºC)]])/(265.5+Tabla1[[#This Row],[Text media Enero (ºC)]])))),2)),(ROUND((610.5*(EXP((17.269*Tabla1[[#This Row],[Text media Enero (ºC)]])/(237.3+Tabla1[[#This Row],[Text media Enero (ºC)]])))),2))) -> 633.07 | N72: =ROUND((Tabla1[[#This Row],[Psat (Pa)]]*Tabla1[[#This Row],[HRext Enero (tanto por 1)]]),2) -> 633.07
A73: Andalucía | B73: Almería | C73: Pechina | D73: =IF((OR(Tabla1[[#This Row],[Zona Climática]]="α1",Tabla1[[#This Row],[Zona Climática]]="α2",Tabla1[[#This Row],[Zona Climática]]="α3",Tabla1[[#This Row],[Zona Climática]]="α4")),"α",(IF((OR(Tabla1[[#This Row],[Zona Climática]]="A1",Tabla1[[#This Row],[Zona Climática]]="A2",Tabla1[[#This Row],[Zona Climática]]="A3",Tabla1[[#This Row],[Zona Climática]]="A4")),"A",(IF((OR(Tabla1[[#This Row],[Zona Climática]]="B1",Tabla1[[#This Row],[Zona Climática]]="B2",Tabla1[[#This Row],[Zona Climática]]="B3",Tabla1[[#This Row],[Zona Climática]]="B4")),"B",(IF((OR(Tabla1[[#This Row],[Zona Climática]]="C1",Tabla1[[#This Row],[Zona Climática]]="C2",Tabla1[[#This Row],[Zona Climática]]="C3",Tabla1[[#This Row],[Zona Climática]]="C4")),"C",(IF((OR(Tabla1[[#This Row],[Zona Climática]]="D1",Tabla1[[#This Row],[Zona Climática]]="D2",Tabla1[[#This Row],[Zona Climática]]="D3",Tabla1[[#This Row],[Zona Climática]]="D4")),"D","E"))))))))) -> A | E73: A4 | F73: 36.9169248 | G73: -2.43925 | H73: =CONCATENATE(Tabla1[[#This Row],[Latitud N]],", ",Tabla1[[#This Row],[Longitud W]]) -> 36,9169248, -2,43925 | I73: 99 | J73: SI | K73: =ROUND((IF(Tabla1[[#This Row],[Altitud (m)]]<(VLOOKUP(Tabla1[[#This Row],[Provincia]],AUX_LOCALIDADES!$A$2:$D$54,3,FALSE)),(VLOOKUP(Tabla1[[#This Row],[Provincia]],AUX_LOCALIDADES!$A$2:$D$54,4,FALSE)),((VLOOKUP(Tabla1[[#This Row],[Provincia]],AUX_LOCALIDADES!$A$2:$D$54,4,FALSE))-((Tabla1[[#This Row],[Altitud (m)]]-(VLOOKUP(Tabla1[[#This Row],[Provincia]],AUX_LOCALIDADES!$A$2:$D$54,3,FALSE)))/100)))),1) -> 11.5 | L73: =IF((ROUND((IF(Tabla1[[#This Row],[Altitud (m)]]>=(VLOOKUP(Tabla1[[#This Row],[Provincia]],AUX_LOCALIDADES!$A$2:$D$54,3,FALSE)),(((VLOOKUP(Tabla1[[#This Row],[Provincia]],AUX_LOCALIDADES!$A$3:$Q$54,17,FALSE))/(IF(Tabla1[[#This Row],[Text media Enero (ºC)]]<0,(610.5*(EXP((21.875*Tabla1[[#This Row],[Text media Enero (ºC)]])/(265.5+Tabla1[[#This Row],[Text media Enero (ºC)]])))),(610.5*(EXP((17.269*Tabla1[[#This Row],[Text media Enero (ºC)]])/(237.3+Tabla1[[#This Row],[Text media Enero (ºC)]])))))))),((VLOOKUP(Tabla1[[#This Row],[Provincia]],AUX_LOCALIDADES!$S$3:$AG$54,4,FALSE))/100))),2))>1,1,(ROUND((IF(Tabla1[[#This Row],[Altitud (m)]]>=(VLOOKUP(Tabla1[[#This Row],[Provincia]],AUX_LOCALIDADES!$A$2:$D$54,3,FALSE)),(((VLOOKUP(Tabla1[[#This Row],[Provincia]],AUX_LOCALIDADES!$A$3:$Q$54,17,FALSE))/(IF(Tabla1[[#This Row],[Text media Enero (ºC)]]<0,(610.5*(EXP((21.875*Tabla1[[#This Row],[Text media Enero (ºC)]])/(265.5+Tabla1[[#This Row],[Text media Enero (ºC)]])))),(610.5*(EXP((17.269*Tabla1[[#This Row],[Text media Enero (ºC)]])/(237.3+Tabla1[[#This Row],[Text media Enero (ºC)]])))))))),((VLOOKUP(Tabla1[[#This Row],[Provincia]],AUX_LOCALIDADES!$S$3:$AG$54,4,FALSE))/100))),2))) -> 0.74 | M73: =IF(Tabla1[[#This Row],[Text media Enero (ºC)]]<0,(ROUND((610.5*(EXP((21.875*Tabla1[[#This Row],[Text media Enero (ºC)]])/(265.5+Tabla1[[#This Row],[Text media Enero (ºC)]])))),2)),(ROUND((610.5*(EXP((17.269*Tabla1[[#This Row],[Text media Enero (ºC)]])/(237.3+Tabla1[[#This Row],[Text media Enero (ºC)]])))),2))) -> 1356.26 | N73: =ROUND((Tabla1[[#This Row],[Psat (Pa)]]*Tabla1[[#This Row],[HRext Enero (tanto por 1)]]),2) -> 1003.63
A74: Andalucía | B74: Almería | C74: Pulpí | D74: =IF((OR(Tabla1[[#This Row],[Zona Climática]]="α1",Tabla1[[#This Row],[Zona Climática]]="α2",Tabla1[[#This Row],[Zona Climática]]="α3",Tabla1[[#This Row],[Zona Climática]]="α4")),"α",(IF((OR(Tabla1[[#This Row],[Zona Climática]]="A1",Tabla1[[#This Row],[Zona Climática]]="A2",Tabla1[[#This Row],[Zona Climática]]="A3",Tabla1[[#This Row],[Zona Climática]]="A4")),"A",(IF((OR(Tabla1[[#This Row],[Zona Climática]]="B1",Tabla1[[#This Row],[Zona Climática]]="B2",Tabla1[[#This Row],[Zona Climática]]="B3",Tabla1[[#This Row],[Zona Climática]]="B4")),"B",(IF((OR(Tabla1[[#This Row],[Zona Climática]]="C1",Tabla1[[#This Row],[Zona Climática]]="C2",Tabla1[[#This Row],[Zona Climática]]="C3",Tabla1[[#This Row],[Zona Climática]]="C4")),"C",(IF((OR(Tabla1[[#This Row],[Zona Climática]]="D1",Tabla1[[#This Row],[Zona Climática]]="D2",Tabla1[[#This Row],[Zona Climática]]="D3",Tabla1[[#This Row],[Zona Climática]]="D4")),"D","E"))))))))) -> B | E74: B4 | F74: 37.4136523 | G74: -1.7440334 | H74: =CONCATENATE(Tabla1[[#This Row],[Latitud N]],", ",Tabla1[[#This Row],[Longitud W]]) -> 37,4136523, -1,7440334 | I74: 194 | J74: SI | K74: =ROUND((IF(Tabla1[[#This Row],[Altitud (m)]]<(VLOOKUP(Tabla1[[#This Row],[Provincia]],AUX_LOCALIDADES!$A$2:$D$54,3,FALSE)),(VLOOKUP(Tabla1[[#This Row],[Provincia]],AUX_LOCALIDADES!$A$2:$D$54,4,FALSE)),((VLOOKUP(Tabla1[[#This Row],[Provincia]],AUX_LOCALIDADES!$A$2:$D$54,4,FALSE))-((Tabla1[[#This Row],[Altitud (m)]]-(VLOOKUP(Tabla1[[#This Row],[Provincia]],AUX_LOCALIDADES!$A$2:$D$54,3,FALSE)))/100)))),1) -> 10.6 | L74: =IF((ROUND((IF(Tabla1[[#This Row],[Altitud (m)]]>=(VLOOKUP(Tabla1[[#This Row],[Provincia]],AUX_LOCALIDADES!$A$2:$D$54,3,FALSE)),(((VLOOKUP(Tabla1[[#This Row],[Provincia]],AUX_LOCALIDADES!$A$3:$Q$54,17,FALSE))/(IF(Tabla1[[#This Row],[Text media Enero (ºC)]]<0,(610.5*(EXP((21.875*Tabla1[[#This Row],[Text media Enero (ºC)]])/(265.5+Tabla1[[#This Row],[Text media Enero (ºC)]])))),(610.5*(EXP((17.269*Tabla1[[#This Row],[Text media Enero (ºC)]])/(237.3+Tabla1[[#This Row],[Text media Enero (ºC)]])))))))),((VLOOKUP(Tabla1[[#This Row],[Provincia]],AUX_LOCALIDADES!$S$3:$AG$54,4,FALSE))/100))),2))>1,1,(ROUND((IF(Tabla1[[#This Row],[Altitud (m)]]>=(VLOOKUP(Tabla1[[#This Row],[Provincia]],AUX_LOCALIDADES!$A$2:$D$54,3,FALSE)),(((VLOOKUP(Tabla1[[#This Row],[Provincia]],AUX_LOCALIDADES!$A$3:$Q$54,17,FALSE))/(IF(Tabla1[[#This Row],[Text media Enero (ºC)]]<0,(610.5*(EXP((21.875*Tabla1[[#This Row],[Text media Enero (ºC)]])/(265.5+Tabla1[[#This Row],[Text media Enero (ºC)]])))),(610.5*(EXP((17.269*Tabla1[[#This Row],[Text media Enero (ºC)]])/(237.3+Tabla1[[#This Row],[Text media Enero (ºC)]])))))))),((VLOOKUP(Tabla1[[#This Row],[Provincia]],AUX_LOCALIDADES!$S$3:$AG$54,4,FALSE))/100))),2))) -> 0.79 | M74: =IF(Tabla1[[#This Row],[Text media Enero (ºC)]]<0,(ROUND((610.5*(EXP((21.875*Tabla1[[#This Row],[Text media Enero (ºC)]])/(265.5+Tabla1[[#This Row],[Text media Enero (ºC)]])))),2)),(ROUND((610.5*(EXP((17.269*Tabla1[[#This Row],[Text media Enero (ºC)]])/(237.3+Tabla1[[#This Row],[Text media Enero (ºC)]])))),2))) -> 1277.53 | N74: =ROUND((Tabla1[[#This Row],[Psat (Pa)]]*Tabla1[[#This Row],[HRext Enero (tanto por 1)]]),2) -> 1009.25
A75: Andalucía | B75: Almería | C75: Purchena | D75: =IF((OR(Tabla1[[#This Row],[Zona Climática]]="α1",Tabla1[[#This Row],[Zona Climática]]="α2",Tabla1[[#This Row],[Zona Climática]]="α3",Tabla1[[#This Row],[Zona Climática]]="α4")),"α",(IF((OR(Tabla1[[#This Row],[Zona Climática]]="A1",Tabla1[[#This Row],[Zona Climática]]="A2",Tabla1[[#This Row],[Zona Climática]]="A3",Tabla1[[#This Row],[Zona Climática]]="A4")),"A",(IF((OR(Tabla1[[#This Row],[Zona Climática]]="B1",Tabla1[[#This Row],[Zona Climática]]="B2",Tabla1[[#This Row],[Zona Climática]]="B3",Tabla1[[#This Row],[Zona Climática]]="B4")),"B",(IF((OR(Tabla1[[#This Row],[Zona Climática]]="C1",Tabla1[[#This Row],[Zona Climática]]="C2",Tabla1[[#This Row],[Zona Climática]]="C3",Tabla1[[#This Row],[Zona Climática]]="C4")),"C",(IF((OR(Tabla1[[#This Row],[Zona Climática]]="D1",Tabla1[[#This Row],[Zona Climática]]="D2",Tabla1[[#This Row],[Zona Climática]]="D3",Tabla1[[#This Row],[Zona Climática]]="D4")),"D","E"))))))))) -> C | E75: C3 | F75: 37.34883 | G75: -2.3604102 | H75: =CONCATENATE(Tabla1[[#This Row],[Latitud N]],", ",Tabla1[[#This Row],[Longitud W]]) -> 37,34883, -2,3604102 | I75: 555 | J75: SI | K75: =ROUND((IF(Tabla1[[#This Row],[Altitud (m)]]<(VLOOKUP(Tabla1[[#This Row],[Provincia]],AUX_LOCALIDADES!$A$2:$D$54,3,FALSE)),(VLOOKUP(Tabla1[[#This Row],[Provincia]],AUX_LOCALIDADES!$A$2:$D$54,4,FALSE)),((VLOOKUP(Tabla1[[#This Row],[Provincia]],AUX_LOCALIDADES!$A$2:$D$54,4,FALSE))-((Tabla1[[#This Row],[Altitud (m)]]-(VLOOKUP(Tabla1[[#This Row],[Provincia]],AUX_LOCALIDADES!$A$2:$D$54,3,FALSE)))/100)))),1) -> 7 | L75: =IF((ROUND((IF(Tabla1[[#This Row],[Altitud (m)]]>=(VLOOKUP(Tabla1[[#This Row],[Provincia]],AUX_LOCALIDADES!$A$2:$D$54,3,FALSE)),(((VLOOKUP(Tabla1[[#This Row],[Provincia]],AUX_LOCALIDADES!$A$3:$Q$54,17,FALSE))/(IF(Tabla1[[#This Row],[Text media Enero (ºC)]]<0,(610.5*(EXP((21.875*Tabla1[[#This Row],[Text media Enero (ºC)]])/(265.5+Tabla1[[#This Row],[Text media Enero (ºC)]])))),(610.5*(EXP((17.269*Tabla1[[#This Row],[Text media Enero (ºC)]])/(237.3+Tabla1[[#This Row],[Text media Enero (ºC)]])))))))),((VLOOKUP(Tabla1[[#This Row],[Provincia]],AUX_LOCALIDADES!$S$3:$AG$54,4,FALSE))/100))),2))>1,1,(ROUND((IF(Tabla1[[#This Row],[Altitud (m)]]>=(VLOOKUP(Tabla1[[#This Row],[Provincia]],AUX_LOCALIDADES!$A$2:$D$54,3,FALSE)),(((VLOOKUP(Tabla1[[#This Row],[Provincia]],AUX_LOCALIDADES!$A$3:$Q$54,17,FALSE))/(IF(Tabla1[[#This Row],[Text media Enero (ºC)]]<0,(610.5*(EXP((21.875*Tabla1[[#This Row],[Text media Enero (ºC)]])/(265.5+Tabla1[[#This Row],[Text media Enero (ºC)]])))),(610.5*(EXP((17.269*Tabla1[[#This Row],[Text media Enero (ºC)]])/(237.3+Tabla1[[#This Row],[Text media Enero (ºC)]])))))))),((VLOOKUP(Tabla1[[#This Row],[Provincia]],AUX_LOCALIDADES!$S$3:$AG$54,4,FALSE))/100))),2))) -> 1 | M75: =IF(Tabla1[[#This Row],[Text media Enero (ºC)]]<0,(ROUND((610.5*(EXP((21.875*Tabla1[[#This Row],[Text media Enero (ºC)]])/(265.5+Tabla1[[#This Row],[Text media Enero (ºC)]])))),2)),(ROUND((610.5*(EXP((17.269*Tabla1[[#This Row],[Text media Enero (ºC)]])/(237.3+Tabla1[[#This Row],[Text media Enero (ºC)]])))),2))) -> 1001.34 | N75: =ROUND((Tabla1[[#This Row],[Psat (Pa)]]*Tabla1[[#This Row],[HRext Enero (tanto por 1)]]),2) -> 1001.34
A76: Andalucía | B76: Almería | C76: Rágol | D76: =IF((OR(Tabla1[[#This Row],[Zona Climática]]="α1",Tabla1[[#This Row],[Zona Climática]]="α2",Tabla1[[#This Row],[Zona Climática]]="α3",Tabla1[[#This Row],[Zona Climática]]="α4")),"α",(IF((OR(Tabla1[[#This Row],[Zona Climática]]="A1",Tabla1[[#This Row],[Zona Climática]]="A2",Tabla1[[#This Row],[Zona Climática]]="A3",Tabla1[[#This Row],[Zona Climática]]="A4")),"A",(IF((OR(Tabla1[[#This Row],[Zona Climática]]="B1",Tabla1[[#This Row],[Zona Climática]]="B2",Tabla1[[#This Row],[Zona Climática]]="B3",Tabla1[[#This Row],[Zona Climática]]="B4")),"B",(IF((OR(Tabla1[[#This Row],[Zona Climática]]="C1",Tabla1[[#This Row],[Zona Climática]]="C2",Tabla1[[#This Row],[Zona Climática]]="C3",Tabla1[[#This Row],[Zona Climática]]="C4")),"C",(IF((OR(Tabla1[[#This Row],[Zona Climática]]="D1",Tabla1[[#This Row],[Zona Climática]]="D2",Tabla1[[#This Row],[Zona Climática]]="D3",Tabla1[[#This Row],[Zona Climática]]="D4")),"D","E"))))))))) -> C | E76: C3 | F76: 36.9962432 | G76: -2.6808434 | H76: =CONCATENATE(Tabla1[[#This Row],[Latitud N]],", ",Tabla1[[#This Row],[Longitud W]]) -> 36,9962432, -2,6808434 | I76: 420 | J76: SI | K76: =ROUND((IF(Tabla1[[#This Row],[Altitud (m)]]<(VLOOKUP(Tabla1[[#This Row],[Provincia]],AUX_LOCALIDADES!$A$2:$D$54,3,FALSE)),(VLOOKUP(Tabla1[[#This Row],[Provincia]],AUX_LOCALIDADES!$A$2:$D$54,4,FALSE)),((VLOOKUP(Tabla1[[#This Row],[Provincia]],AUX_LOCALIDADES!$A$2:$D$54,4,FALSE))-((Tabla1[[#This Row],[Altitud (m)]]-(VLOOKUP(Tabla1[[#This Row],[Provincia]],AUX_LOCALIDADES!$A$2:$D$54,3,FALSE)))/100)))),1) -> 8.3 | L76: =IF((ROUND((IF(Tabla1[[#This Row],[Altitud (m)]]>=(VLOOKUP(Tabla1[[#This Row],[Provincia]],AUX_LOCALIDADES!$A$2:$D$54,3,FALSE)),(((VLOOKUP(Tabla1[[#This Row],[Provincia]],AUX_LOCALIDADES!$A$3:$Q$54,17,FALSE))/(IF(Tabla1[[#This Row],[Text media Enero (ºC)]]<0,(610.5*(EXP((21.875*Tabla1[[#This Row],[Text media Enero (ºC)]])/(265.5+Tabla1[[#This Row],[Text media Enero (ºC)]])))),(610.5*(EXP((17.269*Tabla1[[#This Row],[Text media Enero (ºC)]])/(237.3+Tabla1[[#This Row],[Text media Enero (ºC)]])))))))),((VLOOKUP(Tabla1[[#This Row],[Provincia]],AUX_LOCALIDADES!$S$3:$AG$54,4,FALSE))/100))),2))>1,1,(ROUND((IF(Tabla1[[#This Row],[Altitud (m)]]>=(VLOOKUP(Tabla1[[#This Row],[Provincia]],AUX_LOCALIDADES!$A$2:$D$54,3,FALSE)),(((VLOOKUP(Tabla1[[#This Row],[Provincia]],AUX_LOCALIDADES!$A$3:$Q$54,17,FALSE))/(IF(Tabla1[[#This Row],[Text media Enero (ºC)]]<0,(610.5*(EXP((21.875*Tabla1[[#This Row],[Text media Enero (ºC)]])/(265.5+Tabla1[[#This Row],[Text media Enero (ºC)]])))),(610.5*(EXP((17.269*Tabla1[[#This Row],[Text media Enero (ºC)]])/(237.3+Tabla1[[#This Row],[Text media Enero (ºC)]])))))))),((VLOOKUP(Tabla1[[#This Row],[Provincia]],AUX_LOCALIDADES!$S$3:$AG$54,4,FALSE))/100))),2))) -> 0.92 | M76: =IF(Tabla1[[#This Row],[Text media Enero (ºC)]]<0,(ROUND((610.5*(EXP((21.875*Tabla1[[#This Row],[Text media Enero (ºC)]])/(265.5+Tabla1[[#This Row],[Text media Enero (ºC)]])))),2)),(ROUND((610.5*(EXP((17.269*Tabla1[[#This Row],[Text media Enero (ºC)]])/(237.3+Tabla1[[#This Row],[Text media Enero (ºC)]])))),2))) -> 1094.31 | N76: =ROUND((Tabla1[[#This Row],[Psat (Pa)]]*Tabla1[[#This Row],[HRext Enero (tanto por 1)]]),2) -> 1006.77
A77: Andalucía | B77: Almería | C77: Rioja | D77: =IF((OR(Tabla1[[#This Row],[Zona Climática]]="α1",Tabla1[[#This Row],[Zona Climática]]="α2",Tabla1[[#This Row],[Zona Climática]]="α3",Tabla1[[#This Row],[Zona Climática]]="α4")),"α",(IF((OR(Tabla1[[#This Row],[Zona Climática]]="A1",Tabla1[[#This Row],[Zona Climática]]="A2",Tabla1[[#This Row],[Zona Climática]]="A3",Tabla1[[#This Row],[Zona Climática]]="A4")),"A",(IF((OR(Tabla1[[#This Row],[Zona Climática]]="B1",Tabla1[[#This Row],[Zona Climática]]="B2",Tabla1[[#This Row],[Zona Climática]]="B3",Tabla1[[#This Row],[Zona Climática]]="B4")),"B",(IF((OR(Tabla1[[#This Row],[Zona Climática]]="C1",Tabla1[[#This Row],[Zona Climática]]="C2",Tabla1[[#This Row],[Zona Climática]]="C3",Tabla1[[#This Row],[Zona Climática]]="C4")),"C",(IF((OR(Tabla1[[#This Row],[Zona Climática]]="D1",Tabla1[[#This Row],[Zona Climática]]="D2",Tabla1[[#This Row],[Zona Climática]]="D3",Tabla1[[#This Row],[Zona Climática]]="D4")),"D","E"))))))))) -> B | E77: B4 | F77: 36.9445221 | G77: -2.4617328 | H77: =CONCATENATE(Tabla1[[#This Row],[Latitud N]],", ",Tabla1[[#This Row],[Longitud W]]) -> 36,9445221, -2,4617328 | I77: 127 | J77: SI | K77: =ROUND((IF(Tabla1[[#This Row],[Altitud (m)]]<(VLOOKUP(Tabla1[[#This Row],[Provincia]],AUX_LOCALIDADES!$A$2:$D$54,3,FALSE)),(VLOOKUP(Tabla1[[#This Row],[Provincia]],AUX_LOCALIDADES!$A$2:$D$54,4,FALSE)),((VLOOKUP(Tabla1[[#This Row],[Provincia]],AUX_LOCALIDADES!$A$2:$D$54,4,FALSE))-((Tabla1[[#This Row],[Altitud (m)]]-(VLOOKUP(Tabla1[[#This Row],[Provincia]],AUX_LOCALIDADES!$A$2:$D$54,3,FALSE)))/100)))),1) -> 11.2 | L77: =IF((ROUND((IF(Tabla1[[#This Row],[Altitud (m)]]>=(VLOOKUP(Tabla1[[#This Row],[Provincia]],AUX_LOCALIDADES!$A$2:$D$54,3,FALSE)),(((VLOOKUP(Tabla1[[#This Row],[Provincia]],AUX_LOCALIDADES!$A$3:$Q$54,17,FALSE))/(IF(Tabla1[[#This Row],[Text media Enero (ºC)]]<0,(610.5*(EXP((21.875*Tabla1[[#This Row],[Text media Enero (ºC)]])/(265.5+Tabla1[[#This Row],[Text media Enero (ºC)]])))),(610.5*(EXP((17.269*Tabla1[[#This Row],[Text media Enero (ºC)]])/(237.3+Tabla1[[#This Row],[Text media Enero (ºC)]])))))))),((VLOOKUP(Tabla1[[#This Row],[Provincia]],AUX_LOCALIDADES!$S$3:$AG$54,4,FALSE))/100))),2))>1,1,(ROUND((IF(Tabla1[[#This Row],[Altitud (m)]]>=(VLOOKUP(Tabla1[[#This Row],[Provincia]],AUX_LOCALIDADES!$A$2:$D$54,3,FALSE)),(((VLOOKUP(Tabla1[[#This Row],[Provincia]],AUX_LOCALIDADES!$A$3:$Q$54,17,FALSE))/(IF(Tabla1[[#This Row],[Text media Enero (ºC)]]<0,(610.5*(EXP((21.875*Tabla1[[#This Row],[Text media Enero (ºC)]])/(265.5+Tabla1[[#This Row],[Text media Enero (ºC)]])))),(610.5*(EXP((17.269*Tabla1[[#This Row],[Text media Enero (ºC)]])/(237.3+Tabla1[[#This Row],[Text media Enero (ºC)]])))))))),((VLOOKUP(Tabla1[[#This Row],[Provincia]],AUX_LOCALIDADES!$S$3:$AG$54,4,FALSE))/100))),2))) -> 0.76 | M77: =IF(Tabla1[[#This Row],[Text media Enero (ºC)]]<0,(ROUND((610.5*(EXP((21.875*Tabla1[[#This Row],[Text media Enero (ºC)]])/(265.5+Tabla1[[#This Row],[Text media Enero (ºC)]])))),2)),(ROUND((610.5*(EXP((17.269*Tabla1[[#This Row],[Text media Enero (ºC)]])/(237.3+Tabla1[[#This Row],[Text media Enero (ºC)]])))),2))) -> 1329.55 | N77: =ROUND((Tabla1[[#This Row],[Psat (Pa)]]*Tabla1[[#This Row],[HRext Enero (tanto por 1)]]),2) -> 1010.46
A78: Andalucía | B78: Almería | C78: Roquetas de Mar | D78: =IF((OR(Tabla1[[#This Row],[Zona Climática]]="α1",Tabla1[[#This Row],[Zona Climática]]="α2",Tabla1[[#This Row],[Zona Climática]]="α3",Tabla1[[#This Row],[Zona Climática]]="α4")),"α",(IF((OR(Tabla1[[#This Row],[Zona Climática]]="A1",Tabla1[[#This Row],[Zona Climática]]="A2",Tabla1[[#This Row],[Zona Climática]]="A3",Tabla1[[#This Row],[Zona Climática]]="A4")),"A",(IF((OR(Tabla1[[#This Row],[Zona Climática]]="B1",Tabla1[[#This Row],[Zona Climática]]="B2",Tabla1[[#This Row],[Zona Climática]]="B3",Tabla1[[#This Row],[Zona Climática]]="B4")),"B",(IF((OR(Tabla1[[#This Row],[Zona Climática]]="C1",Tabla1[[#This Row],[Zona Climática]]="C2",Tabla1[[#This Row],[Zona Climática]]="C3",Tabla1[[#This Row],[Zona Climática]]="C4")),"C",(IF((OR(Tabla1[[#This Row],[Zona Climática]]="D1",Tabla1[[#This Row],[Zona Climática]]="D2",Tabla1[[#This Row],[Zona Climática]]="D3",Tabla1[[#This Row],[Zona Climática]]="D4")),"D","E"))))))))) -> A | E78: A4 | F78: 36.7655285 | G78: -2.607855 | H78: =CONCATENATE(Tabla1[[#This Row],[Latitud N]],", ",Tabla1[[#This Row],[Longitud W]]) -> 36,7655285, -2,607855 | I78: 7 | J78: SI | K78: =ROUND((IF(Tabla1[[#This Row],[Altitud (m)]]<(VLOOKUP(Tabla1[[#This Row],[Provincia]],AUX_LOCALIDADES!$A$2:$D$54,3,FALSE)),(VLOOKUP(Tabla1[[#This Row],[Provincia]],AUX_LOCALIDADES!$A$2:$D$54,4,FALSE)),((VLOOKUP(Tabla1[[#This Row],[Provincia]],AUX_LOCALIDADES!$A$2:$D$54,4,FALSE))-((Tabla1[[#This Row],[Altitud (m)]]-(VLOOKUP(Tabla1[[#This Row],[Provincia]],AUX_LOCALIDADES!$A$2:$D$54,3,FALSE)))/100)))),1) -> 12.4 | L78: =IF((ROUND((IF(Tabla1[[#This Row],[Altitud (m)]]>=(VLOOKUP(Tabla1[[#This Row],[Provincia]],AUX_LOCALIDADES!$A$2:$D$54,3,FALSE)),(((VLOOKUP(Tabla1[[#This Row],[Provincia]],AUX_LOCALIDADES!$A$3:$Q$54,17,FALSE))/(IF(Tabla1[[#This Row],[Text media Enero (ºC)]]<0,(610.5*(EXP((21.875*Tabla1[[#This Row],[Text media Enero (ºC)]])/(265.5+Tabla1[[#This Row],[Text media Enero (ºC)]])))),(610.5*(EXP((17.269*Tabla1[[#This Row],[Text media Enero (ºC)]])/(237.3+Tabla1[[#This Row],[Text media Enero (ºC)]])))))))),((VLOOKUP(Tabla1[[#This Row],[Provincia]],AUX_LOCALIDADES!$S$3:$AG$54,4,FALSE))/100))),2))>1,1,(ROUND((IF(Tabla1[[#This Row],[Altitud (m)]]>=(VLOOKUP(Tabla1[[#This Row],[Provincia]],AUX_LOCALIDADES!$A$2:$D$54,3,FALSE)),(((VLOOKUP(Tabla1[[#This Row],[Provincia]],AUX_LOCALIDADES!$A$3:$Q$54,17,FALSE))/(IF(Tabla1[[#This Row],[Text media Enero (ºC)]]<0,(610.5*(EXP((21.875*Tabla1[[#This Row],[Text media Enero (ºC)]])/(265.5+Tabla1[[#This Row],[Text media Enero (ºC)]])))),(610.5*(EXP((17.269*Tabla1[[#This Row],[Text media Enero (ºC)]])/(237.3+Tabla1[[#This Row],[Text media Enero (ºC)]])))))))),((VLOOKUP(Tabla1[[#This Row],[Provincia]],AUX_LOCALIDADES!$S$3:$AG$54,4,FALSE))/100))),2))) -> 0.7 | M78: =IF(Tabla1[[#This Row],[Text media Enero (ºC)]]<0,(ROUND((610.5*(EXP((21.875*Tabla1[[#This Row],[Text media Enero (ºC)]])/(265.5+Tabla1[[#This Row],[Text media Enero (ºC)]])))),2)),(ROUND((610.5*(EXP((17.269*Tabla1[[#This Row],[Text media Enero (ºC)]])/(237.3+Tabla1[[#This Row],[Text media Enero (ºC)]])))),2))) -> 1439.21 | N78: =ROUND((Tabla1[[#This Row],[Psat (Pa)]]*Tabla1[[#This Row],[HRext Enero (tanto por 1)]]),2) -> 1007.45
